Workbook

Sheet Input - General
B2: Cell colour legend
B4: Inputs - hardcoded value
B5: Derived Inputs - Calculated or referenced to another cell
B7: General assumptions | D7: Driver | F7: Inputs | H7: FY13 | I7: FY14 | J7: FY15 | K7: FY16 | L7: FY17 | M7: FY18 | N7: FY19 | P7: Supporting Figures Worksheet Ref.
B9: CPI (%) | D9: % p.a. | H9: 0.01131384294 | I9: 0.025099022 | J9: 0.0245119441 | K9: 0.02155996499 | L9: 0.02469158265 | M9: 0.025 | N9: 0.025
B10: Labour real price escalation (%) | D10: % p.a. | H10: 0.0135 | I10: 0.02699599604 | J10: 0.0124827288 | K10: 0.01561733289 | L10: 0.02066984635 | M10: 0.02055280572 | N10: 0.02038973649
B11: Lamp real price escalation (%) | D11: % p.a. | H11: 0 | I11: 0 | J11: 0 | K11: 0 | L11: 0 | M11: 0 | N11: 0
B12: Visor real price escalation (%) | D12: % p.a. | H12: 0 | I12: 0 | J12: 0 | K12: 0 | L12: 0 | M12: 0 | N12: 0
B13: PE cell real price escalation (%) | D13: % p.a. | H13: 0 | I13: 0 | J13: 0 | K13: 0 | L13: 0 | M13: 0 | N13: 0
B14: Miscellaneous real price escalation (%) | D14: % p.a. | H14: 0 | I14: 0 | J14: 0 | K14: 0 | L14: 0 | M14: 0 | N14: 0
B15: EWP real price escalation (%) | D15: % p.a. | H15: 0 | I15: 0 | J15: 0 | K15: 0 | L15: 0 | M15: 0 | N15: 0
B16: Growth rate of public lights (%) | D16: % p.a. | H16: 0 | I16: 0 | J16: 0 | K16: 0 | L16: 0 | M16: 0 | N16: 0
B17: Labour rate ($/hour) | D17: $/hour | H17: 39.37111111 | I17: =INDIRECT("PriceLabour"&H$7)*(1+INDIRECT("EscLabour"&I$7))*(1+INDIRECT("CPI"&I$7)) -> 41.44882666 | J17: 42.99489479 | K17: 44.60780557 | L17: 46.65404592 | M17: 48.8032404 | N17: 51.04328375 | P17: 1
B18: Labour rate - overtime (1.89 times) ($/hour) | D18: $/hour | F18: 1.89 | H18: =PriceLabourFY13*F18 -> 74.4114 | I18: =PriceLabourFY14*F18 -> 78.33828239 | J18: =PriceLabourFY15*F18 -> 81.26035115 | K18: =PriceLabourFY16*F18 -> 84.30875254 | L18: =PriceLabourFY17*F18 -> 88.17614679 | M18: =PriceLabourFY18*F18 -> 92.23812435 | N18: =PriceLabourFY19*F18 -> 96.47180629 | P18: 5
B19: EWP ($/hour) | D19: $/hour | I19: 29.73 | J19: =INDIRECT("priceewp"&I7)*(1+INDIRECT("CPI"&J7))*(1+INDIRECT("EscEWP"&J7)) -> 30.4587401 | K19: 31.11542947 | L19: 31.88371867 | M19: 32.68081163 | N19: 33.49783192 | P19: 2
B20: Average Visor cost | D20: $/unit | I20: 39.54 | J20: =INDIRECT("PriceVisor"&I7)*(1+INDIRECT("CPI"&J7))*(1+INDIRECT("EscVisor"&J7)) -> 40.50920227 | K20: 41.38257925 | L20: 42.40438063 | M20: 43.46449014 | N20: 44.5511024 | P20: 3
B21: Average PE cell cost | D21: $/unit | I21: 10.73 | J21: =INDIRECT("PricePECell"&I7)*((1+INDIRECT("CPI"&J7))*(1+INDIRECT("EscPECell"&J7))) -> 10.99301316 | K21: 11.23002214 | L21: 11.50730916 | M21: 11.79499189 | N21: 12.08986669 | P21: 4
B22: Average miscellaneous materials cost | D22: $/unit | H22: 0 | I22: =INDIRECT("PriceMisc"&H7)*(1+INDIRECT("CPI"&I7))*(1+INDIRECT("EscMisc"&I7)) -> 0 | J22: =INDIRECT("PriceMisc"&I7)*(1+INDIRECT("CPI"&J7))*(1+INDIRECT("EscMisc"&J7)) -> 0 | K22: 0 | L22: 0 | M22: 0 | N22: 0
B23: Proportion of work in overtime hours (%) | D23: % p.a. | F23: 0.14 | P23: 5
B24: Proportion of work in standard hours (%) | D24: % p.a. | F24: 0.86 | P24: 5
B25: Labour oncosts (%) | D25: % p.a. | F25: 0.58 | P25: 1
B26: Labour proportion of opex (%) | D26: % p.a. | F26: 0.382 | P26: 6
B27: Corporate Overheads (CAM) | D27: % p.a. | F27: 0.08652781304 | P27: 6
B28: Overhead cost allocation (Direct + Indirect) (%) | D28: % p.a. | F28: 0.1801212934 | P28: 6
B30: Bulk maintenance assumptions | D30: Driver | F30: Inputs | H30: FY13 | I30: FY14 | J30: FY15 | K30: FY16 | L30: FY17 | M30: FY18 | N30: FY19
B33: Servicing of Minor Luminaire - Scheduled | D33: Cycle time (Yrs) | F33: 3 | H33: 10 | I33: =INDIRECT("PriceBulkTask1"&H$30)*(1+ INDIRECT("CPI"&I$30)) -> 10.25099022 | J33: =INDIRECT("PriceBulkTask1"&I30)*(1+ INDIRECT("CPI"&J$30)) -> 10.50226192 | K33: 10.72869032 | L33: 10.99359866 | M33: 11.26843863 | N33: 11.55014959 | P33: 7
B34: Servicing of Major Luminaire - Scheduled | D34: Cycle time (Yrs) | F34: 3 | H34: 10 | I34: =INDIRECT("PriceBulkTask2"&H$30)*(1+ INDIRECT("CPI"&I$30)) -> 10.25099022 | J34: =INDIRECT("PriceBulkTask2"&I$30)*(1+ INDIRECT("CPI"&J$30)) -> 10.50226192 | K34: 10.72869032 | L34: 10.99359866 | M34: 11.26843863 | N34: 11.55014959 | P34: 7
B35: Replacement of Minor Luminaire Visor | D35: Cycle time (Yrs) | F35: 54.04 | H35: 10 | I35: =INDIRECT("PriceBulkTask3"&H$30)*(1+ INDIRECT("CPI"&I$30)) -> 10.25099022 | J35: =INDIRECT("PriceBulkTask3"&I$30)*(1+ INDIRECT("CPI"&J$30)) -> 10.50226192 | K35: 10.72869032 | L35: 10.99359866 | M35: 11.26843863 | N35: 11.55014959 | P35: 7
B36: Replacement of Major Luminaire Visor | D36: Cycle time (Yrs) | F36: 203.69 | H36: 10 | I36: =INDIRECT("PriceBulkTask4"&H$30)*(1+ INDIRECT("CPI"&I$30)) -> 10.25099022 | J36: =INDIRECT("PriceBulkTask4"&I$30)*(1+ INDIRECT("CPI"&J$30)) -> 10.50226192 | K36: 10.72869032 | L36: 10.99359866 | M36: 11.26843863 | N36: 11.55014959 | P36: 7
B37: Replacement of Photo-electric Cell | D37: Cycle time (Yrs) | F37: 6 | H37: 10 | I37: =INDIRECT("PriceBulkTask5"&H$30)*(1+ INDIRECT("CPI"&I$30)) -> 10.25099022 | J37: =INDIRECT("PriceBulkTask5"&I$30)*(1+ INDIRECT("CPI"&J$30)) -> 10.50226192 | K37: 10.72869032 | L37: 10.99359866 | M37: 11.26843863 | N37: 11.55014959 | P37: 7
B38: Minor Non-Electrical Repair | D38: Cycle time (Yrs) | F38: 217.85 | H38: 10 | I38: =INDIRECT("PriceBulkTask6"&H$30)*(1+ INDIRECT("CPI"&I$30)) -> 10.25099022 | J38: =INDIRECT("PriceBulkTask6"&I$30)*(1+ INDIRECT("CPI"&J$30)) -> 10.50226192 | K38: 10.72869032 | L38: 10.99359866 | M38: 11.26843863 | N38: 11.55014959 | P38: 7
B39: General Electrical Work | D39: Cycle time (Yrs) | F39: 24.98 | H39: 10 | I39: =INDIRECT("PriceBulkTask7"&H$30)*(1+ INDIRECT("CPI"&I$30)) -> 10.25099022 | J39: =INDIRECT("PriceBulkTask7"&I$30)*(1+ INDIRECT("CPI"&J$30)) -> 10.50226192 | K39: 10.72869032 | L39: 10.99359866 | M39: 11.26843863 | N39: 11.55014959 | P39: 7
B40: Minor Electrical Work | D40: Cycle time (Yrs) | F40: 46.3 | H40: 150 | I40: =INDIRECT("PriceBulkTask8"&H$30)*(1+ INDIRECT("CPI"&I$30)) -> 153.7648533 | J40: =INDIRECT("PriceBulkTask8"&I$30)*(1+ INDIRECT("CPI"&J$30)) -> 157.5339288 | K40: 160.9303548 | L40: 164.9039799 | M40: 169.0265794 | N40: 173.2522439 | P40: 7
B41: Major Electrical Work | D41: Cycle time (Yrs) | F41: 81.82 | H41: 250 | I41: =INDIRECT("PriceBulkTask9"&H$30)*(1+ INDIRECT("CPI"&I$30)) -> 256.2747555 | J41: =INDIRECT("PriceBulkTask9"&I$30)*(1+ INDIRECT("CPI"&J$30)) -> 262.556548 | K41: 268.217258 | L41: 274.8399666 | M41: 281.7109657 | N41: 288.7537399 | P41: 7
B42: Electrical Work Previously Completed by EnergyAustralia | D42: Cycle time (Yrs) | F42: 0 | H42: 0 | I42: =INDIRECT("PriceBulkTask10"&H$30)*(1+ INDIRECT("CPI"&I$30)) -> 0 | J42: =INDIRECT("PriceBulkTask10"&I$30)*(1+ INDIRECT("CPI"&J$30)) -> 0 | K42: 0 | L42: 0 | M42: 0 | N42: 0 | P42: 7
B43: Quarterly Night Time Traffic Route Luminaire (TRL) Patrol | D43: Cycle time (Yrs) | F43: 8990 | H43: 12000 | I43: =INDIRECT("PriceBulkTask11"&H$30)*(1+ INDIRECT("CPI"&I$30)) -> 12301.18826 | J43: =INDIRECT("PriceBulkTask11"&I$30)*(1+ INDIRECT("CPI"&J$30)) -> 12602.7143 | K43: 12874.42838 | L43: 13192.31839 | M43: 13522.12635 | N43: 13860.17951 | P43: 7
B44: Annual Night Time Patrol of All Serviced Luminaires | D44: Cycle time (Yrs) | F44: 4007.44 | H44: 8500 | I44: =INDIRECT("PriceBulkTask12"&H$30)*(1+ INDIRECT("CPI"&I$30)) -> 8713.341687 | J44: =INDIRECT("PriceBulkTask12"&I$30)*(1+ INDIRECT("CPI"&J$30)) -> 8926.922631 | K44: 9119.386771 | L44: 9344.558863 | M44: 9578.172835 | N44: 9817.627155 | P44: 7
B45: Ad Hoc Works Order | D45: Cycle time (Yrs) | F45: 0 | H45: 0 | I45: =INDIRECT("PriceBulkTask13"&H$30)*(1+ INDIRECT("CPI"&I$30)) -> 0 | J45: =INDIRECT("PriceBulkTask13"&I$30)*(1+ INDIRECT("CPI"&J$30)) -> 0 | K45: 0 | L45: 0 | M45: 0 | N45: 0 | P45: 7
B46: Ad Hoc Patrolling And Reporting of Defects (Per Crew Hour) | D46: Cycle time (Yrs) | F46: 0 | H46: 0 | I46: =INDIRECT("PriceBulkTask14"&H$30)*(1+ INDIRECT("CPI"&I$30)) -> 0 | J46: =INDIRECT("PriceBulkTask14"&I$30)*(1+ INDIRECT("CPI"&J$30)) -> 0 | K46: 0 | L46: 0 | M46: 0 | N46: 0 | P46: 7
B48: Spot maintenance assumptions | D48: Driver | F48: Inputs
B51: Number of workers in standard crew | D51: no. of ppl | F51: 2
B52: Additional workers on traffic route | D52: no. of ppl | F52: 1
B53: Time required for average spot lamp replacement (hours) | D53: no. of hrs | F53: =45.4/60 -> 0.7566666667 | H53: 45.4 minutes including travel time | P53: 8
B54: Time for PE Cell replacement (hours) | D54: no. of hrs | F54: 0
B55: Time for other spot maintenance task (hours) | D55: no. of hrs | F55: 0
B56: Annual average failure rate for PE cells | D56: % p.a. | F56: 0.0142
B57: Annual average failure rates for other components | D57: % p.a. | F57: 0.01
B59: Connection maintenance assumptions | D59: Driver | F59: Type | I59: FY14 | J59: FY15 | K59: FY16 | L59: FY17 | M59: FY18 | N59: FY19
B62: Connection type - "EMPTY" | D62: $/unit | F62: EMPTY | I62: 0 | J62: =I62*(1+INDIRECT("CPI"&J$59)) -> 0 | K62: 0 | L62: 0 | M62: 0 | N62: 0
B63: Connection type - "O/U" | D63: $/unit | F63: O/U | I63: 68.89 | J63: 70.57862783 | K63: 72.10030057 | L63: 73.8805711 | M63: 75.72758538 | N63: 77.62077502
B64: Connection type - "O/U (P09)" | D64: $/unit | F64: O/U (P09) | I64: 68.88754948 | J64: 70.57611724 | K64: 72.09773586 | L64: 73.87794306 | M64: 75.72489164 | N64: 77.61801393
B65: Connection type - "OH" | D65: $/unit | F65: OH | I65: 0 | J65: 0 | K65: 0 | L65: 0 | M65: 0 | N65: 0
B66: Connection type - "OH(P09)" | D66: $/unit | F66: OH(P09) | I66: 0 | J66: 0 | K66: 0 | L66: 0 | M66: 0 | N66: 0
B67: Connection type - "OH2" | D67: $/unit | F67: OH2 | I67: 0 | J67: 0 | K67: 0 | L67: 0 | M67: 0 | N67: 0
B68: Connection type - "OH2 (P09)" | D68: $/unit | F68: OH2 (P09) | I68: 0 | J68: 0 | K68: 0 | L68: 0 | M68: 0 | N68: 0
B69: Connection type - "OHS" | D69: $/unit | F69: OHS | I69: 0 | J69: 0 | K69: 0 | L69: 0 | M69: 0 | N69: 0
B70: Connection type - "UG2" | D70: $/unit | F70: UG2 | I70: 0 | J70: 0 | K70: 0 | L70: 0 | M70: 0 | N70: 0
B71: Connection type - "UG2 (P09)" | D71: $/unit | F71: UG2 (P09) | I71: 0 | J71: 0 | K71: 0 | L71: 0 | M71: 0 | N71: 0
B72: Connection type - "UGORDA" | D72: $/unit | F72: UGORDA | I72: =H72*(1+INDIRECT("CPI"&I$59)) -> 0 | J72: =I72*(1+INDIRECT("CPI"&J$59)) -> 0 | K72: 0 | L72: 0 | M72: 0 | N72: 0
B73: Connection type - "UGR1" | D73: $/unit | F73: UGR1 | I73: 63.14757026 | J73: 64.69543997 | K73: 66.09027139 | L73: 67.72214479 | M73: 69.41519841 | N73: 71.15057837
B74: Connection type - "UGR1 (P09)" | D74: $/unit | F74: UGR1 (P09) | I74: 63.15 | J74: 64.69792927 | K74: 66.09281436 | L74: 67.72475055 | M74: 69.41786931 | N74: 71.15331604
B75: Connection type - "UGR2" | D75: $/unit | F75: UGR2 | I75: 22.95991686 | J75: 23.52270906 | K75: 24.02985785 | L75: 24.62319307 | M75: 25.23877289 | N75: 25.86974222
B76: Connection type - "UGR2 (P09)" | D76: $/unit | F76: UGR2 (P09) | I76: 22.96 | J76: 23.52279424 | K76: 24.02994486 | L76: 24.62328223 | M76: 25.23886428 | N76: 25.86983589
B77: Connection type - "UGS" | D77: $/unit | F77: UGS | I77: 0 | J77: 0 | K77: 0 | L77: 0 | M77: 0 | N77: 0
B78: Connection type - "UG-SP" | D78: $/unit | F78: UG-SP | I78: 0 | J78: 0 | K78: 0 | L78: 0 | M78: 0 | N78: 0
B79: Connection type - "UG-SP (P09)" | D79: $/unit | F79: UG-SP (P09) | I79: 0 | J79: 0 | K79: 0 | L79: 0 | M79: 0 | N79: 0
B80: Options
B82: Bulk cycle/ spot failure rate assumption:
B84: Calculate total opex in the following year:
B86: Traffic | F86: 1
B87: Non-Traffic | F87: 0
B89: Bulk cycle options: | F89: Cycles
B90: AER determination spot failure rates (incl. 20% reduction) | C90: 1 | F90: 3 | H90: Spot rates for 3 year cycle
B91: EA proposal spot rates | C91: 2 | F91: 2.5 | H91: =VLOOKUP(BulkCycleOptionLinkedCell,$B$90:$C$95,2,FALSE) -> 5
B92: Spot rates for 2 year cycle | C92: 3 | F92: 2
B93: Spot rates for 2.5 year cycle | C93: 4 | F93: 2.5
B94: Spot rates for 3 year cycle | C94: 5 | F94: 3
B95: Spot rates for 4 year cycle | C95: 6 | F95: 4
B97: Years:
B98: FY08 | H98: Year--->
B99: FY09 | H99: FY1038
B100: FY10
B101: FY11
B102: FY12
B103: FY13
B104: FY14
B107: Results Summary | H107: FY13 | I107: FY14 | J107: FY15 | K107: FY16 | L107: FY17 | M107: FY18 | N107: FY19
B110: SCI Numbers | I110: 19816221.05 | J110: 19702153.01 | K110: 20174706.99 | L110: 20659074.99 | M110: 21155552 | N110: 21664440
B111: Opex Model results | I111: ='Calc - Opex FY14'!TotalOpex -> 18218630.36 | J111: ='Calc - Opex FY15'!TotalOpex -> 18729968.38 | K111: ='Calc - Opex FY16'!TotalOpex -> 19217627.84 | L111: ='Calc - Opex FY17'!TotalOpex -> 19807640.8 | M111: ='Calc - Opex FY18'!TotalOpex -> 20422983.79 | N111: ='Calc - Opex FY19'!TotalOpex -> 21058251.34
B112: Variance ($) | I112: =I111-I110 -> -1597590.684 | J112: =J111-J110 -> -972184.6273 | K112: -957079.1451 | L112: -851434.1855 | M112: -732568.2136 | N112: -606188.6649
B113: Variance (%) | I113: =I112/I111 -> -0.08768994444 | J113: =J112/J111 -> -0.05190529997 | K113: -0.04980214795 | L113: -0.04298513861 | M113: -0.03586979362 | N113: -0.02878627742

Sheet Input - Inventory
C2: Cell colour legend
C3: Inputs - hardcoded value
C4: Derived Inputs - Calculated or referenced to another cell
C6: Description | M6: Qty of assets being maintained | U6: Price | AC6: Average annual failure under selected bulk cycle | AE6: Spot rates for different bulk cycles
B7: # | D7: Type | E7: Route | F7: Category | G7: Lamps (#) | H7: Rate 1 | I7: Rate 2 | J7: Rate 3 | K7: Total | M7: FY13 | N7: FY14 | O7: FY15 | P7: FY16 | Q7: FY17 | R7: FY18 | S7: FY19 | U7: FY13 | V7: FY14 | W7: FY15 | X7: FY16 | Y7: FY17 | Z7: FY18 | AA7: FY19 | AE7: AER determination | AF7: June 2008 Proposal | AG7: 2 year cycle | AH7: 2.5 year cycle | AI7: 3 year cycle | AJ7: 4 year cycle
B9: 1 | C9: 0.5 | D9: Bracket | E9: NonTraffic | F9: n/a | G9: 0 | H9: 32907 | I9: 735 | J9: 76 | K9: =SUM(H9:J9) -> 33718 | N9: =SUM(H9:I9) -> 33642 | O9: =N9*(1+INDIRECT("GrowthLights"&O$7)) -> 33642 | P9: 33642 | Q9: 33642 | R9: 33642 | S9: 33642 | U9: 100 | V9: =U9*(1+INDIRECT("CPI"&V$7))*(IF($D9="Lamp",(1+INDIRECT("EscLamp"&V$7)),1)) -> 102.5099022 | W9: 105.0226192 | X9: 107.2869032 | Y9: 109.9359866 | Z9: 112.6843863 | AA9: 115.5014959 | AC9: =OFFSET(AE9,0,BulkOptionNumber-1) -> 0 | AE9: 0 | AF9: 0
B10: 2 | C10: 0.5 (P09) | D10: Bracket | E10: NonTraffic | F10: n/a | G10: 0 | H10: 1082 | I10: 68 | J10: 3 | K10: =SUM(H10:J10) -> 1153 | N10: =SUM(H10:I10) -> 1150 | O10: =N10*(1+INDIRECT("GrowthLights"&O$7)) -> 1150 | P10: =O10*(1+INDIRECT("GrowthLights"&P$7)) -> 1150 | Q10: =P10*(1+INDIRECT("GrowthLights"&Q$7)) -> 1150 | R10: =Q10*(1+INDIRECT("GrowthLights"&R$7)) -> 1150 | S10: =R10*(1+INDIRECT("GrowthLights"&S$7)) -> 1150 | U10: 100 | V10: 102.5099022 | W10: 105.0226192 | X10: 107.2869032 | Y10: 109.9359866 | Z10: 112.6843863 | AA10: 115.5014959 | AC10: 0 | AE10: 0 | AF10: 0
B11: 3 | C11: 0.6 | D11: Bracket | E11: NonTraffic | F11: n/a | G11: 0 | H11: 103 | I11: 46 | J11: 0 | K11: 149 | N11: 149 | O11: 149 | P11: 149 | Q11: 149 | R11: 149 | S11: 149 | U11: 100 | V11: 102.5099022 | W11: 105.0226192 | X11: 107.2869032 | Y11: 109.9359866 | Z11: 112.6843863 | AA11: 115.5014959 | AC11: 0 | AE11: 0 | AF11: 0
B12: 4 | C12: 1.0 | D12: Bracket | E12: NonTraffic | F12: n/a | G12: 0 | H12: 4068 | I12: 4539 | J12: 29 | K12: 8636 | N12: 8607 | O12: 8607 | P12: 8607 | Q12: 8607 | R12: 8607 | S12: 8607 | U12: 100 | V12: 102.5099022 | W12: 105.0226192 | X12: 107.2869032 | Y12: 109.9359866 | Z12: 112.6843863 | AA12: 115.5014959 | AC12: 0 | AE12: 0 | AF12: 0
B13: 5 | C13: 1.2 | D13: Bracket | E13: NonTraffic | F13: n/a | G13: 0 | H13: 22356 | I13: 2581 | J13: 57 | K13: 24994 | N13: 24937 | O13: 24937 | P13: 24937 | Q13: 24937 | R13: 24937 | S13: 24937 | U13: 100 | V13: 102.5099022 | W13: 105.0226192 | X13: 107.2869032 | Y13: 109.9359866 | Z13: 112.6843863 | AA13: 115.5014959 | AC13: 0 | AE13: 0 | AF13: 0
B14: 6 | C14: 1.2 (P09) | D14: Bracket | E14: NonTraffic | F14: n/a | G14: 0 | H14: 404 | I14: 292 | J14: 0 | K14: 696 | N14: 696 | O14: 696 | P14: 696 | Q14: 696 | R14: 696 | S14: 696 | U14: 100 | V14: 102.5099022 | W14: 105.0226192 | X14: 107.2869032 | Y14: 109.9359866 | Z14: 112.6843863 | AA14: 115.5014959 | AC14: 0 | AE14: 0 | AF14: 0
B15: 7 | C15: 1.5 | D15: Bracket | E15: NonTraffic | F15: n/a | G15: 0 | H15: 1234 | I15: 2574 | J15: 0 | K15: 3808 | N15: 3808 | O15: 3808 | P15: 3808 | Q15: 3808 | R15: 3808 | S15: 3808 | U15: 100 | V15: 102.5099022 | W15: 105.0226192 | X15: 107.2869032 | Y15: 109.9359866 | Z15: 112.6843863 | AA15: 115.5014959 | AC15: 0 | AE15: 0 | AF15: 0
B16: 8 | C16: 2.0 | D16: Bracket | E16: NonTraffic | F16: n/a | G16: 0 | H16: 69816 | I16: 1049 | J16: 82 | K16: 70947 | N16: 70865 | O16: 70865 | P16: 70865 | Q16: 70865 | R16: 70865 | S16: 70865 | U16: 100 | V16: 102.5099022 | W16: 105.0226192 | X16: 107.2869032 | Y16: 109.9359866 | Z16: 112.6843863 | AA16: 115.5014959 | AC16: 0 | AE16: 0 | AF16: 0
B17: 9 | C17: 2.0 (P09) | D17: Bracket | E17: NonTraffic | F17: n/a | G17: 0 | H17: 17216.5 | I17: 199 | J17: 6 | K17: 17421.5 | N17: 17415.5 | O17: 17415.5 | P17: 17415.5 | Q17: 17415.5 | R17: 17415.5 | S17: 17415.5 | U17: 100 | V17: 102.5099022 | W17: 105.0226192 | X17: 107.2869032 | Y17: 109.9359866 | Z17: 112.6843863 | AA17: 115.5014959 | AC17: 0 | AE17: 0 | AF17: 0
B18: 10 | C18: 2.5 | D18: Bracket | E18: Traffic | F18: n/a | G18: 0 | H18: 502 | I18: 16 | J18: 47 | K18: 565 | N18: 518 | O18: 518 | P18: 518 | Q18: 518 | R18: 518 | S18: 518 | U18: 100 | V18: 102.5099022 | W18: 105.0226192 | X18: 107.2869032 | Y18: 109.9359866 | Z18: 112.6843863 | AA18: 115.5014959 | AC18: 0 | AE18: 0 | AF18: 0
B19: 11 | C19: 3.0 | D19: Bracket | E19: Traffic | F19: n/a | G19: 0 | H19: 4176 | I19: 1752 | J19: 11 | K19: 5939 | N19: 5928 | O19: 5928 | P19: 5928 | Q19: 5928 | R19: 5928 | S19: 5928 | U19: 100 | V19: 102.5099022 | W19: =V19*(1+INDIRECT("CPI"&W$7))*(IF($D19="Lamp",(1+INDIRECT("EscLamp"&W$7)),1)) -> 105.0226192 | X19: 107.2869032 | Y19: 109.9359866 | Z19: 112.6843863 | AA19: 115.5014959 | AC19: 0 | AE19: 0 | AF19: 0
B20: 12 | C20: 3.0 (P09) | D20: Bracket | E20: Traffic | F20: n/a | G20: 0 | H20: 338 | I20: 265 | J20: 0 | K20: 603 | N20: 603 | O20: 603 | P20: 603 | Q20: 603 | R20: 603 | S20: 603 | U20: 100 | V20: 102.5099022 | W20: 105.0226192 | X20: 107.2869032 | Y20: 109.9359866 | Z20: 112.6843863 | AA20: 115.5014959 | AC20: 0 | AE20: 0 | AF20: 0
B21: 13 | C21: 3.5 | D21: Bracket | E21: Traffic | F21: n/a | G21: 0 | H21: 7037 | I21: 159 | J21: 8 | K21: 7204 | N21: 7196 | O21: 7196 | P21: 7196 | Q21: 7196 | R21: 7196 | S21: 7196 | U21: 100 | V21: 102.5099022 | W21: 105.0226192 | X21: 107.2869032 | Y21: 109.9359866 | Z21: 112.6843863 | AA21: 115.5014959 | AC21: 0 | AE21: 0 | AF21: 0
B22: 14 | C22: 3.5 (P09) | D22: Bracket | E22: Traffic | F22: n/a | G22: 0 | H22: 771 | I22: 16 | J22: 0 | K22: 787 | N22: 787 | O22: 787 | P22: 787 | Q22: 787 | R22: 787 | S22: 787 | U22: 100 | V22: 102.5099022 | W22: 105.0226192 | X22: 107.2869032 | Y22: 109.9359866 | Z22: 112.6843863 | AA22: 115.5014959 | AC22: 0 | AE22: 0 | AF22: 0
B23: 15 | C23: 4.0 | D23: Bracket | E23: Traffic | F23: n/a | G23: 0 | H23: 927 | I23: 56 | J23: 8 | K23: 991 | N23: 983 | O23: 983 | P23: 983 | Q23: 983 | R23: 983 | S23: 983 | U23: 100 | V23: 102.5099022 | W23: 105.0226192 | X23: 107.2869032 | Y23: 109.9359866 | Z23: 112.6843863 | AA23: 115.5014959 | AC23: 0 | AE23: 0 | AF23: 0
B24: 16 | C24: 4.0 (P09) | D24: Bracket | E24: Traffic | F24: n/a | G24: 0 | H24: 453 | I24: 13 | J24: 0 | K24: 466 | N24: 466 | O24: 466 | P24: 466 | Q24: 466 | R24: 466 | S24: 466 | U24: 100 | V24: 102.5099022 | W24: 105.0226192 | X24: 107.2869032 | Y24: 109.9359866 | Z24: 112.6843863 | AA24: 115.5014959 | AC24: 0 | AE24: 0 | AF24: 0
B25: 17 | C25: 4.5 | D25: Bracket | E25: Traffic | F25: n/a | G25: 0 | H25: 2010 | I25: 1027 | J25: 98 | K25: 3135 | N25: 3037 | O25: 3037 | P25: 3037 | Q25: 3037 | R25: 3037 | S25: 3037 | U25: 100 | V25: =U25*(1+INDIRECT("CPI"&V$7))*(IF($D25="Lamp",(1+INDIRECT("EscLamp"&V$7)),1)) -> 102.5099022 | W25: 105.0226192 | X25: 107.2869032 | Y25: 109.9359866 | Z25: 112.6843863 | AA25: 115.5014959 | AC25: 0 | AE25: 0 | AF25: 0
B26: 18 | C26: 5.0 | D26: Bracket | E26: Traffic | F26: n/a | G26: 0 | H26: 393 | I26: 30 | J26: 4 | K26: 427 | N26: 423 | O26: 423 | P26: 423 | Q26: 423 | R26: 423 | S26: 423 | U26: 100 | V26: 102.5099022 | W26: 105.0226192 | X26: 107.2869032 | Y26: 109.9359866 | Z26: 112.6843863 | AA26: 115.5014959 | AC26: 0 | AE26: 0 | AF26: 0
B27: 19 | C27: 6.0 | D27: Bracket | E27: Traffic | F27: n/a | G27: 0 | H27: 813 | I27: 287.5 | J27: 0 | K27: 1100.5 | N27: 1100.5 | O27: 1100.5 | P27: 1100.5 | Q27: 1100.5 | R27: 1100.5 | S27: 1100.5 | U27: 100 | V27: 102.5099022 | W27: 105.0226192 | X27: 107.2869032 | Y27: 109.9359866 | Z27: 112.6843863 | AA27: 115.5014959 | AC27: 0 | AE27: 0 | AF27: 0
B28: 20 | C28: 6.5 | D28: Bracket | E28: Traffic | F28: n/a | G28: 0 | H28: 53 | I28: 7 | J28: 0 | K28: 60 | N28: 60 | O28: 60 | P28: 60 | Q28: 60 | R28: 60 | S28: 60 | U28: 100 | V28: 102.5099022 | W28: 105.0226192 | X28: 107.2869032 | Y28: 109.9359866 | Z28: 112.6843863 | AA28: 115.5014959 | AC28: 0 | AE28: 0 | AF28: 0
B29: 21 | C29: 7.0 | D29: Bracket | E29: Traffic | F29: n/a | G29: 0 | H29: 67 | I29: 13 | J29: 0 | K29: 80 | N29: 80 | O29: 80 | P29: 80 | Q29: 80 | R29: 80 | S29: 80 | U29: 100 | V29: 102.5099022 | W29: =V29*(1+INDIRECT("CPI"&W$7))*(IF($D29="Lamp",(1+INDIRECT("EscLamp"&W$7)),1)) -> 105.0226192 | X29: 107.2869032 | Y29: 109.9359866 | Z29: 112.6843863 | AA29: 115.5014959 | AC29: 0 | AE29: 0 | AF29: 0
B30: 22 | C30: 8.0 | D30: Bracket | E30: Traffic | F30: n/a | G30: 0 | H30: 23 | I30: 4 | J30: 1 | K30: 28 | N30: 27 | O30: 27 | P30: 27 | Q30: 27 | R30: 27 | S30: 27 | U30: 100 | V30: 102.5099022 | W30: 105.0226192 | X30: 107.2869032 | Y30: 109.9359866 | Z30: 112.6843863 | AA30: 115.5014959 | AC30: 0 | AE30: 0 | AF30: 0
B31: 23 | C31: C4 | D31: Bracket | E31: Traffic | F31: n/a | G31: 0 | H31: 87 | I31: 0 | J31: 4 | K31: 91 | N31: 87 | O31: 87 | P31: 87 | Q31: 87 | R31: 87 | S31: 87 | U31: 100 | V31: 102.5099022 | W31: 105.0226192 | X31: 107.2869032 | Y31: 109.9359866 | Z31: 112.6843863 | AA31: 115.5014959 | AC31: 0 | AE31: 0 | AF31: 0
B32: 24 | C32: NIL | D32: Bracket | E32: NonTraffic | F32: n/a | G32: 0 | H32: 8771 | I32: 4205 | J32: 278 | K32: 13254 | N32: 12976 | O32: 12976 | P32: 12976 | Q32: 12976 | R32: 12976 | S32: 12976 | U32: 0 | V32: 0 | W32: 0 | X32: 0 | Y32: 0 | Z32: 0 | AA32: 0 | AC32: 0 | AE32: 0 | AF32: 0
B33: 25 | C33: PRIVATE | D33: Bracket | E33: NonTraffic | F33: n/a | G33: 0 | H33: 106 | I33: 7 | J33: 10943 | K33: 11056 | N33: 113 | O33: 113 | P33: 113 | Q33: 113 | R33: 113 | S33: 113 | U33: 0 | V33: 0 | W33: 0 | X33: 0 | Y33: 0 | Z33: 0 | AA33: 0 | AC33: 0 | AE33: 0 | AF33: 0
B34: 26 | C34: SMARTPOLE DOUBLE | D34: Bracket | E34: NonTraffic | F34: n/a | G34: 0 | H34: 0 | I34: 0 | J34: 395 | K34: 395 | N34: 0 | O34: 0 | P34: 0 | Q34: 0 | R34: 0 | S34: 0 | U34: 0 | V34: 0 | W34: 0 | X34: 0 | Y34: 0 | Z34: 0 | AA34: 0 | AC34: 0 | AE34: 0 | AF34: 0
B35: 27 | C35: SMARTPOLE SINGLE LONG | D35: Bracket | E35: NonTraffic | F35: n/a | G35: 0 | H35: 0 | I35: 0 | J35: 597 | K35: 597 | N35: 0 | O35: 0 | P35: 0 | Q35: 0 | R35: 0 | S35: 0 | U35: 0 | V35: 0 | W35: 0 | X35: 0 | Y35: 0 | Z35: 0 | AA35: 0 | AC35: 0 | AE35: 0 | AF35: 0
B36: 28 | C36: SMARTPOLE SINGLE SHORT | D36: Bracket | E36: NonTraffic | F36: n/a | G36: 0 | H36: 0 | I36: 1 | J36: 2 | K36: 3 | N36: 1 | O36: 1 | P36: 1 | Q36: 1 | R36: 1 | S36: 1 | U36: 0 | V36: 0 | W36: 0 | X36: 0 | Y36: 0 | Z36: 0 | AA36: 0 | AC36: 0 | AE36: 0 | AF36: 0
B37: 29 | C37: SUSPENDED | D37: Bracket | E37: NonTraffic | F37: n/a | G37: 0 | H37: 149 | I37: 4 | J37: 37 | K37: 190 | N37: 153 | O37: 153 | P37: 153 | Q37: 153 | R37: 153 | S37: 153 | U37: 100 | V37: 102.5099022 | W37: 105.0226192 | X37: 107.2869032 | Y37: 109.9359866 | Z37: 112.6843863 | AA37: 115.5014959 | AC37: 0 | AE37: 0 | AF37: 0
B38: 30 | C38: T1 | D38: Bracket | E38: NonTraffic | F38: n/a | G38: 0 | H38: 19692 | I38: 70 | J38: 19 | K38: 19781 | N38: 19762 | O38: 19762 | P38: 19762 | Q38: 19762 | R38: 19762 | S38: 19762 | U38: 100 | V38: 102.5099022 | W38: 105.0226192 | X38: 107.2869032 | Y38: 109.9359866 | Z38: 112.6843863 | AA38: 115.5014959 | AC38: 0 | AE38: 0 | AF38: 0
B39: 31 | C39: T1 (P09) | D39: Bracket | E39: NonTraffic | F39: n/a | G39: 0 | H39: 1315 | I39: 20 | J39: 0 | K39: 1335 | N39: 1335 | O39: 1335 | P39: 1335 | Q39: 1335 | R39: 1335 | S39: 1335 | U39: 100 | V39: 102.5099022 | W39: =V39*(1+INDIRECT("CPI"&W$7))*(IF($D39="Lamp",(1+INDIRECT("EscLamp"&W$7)),1)) -> 105.0226192 | X39: 107.2869032 | Y39: 109.9359866 | Z39: 112.6843863 | AA39: 115.5014959 | AC39: 0 | AE39: 0 | AF39: 0
B40: 32 | C40: T2 | D40: Bracket | E40: Traffic | F40: n/a | G40: 0 | H40: 9655.5 | I40: 175 | J40: 2 | K40: 9832.5 | N40: 9830.5 | O40: 9830.5 | P40: 9830.5 | Q40: 9830.5 | R40: 9830.5 | S40: 9830.5 | U40: 100 | V40: 102.5099022 | W40: 105.0226192 | X40: 107.2869032 | Y40: 109.9359866 | Z40: 112.6843863 | AA40: 115.5014959 | AC40: 0 | AE40: 0 | AF40: 0
B41: 33 | C41: T2A | D41: Bracket | E41: Traffic | F41: n/a | G41: 0 | H41: 1153 | I41: 43 | J41: 2 | K41: 1198 | N41: 1196 | O41: 1196 | P41: 1196 | Q41: 1196 | R41: 1196 | S41: 1196 | U41: 100 | V41: 102.5099022 | W41: 105.0226192 | X41: 107.2869032 | Y41: 109.9359866 | Z41: 112.6843863 | AA41: 115.5014959 | AC41: =OFFSET(AE41,0,BulkOptionNumber-1) -> 0 | AE41: 0 | AF41: 0
B42: 34 | C42: T2A (P09) | D42: Bracket | E42: Traffic | F42: n/a | G42: 0 | H42: 128 | I42: 46 | J42: 0 | K42: 174 | N42: 174 | O42: 174 | P42: 174 | Q42: 174 | R42: 174 | S42: 174 | U42: 100 | V42: 102.5099022 | W42: 105.0226192 | X42: 107.2869032 | Y42: 109.9359866 | Z42: 112.6843863 | AA42: 115.5014959 | AC42: 0 | AE42: 0 | AF42: 0
B43: 35 | C43: T3 | D43: Bracket | E43: Traffic | F43: n/a | G43: 0 | H43: 3569 | I43: 59 | J43: 9 | K43: 3637 | N43: 3628 | O43: 3628 | P43: 3628 | Q43: 3628 | R43: 3628 | S43: 3628 | U43: 100 | V43: 102.5099022 | W43: 105.0226192 | X43: 107.2869032 | Y43: 109.9359866 | Z43: 112.6843863 | AA43: 115.5014959 | AC43: 0 | AE43: 0 | AF43: 0
B44: 36 | C44: T3 (P09) | D44: Bracket | E44: Traffic | F44: n/a | G44: 0 | H44: 590.5 | I44: 59 | J44: 0 | K44: 649.5 | N44: 649.5 | O44: 649.5 | P44: 649.5 | Q44: 649.5 | R44: 649.5 | S44: 649.5 | U44: 100 | V44: 102.5099022 | W44: 105.0226192 | X44: 107.2869032 | Y44: 109.9359866 | Z44: 112.6843863 | AA44: 115.5014959 | AC44: 0 | AE44: 0 | AF44: 0
B45: 37 | C45: T3A | D45: Bracket | E45: Traffic | F45: n/a | G45: 0 | H45: 979 | I45: 52 | J45: 0 | K45: 1031 | N45: 1031 | O45: 1031 | P45: 1031 | Q45: 1031 | R45: 1031 | S45: 1031 | U45: 100 | V45: 102.5099022 | W45: 105.0226192 | X45: 107.2869032 | Y45: 109.9359866 | Z45: 112.6843863 | AA45: 115.5014959 | AC45: 0 | AE45: 0 | AF45: 0
B46: 38 | C46: T4 | D46: Bracket | E46: Traffic | F46: n/a | G46: 0 | H46: 10985 | I46: 60 | J46: 8 | K46: 11053 | N46: 11045 | O46: 11045 | P46: 11045 | Q46: 11045 | R46: 11045 | S46: 11045 | U46: 100 | V46: 102.5099022 | W46: 105.0226192 | X46: 107.2869032 | Y46: 109.9359866 | Z46: 112.6843863 | AA46: 115.5014959 | AC46: 0 | AE46: 0 | AF46: 0
B47: 39 | C47: T4 (P09) | D47: Bracket | E47: Traffic | F47: n/a | G47: 0 | H47: 494 | I47: 6 | J47: 0 | K47: 500 | N47: 500 | O47: 500 | P47: 500 | Q47: 500 | R47: 500 | S47: 500 | U47: 100 | V47: 102.5099022 | W47: 105.0226192 | X47: 107.2869032 | Y47: 109.9359866 | Z47: 112.6843863 | AA47: 115.5014959 | AC47: 0 | AE47: 0 | AF47: 0
B48: 40 | C48: T5 | D48: Bracket | E48: Traffic | F48: n/a | G48: 0 | H48: 514 | I48: 1 | J48: 0 | K48: 515 | N48: 515 | O48: 515 | P48: 515 | Q48: 515 | R48: 515 | S48: 515 | U48: 100 | V48: 102.5099022 | W48: 105.0226192 | X48: 107.2869032 | Y48: 109.9359866 | Z48: 112.6843863 | AA48: 115.5014959 | AC48: 0 | AE48: 0 | AF48: 0
B49: 41 | C49: T5 (P09) | D49: Bracket | E49: Traffic | F49: n/a | G49: 0 | H49: 79 | I49: 1 | J49: 0 | K49: 80 | N49: 80 | O49: 80 | P49: 80 | Q49: 80 | R49: 80 | S49: 80 | U49: 100 | V49: 102.5099022 | W49: =V49*(1+INDIRECT("CPI"&W$7))*(IF($D49="Lamp",(1+INDIRECT("EscLamp"&W$7)),1)) -> 105.0226192 | X49: 107.2869032 | Y49: 109.9359866 | Z49: 112.6843863 | AA49: 115.5014959 | AC49: 0 | AE49: 0 | AF49: 0
B50: 42 | C50: T6 | D50: Bracket | E50: Traffic | F50: n/a | G50: 0 | H50: 1911 | I50: 118 | J50: 4 | K50: 2033 | N50: 2029 | O50: 2029 | P50: 2029 | Q50: 2029 | R50: 2029 | S50: 2029 | U50: 100 | V50: 102.5099022 | W50: 105.0226192 | X50: 107.2869032 | Y50: 109.9359866 | Z50: 112.6843863 | AA50: 115.5014959 | AC50: 0 | AE50: 0 | AF50: 0
B51: 43 | C51: T6 (P09) | D51: Bracket | E51: Traffic | F51: n/a | G51: 0 | H51: 308 | I51: 39 | J51: 1 | K51: 348 | N51: 347 | O51: 347 | P51: 347 | Q51: 347 | R51: 347 | S51: 347 | U51: 100 | V51: 102.5099022 | W51: 105.0226192 | X51: 107.2869032 | Y51: 109.9359866 | Z51: 112.6843863 | AA51: 115.5014959 | AC51: 0 | AE51: 0 | AF51: 0
B52: 44 | C52: T7 | D52: Bracket | E52: Traffic | F52: n/a | G52: 0 | H52: 635 | I52: 87 | J52: 0 | K52: 722 | N52: 722 | O52: 722 | P52: 722 | Q52: 722 | R52: 722 | S52: 722 | U52: 100 | V52: 102.5099022 | W52: 105.0226192 | X52: 107.2869032 | Y52: 109.9359866 | Z52: 112.6843863 | AA52: 115.5014959 | AC52: 0 | AE52: 0 | AF52: 0
B53: 45 | C53: T7 (P09) | D53: Bracket | E53: Traffic | F53: n/a | G53: 0 | H53: 175.5 | I53: 7 | J53: 0 | K53: 182.5 | N53: 182.5 | O53: 182.5 | P53: 182.5 | Q53: 182.5 | R53: 182.5 | S53: 182.5 | U53: 100 | V53: 102.5099022 | W53: 105.0226192 | X53: 107.2869032 | Y53: 109.9359866 | Z53: 112.6843863 | AA53: 115.5014959 | AC53: 0 | AE53: 0 | AF53: 0
B54: 46 | C54: EMPTY | D54: Connection | E54: NonTraffic | F54: n/a | G54: 0 | H54: 0 | I54: 0 | J54: 0 | K54: 0 | N54: 0 | O54: 0 | P54: 0 | Q54: 0 | R54: 0 | S54: 0 | U54: 0 | V54: 0 | W54: 0 | X54: 0 | Y54: 0 | Z54: 0 | AA54: 0 | AC54: 0 | AE54: 0 | AF54: 0
B55: 47 | C55: O/U (P09) | D55: Connection | E55: NonTraffic | F55: n/a | G55: 0 | H55: 10 | I55: 4 | J55: 0 | K55: 14 | N55: 14 | O55: 14 | P55: 14 | Q55: 14 | R55: 14 | S55: 14 | U55: 100 | V55: 102.5099022 | W55: 105.0226192 | X55: 107.2869032 | Y55: 109.9359866 | Z55: 112.6843863 | AA55: 115.5014959 | AC55: 0 | AE55: 0 | AF55: 0
B56: 48 | C56: OH | D56: Connection | E56: NonTraffic | F56: n/a | G56: 0 | H56: 189773.5 | I56: 1530 | J56: 1664 | K56: 192967.5 | N56: 191303.5 | O56: 191303.5 | P56: 191303.5 | Q56: 191303.5 | R56: 191303.5 | S56: 191303.5 | U56: 0 | V56: 0 | W56: 0 | X56: 0 | Y56: 0 | Z56: 0 | AA56: 0 | AC56: 0 | AE56: 0 | AF56: 0
B57: 49 | C57: OH(P09) | D57: Connection | E57: NonTraffic | F57: n/a | G57: 0 | H57: 5402.5 | I57: 333.5 | J57: 4 | K57: 5740 | N57: 5736 | O57: 5736 | P57: 5736 | Q57: 5736 | R57: 5736 | S57: 5736 | U57: 0 | V57: 0 | W57: 0 | X57: 0 | Y57: 0 | Z57: 0 | AA57: 0 | AC57: 0 | AE57: 0 | AF57: 0
B58: 50 | C58: OH2 | D58: Connection | E58: NonTraffic | F58: n/a | G58: 0 | H58: 372 | I58: 112 | J58: 10 | K58: 494 | N58: 484 | O58: 484 | P58: 484 | Q58: 484 | R58: 484 | S58: 484 | U58: 0 | V58: 0 | W58: 0 | X58: 0 | Y58: 0 | Z58: 0 | AA58: 0 | AC58: 0 | AE58: 0 | AF58: 0
B59: 51 | C59: OH2 (P09) | D59: Connection | E59: NonTraffic | F59: n/a | G59: 0 | H59: 49 | I59: 70 | J59: 0 | K59: 119 | N59: 119 | O59: 119 | P59: 119 | Q59: 119 | R59: 119 | S59: 119 | U59: 0 | V59: 0 | W59: =V59*(1+INDIRECT("CPI"&W$7))*(IF($D59="Lamp",(1+INDIRECT("EscLamp"&W$7)),1)) -> 0 | X59: 0 | Y59: 0 | Z59: 0 | AA59: 0 | AC59: 0 | AE59: 0 | AF59: 0
B60: 52 | C60: OHS | D60: Connection | E60: NonTraffic | F60: n/a | G60: 0 | H60: 3 | I60: 1 | J60: 0 | K60: 4 | N60: 4 | O60: 4 | P60: 4 | Q60: 4 | R60: 4 | S60: 4 | U60: 0 | V60: 0 | W60: 0 | X60: 0 | Y60: 0 | Z60: 0 | AA60: 0 | AC60: 0 | AE60: 0 | AF60: 0
B61: 53 | C61: O/U | D61: Connection | E61: NonTraffic | F61: n/a | G61: 0 | H61: 574 | I61: 13 | J61: 25 | K61: 612 | N61: 587 | O61: 587 | P61: 587 | Q61: 587 | R61: 587 | S61: 587 | U61: 100 | V61: 102.5099022 | W61: 105.0226192 | X61: 107.2869032 | Y61: 109.9359866 | Z61: 112.6843863 | AA61: 115.5014959 | AC61: 0 | AE61: 0 | AF61: 0
B62: 54 | C62: UG2 | D62: Connection | E62: NonTraffic | F62: n/a | G62: 0 | H62: 691 | I62: 1206 | J62: 510 | K62: 2407 | N62: 1897 | O62: 1897 | P62: 1897 | Q62: 1897 | R62: 1897 | S62: 1897 | U62: 0 | V62: 0 | W62: 0 | X62: 0 | Y62: 0 | Z62: 0 | AA62: 0 | AC62: 0 | AE62: 0 | AF62: 0
B63: 55 | C63: UG2 (P09) | D63: Connection | E63: NonTraffic | F63: n/a | G63: 0 | H63: 61 | I63: 344 | J63: 7 | K63: 412 | N63: 405 | O63: 405 | P63: 405 | Q63: 405 | R63: 405 | S63: 405 | U63: 0 | V63: 0 | W63: 0 | X63: 0 | Y63: 0 | Z63: 0 | AA63: 0 | AC63: 0 | AE63: 0 | AF63: 0
B64: 56 | C64: UGORDA | D64: Connection | E64: NonTraffic | F64: n/a | G64: 0 | H64: 0 | I64: 1 | J64: 0 | K64: 1 | N64: 1 | O64: 1 | P64: 1 | Q64: 1 | R64: 1 | S64: 1 | U64: 100 | V64: 102.5099022 | W64: 105.0226192 | X64: 107.2869032 | Y64: 109.9359866 | Z64: 112.6843863 | AA64: 115.5014959 | AC64: 0 | AE64: 0 | AF64: 0
B65: 57 | C65: UGR1 | D65: Connection | E65: NonTraffic | F65: n/a | G65: 0 | H65: 26493 | I65: 4 | J65: 1441 | K65: 27938 | N65: 26497 | O65: 26497 | P65: 26497 | Q65: 26497 | R65: 26497 | S65: 26497 | U65: 100 | V65: 102.5099022 | W65: 105.0226192 | X65: 107.2869032 | Y65: 109.9359866 | Z65: 112.6843863 | AA65: 115.5014959 | AC65: 0 | AE65: 0 | AF65: 0
B66: 58 | C66: UGR1 (P09) | D66: Connection | E66: NonTraffic | F66: n/a | G66: 0 | H66: 4235 | I66: 9 | J66: 159 | K66: 4403 | N66: 4244 | O66: 4244 | P66: 4244 | Q66: 4244 | R66: 4244 | S66: 4244 | U66: 100 | V66: 102.5099022 | W66: 105.0226192 | X66: 107.2869032 | Y66: 109.9359866 | Z66: 112.6843863 | AA66: 115.5014959 | AC66: 0 | AE66: 0 | AF66: 0
B67: 59 | C67: UGR2 | D67: Connection | E67: NonTraffic | F67: n/a | G67: 0 | H67: 244 | I67: 13931 | J67: 345 | K67: 14520 | N67: 14175 | O67: 14175 | P67: 14175 | Q67: 14175 | R67: 14175 | S67: 14175 | U67: 100 | V67: 102.5099022 | W67: 105.0226192 | X67: 107.2869032 | Y67: 109.9359866 | Z67: 112.6843863 | AA67: 115.5014959 | AC67: 0 | AE67: 0 | AF67: 0
B68: 60 | C68: UGR2 (P09) | D68: Connection | E68: NonTraffic | F68: n/a | G68: 0 | H68: 36 | I68: 3147 | J68: 281 | K68: 3464 | N68: 3183 | O68: 3183 | P68: 3183 | Q68: 3183 | R68: 3183 | S68: 3183 | U68: 100 | V68: 102.5099022 | W68: 105.0226192 | X68: 107.2869032 | Y68: 109.9359866 | Z68: 112.6843863 | AA68: 115.5014959 | AC68: 0 | AE68: 0 | AF68: 0
B69: 61 | C69: UGS | D69: Connection | E69: NonTraffic | F69: n/a | G69: 0 | H69: 22 | I69: 21 | J69: 0 | K69: 43 | N69: 43 | O69: 43 | P69: 43 | Q69: 43 | R69: 43 | S69: 43 | U69: 100 | V69: 102.5099022 | W69: =V69*(1+INDIRECT("CPI"&W$7))*(IF($D69="Lamp",(1+INDIRECT("EscLamp"&W$7)),1)) -> 105.0226192 | X69: 107.2869032 | Y69: 109.9359866 | Z69: 112.6843863 | AA69: 115.5014959 | AC69: 0 | AE69: 0 | AF69: 0
B70: 62 | C70: UG-SP | D70: Connection | E70: NonTraffic | F70: n/a | G70: 0 | H70: 1 | I70: 0 | J70: 833 | K70: 834 | N70: 1 | O70: 1 | P70: 1 | Q70: 1 | R70: 1 | S70: 1 | U70: 0 | V70: 0 | W70: 0 | X70: 0 | Y70: 0 | Z70: 0 | AA70: 0 | AC70: 0 | AE70: 0 | AF70: 0
B71: 63 | C71: UG-SP (P09) | D71: Connection | E71: NonTraffic | F71: n/a | G71: 0 | H71: 5 | I71: 10 | J71: 239 | K71: 254 | N71: 15 | O71: 15 | P71: 15 | Q71: 15 | R71: 15 | S71: 15 | U71: 0 | V71: 0 | W71: 0 | X71: 0 | Y71: 0 | Z71: 0 | AA71: 0 | AC71: 0 | AE71: 0 | AF71: 0
B72: 64 | C72: EMPTY | D72: Lamp | E72: NonTraffic | F72: Minor < 130w | G72: 1 | H72: 0 | I72: 0 | J72: 0 | K72: 0 | N72: 0 | O72: 0 | P72: 0 | Q72: 0 | R72: 0 | S72: 0 | U72: 0 | V72: 0 | W72: 0 | X72: 0 | Y72: 0 | Z72: 0 | AA72: 0 | AC72: 0 | AE72: 0 | AF72: 0
B73: 65 | C73: INC1x100 | D73: Lamp | E73: NonTraffic | F73: Minor < 130w | G73: 1 | H73: 1 | I73: 0 | J73: 364 | K73: 365 | N73: 1 | O73: 1 | P73: 1 | Q73: 1 | R73: 1 | S73: 1 | U73: 10 | V73: 10.25099022 | W73: 10.50226192 | X73: 10.72869032 | Y73: 10.99359866 | Z73: 11.26843863 | AA73: 11.55014959 | AC73: =OFFSET(AE73,0,BulkOptionNumber-1) -> 1.04 | AE73: 1.04 | AF73: 1.3 | AH73: =AE73 -> 1.04 | AI73: 1.04 | AJ73: =AE73 -> 1.04
B74: 66 | C74: INC1x1000 | D74: Lamp | E74: Traffic | F74: Major > 130w | G74: 1 | H74: 0 | I74: 0 | J74: 8 | K74: =SUM(H74:J74) -> 8 | N74: =SUM(H74:I74) -> 0 | O74: =N74*(1+INDIRECT("GrowthLights"&O$7)) -> 0 | P74: =O74*(1+INDIRECT("GrowthLights"&P$7)) -> 0 | Q74: =P74*(1+INDIRECT("GrowthLights"&Q$7)) -> 0 | R74: =Q74*(1+INDIRECT("GrowthLights"&R$7)) -> 0 | S74: =R74*(1+INDIRECT("GrowthLights"&S$7)) -> 0 | U74: 100 | V74: 102.5099022 | W74: 105.0226192 | X74: 107.2869032 | Y74: 109.9359866 | Z74: 112.6843863 | AA74: 115.5014959 | AC74: 1.04 | AE74: 1.04 | AF74: 1.3 | AH74: =AE74 -> 1.04 | AI74: 1.04 | AJ74: =AE74 -> 1.04
B75: 67 | C75: INC1x1440 | D75: Lamp | E75: NonTraffic | F75: Major > 130w | G75: 1 | H75: 0 | I75: 0 | J75: 2 | K75: 2 | N75: 0 | O75: 0 | P75: 0 | Q75: 0 | R75: 0 | S75: 0 | U75: 0 | V75: 0 | W75: 0 | X75: 0 | Y75: 0 | Z75: 0 | AA75: 0 | AC75: 1.04 | AE75: 1.04 | AF75: 1.3 | AH75: =AE75 -> 1.04 | AI75: 1.04 | AJ75: =AE75 -> 1.04
B76: 68 | C76: INC1x150 | D76: Lamp | E76: NonTraffic | F76: Major > 130w | G76: 1 | H76: 0 | I76: 0 | J76: 12 | K76: 12 | N76: 0 | O76: 0 | P76: 0 | Q76: 0 | R76: 0 | S76: 0 | U76: 10 | V76: 10.25099022 | W76: 10.50226192 | X76: 10.72869032 | Y76: 10.99359866 | Z76: 11.26843863 | AA76: 11.55014959 | AC76: 1.04 | AE76: 1.04 | AF76: 1.3 | AH76: =AE76 -> 1.04 | AI76: 1.04 | AJ76: =AE76 -> 1.04
B77: 69 | C77: INC1x150 (P09) | D77: Lamp | E77: NonTraffic | F77: Major > 130w | G77: 1 | H77: 13 | I77: 0 | J77: 0 | K77: 13 | N77: 13 | O77: 13 | P77: 13 | Q77: 13 | R77: 13 | S77: 13 | U77: 10 | V77: 10.25099022 | W77: 10.50226192 | X77: 10.72869032 | Y77: 10.99359866 | Z77: 11.26843863 | AA77: 11.55014959 | AC77: 1.04 | AE77: 1.04 | AF77: 1.3 | AH77: =AE77 -> 1.04 | AI77: 1.04 | AJ77: =AE77 -> 1.04
B78: 70 | C78: INC1x200 | D78: Lamp | E78: NonTraffic | F78: Major > 130w | G78: 1 | H78: 0 | I78: 0 | J78: 12 | K78: 12 | N78: 0 | O78: 0 | P78: 0 | Q78: 0 | R78: 0 | S78: 0 | U78: 10 | V78: 10.25099022 | W78: 10.50226192 | X78: 10.72869032 | Y78: 10.99359866 | Z78: 11.26843863 | AA78: 11.55014959 | AC78: 1.04 | AE78: 1.04 | AF78: 1.3 | AH78: =AE78 -> 1.04 | AI78: 1.04 | AJ78: =AE78 -> 1.04
B79: 71 | C79: INC1x300 | D79: Lamp | E79: NonTraffic | F79: Major > 130w | G79: 1 | H79: 0 | I79: 0 | J79: 6 | K79: 6 | N79: 0 | O79: 0 | P79: 0 | Q79: 0 | R79: 0 | S79: 0 | U79: 30 | V79: 30.75297066 | W79: =V79*(1+INDIRECT("CPI"&W$7))*(IF($D79="Lamp",(1+INDIRECT("EscLamp"&W$7)),1)) -> 31.50678576 | X79: 32.18607096 | Y79: 32.98079599 | Z79: 33.80531589 | AA79: 34.65044878 | AC79: 1.04 | AE79: 1.04 | AF79: 1.3 | AH79: 1.04 | AI79: 1.04 | AJ79: 1.04
B80: 72 | C80: INC1x40 | D80: Lamp | E80: NonTraffic | F80: Minor < 130w | G80: 1 | H80: 0 | I80: 0 | J80: 26 | K80: 26 | N80: 0 | O80: 0 | P80: 0 | Q80: 0 | R80: 0 | S80: 0 | U80: 10 | V80: 10.25099022 | W80: 10.50226192 | X80: 10.72869032 | Y80: 10.99359866 | Z80: 11.26843863 | AA80: 11.55014959 | AC80: 1.04 | AE80: 1.04 | AF80: 1.3 | AH80: 1.04 | AI80: 1.04 | AJ80: 1.04
B81: 73 | C81: INC1x500 | D81: Lamp | E81: NonTraffic | F81: Major > 130w | G81: 1 | H81: 0 | I81: 0 | J81: 3 | K81: 3 | N81: 0 | O81: 0 | P81: 0 | Q81: 0 | R81: 0 | S81: 0 | U81: 30 | V81: 30.75297066 | W81: 31.50678576 | X81: 32.18607096 | Y81: 32.98079599 | Z81: 33.80531589 | AA81: 34.65044878 | AC81: 1.04 | AE81: 1.04 | AF81: 1.3 | AH81: 1.04 | AI81: 1.04 | AJ81: 1.04
B82: 74 | C82: INC1x60 | D82: Lamp | E82: NonTraffic | F82: Minor < 130w | G82: 1 | H82: 0 | I82: 0 | J82: 227 | K82: 227 | N82: 0 | O82: 0 | P82: 0 | Q82: 0 | R82: 0 | S82: 0 | U82: 10 | V82: 10.25099022 | W82: 10.50226192 | X82: 10.72869032 | Y82: 10.99359866 | Z82: 11.26843863 | AA82: 11.55014959 | AC82: 1.04 | AE82: 1.04 | AF82: 1.3 | AH82: 1.04 | AI82: 1.04 | AJ82: 1.04
B83: 75 | C83: INC1x75 | D83: Lamp | E83: NonTraffic | F83: Minor < 130w | G83: 1 | H83: 0 | I83: 0 | J83: 1 | K83: 1 | N83: 0 | O83: 0 | P83: 0 | Q83: 0 | R83: 0 | S83: 0 | U83: 10 | V83: 10.25099022 | W83: 10.50226192 | X83: 10.72869032 | Y83: 10.99359866 | Z83: 11.26843863 | AA83: 11.55014959 | AC83: 1.04 | AE83: 1.04 | AF83: 1.3 | AH83: 1.04 | AI83: 1.04 | AJ83: 1.04
B84: 76 | C84: INC3x100 | D84: Lamp | E84: NonTraffic | F84: Minor < 130w | G84: 3 | H84: 0 | I84: 0 | J84: 1 | K84: 1 | N84: 0 | O84: 0 | P84: 0 | Q84: 0 | R84: 0 | S84: 0 | U84: 10 | V84: 10.25099022 | W84: 10.50226192 | X84: 10.72869032 | Y84: 10.99359866 | Z84: 11.26843863 | AA84: 11.55014959 | AC84: 1.04 | AE84: 1.04 | AF84: 1.3 | AH84: 1.04 | AI84: 1.04 | AJ84: 1.04
B85: 77 | C85: LED1x237 | D85: Lamp | E85: NonTraffic | F85: Major > 130w | G85: 1 | H85: 1 | I85: 0 | J85: 725 | K85: 726 | N85: 1 | O85: 1 | P85: 1 | Q85: 1 | R85: 1 | S85: 1 | U85: 0 | V85: 0 | W85: 0 | X85: 0 | Y85: 0 | Z85: 0 | AA85: 0 | AC85: 0.01 | AH85: 0.01 | AI85: 0.01 | AJ85: 0.01
B86: 78 | C86: LED1x29 | D86: Lamp | E86: NonTraffic | F86: Minor < 130w | G86: 1 | H86: 1351 | I86: 40 | J86: 0 | K86: 1391 | N86: 1391 | O86: 1391 | P86: 1391 | Q86: 1391 | R86: 1391 | S86: 1391 | U86: 0 | V86: 0 | W86: 0 | X86: 0 | Y86: 0 | Z86: 0 | AA86: 0 | AC86: 0.01 | AH86: 0.01 | AI86: 0.01 | AJ86: 0.01
B87: 79 | C87: MBF1x1000 | D87: Lamp | E87: Traffic | F87: Major > 130w | G87: 1 | H87: 1 | I87: 0 | J87: 1 | K87: 2 | N87: 1 | O87: 1 | P87: 1 | Q87: 1 | R87: 1 | S87: 1 | U87: 100 | V87: 102.5099022 | W87: 105.0226192 | X87: 107.2869032 | Y87: 109.9359866 | Z87: 112.6843863 | AA87: 115.5014959 | AC87: 0.08 | AE87: 0.08 | AF87: 0.1 | AH87: =AE87 -> 0.08 | AI87: 0.08 | AJ87: =AE87 -> 0.08
B88: 80 | C88: MBF1x1000 (P09) | D88: Lamp | E88: Traffic | F88: Major > 130w | G88: 1 | H88: 13 | I88: 0 | J88: 0 | K88: 13 | N88: 13 | O88: 13 | P88: 13 | Q88: 13 | R88: 13 | S88: 13 | U88: 100 | V88: 102.5099022 | W88: 105.0226192 | X88: 107.2869032 | Y88: 109.9359866 | Z88: 112.6843863 | AA88: 115.5014959 | AC88: 0.08 | AE88: 0.08 | AF88: 0.1 | AH88: =AE88 -> 0.08 | AI88: 0.08 | AJ88: =AE88 -> 0.08
B89: 81 | C89: MBF1x125 | D89: Lamp | E89: NonTraffic | F89: Minor < 130w | G89: 1 | H89: 332 | I89: 6 | J89: 556 | K89: 894 | N89: 338 | O89: 338 | P89: 338 | Q89: 338 | R89: 338 | S89: 338 | U89: 10 | V89: =U89*(1+INDIRECT("CPI"&V$7))*(IF($D89="Lamp",(1+INDIRECT("EscLamp"&V$7)),1)) -> 10.25099022 | W89: =V89*(1+INDIRECT("CPI"&W$7))*(IF($D89="Lamp",(1+INDIRECT("EscLamp"&W$7)),1)) -> 10.50226192 | X89: 10.72869032 | Y89: 10.99359866 | Z89: 11.26843863 | AA89: 11.55014959 | AC89: 0.1357 | AE89: 0.06 | AF89: 0.1 | AH89: =36.71%/2.5 -> 0.14684 | AI89: =40.71%/3 -> 0.1357 | AJ89: =47.54%/4 -> 0.11885 | AK89: Green = rates from recent failure rate study
B90: 82 | C90: MBF1x125 (P09) | D90: Lamp | E90: NonTraffic | F90: Minor < 130w | G90: 1 | H90: 4840 | I90: 501 | J90: 184 | K90: 5525 | N90: 5341 | O90: 5341 | P90: 5341 | Q90: 5341 | R90: 5341 | S90: 5341 | U90: 10 | V90: 10.25099022 | W90: 10.50226192 | X90: 10.72869032 | Y90: 10.99359866 | Z90: 11.26843863 | AA90: 11.55014959 | AC90: 0.1357 | AE90: 0.06 | AF90: 0.1 | AH90: =36.71%/2.5 -> 0.14684 | AI90: =40.71%/3 -> 0.1357 | AJ90: =47.54%/4 -> 0.11885 | AK90: Black = Carryover from 2010 determination
B91: 83 | C91: MBF1x160 | D91: Lamp | E91: NonTraffic | F91: Major > 130w | G91: 1 | H91: 1 | I91: 0 | J91: 0 | K91: 1 | N91: 1 | O91: 1 | P91: 1 | Q91: 1 | R91: 1 | S91: 1 | U91: 10 | V91: 10.25099022 | W91: 10.50226192 | X91: 10.72869032 | Y91: 10.99359866 | Z91: 11.26843863 | AA91: 11.55014959 | AC91: 0 | AE91: 0 | AF91: 0 | AH91: 0 | AI91: 0 | AJ91: 0
B92: 84 | C92: MBF1x250 | D92: Lamp | E92: Traffic | F92: Major > 130w | G92: 1 | H92: 1139 | I92: 14 | J92: 159 | K92: 1312 | N92: 1153 | O92: 1153 | P92: 1153 | Q92: 1153 | R92: 1153 | S92: 1153 | U92: 10 | V92: 10.25099022 | W92: 10.50226192 | X92: 10.72869032 | Y92: 10.99359866 | Z92: 11.26843863 | AA92: 11.55014959 | AC92: 0.1182666667 | AE92: 0.06 | AF92: 0.1 | AH92: =31.89%/2.5 -> 0.12756 | AI92: =35.48%/3 -> 0.1182666667 | AJ92: =41.71%/4 -> 0.104275
B93: 85 | C93: MBF1x250 (P09) | D93: Lamp | E93: Traffic | F93: Major > 130w | G93: 1 | H93: 16722 | I93: 190 | J93: 43 | K93: 16955 | N93: 16912 | O93: 16912 | P93: 16912 | Q93: 16912 | R93: 16912 | S93: 16912 | U93: 10 | V93: 10.25099022 | W93: 10.50226192 | X93: 10.72869032 | Y93: 10.99359866 | Z93: 11.26843863 | AA93: 11.55014959 | AC93: 0.1182666667 | AE93: 0.06 | AF93: 0.1 | AH93: =31.89%/2.5 -> 0.12756 | AI93: =35.48%/3 -> 0.1182666667 | AJ93: =41.71%/4 -> 0.104275
B94: 86 | C94: MBF1x400 | D94: Lamp | E94: Traffic | F94: Major > 130w | G94: 1 | H94: 332 | I94: 11 | J94: 111 | K94: 454 | N94: 343 | O94: 343 | P94: 343 | Q94: 343 | R94: 343 | S94: 343 | U94: 10 | V94: 10.25099022 | W94: 10.50226192 | X94: 10.72869032 | Y94: 10.99359866 | Z94: 11.26843863 | AA94: 11.55014959 | AC94: 0.1253333333 | AE94: 0.06 | AF94: 0.18 | AH94: =33.66%/2.5 -> 0.13464 | AI94: =37.6%/3 -> 0.1253333333 | AJ94: =44.42%/4 -> 0.11105
B95: 87 | C95: MBF1x400 (P09) | D95: Lamp | E95: Traffic | F95: Major > 130w | G95: 1 | H95: 6448.5 | I95: 102 | J95: 6 | K95: 6556.5 | N95: 6550.5 | O95: 6550.5 | P95: 6550.5 | Q95: 6550.5 | R95: 6550.5 | S95: 6550.5 | U95: 10 | V95: 10.25099022 | W95: 10.50226192 | X95: 10.72869032 | Y95: 10.99359866 | Z95: 11.26843863 | AA95: 11.55014959 | AC95: 0.1253333333 | AE95: 0.06 | AF95: 0.18 | AH95: =33.66%/2.5 -> 0.13464 | AI95: =37.6%/3 -> 0.1253333333 | AJ95: =44.42%/4 -> 0.11105
B96: 88 | C96: MBF1x42 | D96: Lamp | E96: NonTraffic | F96: Minor < 130w | G96: 1 | H96: 193 | I96: 4 | J96: 0 | K96: 197 | N96: 197 | O96: 197 | P96: 197 | Q96: 197 | R96: 197 | S96: 197 | U96: 10 | V96: 10.25099022 | W96: 10.50226192 | X96: 10.72869032 | Y96: 10.99359866 | Z96: 11.26843863 | AA96: 11.55014959 | AC96: 0.1541 | AE96: 0.05 | AF96: 0.1482910765 | AH96: =40.27%/2.5 -> 0.16108 | AI96: =46.23%/3 -> 0.1541 | AJ96: =56.45%/4 -> 0.141125
B97: 89 | C97: MBF1x42 (P09) | D97: Lamp | E97: NonTraffic | F97: Minor < 130w | G97: 1 | H97: 48499.5 | I97: 3884 | J97: 11 | K97: 52394.5 | N97: 52383.5 | O97: 52383.5 | P97: 52383.5 | Q97: 52383.5 | R97: 52383.5 | S97: 52383.5 | U97: 10 | V97: 10.25099022 | W97: 10.50226192 | X97: 10.72869032 | Y97: 10.99359866 | Z97: 11.26843863 | AA97: 11.55014959 | AC97: 0.1541 | AE97: 0.05 | AF97: 0.1482910765 | AH97: =40.27%/2.5 -> 0.16108 | AI97: =46.23%/3 -> 0.1541 | AJ97: =56.45%/4 -> 0.141125
B98: 90 | C98: MBF1x50 | D98: Lamp | E98: NonTraffic | F98: Minor < 130w | G98: 1 | H98: 230 | I98: 41 | J98: 50 | K98: 321 | N98: 271 | O98: 271 | P98: 271 | Q98: 271 | R98: 271 | S98: 271 | U98: 10 | V98: 10.25099022 | W98: 10.50226192 | X98: 10.72869032 | Y98: 10.99359866 | Z98: 11.26843863 | AA98: 11.55014959 | AC98: 0.1891 | AE98: 0.06 | AF98: 0.1 | AH98: =48.86%/2.5 -> 0.19544 | AI98: =56.73%/3 -> 0.1891 | AJ98: =69.58%/4 -> 0.17395
B99: 91 | C99: MBF1x50 (P09) | D99: Lamp | E99: NonTraffic | F99: Minor < 130w | G99: 1 | H99: 8619 | I99: 3250 | J99: 1 | K99: 11870 | N99: 11869 | O99: 11869 | P99: 11869 | Q99: 11869 | R99: 11869 | S99: 11869 | U99: 10 | V99: 10.25099022 | W99: =V99*(1+INDIRECT("CPI"&W$7))*(IF($D99="Lamp",(1+INDIRECT("EscLamp"&W$7)),1)) -> 10.50226192 | X99: 10.72869032 | Y99: 10.99359866 | Z99: 11.26843863 | AA99: 11.55014959 | AC99: 0.1891 | AE99: 0.06 | AF99: 0.1 | AH99: =48.86%/2.5 -> 0.19544 | AI99: =56.73%/3 -> 0.1891 | AJ99: =69.58%/4 -> 0.17395
B100: 92 | C100: MBF1x500 | D100: Lamp | E100: Traffic | F100: Major > 130w | G100: 1 | H100: 0 | I100: 0 | J100: 0 | K100: 0 | N100: 0 | O100: 0 | P100: 0 | Q100: 0 | R100: 0 | S100: 0 | U100: 100 | V100: 102.5099022 | W100: 105.0226192 | X100: 107.2869032 | Y100: 109.9359866 | Z100: 112.6843863 | AA100: 115.5014959 | AC100: 0.144 | AE100: 0.144 | AF100: 0.18 | AH100: =AE100 -> 0.144 | AI100: 0.144 | AJ100: =AE100 -> 0.144
B101: 93 | C101: MBF1x700 | D101: Lamp | E101: Traffic | F101: Major > 130w | G101: 1 | H101: 2 | I101: 0 | J101: 46 | K101: 48 | N101: 2 | O101: 2 | P101: 2 | Q101: 2 | R101: 2 | S101: 2 | U101: 100 | V101: 102.5099022 | W101: 105.0226192 | X101: 107.2869032 | Y101: 109.9359866 | Z101: 112.6843863 | AA101: 115.5014959 | AC101: 0.04827650513 | AE101: 0.144 | AF101: 0.18 | AH101: 0.05670586803 | AI101: 0.04827650513 | AJ101: 0.04874494408
B102: 94 | C102: MBF1x80 | D102: Lamp | E102: NonTraffic | F102: Minor < 130w | G102: 1 | H102: 1520 | I102: 145 | J102: 145 | K102: 1810 | N102: 1665 | O102: 1665 | P102: 1665 | Q102: 1665 | R102: 1665 | S102: 1665 | U102: 10 | V102: 10.25099022 | W102: 10.50226192 | X102: 10.72869032 | Y102: 10.99359866 | Z102: 11.26843863 | AA102: 11.55014959 | AC102: 0.08263333333 | AE102: 0.02 | AF102: 0.06 | AH102: =21.71%/2.5 -> 0.08684 | AI102: =24.79%/3 -> 0.08263333333 | AJ102: =30.38%/4 -> 0.07595
B103: 95 | C103: MBF1x80 (P09) | D103: Lamp | E103: NonTraffic | F103: Minor < 130w | G103: 1 | H103: 68402.5 | I103: 8625 | J103: 21 | K103: 77048.5 | N103: 77027.5 | O103: 77027.5 | P103: 77027.5 | Q103: 77027.5 | R103: 77027.5 | S103: 77027.5 | U103: 10 | V103: 10.25099022 | W103: 10.50226192 | X103: 10.72869032 | Y103: 10.99359866 | Z103: 11.26843863 | AA103: 11.55014959 | AC103: 0.08263333333 | AE103: 0.02 | AF103: 0.06 | AH103: =21.71%/2.5 -> 0.08684 | AI103: =24.79%/3 -> 0.08263333333 | AJ103: =30.38%/4 -> 0.07595
B104: 96 | C104: MBF1x800 | D104: Lamp | E104: Traffic | F104: Major > 130w | G104: 1 | H104: 0 | I104: 0 | J104: 1 | K104: 1 | N104: 0 | O104: 0 | P104: 0 | Q104: 0 | R104: 0 | S104: 0 | U104: 100 | V104: 102.5099022 | W104: 105.0226192 | X104: 107.2869032 | Y104: 109.9359866 | Z104: 112.6843863 | AA104: 115.5014959 | AC104: 0.144 | AE104: 0.144 | AF104: 0.18 | AH104: =AE104 -> 0.144 | AI104: 0.144 | AJ104: =AE104 -> 0.144
B105: 97 | C105: MBF2x125 | D105: Lamp | E105: Traffic | F105: Major > 130w | G105: 2 | H105: 0 | I105: 0 | J105: 0 | K105: 0 | N105: 0 | O105: 0 | P105: 0 | Q105: 0 | R105: 0 | S105: 0 | U105: 10 | V105: 10.25099022 | W105: 10.50226192 | X105: 10.72869032 | Y105: 10.99359866 | Z105: 11.26843863 | AA105: 11.55014959 | AC105: =OFFSET(AE105,0,BulkOptionNumber-1) -> 0.25298551 | AE105: 0.06 | AF105: 0.1 | AH105: =1-(1-AH90)^$G$105 -> 0.2721180144 | AI105: =1-(1-AI90)^$G$105 -> 0.25298551 | AJ105: 0.2235746775
B106: 98 | C106: MBF2x125 (P09) | D106: Lamp | E106: Traffic | F106: Major > 130w | G106: 2 | H106: 1 | I106: 0 | J106: 3 | K106: 4 | N106: 1 | O106: 1 | P106: 1 | Q106: 1 | R106: 1 | S106: 1 | U106: 10 | V106: 10.25099022 | W106: 10.50226192 | X106: 10.72869032 | Y106: 10.99359866 | Z106: 11.26843863 | AA106: 11.55014959 | AC106: 0.25298551 | AE106: 0.06 | AF106: 0.1 | AH106: =1-(1-AH90)^$G$105 -> 0.2721180144 | AI106: =1-(1-AI90)^$G$105 -> 0.25298551 | AJ106: 0.2235746775
B107: 99 | C107: MBF2x160 | D107: Lamp | E107: Traffic | F107: Major > 130w | G107: 2 | H107: 0 | I107: 0 | J107: 2 | K107: 2 | N107: 0 | O107: 0 | P107: 0 | Q107: 0 | R107: 0 | S107: 0 | U107: 10 | V107: 10.25099022 | W107: 10.50226192 | X107: 10.72869032 | Y107: 10.99359866 | Z107: 11.26843863 | AA107: 11.55014959 | AC107: 0 | AE107: 0.06 | AF107: 0.1 | AH107: 0 | AI107: 0 | AJ107: 0
B108: 100 | C108: MBF2x175 | D108: Lamp | E108: Traffic | F108: Major > 130w | G108: 2 | H108: 0 | I108: 0 | J108: 0 | K108: 0 | N108: 0 | O108: 0 | P108: 0 | Q108: 0 | R108: 0 | S108: 0 | U108: 10 | V108: 10.25099022 | W108: 10.50226192 | X108: 10.72869032 | Y108: 10.99359866 | Z108: 11.26843863 | AA108: 11.55014959 | AC108: 0 | AE108: 0.06 | AF108: 0.1 | AH108: 0 | AI108: 0 | AJ108: 0
B109: 101 | C109: MBF2x400 | D109: Lamp | E109: Traffic | F109: Major > 130w | G109: 2 | H109: 0 | I109: 0 | J109: 0 | K109: 0 | N109: 0 | O109: 0 | P109: 0 | Q109: 0 | R109: 0 | S109: 0 | U109: 10 | V109: 10.25099022 | W109: =V109*(1+INDIRECT("CPI"&W$7))*(IF($D109="Lamp",(1+INDIRECT("EscLamp"&W$7)),1)) -> 10.50226192 | X109: 10.72869032 | Y109: 10.99359866 | Z109: 11.26843863 | AA109: 11.55014959 | AC109: 0.2225463289 | AE109: 0.06 | AF109: 0.1 | AH109: =1-(1-AH93)^$G109 -> 0.2388484464 | AI109: =1-(1-AI93)^$G109 -> 0.2225463289 | AJ109: 0.1976767244
B110: 102 | C110: MBF2x80 | D110: Lamp | E110: NonTraffic | F110: Minor < 130w | G110: 2 | H110: 0 | I110: 0 | J110: 0 | K110: 0 | N110: 0 | O110: 0 | P110: 0 | Q110: 0 | R110: 0 | S110: 0 | U110: 10 | V110: 10.25099022 | W110: 10.50226192 | X110: 10.72869032 | Y110: 10.99359866 | Z110: 11.26843863 | AA110: 11.55014959 | AC110: 0.1584383989 | AE110: 0.06 | AF110: 0.06 | AH110: =1-(1-AH102)^$G110 -> 0.1661388144 | AI110: =1-(1-AI102)^$G110 -> 0.1584383989 | AJ110: 0.1461315975
B111: 103 | C111: MBF3x160 | D111: Lamp | E111: Traffic | F111: Major > 130w | G111: 3 | H111: 0 | I111: 0 | J111: 1 | K111: 1 | N111: 0 | O111: 0 | P111: 0 | Q111: 0 | R111: 0 | S111: 0 | U111: 10 | V111: 10.25099022 | W111: 10.50226192 | X111: 10.72869032 | Y111: 10.99359866 | Z111: 11.26843863 | AA111: 11.55014959 | AC111: 0 | AE111: 0.06 | AF111: 0.1 | AH111: 0 | AI111: 0 | AJ111: 0
B112: 104 | C112: MBF3x250 | D112: Lamp | E112: Traffic | F112: Major > 130w | G112: 3 | H112: 0 | I112: 0 | J112: 0 | K112: 0 | N112: 0 | O112: 0 | P112: 0 | Q112: 0 | R112: 0 | S112: 0 | U112: 10 | V112: 10.25099022 | W112: 10.50226192 | X112: 10.72869032 | Y112: 10.99359866 | Z112: 11.26843863 | AA112: 11.55014959 | AC112: 0.3144931831 | AE112: 0.06 | AF112: 0.1 | AH112: =1-(1-AH92)^$G112 -> 0.3359409386 | AI112: =1-(1-AI92)^$G112 -> 0.3144931831 | AJ112: 0.2813389839
B113: 105 | C113: MBF3x400 | D113: Lamp | E113: Traffic | F113: Major > 130w | G113: 3 | H113: 0 | I113: 0 | J113: 0 | K113: 0 | N113: 0 | O113: 0 | P113: 0 | Q113: 0 | R113: 0 | S113: 0 | U113: 10 | V113: 10.25099022 | W113: 10.50226192 | X113: 10.72869032 | Y113: 10.99359866 | Z113: 11.26843863 | AA113: 11.55014959 | AC113: 0.3308434584 | AE113: 0.06 | AF113: 0.18 | AH113: =1-(1-AH94)^$G113 -> 0.3519769556 | AI113: =1-(1-AI94)^$G113 -> 0.3308434584 | AJ113: 0.2975231725
B114: 106 | C114: MBF3x80 | D114: Lamp | E114: NonTraffic | F114: Minor < 130w | G114: 3 | H114: 0 | I114: 0 | J114: 6 | K114: 6 | N114: 0 | O114: 0 | P114: 0 | Q114: 0 | R114: 0 | S114: 0 | U114: 10 | V114: 10.25099022 | W114: 10.50226192 | X114: 10.72869032 | Y114: 10.99359866 | Z114: 11.26843863 | AA114: 11.55014959 | AC114: 0.2279794392 | AE114: 0.06 | AF114: 0.06 | AH114: =1-(1-AH103)^$G114 -> 0.2385513198 | AI114: =1-(1-AI103)^$G114 -> 0.2279794392 | AJ114: 0.2109829027
B115: 107 | C115: MBF4x1000 | D115: Lamp | E115: Traffic | F115: Major > 130w | G115: 4 | H115: 0 | I115: 0 | J115: 4 | K115: 4 | N115: 0 | O115: 0 | P115: 0 | Q115: 0 | R115: 0 | S115: 0 | U115: 100 | V115: 102.5099022 | W115: 105.0226192 | X115: 107.2869032 | Y115: 109.9359866 | Z115: 112.6843863 | AA115: 115.5014959 | AC115: 0.28360704 | AE115: 0.08 | AF115: 0.1 | AH115: =1-(1-AH88)^$G115 -> 0.28360704 | AI115: =1-(1-AI88)^$G115 -> 0.28360704 | AJ115: 0.28360704
B116: 108 | C116: MBF4x80 | D116: Lamp | E116: NonTraffic | F116: Minor < 130w | G116: 4 | H116: 0 | I116: 0 | J116: 4 | K116: 4 | N116: 0 | O116: 0 | P116: 0 | Q116: 0 | R116: 0 | S116: 0 | U116: 10 | V116: 10.25099022 | W116: 10.50226192 | X116: 10.72869032 | Y116: 10.99359866 | Z116: 11.26843863 | AA116: 11.55014959 | AC116: 0.2917740715 | AE116: 0.06 | AF116: 0.06 | AH116: =1-(1-AH102)^$G116 -> 0.3046755231 | AI116: =1-(1-AI102)^$G116 -> 0.2917740715 | AJ116: 0.2709087512
B117: 109 | C117: MBF6x125 | D117: Lamp | E117: Traffic | F117: Major > 130w | G117: 6 | H117: 0 | I117: 0 | J117: 1 | K117: 1 | N117: 0 | O117: 0 | P117: 0 | Q117: 0 | R117: 0 | S117: 0 | U117: 10 | V117: 10.25099022 | W117: 10.50226192 | X117: 10.72869032 | Y117: 10.99359866 | Z117: 11.26843863 | AA117: 11.55014959 | AC117: 0.5831430199 | AE117: 0.06 | AF117: 0.1 | AH117: =1-(1-AH90)^$G117 -> 0.6143592548 | AI117: =1-(1-AI90)^$G117 -> 0.5831430199 | AJ117: 0.5319426458
B118: 110 | C118: MBF6x160 | D118: Lamp | E118: Traffic | F118: Major > 130w | G118: 6 | H118: 0 | I118: 0 | J118: 3 | K118: 3 | N118: 0 | O118: 0 | P118: 0 | Q118: 0 | R118: 0 | S118: 0 | U118: 10 | V118: 10.25099022 | W118: 10.50226192 | X118: 10.72869032 | Y118: 10.99359866 | Z118: 11.26843863 | AA118: 11.55014959 | AC118: 0 | AE118: 0.06 | AF118: 0.12 | AH118: 0 | AI118: 0 | AJ118: 0
B119: 111 | C119: MBF9x160 | D119: Lamp | E119: Traffic | F119: Major > 130w | G119: 9 | H119: 0 | I119: 0 | J119: 1 | K119: 1 | N119: 0 | O119: 0 | P119: 0 | Q119: 0 | R119: 0 | S119: 0 | U119: 10 | V119: 10.25099022 | W119: =V119*(1+INDIRECT("CPI"&W$7))*(IF($D119="Lamp",(1+INDIRECT("EscLamp"&W$7)),1)) -> 10.50226192 | X119: 10.72869032 | Y119: 10.99359866 | Z119: 11.26843863 | AA119: 11.55014959 | AC119: 0 | AE119: 0.06 | AF119: 0.12 | AH119: 0 | AI119: 0 | AJ119: 0
B120: 112 | C120: MBI1x100 | D120: Lamp | E120: Traffic | F120: Minor < 130w | G120: 1 | H120: 1 | I120: 0 | J120: 0 | K120: 1 | N120: 1 | O120: 1 | P120: 1 | Q120: 1 | R120: 1 | S120: 1 | U120: 30 | V120: 30.75297066 | W120: 31.50678576 | X120: 32.18607096 | Y120: 32.98079599 | Z120: 33.80531589 | AA120: 34.65044878 | AC120: 0.16 | AE120: 0.16 | AF120: 0.2 | AH120: =AE120 -> 0.16 | AI120: 0.16 | AJ120: =AE120 -> 0.16
B121: 113 | C121: MBI1x100 (P09) | D121: Lamp | E121: Traffic | F121: Minor < 130w | G121: 1 | H121: 20 | I121: 14 | J121: 1 | K121: 35 | N121: 34 | O121: 34 | P121: 34 | Q121: 34 | R121: 34 | S121: 34 | U121: 30 | V121: 30.75297066 | W121: 31.50678576 | X121: 32.18607096 | Y121: 32.98079599 | Z121: 33.80531589 | AA121: 34.65044878 | AC121: 0.16 | AE121: 0.16 | AF121: 0.2 | AH121: =AE121 -> 0.16 | AI121: 0.16 | AJ121: =AE121 -> 0.16
B122: 114 | C122: MBI1x1000 | D122: Lamp | E122: Traffic | F122: Major > 130w | G122: 1 | H122: 1 | I122: 0 | J122: 0 | K122: 1 | N122: 1 | O122: 1 | P122: 1 | Q122: 1 | R122: 1 | S122: 1 | U122: 100 | V122: 102.5099022 | W122: 105.0226192 | X122: 107.2869032 | Y122: 109.9359866 | Z122: 112.6843863 | AA122: 115.5014959 | AC122: 0.16 | AE122: 0.16 | AF122: 0.2 | AH122: =AE122 -> 0.16 | AI122: 0.16 | AJ122: =AE122 -> 0.16
B123: 115 | C123: MBI1x1000 (P09) | D123: Lamp | E123: Traffic | F123: Major > 130w | G123: 1 | H123: 10 | I123: 0 | J123: 0 | K123: 10 | N123: 10 | O123: 10 | P123: 10 | Q123: 10 | R123: 10 | S123: 10 | U123: 100 | V123: 102.5099022 | W123: 105.0226192 | X123: 107.2869032 | Y123: 109.9359866 | Z123: 112.6843863 | AA123: 115.5014959 | AC123: 0.16 | AE123: 0.16 | AF123: 0.2 | AH123: =AE123 -> 0.16 | AI123: 0.16 | AJ123: =AE123 -> 0.16
B124: 116 | C124: MBI1x150 | D124: Lamp | E124: Traffic | F124: Major > 130w | G124: 1 | H124: 5 | I124: 0 | J124: 0 | K124: 5 | N124: 5 | O124: 5 | P124: 5 | Q124: 5 | R124: 5 | S124: 5 | U124: 100 | V124: 102.5099022 | W124: 105.0226192 | X124: 107.2869032 | Y124: 109.9359866 | Z124: 112.6843863 | AA124: 115.5014959 | AC124: 0.16 | AE124: 0.16 | AF124: 0.2 | AH124: 0.16 | AI124: 0.16 | AJ124: 0.16
B125: 117 | C125: MBI1x150 (P09) | D125: Lamp | E125: Traffic | F125: Major > 130w | G125: 1 | H125: 68 | I125: 1 | J125: 0 | K125: 69 | N125: 69 | O125: 69 | P125: 69 | Q125: 69 | R125: 69 | S125: 69 | U125: 100 | V125: 102.5099022 | W125: 105.0226192 | X125: 107.2869032 | Y125: 109.9359866 | Z125: 112.6843863 | AA125: 115.5014959 | AC125: 0.16 | AE125: 0.16 | AF125: 0.2 | AH125: 0.16 | AI125: 0.16 | AJ125: 0.16
B126: 118 | C126: MBI1x1500 | D126: Lamp | E126: Traffic | F126: Major > 130w | G126: 1 | H126: 0 | I126: 0 | J126: 0 | K126: 0 | N126: 0 | O126: 0 | P126: 0 | Q126: 0 | R126: 0 | S126: 0 | U126: 100 | V126: 102.5099022 | W126: 105.0226192 | X126: 107.2869032 | Y126: 109.9359866 | Z126: 112.6843863 | AA126: 115.5014959 | AC126: 0.16 | AE126: 0.16 | AF126: 0.2 | AH126: =AE126 -> 0.16 | AI126: 0.16 | AJ126: =AE126 -> 0.16
B127: 119 | C127: MBI1x250 | D127: Lamp | E127: Traffic | F127: Major > 130w | G127: 1 | H127: 2 | I127: 0 | J127: 44 | K127: 46 | N127: 2 | O127: 2 | P127: 2 | Q127: 2 | R127: 2 | S127: 2 | U127: 30 | V127: 30.75297066 | W127: 31.50678576 | X127: 32.18607096 | Y127: 32.98079599 | Z127: 33.80531589 | AA127: 34.65044878 | AC127: 0.16 | AE127: 0.16 | AF127: 0.2 | AH127: 0.16 | AI127: 0.16 | AJ127: 0.16
B128: 120 | C128: MBI1x250 (P09) | D128: Lamp | E128: Traffic | F128: Major > 130w | G128: 1 | H128: 48 | I128: 13 | J128: 2 | K128: 63 | N128: 61 | O128: 61 | P128: 61 | Q128: 61 | R128: 61 | S128: 61 | U128: 30 | V128: 30.75297066 | W128: 31.50678576 | X128: 32.18607096 | Y128: 32.98079599 | Z128: 33.80531589 | AA128: 34.65044878 | AC128: 0.16 | AE128: 0.16 | AF128: 0.2 | AH128: 0.16 | AI128: 0.16 | AJ128: 0.16
B129: 121 | C129: MBI1x3745 | D129: Lamp | E129: Traffic | F129: Major > 130w | G129: 1 | H129: 0 | I129: 0 | J129: 0 | K129: 0 | N129: 0 | O129: 0 | P129: 0 | Q129: 0 | R129: 0 | S129: 0 | U129: 0 | V129: 0 | W129: =V129*(1+INDIRECT("CPI"&W$7))*(IF($D129="Lamp",(1+INDIRECT("EscLamp"&W$7)),1)) -> 0 | X129: 0 | Y129: 0 | Z129: 0 | AA129: 0 | AC129: 0.16 | AE129: 0.16 | AF129: 0.2 | AH129: =AE129 -> 0.16 | AI129: 0.16 | AJ129: =AE129 -> 0.16
B130: 122 | C130: MBI1x400 | D130: Lamp | E130: Traffic | F130: Major > 130w | G130: 1 | H130: 12 | I130: 1 | J130: 100 | K130: 113 | N130: 13 | O130: 13 | P130: 13 | Q130: 13 | R130: 13 | S130: 13 | U130: 30 | V130: 30.75297066 | W130: 31.50678576 | X130: 32.18607096 | Y130: 32.98079599 | Z130: 33.80531589 | AA130: 34.65044878 | AC130: 0.12 | AE130: 0.12 | AF130: 0.15 | AH130: 0.12 | AI130: 0.12 | AJ130: 0.12
B131: 123 | C131: MBI1x400 (P09) | D131: Lamp | E131: Traffic | F131: Major > 130w | G131: 1 | H131: 70 | I131: 39 | J131: 6 | K131: 115 | N131: 109 | O131: 109 | P131: 109 | Q131: 109 | R131: 109 | S131: 109 | U131: 30 | V131: 30.75297066 | W131: 31.50678576 | X131: 32.18607096 | Y131: 32.98079599 | Z131: 33.80531589 | AA131: 34.65044878 | AC131: 0.12 | AE131: 0.12 | AF131: 0.15 | AH131: 0.12 | AI131: 0.12 | AJ131: 0.12
B132: 124 | C132: MBI1x500 | D132: Lamp | E132: Traffic | F132: Major > 130w | G132: 1 | H132: 0 | I132: 0 | J132: 0 | K132: 0 | N132: 0 | O132: 0 | P132: 0 | Q132: 0 | R132: 0 | S132: 0 | U132: 100 | V132: 102.5099022 | W132: 105.0226192 | X132: 107.2869032 | Y132: 109.9359866 | Z132: 112.6843863 | AA132: 115.5014959 | AC132: 0.16 | AE132: 0.16 | AF132: 0.2 | AH132: =AE132 -> 0.16 | AI132: 0.16 | AJ132: =AE132 -> 0.16
B133: 125 | C133: MBI1x70 | D133: Lamp | E133: NonTraffic | F133: Minor < 130w | G133: 1 | H133: 0 | I133: 0 | J133: 0 | K133: 0 | N133: 0 | O133: 0 | P133: 0 | Q133: 0 | R133: 0 | S133: 0 | U133: 30 | V133: 30.75297066 | W133: 31.50678576 | X133: 32.18607096 | Y133: 32.98079599 | Z133: 33.80531589 | AA133: 34.65044878 | AC133: 0.12 | AE133: 0.12 | AF133: 0.15 | AH133: =AE133 -> 0.12 | AI133: 0.12 | AJ133: =AE133 -> 0.12
B134: 126 | C134: MBI1x70 (P09) | D134: Lamp | E134: NonTraffic | F134: Minor < 130w | G134: 1 | H134: 177 | I134: 6 | J134: 35 | K134: 218 | N134: 183 | O134: 183 | P134: 183 | Q134: 183 | R134: 183 | S134: 183 | U134: 30 | V134: 30.75297066 | W134: 31.50678576 | X134: 32.18607096 | Y134: 32.98079599 | Z134: 33.80531589 | AA134: 34.65044878 | AC134: 0.12 | AE134: 0.12 | AF134: 0.15 | AH134: =AE134 -> 0.12 | AI134: 0.12 | AJ134: =AE134 -> 0.12
B135: 127 | C135: MBI1x70 II | D135: Lamp | E135: Traffic | F135: Minor < 130w | G135: 1 | H135: 77 | I135: 2 | J135: 0 | K135: 79 | N135: 79 | O135: 79 | P135: 79 | Q135: 79 | R135: 79 | S135: 79 | U135: 30 | V135: 30.75297066 | W135: 31.50678576 | X135: 32.18607096 | Y135: 32.98079599 | Z135: 33.80531589 | AA135: 34.65044878 | AC135: 0.033 | AH135: 0.04 | AI135: 0.033 | AJ135: 0.025 | AK135: New lamp type. Theoretical data used as no actual data available
B136: 128 | C136: MBI2x400 | D136: Lamp | E136: Traffic | F136: Major > 130w | G136: 2 | H136: 0 | I136: 0 | J136: 0 | K136: 0 | N136: 0 | O136: 0 | P136: 0 | Q136: 0 | R136: 0 | S136: 0 | U136: 30 | V136: 30.75297066 | W136: 31.50678576 | X136: 32.18607096 | Y136: 32.98079599 | Z136: 33.80531589 | AA136: 34.65044878 | AC136: 0.12 | AE136: 0.12 | AF136: 0.15 | AH136: =AH133 -> 0.12 | AI136: =AI133 -> 0.12 | AJ136: 0.12
B137: 129 | C137: MBI4x150 | D137: Lamp | E137: Traffic | F137: Major > 130w | G137: 4 | H137: 5 | I137: 0 | J137: 1 | K137: 6 | N137: 5 | O137: 5 | P137: 5 | Q137: 5 | R137: 5 | S137: 5 | U137: 100 | V137: 102.5099022 | W137: 105.0226192 | X137: 107.2869032 | Y137: 109.9359866 | Z137: 112.6843863 | AA137: 115.5014959 | AC137: 0.12 | AE137: 0.12 | AF137: 0.15 | AH137: 0.12 | AI137: 0.12 | AJ137: 0.12
B138: 130 | C138: SON1x100 | D138: Lamp | E138: Traffic | F138: Minor < 130w | G138: 1 | H138: 63 | I138: 0 | J138: 2 | K138: =SUM(H138:J138) -> 65 | N138: =SUM(H138:I138) -> 63 | O138: =N138*(1+INDIRECT("GrowthLights"&O$7)) -> 63 | P138: =O138*(1+INDIRECT("GrowthLights"&P$7)) -> 63 | Q138: =P138*(1+INDIRECT("GrowthLights"&Q$7)) -> 63 | R138: =Q138*(1+INDIRECT("GrowthLights"&R$7)) -> 63 | S138: =R138*(1+INDIRECT("GrowthLights"&S$7)) -> 63 | U138: 30 | V138: 30.75297066 | W138: 31.50678576 | X138: 32.18607096 | Y138: 32.98079599 | Z138: 33.80531589 | AA138: 34.65044878 | AC138: 0.1344 | AE138: 0.09 | AF138: 0.15 | AH138: =36.1%/2.5 -> 0.1444 | AI138: =40.32%/3 -> 0.1344 | AJ138: =47.58%/4 -> 0.11895
B139: 131 | C139: SON1x100 (P09) | D139: Lamp | E139: Traffic | F139: Minor < 130w | G139: 1 | H139: 1322 | I139: 61 | J139: 63 | K139: 1446 | N139: 1383 | O139: 1383 | P139: 1383 | Q139: 1383 | R139: 1383 | S139: 1383 | U139: 30 | V139: 30.75297066 | W139: =V139*(1+INDIRECT("CPI"&W$7))*(IF($D139="Lamp",(1+INDIRECT("EscLamp"&W$7)),1)) -> 31.50678576 | X139: 32.18607096 | Y139: 32.98079599 | Z139: 33.80531589 | AA139: 34.65044878 | AC139: 0.1344 | AE139: 0.09 | AF139: 0.15 | AH139: =36.1%/2.5 -> 0.1444 | AI139: =40.32%/3 -> 0.1344 | AJ139: =47.58%/4 -> 0.11895
B140: 132 | C140: SON1x1000 | D140: Lamp | E140: Traffic | F140: Major > 130w | G140: 1 | H140: 0 | I140: 0 | J140: 3 | K140: 3 | N140: 0 | O140: 0 | P140: 0 | Q140: 0 | R140: 0 | S140: 0 | U140: 100 | V140: 102.5099022 | W140: 105.0226192 | X140: 107.2869032 | Y140: 109.9359866 | Z140: 112.6843863 | AA140: 115.5014959 | AC140: 0.08 | AE140: 0.08 | AF140: 0.15 | AH140: 0.08 | AI140: 0.08 | AJ140: 0.08
B141: 133 | C141: SON1x1000 (P09) | D141: Lamp | E141: Traffic | F141: Major > 130w | G141: 1 | H141: 45 | I141: 4 | J141: 0 | K141: 49 | N141: 49 | O141: 49 | P141: 49 | Q141: 49 | R141: 49 | S141: 49 | U141: 100 | V141: 102.5099022 | W141: 105.0226192 | X141: 107.2869032 | Y141: 109.9359866 | Z141: 112.6843863 | AA141: 115.5014959 | AC141: 0.08 | AE141: 0.08 | AF141: 0.15 | AH141: 0.08 | AI141: 0.08 | AJ141: 0.08
B142: 134 | C142: SON1x120 | D142: Lamp | E142: Traffic | F142: Minor < 130w | G142: 1 | H142: 0 | I142: 0 | J142: 2 | K142: 2 | N142: 0 | O142: 0 | P142: 0 | Q142: 0 | R142: 0 | S142: 0 | U142: 30 | V142: 30.75297066 | W142: 31.50678576 | X142: 32.18607096 | Y142: 32.98079599 | Z142: 33.80531589 | AA142: 34.65044878 | AC142: 0.12 | AE142: 0.12 | AF142: 0.15 | AH142: =AE142 -> 0.12 | AI142: 0.12 | AJ142: =AE142 -> 0.12
B143: 135 | C143: SON1x150 | D143: Lamp | E143: Traffic | F143: Major > 130w | G143: 1 | H143: 710 | I143: 4 | J143: 62 | K143: 776 | N143: 714 | O143: 714 | P143: 714 | Q143: 714 | R143: 714 | S143: 714 | U143: 30 | V143: 30.75297066 | W143: 31.50678576 | X143: 32.18607096 | Y143: 32.98079599 | Z143: 33.80531589 | AA143: 34.65044878 | AC143: 0.1406666667 | AE143: 0.05 | AF143: 0.15 | AH143: =37.5%/2.5 -> 0.15 | AI143: =42.2%/3 -> 0.1406666667 | AJ143: =50.29%/4 -> 0.125725
B144: 136 | C144: SON1x150 (P09) | D144: Lamp | E144: Traffic | F144: Major > 130w | G144: 1 | H144: 18401.5 | I144: 950 | J144: 20 | K144: 19371.5 | N144: 19351.5 | O144: 19351.5 | P144: 19351.5 | Q144: 19351.5 | R144: 19351.5 | S144: 19351.5 | U144: 30 | V144: 30.75297066 | W144: 31.50678576 | X144: 32.18607096 | Y144: 32.98079599 | Z144: 33.80531589 | AA144: 34.65044878 | AC144: 0.1406666667 | AE144: 0.05 | AF144: 0.15 | AH144: =37.5%/2.5 -> 0.15 | AI144: =42.2%/3 -> 0.1406666667 | AJ144: =50.29%/4 -> 0.125725
B145: 137 | C145: SON1x150 AR | D145: Lamp | E145: Traffic | F145: Major > 130w | G145: 1 | H145: 188 | I145: 6 | J145: 1 | K145: 195 | N145: 194 | O145: 194 | P145: 194 | Q145: 194 | R145: 194 | S145: 194 | U145: 30 | V145: 30.75297066 | W145: 31.50678576 | X145: 32.18607096 | Y145: 32.98079599 | Z145: 33.80531589 | AA145: 34.65044878 | AC145: 0.07033333333 | AH145: =AH144/2 -> 0.075 | AI145: =AI144/2 -> 0.07033333333 | AJ145: =AJ144/2 -> 0.0628625 | AK145: Assumption that Active Reactor halves spot rates
B146: 138 | C146: SON1x220 | D146: Lamp | E146: Traffic | F146: Major > 130w | G146: 1 | H146: 0 | I146: 0 | J146: 3 | K146: 3 | N146: 0 | O146: 0 | P146: 0 | Q146: 0 | R146: 0 | S146: 0 | U146: 30 | V146: 30.75297066 | W146: 31.50678576 | X146: 32.18607096 | Y146: 32.98079599 | Z146: 33.80531589 | AA146: 34.65044878 | AC146: 0.12 | AE146: 0.12 | AF146: 0.15 | AH146: =AE146 -> 0.12 | AI146: 0.12 | AJ146: =AE146 -> 0.12
B147: 139 | C147: SON1x250 | D147: Lamp | E147: Traffic | F147: Major > 130w | G147: 1 | H147: 718 | I147: 43 | J147: 479 | K147: 1240 | N147: 761 | O147: 761 | P147: 761 | Q147: 761 | R147: 761 | S147: 761 | U147: 30 | V147: 30.75297066 | W147: 31.50678576 | X147: 32.18607096 | Y147: 32.98079599 | Z147: 33.80531589 | AA147: 34.65044878 | AC147: 0.1468 | AE147: 0.05 | AF147: 0.15 | AH147: =39.1%/2.5 -> 0.1564 | AI147: =44.04%/3 -> 0.1468 | AJ147: =52.49%/4 -> 0.131225
B148: 140 | C148: SON1x250 (P09) | D148: Lamp | E148: Traffic | F148: Major > 130w | G148: 1 | H148: 22450.5 | I148: 2172.5 | J148: 78 | K148: 24701 | N148: 24623 | O148: 24623 | P148: 24623 | Q148: 24623 | R148: 24623 | S148: 24623 | U148: 30 | V148: 30.75297066 | W148: 31.50678576 | X148: 32.18607096 | Y148: 32.98079599 | Z148: 33.80531589 | AA148: 34.65044878 | AC148: 0.1468 | AE148: 0.05 | AF148: 0.15 | AH148: =39.1%/2.5 -> 0.1564 | AI148: =44.04%/3 -> 0.1468 | AJ148: =52.49%/4 -> 0.131225
B149: 141 | C149: SON1x250 AR | D149: Lamp | E149: Traffic | F149: Major > 130w | G149: 1 | H149: 215 | I149: 4 | J149: 1 | K149: 220 | N149: 219 | O149: 219 | P149: 219 | Q149: 219 | R149: 219 | S149: 219 | U149: 30 | V149: 30.75297066 | W149: =V149*(1+INDIRECT("CPI"&W$7))*(IF($D149="Lamp",(1+INDIRECT("EscLamp"&W$7)),1)) -> 31.50678576 | X149: 32.18607096 | Y149: 32.98079599 | Z149: 33.80531589 | AA149: 34.65044878 | AC149: 0.0734 | AH149: =AH148/2 -> 0.0782 | AI149: =AI148/2 -> 0.0734 | AJ149: 0.0656125 | AK149: Assumption that Active Reactor halves spot rates
B150: 142 | C150: SON1x310 | D150: Lamp | E150: Traffic | F150: Major > 130w | G150: 1 | H150: 0 | I150: 0 | J150: 0 | K150: 0 | N150: 0 | O150: 0 | P150: 0 | Q150: 0 | R150: 0 | S150: 0 | U150: 30 | V150: 30.75297066 | W150: 31.50678576 | X150: 32.18607096 | Y150: 32.98079599 | Z150: 33.80531589 | AA150: 34.65044878 | AC150: 0.12 | AE150: 0.12 | AF150: 0.15 | AH150: =AE150 -> 0.12 | AI150: 0.12 | AJ150: =AE150 -> 0.12
B151: 143 | C151: SON1x360 | D151: Lamp | E151: Traffic | F151: Major > 130w | G151: 1 | H151: 0 | I151: 0 | J151: 3 | K151: 3 | N151: 0 | O151: 0 | P151: 0 | Q151: 0 | R151: 0 | S151: 0 | U151: 30 | V151: 30.75297066 | W151: 31.50678576 | X151: 32.18607096 | Y151: 32.98079599 | Z151: 33.80531589 | AA151: 34.65044878 | AC151: 0.12 | AE151: 0.12 | AF151: 0.15 | AH151: =AE151 -> 0.12 | AI151: 0.12 | AJ151: =AE151 -> 0.12
B152: 144 | C152: SON1x400 | D152: Lamp | E152: Traffic | F152: Major > 130w | G152: 1 | H152: 51 | I152: 9 | J152: 262 | K152: 322 | N152: 60 | O152: 60 | P152: 60 | Q152: 60 | R152: 60 | S152: 60 | U152: 30 | V152: 30.75297066 | W152: 31.50678576 | X152: 32.18607096 | Y152: 32.98079599 | Z152: 33.80531589 | AA152: 34.65044878 | AC152: 0.1634333333 | AE152: 0.05 | AF152: 0.15 | AH152: =43.91%/2.5 -> 0.17564 | AI152: =49.03%/3 -> 0.1634333333 | AJ152: =57.61%/4 -> 0.144025
B153: 145 | C153: SON1x400 (P09) | D153: Lamp | E153: Traffic | F153: Major > 130w | G153: 1 | H153: 1875 | I153: 274 | J153: 5 | K153: 2154 | N153: 2149 | O153: 2149 | P153: 2149 | Q153: 2149 | R153: 2149 | S153: 2149 | U153: 30 | V153: =U153*(1+INDIRECT("CPI"&V$7))*(IF($D153="Lamp",(1+INDIRECT("EscLamp"&V$7)),1)) -> 30.75297066 | W153: 31.50678576 | X153: 32.18607096 | Y153: 32.98079599 | Z153: 33.80531589 | AA153: 34.65044878 | AC153: 0.1634333333 | AE153: 0.05 | AF153: 0.15 | AH153: =43.91%/2.5 -> 0.17564 | AI153: =49.03%/3 -> 0.1634333333 | AJ153: =57.61%/4 -> 0.144025
B154: 146 | C154: SON1x400 AR | D154: Lamp | E154: Traffic | F154: Major > 130w | G154: 1 | H154: 110 | I154: 0 | J154: 0 | K154: 110 | N154: 110 | O154: 110 | P154: 110 | Q154: 110 | R154: 110 | S154: 110 | U154: 30 | V154: 30.75297066 | W154: 31.50678576 | X154: 32.18607096 | Y154: 32.98079599 | Z154: 33.80531589 | AA154: 34.65044878 | AC154: 0.08171666667 | AH154: =AH153/2 -> 0.08782 | AI154: =AI153/2 -> 0.08171666667 | AJ154: 0.0720125 | AK154: Assumption that Active Reactor halves spot rates
B155: 147 | C155: SON1x50 | D155: Lamp | E155: NonTraffic | F155: Minor < 130w | G155: 1 | H155: 16 | I155: 0 | J155: 0 | K155: 16 | N155: 16 | O155: 16 | P155: 16 | Q155: 16 | R155: 16 | S155: 16 | U155: 30 | V155: 30.75297066 | W155: 31.50678576 | X155: 32.18607096 | Y155: 32.98079599 | Z155: 33.80531589 | AA155: 34.65044878 | AC155: 0.12 | AE155: 0.12 | AF155: 0.15 | AH155: 0.12 | AI155: 0.12 | AJ155: 0.12
B156: 148 | C156: SON1x50 (P09) | D156: Lamp | E156: NonTraffic | F156: Minor < 130w | G156: 1 | H156: 590 | I156: 7 | J156: 0 | K156: 597 | N156: 597 | O156: 597 | P156: 597 | Q156: 597 | R156: 597 | S156: 597 | U156: 30 | V156: 30.75297066 | W156: 31.50678576 | X156: 32.18607096 | Y156: 32.98079599 | Z156: 33.80531589 | AA156: 34.65044878 | AC156: 0.12 | AE156: 0.12 | AF156: 0.15 | AH156: 0.12 | AI156: 0.12 | AJ156: 0.12
B157: 149 | C157: SON1x70 | D157: Lamp | E157: NonTraffic | F157: Minor < 130w | G157: 1 | H157: 102 | I157: 3 | J157: 76 | K157: 181 | N157: 105 | O157: 105 | P157: 105 | Q157: 105 | R157: 105 | S157: 105 | U157: 30 | V157: 30.75297066 | W157: 31.50678576 | X157: 32.18607096 | Y157: 32.98079599 | Z157: 33.80531589 | AA157: 34.65044878 | AC157: 0.1125333333 | AE157: 0.09 | AF157: 0.17 | AH157: =28.8%/2.5 -> 0.1152 | AI157: =33.76%/3 -> 0.1125333333 | AJ157: =42.79%/4 -> 0.106975
B158: 150 | C158: SON1x70 (P09) | D158: Lamp | E158: NonTraffic | F158: Minor < 130w | G158: 1 | H158: 1775 | I158: 270 | J158: 5 | K158: 2050 | N158: 2045 | O158: 2045 | P158: 2045 | Q158: 2045 | R158: 2045 | S158: 2045 | U158: 30 | V158: 30.75297066 | W158: 31.50678576 | X158: 32.18607096 | Y158: 32.98079599 | Z158: 33.80531589 | AA158: 34.65044878 | AC158: 0.1125333333 | AE158: 0.09 | AF158: 0.17 | AH158: =28.8%/2.5 -> 0.1152 | AI158: =33.76%/3 -> 0.1125333333 | AJ158: =42.79%/4 -> 0.106975
B159: 151 | C159: SON2x250 | D159: Lamp | E159: Traffic | F159: Major > 130w | G159: 2 | H159: 0 | I159: 0 | J159: 1 | K159: 1 | N159: 0 | O159: 0 | P159: 0 | Q159: 0 | R159: 0 | S159: 0 | U159: 30 | V159: 30.75297066 | W159: =V159*(1+INDIRECT("CPI"&W$7))*(IF($D159="Lamp",(1+INDIRECT("EscLamp"&W$7)),1)) -> 31.50678576 | X159: 32.18607096 | Y159: 32.98079599 | Z159: 33.80531589 | AA159: 34.65044878 | AC159: 0.27204976 | AE159: 0.05 | AF159: 0.17 | AH159: =1-(1-AH148)^$G$159 -> 0.28833904 | AI159: =1-(1-AI148)^$G$159 -> 0.27204976 | AJ159: 0.2452299994
B160: 152 | C160: SON2x250 (P09) | D160: Lamp | E160: Traffic | F160: Major > 130w | G160: 2 | H160: 22 | I160: 7 | J160: 0 | K160: 29 | N160: 29 | O160: 29 | P160: 29 | Q160: 29 | R160: 29 | S160: 29 | U160: 30 | V160: 30.75297066 | W160: 31.50678576 | X160: 32.18607096 | Y160: 32.98079599 | Z160: 33.80531589 | AA160: 34.65044878 | AC160: 0.27204976 | AE160: 0.05 | AF160: 0.17 | AH160: =1-(1-AH148)^$G$159 -> 0.28833904 | AI160: =1-(1-AI148)^$G$159 -> 0.27204976 | AJ160: 0.2452299994
B161: 153 | C161: SON2x400 | D161: Lamp | E161: Traffic | F161: Major > 130w | G161: 2 | H161: 0 | I161: 0 | J161: 4 | K161: 4 | N161: 0 | O161: 0 | P161: 0 | Q161: 0 | R161: 0 | S161: 0 | U161: 30 | V161: 30.75297066 | W161: 31.50678576 | X161: 32.18607096 | Y161: 32.98079599 | Z161: 33.80531589 | AA161: 34.65044878 | AC161: 0.3001562122 | AE161: 0.05 | AF161: 0.18 | AH161: =1-(1-AH152)^$G161 -> 0.3204305904 | AI161: =1-(1-AI152)^$G$161 -> 0.3001562122 | AJ161: 0.2673067994
B162: 154 | C162: SON2x70 | D162: Lamp | E162: NonTraffic | F162: Minor < 130w | G162: 2 | H162: 0 | I162: 0 | J162: 0 | K162: 0 | N162: 0 | O162: 0 | P162: 0 | Q162: 0 | R162: 0 | S162: 0 | U162: 30 | V162: 30.75297066 | W162: 31.50678576 | X162: 32.18607096 | Y162: 32.98079599 | Z162: 33.80531589 | AA162: 34.65044878 | AC162: 0.2124029156 | AE162: 0.09 | AF162: 0.18 | AH162: =1-(1-AH158)^$G162 -> 0.21712896 | AI162: =1-(1-AI158)^$G162 -> 0.2124029156 | AJ162: 0.2025063494
B163: 155 | C163: SON3x70 | D163: Lamp | E163: NonTraffic | F163: Minor < 130w | G163: 3 | H163: 0 | I163: 0 | J163: 1 | K163: 1 | N163: 0 | O163: 0 | P163: 0 | Q163: 0 | R163: 0 | S163: 0 | U163: 30 | V163: 30.75297066 | W163: 31.50678576 | X163: 32.18607096 | Y163: 32.98079599 | Z163: 33.80531589 | AA163: 34.65044878 | AC163: 0.3010338408 | AE163: 0.09 | AF163: 0.18 | AH163: =1-(1-AH158)^$G163 -> 0.3073157038 | AI163: =1-(1-AI158)^$G163 -> 0.3010338408 | AJ163: 0.2878182327
B164: 156 | C164: SON4x250 | D164: Lamp | E164: Traffic | F164: Major > 130w | G164: 4 | H164: 0 | I164: 0 | J164: 0 | K164: 0 | N164: 0 | O164: 0 | P164: 0 | Q164: 0 | R164: 0 | S164: 0 | U164: 30 | V164: 30.75297066 | W164: 31.50678576 | X164: 32.18607096 | Y164: 32.98079599 | Z164: 33.80531589 | AA164: 34.65044878 | AC164: 0.4700884481 | AE164: 0.05 | AF164: 0.18 | AH164: =1-(1-AH148)^$G164 -> 0.493538678 | AI164: =1-(1-AI148)^$G164 -> 0.4700884481 | AJ164: 0.4303222462
B165: 157 | C165: SON4x600 | D165: Lamp | E165: Traffic | F165: Major > 130w | G165: 4 | H165: 0 | I165: 0 | J165: 0 | K165: 0 | N165: 0 | O165: 0 | P165: 0 | Q165: 0 | R165: 0 | S165: 0 | U165: 30 | V165: 30.75297066 | W165: 31.50678576 | X165: 32.18607096 | Y165: 32.98079599 | Z165: 33.80531589 | AA165: 34.65044878 | AC165: 0.5102186727 | AE165: 0.144 | AF165: 0.18 | AH165: =1-(1-AH153)^$G165 -> 0.5381854175 | AI165: =1-(1-AI153)^$G165 -> 0.5102186727 | AJ165: 0.4631606738
B166: 158 | C166: SON4x70 | D166: Lamp | E166: NonTraffic | F166: Minor < 130w | G166: 4 | H166: 0 | I166: 0 | J166: 4 | K166: 4 | N166: 0 | O166: 0 | P166: 0 | Q166: 0 | R166: 0 | S166: 0 | U166: 30 | V166: 30.75297066 | W166: 31.50678576 | X166: 32.18607096 | Y166: 32.98079599 | Z166: 33.80531589 | AA166: 34.65044878 | AC166: 0.3796908326 | AE166: 0.09 | AF166: 0.18 | AH166: =1-(1-AH157)^$G166 -> 0.3871129347 | AI166: =1-(1-AI157)^$G166 -> 0.3796908326 | AJ166: 0.3640038772
B167: 159 | C167: SON8x70 | D167: Lamp | E167: NonTraffic | F167: Minor < 130w | G167: 8 | H167: 0 | I167: 0 | J167: 2 | K167: 2 | N167: 0 | O167: 0 | P167: 0 | Q167: 0 | R167: 0 | S167: 0 | U167: 30 | V167: 30.75297066 | W167: 31.50678576 | X167: 32.18607096 | Y167: 32.98079599 | Z167: 33.80531589 | AA167: 34.65044878 | AC167: 0.6152165368 | AE167: 0.09 | AF167: 0.18 | AH167: =1-(1-AH158)^$G167 -> 0.6243694452 | AI167: =1-(1-AI158)^$G167 -> 0.6152165368 | AJ167: 0.5955089318
B168: 160 | C168: SOX1x135 | D168: Lamp | E168: Traffic | F168: Major > 130w | G168: 1 | H168: 2 | I168: 0 | J168: 0 | K168: 2 | N168: 2 | O168: 2 | P168: 2 | Q168: 2 | R168: 2 | S168: 2 | U168: 30 | V168: 30.75297066 | W168: 31.50678576 | X168: 32.18607096 | Y168: 32.98079599 | Z168: 33.80531589 | AA168: 34.65044878 | AC168: =OFFSET(AE168,0,BulkOptionNumber-1) -> 0.144 | AE168: 0.144 | AF168: 0.18 | AH168: 0.144 | AI168: 0.144 | AJ168: 0.144
B169: 161 | C169: SOX1x150 | D169: Lamp | E169: Traffic | F169: Major > 130w | G169: 1 | H169: 0 | I169: 0 | J169: 0 | K169: 0 | N169: 0 | O169: 0 | P169: 0 | Q169: 0 | R169: 0 | S169: 0 | U169: 30 | V169: 30.75297066 | W169: =V169*(1+INDIRECT("CPI"&W$7))*(IF($D169="Lamp",(1+INDIRECT("EscLamp"&W$7)),1)) -> 31.50678576 | X169: 32.18607096 | Y169: 32.98079599 | Z169: 33.80531589 | AA169: 34.65044878 | AC169: 0.144 | AE169: 0.144 | AF169: 0.18 | AH169: =AE169 -> 0.144 | AI169: 0.144 | AJ169: =AE169 -> 0.144
B170: 162 | C170: SOX1x180 | D170: Lamp | E170: Traffic | F170: Major > 130w | G170: 1 | H170: 0 | I170: 0 | J170: 0 | K170: 0 | N170: 0 | O170: 0 | P170: 0 | Q170: 0 | R170: 0 | S170: 0 | U170: 100 | V170: 102.5099022 | W170: 105.0226192 | X170: 107.2869032 | Y170: 109.9359866 | Z170: 112.6843863 | AA170: 115.5014959 | AC170: 0.144 | AE170: 0.144 | AF170: 0.18 | AH170: 0.144 | AI170: 0.144 | AJ170: 0.144
B171: 163 | C171: SOX1x90 | D171: Lamp | E171: NonTraffic | F171: Minor < 130w | G171: 1 | H171: 0 | I171: 0 | J171: 4 | K171: 4 | N171: 0 | O171: 0 | P171: 0 | Q171: 0 | R171: 0 | S171: 0 | U171: 30 | V171: 30.75297066 | W171: 31.50678576 | X171: 32.18607096 | Y171: 32.98079599 | Z171: 33.80531589 | AA171: 34.65044878 | AC171: 0.16 | AE171: 0.16 | AF171: 0.2 | AH171: 0.16 | AI171: 0.16 | AJ171: 0.16
B172: 164 | C172: TF1x16 | D172: Lamp | E172: NonTraffic | F172: Minor < 130w | G172: 1 | H172: 1 | I172: 0 | J172: 2 | K172: 3 | N172: 1 | O172: 1 | P172: 1 | Q172: 1 | R172: 1 | S172: 1 | U172: 10 | V172: 10.25099022 | W172: 10.50226192 | X172: 10.72869032 | Y172: 10.99359866 | Z172: 11.26843863 | AA172: 11.55014959 | AC172: 0.36 | AE172: 0.36 | AF172: 0.45 | AH172: 0.36 | AI172: 0.36 | AJ172: 0.36
B173: 165 | C173: TF1x176 | D173: Lamp | E173: Traffic | F173: Major > 130w | G173: 1 | H173: 0 | I173: 0 | J173: 34 | K173: 34 | N173: 0 | O173: 0 | P173: 0 | Q173: 0 | R173: 0 | S173: 0 | U173: 10 | V173: 10.25099022 | W173: 10.50226192 | X173: 10.72869032 | Y173: 10.99359866 | Z173: 11.26843863 | AA173: 11.55014959 | AC173: 0.36 | AE173: 0.36 | AF173: 0.45 | AH173: 0.36 | AI173: 0.36 | AJ173: 0.36
B174: 166 | C174: TF1x20 | D174: Lamp | E174: NonTraffic | F174: Minor < 130w | G174: 1 | H174: 0 | I174: 0 | J174: 238 | K174: 238 | N174: 0 | O174: 0 | P174: 0 | Q174: 0 | R174: 0 | S174: 0 | U174: 10 | V174: 10.25099022 | W174: 10.50226192 | X174: 10.72869032 | Y174: 10.99359866 | Z174: 11.26843863 | AA174: 11.55014959 | AC174: 0.36 | AE174: 0.36 | AF174: 0.45 | AH174: 0.36 | AI174: 0.36 | AJ174: 0.36
B175: 167 | C175: TF1x236 | D175: Lamp | E175: Traffic | F175: Major > 130w | G175: 1 | H175: 0 | I175: 0 | J175: 109 | K175: 109 | N175: 0 | O175: 0 | P175: 0 | Q175: 0 | R175: 0 | S175: 0 | U175: 10 | V175: 10.25099022 | W175: 10.50226192 | X175: 10.72869032 | Y175: 10.99359866 | Z175: 11.26843863 | AA175: 11.55014959 | AC175: 0.36 | AE175: 0.36 | AF175: 0.45 | AH175: 0.36 | AI175: 0.36 | AJ175: 0.36
B176: 168 | C176: TF1x26 | D176: Lamp | E176: NonTraffic | F176: Minor < 130w | G176: 1 | H176: 0 | I176: 0 | J176: 0 | K176: 0 | N176: 0 | O176: 0 | P176: 0 | Q176: 0 | R176: 0 | S176: 0 | U176: 10 | V176: 10.25099022 | W176: 10.50226192 | X176: 10.72869032 | Y176: 10.99359866 | Z176: 11.26843863 | AA176: 11.55014959 | AC176: 0.36 | AE176: 0.36 | AF176: 0.45 | AH176: 0.36 | AI176: 0.36 | AJ176: 0.36
B177: 169 | C177: TF1x40 | D177: Lamp | E177: NonTraffic | F177: Minor < 130w | G177: 1 | H177: 83 | I177: 3 | J177: 48 | K177: 134 | N177: 86 | O177: 86 | P177: 86 | Q177: 86 | R177: 86 | S177: 86 | U177: 10 | V177: 10.25099022 | W177: 10.50226192 | X177: 10.72869032 | Y177: 10.99359866 | Z177: 11.26843863 | AA177: 11.55014959 | AC177: 0.158 | AE177: 0.36 | AF177: 0.45 | AH177: =43.3%/2.5 -> 0.1732 | AI177: =47.4%/3 -> 0.158 | AJ177: =54.45%/4 -> 0.136125
B178: 170 | C178: TF1x40 (P09) | D178: Lamp | E178: NonTraffic | F178: Minor < 130w | G178: 1 | H178: 485 | I178: 23 | J178: 7 | K178: 515 | N178: 508 | O178: 508 | P178: 508 | Q178: 508 | R178: 508 | S178: 508 | U178: 10 | V178: 10.25099022 | W178: 10.50226192 | X178: 10.72869032 | Y178: 10.99359866 | Z178: 11.26843863 | AA178: 11.55014959 | AC178: 0.158 | AE178: 0.36 | AF178: 0.45 | AH178: =43.3%/2.5 -> 0.1732 | AI178: =47.4%/3 -> 0.158 | AJ178: =54.45%/4 -> 0.136125
B179: 171 | C179: TF1x60 | D179: Lamp | E179: NonTraffic | F179: Minor < 130w | G179: 1 | H179: 0 | I179: 0 | J179: 0 | K179: 0 | N179: 0 | O179: 0 | P179: 0 | Q179: 0 | R179: 0 | S179: 0 | U179: 10 | V179: 10.25099022 | W179: =V179*(1+INDIRECT("CPI"&W$7))*(IF($D179="Lamp",(1+INDIRECT("EscLamp"&W$7)),1)) -> 10.50226192 | X179: 10.72869032 | Y179: 10.99359866 | Z179: 11.26843863 | AA179: 11.55014959 | AC179: 0.36 | AE179: 0.36 | AF179: 0.45 | AH179: =AE179 -> 0.36 | AI179: 0.36 | AJ179: =AE179 -> 0.36
B180: 172 | C180: TF1x80 | D180: Lamp | E180: NonTraffic | F180: Minor < 130w | G180: 1 | H180: 11 | I180: 3 | J180: 4 | K180: 18 | N180: 14 | O180: 14 | P180: 14 | Q180: 14 | R180: 14 | S180: 14 | U180: 10 | V180: 10.25099022 | W180: 10.50226192 | X180: 10.72869032 | Y180: 10.99359866 | Z180: 11.26843863 | AA180: 11.55014959 | AC180: 0.36 | AE180: 0.36 | AF180: 0.45 | AH180: =AE180 -> 0.36 | AI180: 0.36 | AJ180: =AE180 -> 0.36
B181: 173 | C181: TF2x14 T5 | D181: Lamp | E181: NonTraffic | F181: Minor < 130w | G181: 2 | H181: 4 | I181: 0 | J181: 0 | K181: 4 | N181: 4 | O181: 4 | P181: 4 | Q181: 4 | R181: 4 | S181: 4 | U181: 10 | V181: 10.25099022 | W181: 10.50226192 | X181: 10.72869032 | Y181: 10.99359866 | Z181: 11.26843863 | AA181: 11.55014959 | AC181: 0.02 | AE181: 0.02 | AF181: 0.2180795988 | AH181: =AE181 -> 0.02 | AI181: 0.02 | AJ181: =AE181 -> 0.02
B182: 174 | C182: TF2x14 T5 (P09) | D182: Lamp | E182: NonTraffic | F182: Minor < 130w | G182: 2 | H182: 310 | I182: 0 | J182: 0 | K182: 310 | N182: 310 | O182: 310 | P182: 310 | Q182: 310 | R182: 310 | S182: 310 | U182: 10 | V182: 10.25099022 | W182: 10.50226192 | X182: 10.72869032 | Y182: 10.99359866 | Z182: 11.26843863 | AA182: 11.55014959 | AC182: 0.02 | AE182: 0.02 | AF182: 0.2180795988 | AH182: =AE182 -> 0.02 | AI182: 0.02 | AJ182: =AE182 -> 0.02
B183: 175 | C183: TF2x20 | D183: Lamp | E183: NonTraffic | F183: Minor < 130w | G183: 2 | H183: 378 | I183: 0 | J183: 109 | K183: 487 | N183: 378 | O183: 378 | P183: 378 | Q183: 378 | R183: 378 | S183: 378 | U183: 10 | V183: 10.25099022 | W183: 10.50226192 | X183: 10.72869032 | Y183: 10.99359866 | Z183: 11.26843863 | AA183: 11.55014959 | AC183: 0.1029 | AE183: 0.11 | AF183: 0.4045798438 | AH183: =27.55%/2.5 -> 0.1102 | AI183: =30.87%/3 -> 0.1029 | AJ183: =36.71%/4 -> 0.091775
B184: 176 | C184: TF2x20 (P09) | D184: Lamp | E184: NonTraffic | F184: Minor < 130w | G184: 2 | H184: 18412 | I184: 41 | J184: 11 | K184: 18464 | N184: 18453 | O184: 18453 | P184: 18453 | Q184: 18453 | R184: 18453 | S184: 18453 | U184: 10 | V184: 10.25099022 | W184: 10.50226192 | X184: 10.72869032 | Y184: 10.99359866 | Z184: 11.26843863 | AA184: 11.55014959 | AC184: 0.1029 | AE184: 0.11 | AF184: 0.4045798438 | AH184: =27.55%/2.5 -> 0.1102 | AI184: =30.87%/3 -> 0.1029 | AJ184: =36.71%/4 -> 0.091775
B185: 177 | C185: TF2x26 | D185: Lamp | E185: NonTraffic | F185: Minor < 130w | G185: 2 | H185: 0 | I185: 0 | J185: 0 | K185: 0 | N185: 0 | O185: 0 | P185: 0 | Q185: 0 | R185: 0 | S185: 0 | U185: 10 | V185: 10.25099022 | W185: 10.50226192 | X185: 10.72869032 | Y185: 10.99359866 | Z185: 11.26843863 | AA185: 11.55014959 | AC185: 0.36 | AE185: 0.36 | AF185: 0.45 | AH185: =AE185 -> 0.36 | AI185: 0.36 | AJ185: =AE185 -> 0.36
B186: 178 | C186: TF2x26 (P09) | D186: Lamp | E186: NonTraffic | F186: Minor < 130w | G186: 2 | H186: 28 | I186: 0 | J186: 23 | K186: 51 | N186: 28 | O186: 28 | P186: 28 | Q186: 28 | R186: 28 | S186: 28 | U186: 10 | V186: 10.25099022 | W186: 10.50226192 | X186: 10.72869032 | Y186: 10.99359866 | Z186: 11.26843863 | AA186: 11.55014959 | AC186: 0.36 | AE186: 0.36 | AF186: 0.45 | AH186: =AE186 -> 0.36 | AI186: 0.36 | AJ186: =AE186 -> 0.36
B187: 179 | C187: TF2x40 | D187: Lamp | E187: NonTraffic | F187: Minor < 130w | G187: 2 | H187: 1 | I187: 0 | J187: 138 | K187: 139 | N187: 1 | O187: 1 | P187: 1 | Q187: 1 | R187: 1 | S187: 1 | U187: 10 | V187: 10.25099022 | W187: 10.50226192 | X187: 10.72869032 | Y187: 10.99359866 | Z187: 11.26843863 | AA187: 11.55014959 | AC187: 0.72 | AE187: 0.36 | AF187: 0.45 | AH187: =AE187 -> 0.36 | AI187: 0.72 | AJ187: =AE187 -> 0.36
B188: 180 | C188: TF2x58 | D188: Lamp | E188: NonTraffic | F188: Minor < 130w | G188: 2 | H188: 0 | I188: 0 | J188: 89 | K188: 89 | N188: 0 | O188: 0 | P188: 0 | Q188: 0 | R188: 0 | S188: 0 | U188: 10 | V188: 10.25099022 | W188: 10.50226192 | X188: 10.72869032 | Y188: 10.99359866 | Z188: 11.26843863 | AA188: 11.55014959 | AC188: 0.36 | AE188: 0.36 | AF188: 0.45 | AH188: 0.36 | AI188: 0.36 | AJ188: 0.36
B189: 181 | C189: TF2x80 | D189: Lamp | E189: NonTraffic | F189: Minor < 130w | G189: 2 | H189: 0 | I189: 0 | J189: 1 | K189: 1 | N189: 0 | O189: 0 | P189: 0 | Q189: 0 | R189: 0 | S189: 0 | U189: 10 | V189: 10.25099022 | W189: =V189*(1+INDIRECT("CPI"&W$7))*(IF($D189="Lamp",(1+INDIRECT("EscLamp"&W$7)),1)) -> 10.50226192 | X189: 10.72869032 | Y189: 10.99359866 | Z189: 11.26843863 | AA189: 11.55014959 | AC189: 0.72 | AE189: 0.36 | AF189: 0.45 | AH189: 0.36 | AI189: 0.72 | AJ189: 0.36
B190: 182 | C190: TF3x20 | D190: Lamp | E190: NonTraffic | F190: Minor < 130w | G190: 3 | H190: 0 | I190: 0 | J190: 2 | K190: 2 | N190: 0 | O190: 0 | P190: 0 | Q190: 0 | R190: 0 | S190: 0 | U190: 10 | V190: 10.25099022 | W190: 10.50226192 | X190: 10.72869032 | Y190: 10.99359866 | Z190: 11.26843863 | AA190: 11.55014959 | AC190: 0.36 | AE190: 0.36 | AF190: 0.45 | AH190: 0.36 | AI190: 0.36 | AJ190: 0.36
B191: 183 | C191: TF3x40 | D191: Lamp | E191: NonTraffic | F191: Minor < 130w | G191: 3 | H191: 0 | I191: 0 | J191: 16 | K191: 16 | N191: 0 | O191: 0 | P191: 0 | Q191: 0 | R191: 0 | S191: 0 | U191: 10 | V191: 10.25099022 | W191: 10.50226192 | X191: 10.72869032 | Y191: 10.99359866 | Z191: 11.26843863 | AA191: 11.55014959 | AC191: 1.08 | AE191: 0.36 | AF191: 0.45 | AH191: 0.36 | AI191: 1.08 | AJ191: 0.36
B192: 184 | C192: TF3x80 | D192: Lamp | E192: NonTraffic | F192: Minor < 130w | G192: 3 | H192: 0 | I192: 0 | J192: 3 | K192: 3 | N192: 0 | O192: 0 | P192: 0 | Q192: 0 | R192: 0 | S192: 0 | U192: 10 | V192: 10.25099022 | W192: 10.50226192 | X192: 10.72869032 | Y192: 10.99359866 | Z192: 11.26843863 | AA192: 11.55014959 | AC192: 1.08 | AE192: 0.36 | AF192: 0.45 | AH192: 0.36 | AI192: 1.08 | AJ192: 0.36
B193: 185 | C193: TF4x20 | D193: Lamp | E193: NonTraffic | F193: Minor < 130w | G193: 4 | H193: 50 | I193: 0 | J193: 13 | K193: 63 | N193: 50 | O193: 50 | P193: 50 | Q193: 50 | R193: 50 | S193: 50 | U193: 10 | V193: 10.25099022 | W193: 10.50226192 | X193: 10.72869032 | Y193: 10.99359866 | Z193: 11.26843863 | AA193: 11.55014959 | AC193: 0.36 | AE193: 0.36 | AF193: 0.45 | AH193: 0.36 | AI193: 0.36 | AJ193: 0.36
B194: 186 | C194: TF4x40 | D194: Lamp | E194: NonTraffic | F194: Minor < 130w | G194: 4 | H194: 33 | I194: 0 | J194: 10 | K194: 43 | N194: 33 | O194: 33 | P194: 33 | Q194: 33 | R194: 33 | S194: 33 | U194: 10 | V194: 10.25099022 | W194: 10.50226192 | X194: 10.72869032 | Y194: 10.99359866 | Z194: 11.26843863 | AA194: 11.55014959 | AC194: 1.44 | AE194: 0.36 | AF194: 0.45 | AH194: 0.36 | AI194: 1.44 | AJ194: 0.36
B195: 187 | C195: TF4x40 (P09) | D195: Lamp | E195: NonTraffic | F195: Minor < 130w | G195: 4 | H195: 10 | I195: 0 | J195: 0 | K195: 10 | N195: 10 | O195: 10 | P195: 10 | Q195: 10 | R195: 10 | S195: 10 | U195: 10 | V195: 10.25099022 | W195: 10.50226192 | X195: 10.72869032 | Y195: 10.99359866 | Z195: 11.26843863 | AA195: 11.55014959 | AC195: 1.44 | AE195: 0.36 | AF195: 0.45 | AH195: =AE195 -> 0.36 | AI195: 1.44 | AJ195: =AE195 -> 0.36
B196: 188 | C196: TF4x80 | D196: Lamp | E196: NonTraffic | F196: Minor < 130w | G196: 4 | H196: 0 | I196: 0 | J196: 7 | K196: 7 | N196: 0 | O196: 0 | P196: 0 | Q196: 0 | R196: 0 | S196: 0 | U196: 10 | V196: 10.25099022 | W196: 10.50226192 | X196: 10.72869032 | Y196: 10.99359866 | Z196: 11.26843863 | AA196: 11.55014959 | AC196: 1.44 | AE196: 0.36 | AF196: 0.45 | AH196: =AE196 -> 0.36 | AI196: 1.44 | AJ196: =AE196 -> 0.36
B197: 189 | C197: TF5x58 | D197: Lamp | E197: NonTraffic | F197: Minor < 130w | G197: 5 | H197: 0 | I197: 0 | J197: 143 | K197: 143 | N197: 0 | O197: 0 | P197: 0 | Q197: 0 | R197: 0 | S197: 0 | U197: 10 | V197: 10.25099022 | W197: 10.50226192 | X197: 10.72869032 | Y197: 10.99359866 | Z197: 11.26843863 | AA197: 11.55014959 | AC197: 0.36 | AE197: 0.36 | AF197: 0.45 | AH197: 0.36 | AI197: 0.36 | AJ197: 0.36
B198: 190 | C198: TF5x65 | D198: Lamp | E198: NonTraffic | F198: Minor < 130w | G198: 5 | H198: 0 | I198: 0 | J198: 12 | K198: 12 | N198: 0 | O198: 0 | P198: 0 | Q198: 0 | R198: 0 | S198: 0 | U198: 10 | V198: 10.25099022 | W198: 10.50226192 | X198: 10.72869032 | Y198: 10.99359866 | Z198: 11.26843863 | AA198: 11.55014959 | AC198: 0.36 | AE198: 0.36 | AF198: 0.45 | AH198: 0.36 | AI198: 0.36 | AJ198: 0.36
B199: 191 | C199: TF5x80 | D199: Lamp | E199: NonTraffic | F199: Minor < 130w | G199: 5 | H199: 0 | I199: 0 | J199: 2 | K199: 2 | N199: 0 | O199: 0 | P199: 0 | Q199: 0 | R199: 0 | S199: 0 | U199: 10 | V199: 10.25099022 | W199: =V199*(1+INDIRECT("CPI"&W$7))*(IF($D199="Lamp",(1+INDIRECT("EscLamp"&W$7)),1)) -> 10.50226192 | X199: 10.72869032 | Y199: 10.99359866 | Z199: 11.26843863 | AA199: 11.55014959 | AC199: 0.45 | AE199: 0.36 | AF199: 0.45 | AH199: 0.36 | AI199: 0.45 | AJ199: 0.36
B200: 192 | C200: TF6x20 | D200: Lamp | E200: NonTraffic | F200: Minor < 130w | G200: 6 | H200: 0 | I200: 0 | J200: 5 | K200: 5 | N200: 0 | O200: 0 | P200: 0 | Q200: 0 | R200: 0 | S200: 0 | U200: 10 | V200: 10.25099022 | W200: 10.50226192 | X200: 10.72869032 | Y200: 10.99359866 | Z200: 11.26843863 | AA200: 11.55014959 | AC200: 0.36 | AE200: 0.36 | AF200: 0.45 | AH200: 0.36 | AI200: 0.36 | AJ200: 0.36
B201: 193 | C201: TF6x36 | D201: Lamp | E201: NonTraffic | F201: Minor < 130w | G201: 6 | H201: 0 | I201: 0 | J201: 3 | K201: 3 | N201: 0 | O201: 0 | P201: 0 | Q201: 0 | R201: 0 | S201: 0 | U201: 10 | V201: 10.25099022 | W201: 10.50226192 | X201: 10.72869032 | Y201: 10.99359866 | Z201: 11.26843863 | AA201: 11.55014959 | AC201: 0.36 | AE201: 0.36 | AF201: 0.45 | AH201: 0.36 | AI201: 0.36 | AJ201: 0.36
B202: 194 | C202: TF6x80 | D202: Lamp | E202: NonTraffic | F202: Minor < 130w | G202: 6 | H202: 0 | I202: 0 | J202: 5 | K202: =SUM(H202:J202) -> 5 | N202: =SUM(H202:I202) -> 0 | O202: =N202*(1+INDIRECT("GrowthLights"&O$7)) -> 0 | P202: =O202*(1+INDIRECT("GrowthLights"&P$7)) -> 0 | Q202: =P202*(1+INDIRECT("GrowthLights"&Q$7)) -> 0 | R202: =Q202*(1+INDIRECT("GrowthLights"&R$7)) -> 0 | S202: =R202*(1+INDIRECT("GrowthLights"&S$7)) -> 0 | U202: 10 | V202: 10.25099022 | W202: 10.50226192 | X202: 10.72869032 | Y202: 10.99359866 | Z202: 11.26843863 | AA202: 11.55014959 | AC202: 0.45 | AE202: 0.36 | AF202: 0.45 | AH202: 0.36 | AI202: 0.45 | AJ202: 0.36
B203: 195 | C203: TH1x1000 | D203: Lamp | E203: Traffic | F203: Major > 130w | G203: 1 | H203: 0 | I203: 0 | J203: 0 | K203: 0 | N203: 0 | O203: 0 | P203: 0 | Q203: 0 | R203: 0 | S203: 0 | U203: 30 | V203: 30.75297066 | W203: 31.50678576 | X203: 32.18607096 | Y203: 32.98079599 | Z203: 33.80531589 | AA203: 34.65044878 | AC203: 0.112 | AE203: 0.112 | AF203: 0.14 | AH203: 0.112 | AI203: 0.112 | AJ203: 0.112
... 187 more rows

Sheet Calc - Opex FY14
B2: =CONCATENATE("This sheet contains no inputs and all values are calculated for " & "FY14" ) -> This sheet contains no inputs and all values are calculated for FY14 | AQ2: Bulk contract | BA2: Bulk materials | BL2: Spot labour | BT2: Spot materials | BX2: EWP costs | BZ2: Connections | CD2: Overheads | CH2: CAM
L4: Totals ---> | M4: =SUM(M12:M475) -> 18218630.36 | O4: =SUMPRODUCT(O12:O294,P12:P294,$L$12:$L$294) -> 595140.0307 | Q4: =SUMPRODUCT(Q12:Q294,R12:R294,$L$12:$L$294) -> 251309.8592 | S4: =SUMPRODUCT(S12:S294,T12:T294,$L$12:$L$294) -> 33170.79304 | U4: =SUMPRODUCT(U12:U294,V12:V294,$L$12:$L$294) -> 3701.357836 | W4: =SUMPRODUCT(W12:W294,X12:X294,$L$12:$L$294) -> 424413.2056 | Y4: =SUMPRODUCT(Y12:Y294,Z12:Z294,$L$12:$L$294) -> 11689.14039 | AA4: =SUMPRODUCT(AA12:AA294,AB12:AB294,$L$12:$L$294) -> 101940.7219 | AC4: =SUMPRODUCT(AC12:AC294,AD12:AD294,$L$12:$L$294) -> 824993.2722 | AE4: =SUMPRODUCT(AE12:AE294,AF12:AF294,$L$12:$L$294) -> 778073.5864 | AG4: =SUMPRODUCT(AG12:AG294,AH12:AH294,$L$12:$L$294) -> 0 | AI4: =SUMPRODUCT(AI12:AI294,AJ12:AJ294,$L$12:$L$294) -> 339908.2403 | AK4: =SUMPRODUCT(AK12:AK294,AL12:AL294,$L$12:$L$294) -> 540122.2098 | AM4: =SUMPRODUCT(AM12:AM294,AN12:AN294,$L$12:$L$294) -> 0 | AO4: =SUMPRODUCT(AO12:AO294,AP12:AP294,$L$12:$L$294) -> 0 | AQ4: =SUMPRODUCT(AQ12:AQ475,$L$12:$L$475) -> 3904462.417 | AS4: =SUMPRODUCT(AS12:AS294,AT12:AT294,$L$12:$L$294) -> 1277710.757 | AU4: =SUMPRODUCT(AU12:AU294,AV12:AV294,$L$12:$L$294) -> 142222.8306 | AW4: =SUMPRODUCT(AW12:AW294,AX12:AX294,$L$12:$L$294) -> 444245.2483 | AY4: =SUMPRODUCT(AY12:AY294,AZ12:AZ294,$L$12:$L$294) -> 1925 | BA4: =SUMPRODUCT(BA12:BA475,$L$12:$L$475) -> 1866103.836 | BC4: =SUMPRODUCT(BC12:BC294,BD12:BD294,BE12:BE294,$L$12:$L$294) -> 3954568.398 | BF4: =SUMPRODUCT(BF12:BF294,BG12:BG294,BH12:BH294,$L$12:$L$294) -> 0 | BI4: =SUMPRODUCT(BI12:BI294,BJ12:BJ294,BK12:BK294,$L$12:$L$294) -> 0 | BL4: =SUMPRODUCT(BL12:BL475,$L$12:$L$475) -> 3954568.398 | BN4: =SUMPRODUCT(BN12:BN294,BO12:BO294,$L$12:$L$294) -> 467267.8749 | BP4: =SUMPRODUCT(BP12:BP294,BQ12:BQ294,$L$12:$L$294) -> 37849.69516 | BR4: =SUMPRODUCT(BR12:BR294,BS12:BS294,$L$12:$L$294) -> 732.2 | BT4: =SUMPRODUCT(BT12:BT475,$L$12:$L$475) -> 505849.7701 | BX4: =SUMPRODUCT(BX12:BX475,$L$12:$L$475) -> 1596344.402 | BZ4: =SUMPRODUCT(BZ12:BZ475,$L$12:$L$475) -> 2381171.126 | CD4: =SUMPRODUCT(CD12:CD475,$L$12:$L$475) -> 2559253.388 | CH4: =SUMPRODUCT(CH12:CH475,$L$12:$L$475) -> 1450877.026
L6: Percent ---> | AQ6: =TotalOpexBulkContract/TotalOpex -> 0.2143115229 | BA6: =TotalOpexBulkMaterials/TotalOpex -> 0.1024283274 | BL6: =TotalOpexSpotLabour/TotalOpex -> 0.2170617834 | BT6: =TotalOpexSpotMaterials/TotalOpex -> 0.02776552134 | BX6: =TotalOpexSpotOther/TotalOpex -> 0.0876215374 | BZ6: =BZ4/TotalOpex -> 0.130699788 | CD6: =TotalOpexOverheads/TotalOpex -> 0.1404745218 | CH6: =CH4/TotalOpex -> 0.07963699778
M8: Sub-total annual cost | O8: Task 1 | Q8: Task 2 | S8: Task 3 | U8: Task 4 | W8: Task 5 | Y8: Task 6 | AA8: Task 7 | AC8: Task 8 | AE8: Task 9 | AG8: Task 10 | AI8: Task 11 | AK8: Task 12 | AM8: Task 13 | AO8: Task 14 | AQ8: Sub-total annual cost per asset | BA8: Sub-total annual cost per asset | BL8: Sub-total annual cost per asset | BT8: Sub-total annual cost per asset | BX8: Sub-total annual cost per asset | BZ8: Sub-total annual cost per asset | CD8: Sub-total annual cost per asset | CH8: Sub-total annual cost per asset
O9: Minor < 130w | Q9: Major > 130w | S9: Minor < 130w | U9: Major > 130w | W9: All | Y9: All | AA9: All | AC9: All | AE9: All | AG9: All | AI9: All | AK9: All | AM9: All | AO9: All | AS9: Lamp | AU9: Visors | AW9: PE Cell | AY9: Misc | BC9: Lamp change | BF9: PE Cell change | BI9: Misc | BN9: Lamp | BP9: PE Cell | BR9: Misc | BV9: Price | BW9: Hours (weighted by failure)
B10: # | C10: Description | D10: Type | E10: Route | F10: Category | G10: Lamps (#) | K10: Price | L10: Count | O10: Price | P10: Cycle | Q10: Price | R10: Cycle | S10: Price | T10: Cycle | U10: Price | V10: Cycle | W10: Price | X10: Cycle | Y10: Price | Z10: Cycle | AA10: Price | AB10: Cycle | AC10: Price | AD10: Cycle | AE10: Price | AF10: Cycle | AG10: Price | AH10: Cycle | AI10: Price | AJ10: Cycle | AK10: Price | AL10: Cycle | AM10: Price | AN10: Cycle | AO10: Price | AP10: Cycle | AS10: Price | AT10: Cycle | AU10: Price | AV10: Cycle | AW10: Price | AX10: Cycle | AY10: Price | AZ10: Cycle | BC10: Price | BD10: Failure | BE10: Hours | BF10: Price | BG10: Failure | BH10: Hours | BI10: Price | BJ10: Failure | BK10: Hours | BN10: Price | BO10: Failure | BP10: Price | BQ10: Failure | BR10: Price | BS10: Failure | CB10: Rate | CC10: Cost | CF10: Rate | CG10: Cost
B12: ='Input - Inventory'!B9 -> 1 | C12: ='Input - Inventory'!C9 -> 0.5 | D12: ='Input - Inventory'!D9 -> Bracket | E12: ='Input - Inventory'!E9 -> NonTraffic | F12: ='Input - Inventory'!F9 -> n/a | G12: ='Input - Inventory'!G9 -> 0 | I12: =CONCATENATE(D12," - ",C12) -> Bracket - 0.5 | K12: =AQ12+BA12+BL12+BT12+BX12+BZ12+CD12+CH12 -> 0 | L12: =INDIRECT(L$10&$B12&"FY14") -> 33642 | M12: =L12*K12 -> 0 | O12: =IF(AND($D12="Lamp", OR($F12=O$9, O$9="All")),INDIRECT("PriceBulkTask1" & "FY14"),0) -> 0 | P12: =IF(AND($D12="Lamp",CycleBulkTask1<>0, OR($F12=O$9,O$9="All")),1/CycleBulkTask1,0) -> 0 | Q12: =IF(AND($D12="Lamp", OR($F12=Q$9, Q$9="All")),INDIRECT("PriceBulkTask2" & "FY14"),0) -> 0 | R12: =IF(AND($D12="Lamp",CycleBulkTask2<>0, OR($F12=Q$9,Q$9="All")),1/CycleBulkTask2,0) -> 0 | S12: =IF(AND($D12="Lamp", OR($F12=S$9, S$9="All")),INDIRECT("PriceBulkTask3" & "FY14"),0) -> 0 | T12: =IF(AND($D12="Lamp",CycleBulkTask3<>0, OR($F12=S$9,S$9="All")),1/CycleBulkTask3,0) -> 0 | U12: =IF(AND($D12="Lamp", OR($F12=U$9, U$9="All")),INDIRECT("PriceBulkTask4" & "FY14"),0) -> 0 | V12: =IF(AND($D12="Lamp",CycleBulkTask4<>0, OR($F12=U$9,U$9="All")),1/CycleBulkTask4,0) -> 0 | W12: =IF(AND($D12="Lamp", OR($F12=W$9, W$9="All")),INDIRECT("PriceBulkTask5" & "FY14"),0) -> 0 | X12: =IF(AND($D12="Lamp",CycleBulkTask5<>0, OR($F12=W$9,W$9="All")),1/CycleBulkTask5,0) -> 0 | Y12: =IF(AND($D12="Lamp", OR($F12=Y$9, Y$9="All")),INDIRECT("PriceBulkTask6" & "FY14"),0) -> 0 | Z12: =IF(AND($D12="Lamp",CycleBulkTask6<>0, OR($F12=Y$9,Y$9="All")),1/CycleBulkTask6,0) -> 0 | AA12: =IF(AND($D12="Lamp", OR($F12=AA$9, AA$9="All")),INDIRECT("PriceBulkTask7" & "FY14"),0) -> 0 | AB12: =IF(AND($D12="Lamp",CycleBulkTask7<>0, OR($F12=AA$9,AA$9="All")),1/CycleBulkTask7,0) -> 0 | AC12: =IF(AND($D12="Lamp", OR($F12=AC$9, AC$9="All")),INDIRECT("PriceBulkTask8" & "FY14"),0) -> 0 | AD12: =IF(AND($D12="Lamp",CycleBulkTask8<>0, OR($F12=AC$9,AC$9="All")),1/CycleBulkTask8,0) -> 0 | AE12: =IF(AND($D12="Lamp", OR($F12=AE$9, AE$9="All")),INDIRECT("PriceBulkTask9" & "FY14"),0) -> 0 | AF12: =IF(AND($D12="Lamp",CycleBulkTask9<>0, OR($F12=AE$9,AE$9="All")),1/CycleBulkTask9,0) -> 0 | AG12: =IF(AND($D12="Lamp", OR($F12=AG$9, AG$9="All")),INDIRECT("PriceBulkTask10" & "FY14"),0) -> 0 | AH12: =IF(AND($D12="Lamp",CycleBulkTask10<>0, OR($F12=AG$9,AG$9="All")),1/CycleBulkTask10,0) -> 0 | AI12: =IF(AND($D12="Lamp", OR($F12=AI$9, AI$9="All")),INDIRECT("PriceBulkTask11" & "FY14"),0) -> 0 | AJ12: =IF(AND($D12="Lamp",CycleBulkTask11<>0, OR($F12=AI$9,AI$9="All")),1/CycleBulkTask11,0) -> 0 | AK12: =IF(AND($D12="Lamp", OR($F12=AK$9, AK$9="All")),INDIRECT("PriceBulkTask12" & "FY14"),0) -> 0 | AL12: =IF(AND($D12="Lamp",CycleBulkTask12<>0, OR($F12=AK$9,AK$9="All")),1/CycleBulkTask12,0) -> 0 | AM12: =IF(AND($D12="Lamp", OR($F12=AM$9, AM$9="All")),INDIRECT("PriceBulkTask13" & "FY14"),0) -> 0 | AN12: =IF(AND($D12="Lamp",CycleBulkTask13<>0, OR($F12=AM$9,AM$9="All")),1/CycleBulkTask13,0) -> 0 | AO12: =IF(AND($D12="Lamp", OR($F12=AO$9, AO$9="All")),INDIRECT("PriceBulkTask14" & "FY14"),0) -> 0 | AP12: =IF(AND($D12="Lamp",CycleBulkTask14<>0, OR($F12=AO$9,AO$9="All")),1/CycleBulkTask14,0) -> 0 | AQ12: =O12*P12+Q12*R12+S12*T12+U12*V12+W12*X12+Y12*Z12+AA12*AB12+AC12*AD12+AE12*AF12+AG12*AH12+AI12*AJ12+AK12*AL12+AM12*AN12+AO12*AP12 -> 0 | AS12: =IF($D12="Lamp",$G12*INDIRECT("Price" & $B12 & "FY14"),0) -> 0 | AT12: =MAX(P12,R12) -> 0 | AU12: =IF($D12="Lamp",INDIRECT("PriceVisor" & "FY14"),0) -> 0 | AV12: =MAX(T12,V12) -> 0 | AW12: =IF($D12="Lamp",INDIRECT("PricePECell" & "FY14"),0) -> 0 | AX12: =X12 -> 0 | AY12: =IF($D12="Lamp",INDIRECT("PriceMisc" & "FY14"),0) -> 0 | AZ12: =INDIRECT($E12)*$V12 +(1-INDIRECT($E12))*$T12 -> 0 | BA12: =AS12*AT12+AU12*AV12+AW12*AX12+AY12*AZ12 -> 0 | BC12: =IF($D12=$AS$9,(INDIRECT("PriceLabour" & "FY14")*ProportionStandardHours + INDIRECT("PriceLabourOvertime" & "FY14")*ProportionOvertimeHours)*(1+RateOnCostAnnual),0) -> 0 | BD12: =BO12 -> 0 | BE12: =IF($D12="Lamp",(NumberOfCrew+INDIRECT($E12)*TrafficController)*(TimeToReplaceLamp),0) -> 0 | BF12: =IF($D12=$AS$9,(INDIRECT("PriceLabour" & "FY14")*ProportionStandardHours + INDIRECT("PriceLabourOvertime" & "FY14")*ProportionOvertimeHours)*(1+RateOnCostAnnual),0) -> 0 | BG12: =BQ12 -> 0 | BH12: =IF($D12="Lamp",(NumberOfCrew+INDIRECT($E12)*TrafficController)*(TimeForPECellReplace),0) -> 0 | BI12: =IF($D12=$AS$9,(INDIRECT("PriceLabour" & "FY14")*ProportionStandardHours + INDIRECT("PriceLabourOvertime" & "FY14")*ProportionOvertimeHours)*(1+RateOnCostAnnual),0) -> 0 | BJ12: =BS12 -> 0 | BK12: =IF($D12="Lamp",(NumberOfCrew+INDIRECT($E12)*TrafficController)*(TimeForOtherSpot),0) -> 0 | BL12: =BC12*BD12*BE12+BF12*BG12*BH12+BI12*BJ12*BK12 -> 0 | BN12: =IF($D12="Lamp",INDIRECT("Price" & $B12 & "FY14"),0) -> 0 | BO12: =IF($D12="Lamp",INDIRECT(BO$10 & $B12),0) -> 0 | BP12: =IF($D12="Lamp",INDIRECT("pRICEpecELL" & "FY14"),0) -> 0 | BQ12: =IF($D12="Lamp",INDIRECT("FailurePECell" & "Annual"),0) -> 0 | BR12: =IF($D12="Lamp",INDIRECT("PriceMisc" & "FY14"),0) -> 0 | BS12: =IF($D12="Lamp",INDIRECT("FailureMisc" & "Annual"),0) -> 0 | BT12: =BN12*BO12+BP12*BQ12+BR12*BS12 -> 0 | BV12: =IF(AND($D12="Lamp"),INDIRECT("PriceEWP"&"FY14"),0) -> 0 | BW12: =BD12*BE12+BG12*BH12+BJ12*BK12 -> 0 | BX12: =BV12*BW12 -> 0 | BZ12: =IF($D12="Connection",VLOOKUP(C12,'Input - General'!$F$62:$N$79,4,FALSE),0) -> 0 | CB12: =RateOverhead -> 0.1801212934 | CC12: =BX12+BL12+BT12+BA12+AQ12+BZ12 -> 0 | CD12: =CC12*CB12 -> 0 | CF12: =CorporateOverheads -> 0.08652781304 | CG12: =AQ12+BA12+BL12+BT12+BX12+BZ12+CD12 -> 0 | CH12: =CG12*CF12 -> 0
B13: ='Input - Inventory'!B10 -> 2 | C13: ='Input - Inventory'!C10 -> 0.5 (P09) | D13: ='Input - Inventory'!D10 -> Bracket | E13: ='Input - Inventory'!E10 -> NonTraffic | F13: ='Input - Inventory'!F10 -> n/a | G13: ='Input - Inventory'!G10 -> 0 | I13: =CONCATENATE(D13," - ",C13) -> Bracket - 0.5 (P09) | K13: =AQ13+BA13+BL13+BT13+BX13+BZ13+CD13+CH13 -> 0 | L13: =INDIRECT(L$10&$B13&"FY14") -> 1150 | M13: 0 | O13: =IF(AND($D13="Lamp", OR($F13=O$9, O$9="All")),INDIRECT("PriceBulkTask1" & "FY14"),0) -> 0 | P13: 0 | Q13: =IF(AND($D13="Lamp", OR($F13=Q$9, Q$9="All")),INDIRECT("PriceBulkTask2" & "FY14"),0) -> 0 | R13: 0 | S13: =IF(AND($D13="Lamp", OR($F13=S$9, S$9="All")),INDIRECT("PriceBulkTask3" & "FY14"),0) -> 0 | T13: 0 | U13: =IF(AND($D13="Lamp", OR($F13=U$9, U$9="All")),INDIRECT("PriceBulkTask4" & "FY14"),0) -> 0 | V13: 0 | W13: =IF(AND($D13="Lamp", OR($F13=W$9, W$9="All")),INDIRECT("PriceBulkTask5" & "FY14"),0) -> 0 | X13: 0 | Y13: =IF(AND($D13="Lamp", OR($F13=Y$9, Y$9="All")),INDIRECT("PriceBulkTask6" & "FY14"),0) -> 0 | Z13: 0 | AA13: =IF(AND($D13="Lamp", OR($F13=AA$9, AA$9="All")),INDIRECT("PriceBulkTask7" & "FY14"),0) -> 0 | AB13: 0 | AC13: =IF(AND($D13="Lamp", OR($F13=AC$9, AC$9="All")),INDIRECT("PriceBulkTask8" & "FY14"),0) -> 0 | AD13: 0 | AE13: =IF(AND($D13="Lamp", OR($F13=AE$9, AE$9="All")),INDIRECT("PriceBulkTask9" & "FY14"),0) -> 0 | AF13: 0 | AG13: =IF(AND($D13="Lamp", OR($F13=AG$9, AG$9="All")),INDIRECT("PriceBulkTask10" & "FY14"),0) -> 0 | AH13: 0 | AI13: =IF(AND($D13="Lamp", OR($F13=AI$9, AI$9="All")),INDIRECT("PriceBulkTask11" & "FY14"),0) -> 0 | AJ13: 0 | AK13: =IF(AND($D13="Lamp", OR($F13=AK$9, AK$9="All")),INDIRECT("PriceBulkTask12" & "FY14"),0) -> 0 | AL13: 0 | AM13: =IF(AND($D13="Lamp", OR($F13=AM$9, AM$9="All")),INDIRECT("PriceBulkTask13" & "FY14"),0) -> 0 | AN13: 0 | AO13: =IF(AND($D13="Lamp", OR($F13=AO$9, AO$9="All")),INDIRECT("PriceBulkTask14" & "FY14"),0) -> 0 | AP13: 0 | AQ13: 0 | AS13: =IF($D13="Lamp",$G13*INDIRECT("Price" & $B13 & "FY14"),0) -> 0 | AT13: 0 | AU13: =IF($D13="Lamp",INDIRECT("PriceVisor" & "FY14"),0) -> 0 | AV13: 0 | AW13: =IF($D13="Lamp",INDIRECT("PricePECell" & "FY14"),0) -> 0 | AX13: 0 | AY13: =IF($D13="Lamp",INDIRECT("PriceMisc" & "FY14"),0) -> 0 | AZ13: 0 | BA13: 0 | BC13: 0 | BD13: 0 | BE13: 0 | BF13: 0 | BG13: 0 | BH13: 0 | BI13: 0 | BJ13: 0 | BK13: 0 | BL13: 0 | BN13: =IF($D13="Lamp",INDIRECT("Price" & $B13 & "FY14"),0) -> 0 | BO13: 0 | BP13: =IF($D13="Lamp",INDIRECT("pRICEpecELL" & "FY14"),0) -> 0 | BQ13: 0 | BR13: =IF($D13="Lamp",INDIRECT("PriceMisc" & "FY14"),0) -> 0 | BS13: 0 | BT13: 0 | BV13: =IF(AND($D13="Lamp"),INDIRECT("PriceEWP"&"FY14"),0) -> 0 | BW13: 0 | BX13: 0 | BZ13: =IF($D13="Connection",VLOOKUP(C13,'Input - General'!$F$62:$N$79,4,FALSE),0) -> 0 | CB13: 0.1801212934 | CC13: 0 | CD13: 0 | CF13: 0.08652781304 | CG13: =AQ13+BA13+BL13+BT13+BX13+BZ13+CD13 -> 0 | CH13: 0
B14: ='Input - Inventory'!B11 -> 3 | C14: ='Input - Inventory'!C11 -> 0.6 | D14: ='Input - Inventory'!D11 -> Bracket | E14: ='Input - Inventory'!E11 -> NonTraffic | F14: ='Input - Inventory'!F11 -> n/a | G14: ='Input - Inventory'!G11 -> 0 | I14: Bracket - 0.6 | K14: 0 | L14: 149 | M14: 0 | O14: 0 | P14: 0 | Q14: 0 | R14: 0 | S14: 0 | T14: 0 | U14: 0 | V14: 0 | W14: 0 | X14: 0 | Y14: 0 | Z14: 0 | AA14: 0 | AB14: 0 | AC14: 0 | AD14: 0 | AE14: 0 | AF14: 0 | AG14: 0 | AH14: 0 | AI14: 0 | AJ14: 0 | AK14: 0 | AL14: 0 | AM14: 0 | AN14: 0 | AO14: 0 | AP14: 0 | AQ14: 0 | AS14: 0 | AT14: 0 | AU14: 0 | AV14: 0 | AW14: 0 | AX14: 0 | AY14: 0 | AZ14: 0 | BA14: 0 | BC14: 0 | BD14: 0 | BE14: 0 | BF14: 0 | BG14: 0 | BH14: 0 | BI14: 0 | BJ14: 0 | BK14: 0 | BL14: 0 | BN14: 0 | BO14: 0 | BP14: 0 | BQ14: 0 | BR14: 0 | BS14: 0 | BT14: 0 | BV14: 0 | BW14: 0 | BX14: 0 | BZ14: =IF($D14="Connection",VLOOKUP(C14,'Input - General'!$F$62:$N$79,4,FALSE),0) -> 0 | CB14: 0.1801212934 | CC14: 0 | CD14: 0 | CF14: 0.08652781304 | CG14: 0 | CH14: 0
B15: ='Input - Inventory'!B12 -> 4 | C15: ='Input - Inventory'!C12 -> 1.0 | D15: ='Input - Inventory'!D12 -> Bracket | E15: ='Input - Inventory'!E12 -> NonTraffic | F15: ='Input - Inventory'!F12 -> n/a | G15: ='Input - Inventory'!G12 -> 0 | I15: Bracket - 1.0 | K15: 0 | L15: 8607 | M15: 0 | O15: 0 | P15: 0 | Q15: 0 | R15: 0 | S15: 0 | T15: 0 | U15: 0 | V15: 0 | W15: 0 | X15: 0 | Y15: 0 | Z15: 0 | AA15: 0 | AB15: 0 | AC15: 0 | AD15: 0 | AE15: 0 | AF15: 0 | AG15: 0 | AH15: 0 | AI15: 0 | AJ15: 0 | AK15: 0 | AL15: 0 | AM15: 0 | AN15: 0 | AO15: 0 | AP15: 0 | AQ15: 0 | AS15: 0 | AT15: 0 | AU15: 0 | AV15: 0 | AW15: 0 | AX15: 0 | AY15: 0 | AZ15: 0 | BA15: 0 | BC15: 0 | BD15: 0 | BE15: 0 | BF15: 0 | BG15: 0 | BH15: 0 | BI15: 0 | BJ15: 0 | BK15: 0 | BL15: 0 | BN15: 0 | BO15: 0 | BP15: 0 | BQ15: 0 | BR15: 0 | BS15: 0 | BT15: 0 | BV15: 0 | BW15: 0 | BX15: 0 | BZ15: =IF($D15="Connection",VLOOKUP(C15,'Input - General'!$F$62:$N$79,4,FALSE),0) -> 0 | CB15: 0.1801212934 | CC15: 0 | CD15: 0 | CF15: 0.08652781304 | CG15: 0 | CH15: 0
B16: ='Input - Inventory'!B13 -> 5 | C16: ='Input - Inventory'!C13 -> 1.2 | D16: ='Input - Inventory'!D13 -> Bracket | E16: ='Input - Inventory'!E13 -> NonTraffic | F16: ='Input - Inventory'!F13 -> n/a | G16: ='Input - Inventory'!G13 -> 0 | I16: Bracket - 1.2 | K16: 0 | L16: 24937 | M16: 0 | O16: 0 | P16: 0 | Q16: 0 | R16: 0 | S16: 0 | T16: 0 | U16: 0 | V16: 0 | W16: 0 | X16: 0 | Y16: 0 | Z16: 0 | AA16: 0 | AB16: 0 | AC16: 0 | AD16: 0 | AE16: 0 | AF16: 0 | AG16: 0 | AH16: 0 | AI16: 0 | AJ16: 0 | AK16: 0 | AL16: 0 | AM16: 0 | AN16: 0 | AO16: 0 | AP16: 0 | AQ16: 0 | AS16: 0 | AT16: 0 | AU16: 0 | AV16: 0 | AW16: 0 | AX16: 0 | AY16: 0 | AZ16: 0 | BA16: 0 | BC16: 0 | BD16: 0 | BE16: 0 | BF16: 0 | BG16: 0 | BH16: 0 | BI16: 0 | BJ16: 0 | BK16: 0 | BL16: 0 | BN16: 0 | BO16: 0 | BP16: 0 | BQ16: 0 | BR16: 0 | BS16: 0 | BT16: 0 | BV16: 0 | BW16: 0 | BX16: 0 | BZ16: =IF($D16="Connection",VLOOKUP(C16,'Input - General'!$F$62:$N$79,4,FALSE),0) -> 0 | CB16: 0.1801212934 | CC16: 0 | CD16: 0 | CF16: 0.08652781304 | CG16: 0 | CH16: 0
B17: ='Input - Inventory'!B14 -> 6 | C17: ='Input - Inventory'!C14 -> 1.2 (P09) | D17: ='Input - Inventory'!D14 -> Bracket | E17: ='Input - Inventory'!E14 -> NonTraffic | F17: ='Input - Inventory'!F14 -> n/a | G17: ='Input - Inventory'!G14 -> 0 | I17: Bracket - 1.2 (P09) | K17: 0 | L17: 696 | M17: 0 | O17: 0 | P17: 0 | Q17: 0 | R17: 0 | S17: 0 | T17: 0 | U17: 0 | V17: 0 | W17: 0 | X17: 0 | Y17: 0 | Z17: 0 | AA17: 0 | AB17: 0 | AC17: 0 | AD17: 0 | AE17: 0 | AF17: 0 | AG17: 0 | AH17: 0 | AI17: 0 | AJ17: 0 | AK17: 0 | AL17: 0 | AM17: 0 | AN17: 0 | AO17: 0 | AP17: 0 | AQ17: 0 | AS17: 0 | AT17: 0 | AU17: 0 | AV17: 0 | AW17: 0 | AX17: 0 | AY17: 0 | AZ17: 0 | BA17: 0 | BC17: 0 | BD17: 0 | BE17: 0 | BF17: 0 | BG17: 0 | BH17: 0 | BI17: 0 | BJ17: 0 | BK17: 0 | BL17: 0 | BN17: 0 | BO17: 0 | BP17: 0 | BQ17: 0 | BR17: 0 | BS17: 0 | BT17: 0 | BV17: 0 | BW17: 0 | BX17: 0 | BZ17: =IF($D17="Connection",VLOOKUP(C17,'Input - General'!$F$62:$N$79,4,FALSE),0) -> 0 | CB17: 0.1801212934 | CC17: 0 | CD17: 0 | CF17: 0.08652781304 | CG17: 0 | CH17: 0
B18: ='Input - Inventory'!B15 -> 7 | C18: ='Input - Inventory'!C15 -> 1.5 | D18: ='Input - Inventory'!D15 -> Bracket | E18: ='Input - Inventory'!E15 -> NonTraffic | F18: ='Input - Inventory'!F15 -> n/a | G18: ='Input - Inventory'!G15 -> 0 | I18: Bracket - 1.5 | K18: 0 | L18: 3808 | M18: 0 | O18: 0 | P18: 0 | Q18: 0 | R18: 0 | S18: 0 | T18: 0 | U18: 0 | V18: 0 | W18: 0 | X18: 0 | Y18: 0 | Z18: 0 | AA18: 0 | AB18: 0 | AC18: 0 | AD18: 0 | AE18: 0 | AF18: 0 | AG18: 0 | AH18: 0 | AI18: 0 | AJ18: 0 | AK18: 0 | AL18: 0 | AM18: 0 | AN18: 0 | AO18: 0 | AP18: 0 | AQ18: 0 | AS18: 0 | AT18: 0 | AU18: 0 | AV18: 0 | AW18: 0 | AX18: 0 | AY18: 0 | AZ18: 0 | BA18: 0 | BC18: 0 | BD18: 0 | BE18: 0 | BF18: 0 | BG18: 0 | BH18: 0 | BI18: 0 | BJ18: 0 | BK18: 0 | BL18: 0 | BN18: 0 | BO18: 0 | BP18: 0 | BQ18: 0 | BR18: 0 | BS18: 0 | BT18: 0 | BV18: 0 | BW18: 0 | BX18: 0 | BZ18: =IF($D18="Connection",VLOOKUP(C18,'Input - General'!$F$62:$N$79,4,FALSE),0) -> 0 | CB18: 0.1801212934 | CC18: 0 | CD18: 0 | CF18: 0.08652781304 | CG18: 0 | CH18: 0
B19: ='Input - Inventory'!B16 -> 8 | C19: ='Input - Inventory'!C16 -> 2.0 | D19: ='Input - Inventory'!D16 -> Bracket | E19: ='Input - Inventory'!E16 -> NonTraffic | F19: ='Input - Inventory'!F16 -> n/a | G19: ='Input - Inventory'!G16 -> 0 | I19: Bracket - 2.0 | K19: 0 | L19: 70865 | M19: 0 | O19: 0 | P19: 0 | Q19: 0 | R19: 0 | S19: 0 | T19: 0 | U19: 0 | V19: 0 | W19: 0 | X19: 0 | Y19: 0 | Z19: 0 | AA19: 0 | AB19: 0 | AC19: 0 | AD19: 0 | AE19: 0 | AF19: 0 | AG19: 0 | AH19: 0 | AI19: 0 | AJ19: 0 | AK19: 0 | AL19: 0 | AM19: 0 | AN19: 0 | AO19: 0 | AP19: 0 | AQ19: 0 | AS19: 0 | AT19: 0 | AU19: 0 | AV19: 0 | AW19: 0 | AX19: 0 | AY19: 0 | AZ19: 0 | BA19: 0 | BC19: 0 | BD19: 0 | BE19: 0 | BF19: 0 | BG19: 0 | BH19: 0 | BI19: 0 | BJ19: 0 | BK19: 0 | BL19: 0 | BN19: 0 | BO19: 0 | BP19: 0 | BQ19: 0 | BR19: 0 | BS19: 0 | BT19: 0 | BV19: 0 | BW19: 0 | BX19: 0 | BZ19: =IF($D19="Connection",VLOOKUP(C19,'Input - General'!$F$62:$N$79,4,FALSE),0) -> 0 | CB19: 0.1801212934 | CC19: 0 | CD19: 0 | CF19: 0.08652781304 | CG19: 0 | CH19: 0
B20: ='Input - Inventory'!B17 -> 9 | C20: ='Input - Inventory'!C17 -> 2.0 (P09) | D20: ='Input - Inventory'!D17 -> Bracket | E20: ='Input - Inventory'!E17 -> NonTraffic | F20: ='Input - Inventory'!F17 -> n/a | G20: ='Input - Inventory'!G17 -> 0 | I20: Bracket - 2.0 (P09) | K20: 0 | L20: 17415.5 | M20: 0 | O20: 0 | P20: 0 | Q20: 0 | R20: 0 | S20: 0 | T20: 0 | U20: 0 | V20: 0 | W20: 0 | X20: 0 | Y20: 0 | Z20: 0 | AA20: 0 | AB20: 0 | AC20: 0 | AD20: 0 | AE20: 0 | AF20: 0 | AG20: 0 | AH20: 0 | AI20: 0 | AJ20: 0 | AK20: 0 | AL20: 0 | AM20: 0 | AN20: 0 | AO20: 0 | AP20: 0 | AQ20: 0 | AS20: 0 | AT20: 0 | AU20: 0 | AV20: 0 | AW20: 0 | AX20: 0 | AY20: 0 | AZ20: 0 | BA20: 0 | BC20: 0 | BD20: 0 | BE20: 0 | BF20: 0 | BG20: 0 | BH20: 0 | BI20: 0 | BJ20: 0 | BK20: 0 | BL20: 0 | BN20: 0 | BO20: 0 | BP20: 0 | BQ20: 0 | BR20: 0 | BS20: 0 | BT20: 0 | BV20: 0 | BW20: 0 | BX20: 0 | BZ20: =IF($D20="Connection",VLOOKUP(C20,'Input - General'!$F$62:$N$79,4,FALSE),0) -> 0 | CB20: 0.1801212934 | CC20: 0 | CD20: 0 | CF20: 0.08652781304 | CG20: 0 | CH20: 0
B21: ='Input - Inventory'!B18 -> 10 | C21: ='Input - Inventory'!C18 -> 2.5 | D21: ='Input - Inventory'!D18 -> Bracket | E21: ='Input - Inventory'!E18 -> Traffic | F21: ='Input - Inventory'!F18 -> n/a | G21: ='Input - Inventory'!G18 -> 0 | I21: Bracket - 2.5 | K21: 0 | L21: 518 | M21: 0 | O21: 0 | P21: 0 | Q21: 0 | R21: 0 | S21: 0 | T21: 0 | U21: 0 | V21: 0 | W21: 0 | X21: 0 | Y21: 0 | Z21: 0 | AA21: 0 | AB21: 0 | AC21: 0 | AD21: 0 | AE21: 0 | AF21: 0 | AG21: 0 | AH21: 0 | AI21: 0 | AJ21: 0 | AK21: 0 | AL21: 0 | AM21: 0 | AN21: 0 | AO21: 0 | AP21: 0 | AQ21: 0 | AS21: 0 | AT21: 0 | AU21: 0 | AV21: 0 | AW21: 0 | AX21: 0 | AY21: 0 | AZ21: 0 | BA21: 0 | BC21: 0 | BD21: 0 | BE21: 0 | BF21: 0 | BG21: 0 | BH21: 0 | BI21: 0 | BJ21: 0 | BK21: 0 | BL21: 0 | BN21: 0 | BO21: 0 | BP21: 0 | BQ21: 0 | BR21: 0 | BS21: 0 | BT21: 0 | BV21: 0 | BW21: 0 | BX21: 0 | BZ21: =IF($D21="Connection",VLOOKUP(C21,'Input - General'!$F$62:$N$79,4,FALSE),0) -> 0 | CB21: 0.1801212934 | CC21: 0 | CD21: 0 | CF21: 0.08652781304 | CG21: 0 | CH21: 0
B22: ='Input - Inventory'!B19 -> 11 | C22: ='Input - Inventory'!C19 -> 3.0 | D22: ='Input - Inventory'!D19 -> Bracket | E22: ='Input - Inventory'!E19 -> Traffic | F22: ='Input - Inventory'!F19 -> n/a | G22: ='Input - Inventory'!G19 -> 0 | I22: Bracket - 3.0 | K22: 0 | L22: 5928 | M22: 0 | O22: 0 | P22: 0 | Q22: 0 | R22: 0 | S22: 0 | T22: 0 | U22: 0 | V22: 0 | W22: 0 | X22: 0 | Y22: 0 | Z22: 0 | AA22: 0 | AB22: 0 | AC22: 0 | AD22: 0 | AE22: 0 | AF22: 0 | AG22: 0 | AH22: 0 | AI22: 0 | AJ22: 0 | AK22: 0 | AL22: 0 | AM22: 0 | AN22: 0 | AO22: 0 | AP22: 0 | AQ22: 0 | AS22: 0 | AT22: 0 | AU22: 0 | AV22: 0 | AW22: 0 | AX22: 0 | AY22: 0 | AZ22: 0 | BA22: 0 | BC22: 0 | BD22: 0 | BE22: 0 | BF22: 0 | BG22: 0 | BH22: 0 | BI22: 0 | BJ22: 0 | BK22: 0 | BL22: 0 | BN22: 0 | BO22: 0 | BP22: 0 | BQ22: 0 | BR22: 0 | BS22: 0 | BT22: 0 | BV22: 0 | BW22: 0 | BX22: 0 | BZ22: =IF($D22="Connection",VLOOKUP(C22,'Input - General'!$F$62:$N$79,4,FALSE),0) -> 0 | CB22: 0.1801212934 | CC22: 0 | CD22: 0 | CF22: 0.08652781304 | CG22: 0 | CH22: 0
B23: ='Input - Inventory'!B20 -> 12 | C23: ='Input - Inventory'!C20 -> 3.0 (P09) | D23: ='Input - Inventory'!D20 -> Bracket | E23: ='Input - Inventory'!E20 -> Traffic | F23: ='Input - Inventory'!F20 -> n/a | G23: ='Input - Inventory'!G20 -> 0 | I23: Bracket - 3.0 (P09) | K23: 0 | L23: 603 | M23: 0 | O23: 0 | P23: 0 | Q23: 0 | R23: 0 | S23: 0 | T23: 0 | U23: 0 | V23: 0 | W23: 0 | X23: 0 | Y23: 0 | Z23: 0 | AA23: 0 | AB23: 0 | AC23: 0 | AD23: 0 | AE23: 0 | AF23: 0 | AG23: 0 | AH23: 0 | AI23: 0 | AJ23: 0 | AK23: 0 | AL23: 0 | AM23: 0 | AN23: 0 | AO23: 0 | AP23: 0 | AQ23: 0 | AS23: 0 | AT23: 0 | AU23: 0 | AV23: 0 | AW23: 0 | AX23: 0 | AY23: 0 | AZ23: 0 | BA23: 0 | BC23: 0 | BD23: 0 | BE23: 0 | BF23: 0 | BG23: 0 | BH23: 0 | BI23: 0 | BJ23: 0 | BK23: 0 | BL23: 0 | BN23: 0 | BO23: 0 | BP23: 0 | BQ23: 0 | BR23: 0 | BS23: 0 | BT23: 0 | BV23: 0 | BW23: 0 | BX23: 0 | BZ23: =IF($D23="Connection",VLOOKUP(C23,'Input - General'!$F$62:$N$79,4,FALSE),0) -> 0 | CB23: 0.1801212934 | CC23: 0 | CD23: 0 | CF23: 0.08652781304 | CG23: 0 | CH23: 0
B24: ='Input - Inventory'!B21 -> 13 | C24: ='Input - Inventory'!C21 -> 3.5 | D24: ='Input - Inventory'!D21 -> Bracket | E24: ='Input - Inventory'!E21 -> Traffic | F24: ='Input - Inventory'!F21 -> n/a | G24: ='Input - Inventory'!G21 -> 0 | I24: Bracket - 3.5 | K24: 0 | L24: 7196 | M24: 0 | O24: 0 | P24: 0 | Q24: 0 | R24: 0 | S24: 0 | T24: 0 | U24: 0 | V24: 0 | W24: 0 | X24: 0 | Y24: 0 | Z24: 0 | AA24: 0 | AB24: 0 | AC24: 0 | AD24: 0 | AE24: 0 | AF24: 0 | AG24: 0 | AH24: 0 | AI24: 0 | AJ24: 0 | AK24: 0 | AL24: 0 | AM24: 0 | AN24: 0 | AO24: 0 | AP24: 0 | AQ24: 0 | AS24: 0 | AT24: 0 | AU24: 0 | AV24: 0 | AW24: 0 | AX24: 0 | AY24: 0 | AZ24: 0 | BA24: 0 | BC24: 0 | BD24: 0 | BE24: 0 | BF24: 0 | BG24: 0 | BH24: 0 | BI24: 0 | BJ24: 0 | BK24: 0 | BL24: 0 | BN24: 0 | BO24: 0 | BP24: 0 | BQ24: 0 | BR24: 0 | BS24: 0 | BT24: 0 | BV24: 0 | BW24: 0 | BX24: 0 | BZ24: =IF($D24="Connection",VLOOKUP(C24,'Input - General'!$F$62:$N$79,4,FALSE),0) -> 0 | CB24: 0.1801212934 | CC24: 0 | CD24: 0 | CF24: 0.08652781304 | CG24: 0 | CH24: 0
B25: ='Input - Inventory'!B22 -> 14 | C25: ='Input - Inventory'!C22 -> 3.5 (P09) | D25: ='Input - Inventory'!D22 -> Bracket | E25: ='Input - Inventory'!E22 -> Traffic | F25: ='Input - Inventory'!F22 -> n/a | G25: ='Input - Inventory'!G22 -> 0 | I25: Bracket - 3.5 (P09) | K25: 0 | L25: 787 | M25: 0 | O25: 0 | P25: 0 | Q25: 0 | R25: 0 | S25: 0 | T25: 0 | U25: 0 | V25: 0 | W25: 0 | X25: 0 | Y25: 0 | Z25: 0 | AA25: 0 | AB25: 0 | AC25: 0 | AD25: 0 | AE25: 0 | AF25: 0 | AG25: 0 | AH25: 0 | AI25: 0 | AJ25: 0 | AK25: 0 | AL25: 0 | AM25: 0 | AN25: 0 | AO25: 0 | AP25: 0 | AQ25: 0 | AS25: 0 | AT25: 0 | AU25: 0 | AV25: 0 | AW25: 0 | AX25: 0 | AY25: 0 | AZ25: 0 | BA25: 0 | BC25: 0 | BD25: 0 | BE25: 0 | BF25: 0 | BG25: 0 | BH25: 0 | BI25: 0 | BJ25: 0 | BK25: 0 | BL25: 0 | BN25: 0 | BO25: 0 | BP25: 0 | BQ25: 0 | BR25: 0 | BS25: 0 | BT25: 0 | BV25: 0 | BW25: 0 | BX25: 0 | BZ25: =IF($D25="Connection",VLOOKUP(C25,'Input - General'!$F$62:$N$79,4,FALSE),0) -> 0 | CB25: 0.1801212934 | CC25: 0 | CD25: 0 | CF25: 0.08652781304 | CG25: 0 | CH25: 0
B26: ='Input - Inventory'!B23 -> 15 | C26: ='Input - Inventory'!C23 -> 4.0 | D26: ='Input - Inventory'!D23 -> Bracket | E26: ='Input - Inventory'!E23 -> Traffic | F26: ='Input - Inventory'!F23 -> n/a | G26: ='Input - Inventory'!G23 -> 0 | I26: Bracket - 4.0 | K26: 0 | L26: 983 | M26: 0 | O26: 0 | P26: 0 | Q26: 0 | R26: 0 | S26: 0 | T26: 0 | U26: 0 | V26: 0 | W26: 0 | X26: 0 | Y26: 0 | Z26: 0 | AA26: 0 | AB26: 0 | AC26: 0 | AD26: 0 | AE26: 0 | AF26: 0 | AG26: 0 | AH26: 0 | AI26: 0 | AJ26: 0 | AK26: 0 | AL26: 0 | AM26: 0 | AN26: 0 | AO26: 0 | AP26: 0 | AQ26: 0 | AS26: 0 | AT26: 0 | AU26: 0 | AV26: 0 | AW26: 0 | AX26: 0 | AY26: 0 | AZ26: 0 | BA26: 0 | BC26: 0 | BD26: 0 | BE26: 0 | BF26: 0 | BG26: 0 | BH26: 0 | BI26: 0 | BJ26: 0 | BK26: 0 | BL26: 0 | BN26: 0 | BO26: 0 | BP26: 0 | BQ26: 0 | BR26: 0 | BS26: 0 | BT26: 0 | BV26: 0 | BW26: 0 | BX26: 0 | BZ26: =IF($D26="Connection",VLOOKUP(C26,'Input - General'!$F$62:$N$79,4,FALSE),0) -> 0 | CB26: 0.1801212934 | CC26: 0 | CD26: 0 | CF26: 0.08652781304 | CG26: 0 | CH26: 0
B27: ='Input - Inventory'!B24 -> 16 | C27: ='Input - Inventory'!C24 -> 4.0 (P09) | D27: ='Input - Inventory'!D24 -> Bracket | E27: ='Input - Inventory'!E24 -> Traffic | F27: ='Input - Inventory'!F24 -> n/a | G27: ='Input - Inventory'!G24 -> 0 | I27: Bracket - 4.0 (P09) | K27: 0 | L27: 466 | M27: 0 | O27: 0 | P27: 0 | Q27: 0 | R27: 0 | S27: 0 | T27: 0 | U27: 0 | V27: 0 | W27: 0 | X27: 0 | Y27: 0 | Z27: 0 | AA27: 0 | AB27: 0 | AC27: 0 | AD27: 0 | AE27: 0 | AF27: 0 | AG27: 0 | AH27: 0 | AI27: 0 | AJ27: 0 | AK27: 0 | AL27: 0 | AM27: 0 | AN27: 0 | AO27: 0 | AP27: 0 | AQ27: 0 | AS27: 0 | AT27: 0 | AU27: 0 | AV27: 0 | AW27: 0 | AX27: 0 | AY27: 0 | AZ27: 0 | BA27: 0 | BC27: 0 | BD27: 0 | BE27: 0 | BF27: 0 | BG27: 0 | BH27: 0 | BI27: 0 | BJ27: 0 | BK27: 0 | BL27: 0 | BN27: 0 | BO27: 0 | BP27: 0 | BQ27: 0 | BR27: 0 | BS27: 0 | BT27: 0 | BV27: 0 | BW27: 0 | BX27: 0 | BZ27: =IF($D27="Connection",VLOOKUP(C27,'Input - General'!$F$62:$N$79,4,FALSE),0) -> 0 | CB27: 0.1801212934 | CC27: 0 | CD27: 0 | CF27: 0.08652781304 | CG27: 0 | CH27: 0
B28: ='Input - Inventory'!B25 -> 17 | C28: ='Input - Inventory'!C25 -> 4.5 | D28: ='Input - Inventory'!D25 -> Bracket | E28: ='Input - Inventory'!E25 -> Traffic | F28: ='Input - Inventory'!F25 -> n/a | G28: ='Input - Inventory'!G25 -> 0 | I28: Bracket - 4.5 | K28: 0 | L28: 3037 | M28: 0 | O28: 0 | P28: 0 | Q28: 0 | R28: 0 | S28: 0 | T28: 0 | U28: 0 | V28: 0 | W28: 0 | X28: 0 | Y28: 0 | Z28: 0 | AA28: 0 | AB28: 0 | AC28: 0 | AD28: 0 | AE28: 0 | AF28: 0 | AG28: 0 | AH28: 0 | AI28: 0 | AJ28: 0 | AK28: 0 | AL28: 0 | AM28: 0 | AN28: 0 | AO28: 0 | AP28: 0 | AQ28: 0 | AS28: 0 | AT28: 0 | AU28: 0 | AV28: 0 | AW28: 0 | AX28: 0 | AY28: 0 | AZ28: 0 | BA28: 0 | BC28: 0 | BD28: 0 | BE28: 0 | BF28: 0 | BG28: 0 | BH28: 0 | BI28: 0 | BJ28: 0 | BK28: 0 | BL28: 0 | BN28: 0 | BO28: 0 | BP28: 0 | BQ28: 0 | BR28: 0 | BS28: 0 | BT28: 0 | BV28: 0 | BW28: 0 | BX28: 0 | BZ28: =IF($D28="Connection",VLOOKUP(C28,'Input - General'!$F$62:$N$79,4,FALSE),0) -> 0 | CB28: 0.1801212934 | CC28: 0 | CD28: 0 | CF28: 0.08652781304 | CG28: 0 | CH28: 0
B29: ='Input - Inventory'!B26 -> 18 | C29: ='Input - Inventory'!C26 -> 5.0 | D29: ='Input - Inventory'!D26 -> Bracket | E29: ='Input - Inventory'!E26 -> Traffic | F29: ='Input - Inventory'!F26 -> n/a | G29: ='Input - Inventory'!G26 -> 0 | I29: Bracket - 5.0 | K29: 0 | L29: 423 | M29: 0 | O29: 0 | P29: 0 | Q29: 0 | R29: 0 | S29: 0 | T29: 0 | U29: 0 | V29: 0 | W29: 0 | X29: 0 | Y29: 0 | Z29: 0 | AA29: 0 | AB29: 0 | AC29: 0 | AD29: 0 | AE29: 0 | AF29: 0 | AG29: 0 | AH29: 0 | AI29: 0 | AJ29: 0 | AK29: 0 | AL29: 0 | AM29: 0 | AN29: 0 | AO29: 0 | AP29: 0 | AQ29: 0 | AS29: 0 | AT29: 0 | AU29: 0 | AV29: 0 | AW29: 0 | AX29: 0 | AY29: 0 | AZ29: 0 | BA29: 0 | BC29: 0 | BD29: 0 | BE29: 0 | BF29: 0 | BG29: 0 | BH29: 0 | BI29: 0 | BJ29: 0 | BK29: 0 | BL29: 0 | BN29: 0 | BO29: 0 | BP29: 0 | BQ29: 0 | BR29: 0 | BS29: 0 | BT29: 0 | BV29: 0 | BW29: 0 | BX29: 0 | BZ29: =IF($D29="Connection",VLOOKUP(C29,'Input - General'!$F$62:$N$79,4,FALSE),0) -> 0 | CB29: 0.1801212934 | CC29: 0 | CD29: 0 | CF29: 0.08652781304 | CG29: 0 | CH29: 0
B30: ='Input - Inventory'!B27 -> 19 | C30: ='Input - Inventory'!C27 -> 6.0 | D30: ='Input - Inventory'!D27 -> Bracket | E30: ='Input - Inventory'!E27 -> Traffic | F30: ='Input - Inventory'!F27 -> n/a | G30: ='Input - Inventory'!G27 -> 0 | I30: Bracket - 6.0 | K30: 0 | L30: 1100.5 | M30: 0 | O30: 0 | P30: 0 | Q30: 0 | R30: 0 | S30: 0 | T30: 0 | U30: 0 | V30: 0 | W30: 0 | X30: 0 | Y30: 0 | Z30: 0 | AA30: 0 | AB30: 0 | AC30: 0 | AD30: 0 | AE30: 0 | AF30: 0 | AG30: 0 | AH30: 0 | AI30: 0 | AJ30: 0 | AK30: 0 | AL30: 0 | AM30: 0 | AN30: 0 | AO30: 0 | AP30: 0 | AQ30: 0 | AS30: 0 | AT30: 0 | AU30: 0 | AV30: 0 | AW30: 0 | AX30: 0 | AY30: 0 | AZ30: 0 | BA30: 0 | BC30: 0 | BD30: 0 | BE30: 0 | BF30: 0 | BG30: 0 | BH30: 0 | BI30: 0 | BJ30: 0 | BK30: 0 | BL30: 0 | BN30: 0 | BO30: 0 | BP30: 0 | BQ30: 0 | BR30: 0 | BS30: 0 | BT30: 0 | BV30: 0 | BW30: 0 | BX30: 0 | BZ30: =IF($D30="Connection",VLOOKUP(C30,'Input - General'!$F$62:$N$79,4,FALSE),0) -> 0 | CB30: 0.1801212934 | CC30: 0 | CD30: 0 | CF30: 0.08652781304 | CG30: 0 | CH30: 0
B31: ='Input - Inventory'!B28 -> 20 | C31: ='Input - Inventory'!C28 -> 6.5 | D31: ='Input - Inventory'!D28 -> Bracket | E31: ='Input - Inventory'!E28 -> Traffic | F31: ='Input - Inventory'!F28 -> n/a | G31: ='Input - Inventory'!G28 -> 0 | I31: Bracket - 6.5 | K31: 0 | L31: 60 | M31: 0 | O31: 0 | P31: 0 | Q31: 0 | R31: 0 | S31: 0 | T31: 0 | U31: 0 | V31: 0 | W31: 0 | X31: 0 | Y31: 0 | Z31: 0 | AA31: 0 | AB31: 0 | AC31: 0 | AD31: 0 | AE31: 0 | AF31: 0 | AG31: 0 | AH31: 0 | AI31: 0 | AJ31: 0 | AK31: 0 | AL31: 0 | AM31: 0 | AN31: 0 | AO31: 0 | AP31: 0 | AQ31: 0 | AS31: 0 | AT31: 0 | AU31: 0 | AV31: 0 | AW31: 0 | AX31: 0 | AY31: 0 | AZ31: 0 | BA31: 0 | BC31: 0 | BD31: 0 | BE31: 0 | BF31: 0 | BG31: 0 | BH31: 0 | BI31: 0 | BJ31: 0 | BK31: 0 | BL31: 0 | BN31: 0 | BO31: 0 | BP31: 0 | BQ31: 0 | BR31: 0 | BS31: 0 | BT31: 0 | BV31: 0 | BW31: 0 | BX31: 0 | BZ31: =IF($D31="Connection",VLOOKUP(C31,'Input - General'!$F$62:$N$79,4,FALSE),0) -> 0 | CB31: 0.1801212934 | CC31: 0 | CD31: 0 | CF31: 0.08652781304 | CG31: 0 | CH31: 0
B32: ='Input - Inventory'!B29 -> 21 | C32: ='Input - Inventory'!C29 -> 7.0 | D32: ='Input - Inventory'!D29 -> Bracket | E32: ='Input - Inventory'!E29 -> Traffic | F32: ='Input - Inventory'!F29 -> n/a | G32: ='Input - Inventory'!G29 -> 0 | I32: Bracket - 7.0 | K32: 0 | L32: 80 | M32: 0 | O32: 0 | P32: 0 | Q32: 0 | R32: 0 | S32: 0 | T32: 0 | U32: 0 | V32: 0 | W32: 0 | X32: 0 | Y32: 0 | Z32: 0 | AA32: 0 | AB32: 0 | AC32: 0 | AD32: 0 | AE32: 0 | AF32: 0 | AG32: 0 | AH32: 0 | AI32: 0 | AJ32: 0 | AK32: 0 | AL32: 0 | AM32: 0 | AN32: 0 | AO32: 0 | AP32: 0 | AQ32: 0 | AS32: 0 | AT32: 0 | AU32: 0 | AV32: 0 | AW32: 0 | AX32: 0 | AY32: 0 | AZ32: 0 | BA32: 0 | BC32: 0 | BD32: 0 | BE32: 0 | BF32: 0 | BG32: 0 | BH32: 0 | BI32: 0 | BJ32: 0 | BK32: 0 | BL32: 0 | BN32: 0 | BO32: 0 | BP32: 0 | BQ32: 0 | BR32: 0 | BS32: 0 | BT32: 0 | BV32: 0 | BW32: 0 | BX32: 0 | BZ32: =IF($D32="Connection",VLOOKUP(C32,'Input - General'!$F$62:$N$79,4,FALSE),0) -> 0 | CB32: 0.1801212934 | CC32: 0 | CD32: 0 | CF32: 0.08652781304 | CG32: 0 | CH32: 0
B33: ='Input - Inventory'!B30 -> 22 | C33: ='Input - Inventory'!C30 -> 8.0 | D33: ='Input - Inventory'!D30 -> Bracket | E33: ='Input - Inventory'!E30 -> Traffic | F33: ='Input - Inventory'!F30 -> n/a | G33: ='Input - Inventory'!G30 -> 0 | I33: Bracket - 8.0 | K33: 0 | L33: 27 | M33: 0 | O33: 0 | P33: 0 | Q33: 0 | R33: 0 | S33: 0 | T33: 0 | U33: 0 | V33: 0 | W33: 0 | X33: 0 | Y33: 0 | Z33: 0 | AA33: 0 | AB33: 0 | AC33: 0 | AD33: 0 | AE33: 0 | AF33: 0 | AG33: 0 | AH33: 0 | AI33: 0 | AJ33: 0 | AK33: 0 | AL33: 0 | AM33: 0 | AN33: 0 | AO33: 0 | AP33: 0 | AQ33: 0 | AS33: 0 | AT33: 0 | AU33: 0 | AV33: 0 | AW33: 0 | AX33: 0 | AY33: 0 | AZ33: 0 | BA33: 0 | BC33: 0 | BD33: 0 | BE33: 0 | BF33: 0 | BG33: 0 | BH33: 0 | BI33: 0 | BJ33: 0 | BK33: 0 | BL33: 0 | BN33: 0 | BO33: 0 | BP33: 0 | BQ33: 0 | BR33: 0 | BS33: 0 | BT33: 0 | BV33: 0 | BW33: 0 | BX33: 0 | BZ33: =IF($D33="Connection",VLOOKUP(C33,'Input - General'!$F$62:$N$79,4,FALSE),0) -> 0 | CB33: 0.1801212934 | CC33: 0 | CD33: 0 | CF33: 0.08652781304 | CG33: 0 | CH33: 0
B34: ='Input - Inventory'!B31 -> 23 | C34: ='Input - Inventory'!C31 -> C4 | D34: ='Input - Inventory'!D31 -> Bracket | E34: ='Input - Inventory'!E31 -> Traffic | F34: ='Input - Inventory'!F31 -> n/a | G34: ='Input - Inventory'!G31 -> 0 | I34: Bracket - C4 | K34: 0 | L34: 87 | M34: 0 | O34: 0 | P34: 0 | Q34: 0 | R34: 0 | S34: 0 | T34: 0 | U34: 0 | V34: 0 | W34: 0 | X34: 0 | Y34: 0 | Z34: 0 | AA34: 0 | AB34: 0 | AC34: 0 | AD34: 0 | AE34: 0 | AF34: 0 | AG34: 0 | AH34: 0 | AI34: 0 | AJ34: 0 | AK34: 0 | AL34: 0 | AM34: 0 | AN34: 0 | AO34: 0 | AP34: 0 | AQ34: 0 | AS34: 0 | AT34: 0 | AU34: 0 | AV34: 0 | AW34: 0 | AX34: 0 | AY34: 0 | AZ34: 0 | BA34: 0 | BC34: 0 | BD34: 0 | BE34: 0 | BF34: 0 | BG34: 0 | BH34: 0 | BI34: 0 | BJ34: 0 | BK34: 0 | BL34: 0 | BN34: 0 | BO34: 0 | BP34: 0 | BQ34: 0 | BR34: 0 | BS34: 0 | BT34: 0 | BV34: 0 | BW34: 0 | BX34: 0 | BZ34: =IF($D34="Connection",VLOOKUP(C34,'Input - General'!$F$62:$N$79,4,FALSE),0) -> 0 | CB34: 0.1801212934 | CC34: 0 | CD34: 0 | CF34: 0.08652781304 | CG34: 0 | CH34: 0
B35: ='Input - Inventory'!B32 -> 24 | C35: ='Input - Inventory'!C32 -> NIL | D35: ='Input - Inventory'!D32 -> Bracket | E35: ='Input - Inventory'!E32 -> NonTraffic | F35: ='Input - Inventory'!F32 -> n/a | G35: ='Input - Inventory'!G32 -> 0 | I35: Bracket - NIL | K35: 0 | L35: 12976 | M35: 0 | O35: 0 | P35: 0 | Q35: 0 | R35: 0 | S35: 0 | T35: 0 | U35: 0 | V35: 0 | W35: 0 | X35: 0 | Y35: 0 | Z35: 0 | AA35: 0 | AB35: 0 | AC35: 0 | AD35: 0 | AE35: 0 | AF35: 0 | AG35: 0 | AH35: 0 | AI35: 0 | AJ35: 0 | AK35: 0 | AL35: 0 | AM35: 0 | AN35: 0 | AO35: 0 | AP35: 0 | AQ35: 0 | AS35: 0 | AT35: 0 | AU35: 0 | AV35: 0 | AW35: 0 | AX35: 0 | AY35: 0 | AZ35: 0 | BA35: 0 | BC35: 0 | BD35: 0 | BE35: 0 | BF35: 0 | BG35: 0 | BH35: 0 | BI35: 0 | BJ35: 0 | BK35: 0 | BL35: 0 | BN35: 0 | BO35: 0 | BP35: 0 | BQ35: 0 | BR35: 0 | BS35: 0 | BT35: 0 | BV35: 0 | BW35: 0 | BX35: 0 | BZ35: =IF($D35="Connection",VLOOKUP(C35,'Input - General'!$F$62:$N$79,4,FALSE),0) -> 0 | CB35: 0.1801212934 | CC35: 0 | CD35: 0 | CF35: 0.08652781304 | CG35: 0 | CH35: 0
B36: ='Input - Inventory'!B33 -> 25 | C36: ='Input - Inventory'!C33 -> PRIVATE | D36: ='Input - Inventory'!D33 -> Bracket | E36: ='Input - Inventory'!E33 -> NonTraffic | F36: ='Input - Inventory'!F33 -> n/a | G36: ='Input - Inventory'!G33 -> 0 | I36: Bracket - PRIVATE | K36: 0 | L36: 113 | M36: 0 | O36: 0 | P36: 0 | Q36: 0 | R36: 0 | S36: 0 | T36: 0 | U36: 0 | V36: 0 | W36: 0 | X36: 0 | Y36: 0 | Z36: 0 | AA36: 0 | AB36: 0 | AC36: 0 | AD36: 0 | AE36: 0 | AF36: 0 | AG36: 0 | AH36: 0 | AI36: 0 | AJ36: 0 | AK36: 0 | AL36: 0 | AM36: 0 | AN36: 0 | AO36: 0 | AP36: 0 | AQ36: 0 | AS36: 0 | AT36: 0 | AU36: 0 | AV36: 0 | AW36: 0 | AX36: 0 | AY36: 0 | AZ36: 0 | BA36: 0 | BC36: 0 | BD36: 0 | BE36: 0 | BF36: 0 | BG36: 0 | BH36: 0 | BI36: 0 | BJ36: 0 | BK36: 0 | BL36: 0 | BN36: 0 | BO36: 0 | BP36: 0 | BQ36: 0 | BR36: 0 | BS36: 0 | BT36: 0 | BV36: 0 | BW36: 0 | BX36: 0 | BZ36: =IF($D36="Connection",VLOOKUP(C36,'Input - General'!$F$62:$N$79,4,FALSE),0) -> 0 | CB36: 0.1801212934 | CC36: 0 | CD36: 0 | CF36: 0.08652781304 | CG36: 0 | CH36: 0
B37: ='Input - Inventory'!B34 -> 26 | C37: ='Input - Inventory'!C34 -> SMARTPOLE DOUBLE | D37: ='Input - Inventory'!D34 -> Bracket | E37: ='Input - Inventory'!E34 -> NonTraffic | F37: ='Input - Inventory'!F34 -> n/a | G37: ='Input - Inventory'!G34 -> 0 | I37: Bracket - SMARTPOLE DOUBLE | K37: 0 | L37: 0 | M37: 0 | O37: 0 | P37: 0 | Q37: 0 | R37: 0 | S37: 0 | T37: 0 | U37: 0 | V37: 0 | W37: 0 | X37: 0 | Y37: 0 | Z37: 0 | AA37: 0 | AB37: 0 | AC37: 0 | AD37: 0 | AE37: 0 | AF37: 0 | AG37: 0 | AH37: 0 | AI37: 0 | AJ37: 0 | AK37: 0 | AL37: 0 | AM37: 0 | AN37: 0 | AO37: 0 | AP37: 0 | AQ37: 0 | AS37: 0 | AT37: 0 | AU37: 0 | AV37: 0 | AW37: 0 | AX37: 0 | AY37: 0 | AZ37: 0 | BA37: 0 | BC37: 0 | BD37: 0 | BE37: 0 | BF37: 0 | BG37: 0 | BH37: 0 | BI37: 0 | BJ37: 0 | BK37: 0 | BL37: 0 | BN37: 0 | BO37: 0 | BP37: 0 | BQ37: 0 | BR37: 0 | BS37: 0 | BT37: 0 | BV37: 0 | BW37: 0 | BX37: 0 | BZ37: =IF($D37="Connection",VLOOKUP(C37,'Input - General'!$F$62:$N$79,4,FALSE),0) -> 0 | CB37: 0.1801212934 | CC37: 0 | CD37: 0 | CF37: 0.08652781304 | CG37: 0 | CH37: 0
B38: ='Input - Inventory'!B35 -> 27 | C38: ='Input - Inventory'!C35 -> SMARTPOLE SINGLE LONG | D38: ='Input - Inventory'!D35 -> Bracket | E38: ='Input - Inventory'!E35 -> NonTraffic | F38: ='Input - Inventory'!F35 -> n/a | G38: ='Input - Inventory'!G35 -> 0 | I38: Bracket - SMARTPOLE SINGLE LONG | K38: 0 | L38: 0 | M38: 0 | O38: 0 | P38: 0 | Q38: 0 | R38: 0 | S38: 0 | T38: 0 | U38: 0 | V38: 0 | W38: 0 | X38: 0 | Y38: 0 | Z38: 0 | AA38: 0 | AB38: 0 | AC38: 0 | AD38: 0 | AE38: 0 | AF38: 0 | AG38: 0 | AH38: 0 | AI38: 0 | AJ38: 0 | AK38: 0 | AL38: 0 | AM38: 0 | AN38: 0 | AO38: 0 | AP38: 0 | AQ38: 0 | AS38: 0 | AT38: 0 | AU38: 0 | AV38: 0 | AW38: 0 | AX38: 0 | AY38: 0 | AZ38: 0 | BA38: 0 | BC38: 0 | BD38: 0 | BE38: 0 | BF38: 0 | BG38: 0 | BH38: 0 | BI38: 0 | BJ38: 0 | BK38: 0 | BL38: 0 | BN38: 0 | BO38: 0 | BP38: 0 | BQ38: 0 | BR38: 0 | BS38: 0 | BT38: 0 | BV38: 0 | BW38: 0 | BX38: 0 | BZ38: =IF($D38="Connection",VLOOKUP(C38,'Input - General'!$F$62:$N$79,4,FALSE),0) -> 0 | CB38: 0.1801212934 | CC38: 0 | CD38: 0 | CF38: 0.08652781304 | CG38: 0 | CH38: 0
B39: ='Input - Inventory'!B36 -> 28 | C39: ='Input - Inventory'!C36 -> SMARTPOLE SINGLE SHORT | D39: ='Input - Inventory'!D36 -> Bracket | E39: ='Input - Inventory'!E36 -> NonTraffic | F39: ='Input - Inventory'!F36 -> n/a | G39: ='Input - Inventory'!G36 -> 0 | I39: Bracket - SMARTPOLE SINGLE SHORT | K39: 0 | L39: 1 | M39: 0 | O39: 0 | P39: 0 | Q39: 0 | R39: 0 | S39: 0 | T39: 0 | U39: 0 | V39: 0 | W39: 0 | X39: 0 | Y39: 0 | Z39: 0 | AA39: 0 | AB39: 0 | AC39: 0 | AD39: 0 | AE39: 0 | AF39: 0 | AG39: 0 | AH39: 0 | AI39: 0 | AJ39: 0 | AK39: 0 | AL39: 0 | AM39: 0 | AN39: 0 | AO39: 0 | AP39: 0 | AQ39: 0 | AS39: 0 | AT39: 0 | AU39: 0 | AV39: 0 | AW39: 0 | AX39: 0 | AY39: 0 | AZ39: 0 | BA39: 0 | BC39: 0 | BD39: 0 | BE39: 0 | BF39: 0 | BG39: 0 | BH39: 0 | BI39: 0 | BJ39: 0 | BK39: 0 | BL39: 0 | BN39: 0 | BO39: 0 | BP39: 0 | BQ39: 0 | BR39: 0 | BS39: 0 | BT39: 0 | BV39: 0 | BW39: 0 | BX39: 0 | BZ39: =IF($D39="Connection",VLOOKUP(C39,'Input - General'!$F$62:$N$79,4,FALSE),0) -> 0 | CB39: 0.1801212934 | CC39: 0 | CD39: 0 | CF39: 0.08652781304 | CG39: 0 | CH39: 0
B40: ='Input - Inventory'!B37 -> 29 | C40: ='Input - Inventory'!C37 -> SUSPENDED | D40: ='Input - Inventory'!D37 -> Bracket | E40: ='Input - Inventory'!E37 -> NonTraffic | F40: ='Input - Inventory'!F37 -> n/a | G40: ='Input - Inventory'!G37 -> 0 | I40: Bracket - SUSPENDED | K40: 0 | L40: 153 | M40: 0 | O40: 0 | P40: 0 | Q40: 0 | R40: 0 | S40: 0 | T40: 0 | U40: 0 | V40: 0 | W40: 0 | X40: 0 | Y40: 0 | Z40: 0 | AA40: 0 | AB40: 0 | AC40: 0 | AD40: 0 | AE40: 0 | AF40: 0 | AG40: 0 | AH40: 0 | AI40: 0 | AJ40: 0 | AK40: 0 | AL40: 0 | AM40: 0 | AN40: 0 | AO40: 0 | AP40: 0 | AQ40: 0 | AS40: 0 | AT40: 0 | AU40: 0 | AV40: 0 | AW40: 0 | AX40: 0 | AY40: 0 | AZ40: 0 | BA40: 0 | BC40: 0 | BD40: 0 | BE40: 0 | BF40: 0 | BG40: 0 | BH40: 0 | BI40: 0 | BJ40: 0 | BK40: 0 | BL40: 0 | BN40: 0 | BO40: 0 | BP40: 0 | BQ40: 0 | BR40: 0 | BS40: 0 | BT40: 0 | BV40: 0 | BW40: 0 | BX40: 0 | BZ40: =IF($D40="Connection",VLOOKUP(C40,'Input - General'!$F$62:$N$79,4,FALSE),0) -> 0 | CB40: 0.1801212934 | CC40: 0 | CD40: 0 | CF40: 0.08652781304 | CG40: 0 | CH40: 0
B41: ='Input - Inventory'!B38 -> 30 | C41: ='Input - Inventory'!C38 -> T1 | D41: ='Input - Inventory'!D38 -> Bracket | E41: ='Input - Inventory'!E38 -> NonTraffic | F41: ='Input - Inventory'!F38 -> n/a | G41: ='Input - Inventory'!G38 -> 0 | I41: Bracket - T1 | K41: 0 | L41: 19762 | M41: 0 | O41: 0 | P41: 0 | Q41: 0 | R41: 0 | S41: 0 | T41: 0 | U41: 0 | V41: 0 | W41: 0 | X41: 0 | Y41: 0 | Z41: 0 | AA41: 0 | AB41: 0 | AC41: 0 | AD41: 0 | AE41: 0 | AF41: 0 | AG41: 0 | AH41: 0 | AI41: 0 | AJ41: 0 | AK41: 0 | AL41: 0 | AM41: 0 | AN41: 0 | AO41: 0 | AP41: 0 | AQ41: 0 | AS41: 0 | AT41: 0 | AU41: 0 | AV41: 0 | AW41: 0 | AX41: 0 | AY41: 0 | AZ41: 0 | BA41: 0 | BC41: 0 | BD41: 0 | BE41: 0 | BF41: 0 | BG41: 0 | BH41: 0 | BI41: 0 | BJ41: 0 | BK41: 0 | BL41: 0 | BN41: 0 | BO41: 0 | BP41: 0 | BQ41: 0 | BR41: 0 | BS41: 0 | BT41: 0 | BV41: 0 | BW41: 0 | BX41: 0 | BZ41: =IF($D41="Connection",VLOOKUP(C41,'Input - General'!$F$62:$N$79,4,FALSE),0) -> 0 | CB41: 0.1801212934 | CC41: 0 | CD41: 0 | CF41: 0.08652781304 | CG41: 0 | CH41: 0
B42: ='Input - Inventory'!B39 -> 31 | C42: ='Input - Inventory'!C39 -> T1 (P09) | D42: ='Input - Inventory'!D39 -> Bracket | E42: ='Input - Inventory'!E39 -> NonTraffic | F42: ='Input - Inventory'!F39 -> n/a | G42: ='Input - Inventory'!G39 -> 0 | I42: Bracket - T1 (P09) | K42: 0 | L42: 1335 | M42: 0 | O42: 0 | P42: 0 | Q42: 0 | R42: 0 | S42: 0 | T42: 0 | U42: 0 | V42: 0 | W42: 0 | X42: 0 | Y42: 0 | Z42: 0 | AA42: 0 | AB42: 0 | AC42: 0 | AD42: 0 | AE42: 0 | AF42: 0 | AG42: 0 | AH42: 0 | AI42: 0 | AJ42: 0 | AK42: 0 | AL42: 0 | AM42: 0 | AN42: 0 | AO42: 0 | AP42: 0 | AQ42: 0 | AS42: 0 | AT42: 0 | AU42: 0 | AV42: 0 | AW42: 0 | AX42: 0 | AY42: 0 | AZ42: 0 | BA42: 0 | BC42: 0 | BD42: 0 | BE42: 0 | BF42: 0 | BG42: 0 | BH42: 0 | BI42: 0 | BJ42: 0 | BK42: 0 | BL42: 0 | BN42: 0 | BO42: 0 | BP42: 0 | BQ42: 0 | BR42: 0 | BS42: 0 | BT42: 0 | BV42: 0 | BW42: 0 | BX42: 0 | BZ42: =IF($D42="Connection",VLOOKUP(C42,'Input - General'!$F$62:$N$79,4,FALSE),0) -> 0 | CB42: 0.1801212934 | CC42: 0 | CD42: 0 | CF42: 0.08652781304 | CG42: 0 | CH42: 0
B43: ='Input - Inventory'!B40 -> 32 | C43: ='Input - Inventory'!C40 -> T2 | D43: ='Input - Inventory'!D40 -> Bracket | E43: ='Input - Inventory'!E40 -> Traffic | F43: ='Input - Inventory'!F40 -> n/a | G43: ='Input - Inventory'!G40 -> 0 | I43: Bracket - T2 | K43: 0 | L43: 9830.5 | M43: 0 | O43: 0 | P43: 0 | Q43: 0 | R43: 0 | S43: 0 | T43: 0 | U43: 0 | V43: 0 | W43: 0 | X43: 0 | Y43: 0 | Z43: 0 | AA43: 0 | AB43: 0 | AC43: 0 | AD43: 0 | AE43: 0 | AF43: 0 | AG43: 0 | AH43: 0 | AI43: 0 | AJ43: 0 | AK43: 0 | AL43: 0 | AM43: 0 | AN43: 0 | AO43: 0 | AP43: 0 | AQ43: 0 | AS43: 0 | AT43: 0 | AU43: 0 | AV43: 0 | AW43: 0 | AX43: 0 | AY43: 0 | AZ43: 0 | BA43: 0 | BC43: 0 | BD43: 0 | BE43: 0 | BF43: 0 | BG43: 0 | BH43: 0 | BI43: 0 | BJ43: 0 | BK43: 0 | BL43: 0 | BN43: 0 | BO43: 0 | BP43: 0 | BQ43: 0 | BR43: 0 | BS43: 0 | BT43: 0 | BV43: 0 | BW43: 0 | BX43: 0 | BZ43: =IF($D43="Connection",VLOOKUP(C43,'Input - General'!$F$62:$N$79,4,FALSE),0) -> 0 | CB43: 0.1801212934 | CC43: 0 | CD43: 0 | CF43: 0.08652781304 | CG43: 0 | CH43: 0
B44: ='Input - Inventory'!B41 -> 33 | C44: ='Input - Inventory'!C41 -> T2A | D44: ='Input - Inventory'!D41 -> Bracket | E44: ='Input - Inventory'!E41 -> Traffic | F44: ='Input - Inventory'!F41 -> n/a | G44: ='Input - Inventory'!G41 -> 0 | I44: Bracket - T2A | K44: 0 | L44: 1196 | M44: 0 | O44: 0 | P44: 0 | Q44: 0 | R44: 0 | S44: 0 | T44: 0 | U44: 0 | V44: 0 | W44: 0 | X44: 0 | Y44: 0 | Z44: 0 | AA44: 0 | AB44: 0 | AC44: 0 | AD44: 0 | AE44: 0 | AF44: 0 | AG44: 0 | AH44: 0 | AI44: 0 | AJ44: 0 | AK44: 0 | AL44: 0 | AM44: 0 | AN44: 0 | AO44: 0 | AP44: 0 | AQ44: 0 | AS44: 0 | AT44: 0 | AU44: 0 | AV44: 0 | AW44: 0 | AX44: 0 | AY44: 0 | AZ44: 0 | BA44: 0 | BC44: 0 | BD44: 0 | BE44: 0 | BF44: 0 | BG44: 0 | BH44: 0 | BI44: 0 | BJ44: 0 | BK44: 0 | BL44: 0 | BN44: 0 | BO44: 0 | BP44: 0 | BQ44: 0 | BR44: 0 | BS44: 0 | BT44: 0 | BV44: 0 | BW44: 0 | BX44: 0 | BZ44: =IF($D44="Connection",VLOOKUP(C44,'Input - General'!$F$62:$N$79,4,FALSE),0) -> 0 | CB44: 0.1801212934 | CC44: 0 | CD44: 0 | CF44: 0.08652781304 | CG44: 0 | CH44: 0
B45: ='Input - Inventory'!B42 -> 34 | C45: ='Input - Inventory'!C42 -> T2A (P09) | D45: ='Input - Inventory'!D42 -> Bracket | E45: ='Input - Inventory'!E42 -> Traffic | F45: ='Input - Inventory'!F42 -> n/a | G45: ='Input - Inventory'!G42 -> 0 | I45: Bracket - T2A (P09) | K45: 0 | L45: 174 | M45: 0 | O45: 0 | P45: 0 | Q45: 0 | R45: 0 | S45: 0 | T45: 0 | U45: 0 | V45: 0 | W45: 0 | X45: 0 | Y45: 0 | Z45: 0 | AA45: 0 | AB45: 0 | AC45: 0 | AD45: 0 | AE45: 0 | AF45: 0 | AG45: 0 | AH45: 0 | AI45: 0 | AJ45: 0 | AK45: 0 | AL45: 0 | AM45: 0 | AN45: 0 | AO45: 0 | AP45: 0 | AQ45: 0 | AS45: 0 | AT45: 0 | AU45: 0 | AV45: 0 | AW45: 0 | AX45: 0 | AY45: 0 | AZ45: 0 | BA45: 0 | BC45: 0 | BD45: 0 | BE45: 0 | BF45: 0 | BG45: 0 | BH45: 0 | BI45: 0 | BJ45: 0 | BK45: 0 | BL45: 0 | BN45: 0 | BO45: 0 | BP45: 0 | BQ45: 0 | BR45: 0 | BS45: 0 | BT45: 0 | BV45: 0 | BW45: 0 | BX45: 0 | BZ45: =IF($D45="Connection",VLOOKUP(C45,'Input - General'!$F$62:$N$79,4,FALSE),0) -> 0 | CB45: 0.1801212934 | CC45: 0 | CD45: 0 | CF45: 0.08652781304 | CG45: 0 | CH45: 0
B46: ='Input - Inventory'!B43 -> 35 | C46: ='Input - Inventory'!C43 -> T3 | D46: ='Input - Inventory'!D43 -> Bracket | E46: ='Input - Inventory'!E43 -> Traffic | F46: ='Input - Inventory'!F43 -> n/a | G46: ='Input - Inventory'!G43 -> 0 | I46: Bracket - T3 | K46: 0 | L46: 3628 | M46: 0 | O46: 0 | P46: 0 | Q46: 0 | R46: 0 | S46: 0 | T46: 0 | U46: 0 | V46: 0 | W46: 0 | X46: 0 | Y46: 0 | Z46: 0 | AA46: 0 | AB46: 0 | AC46: 0 | AD46: 0 | AE46: 0 | AF46: 0 | AG46: 0 | AH46: 0 | AI46: 0 | AJ46: 0 | AK46: 0 | AL46: 0 | AM46: 0 | AN46: 0 | AO46: 0 | AP46: 0 | AQ46: 0 | AS46: 0 | AT46: 0 | AU46: 0 | AV46: 0 | AW46: 0 | AX46: 0 | AY46: 0 | AZ46: 0 | BA46: 0 | BC46: 0 | BD46: 0 | BE46: 0 | BF46: 0 | BG46: 0 | BH46: 0 | BI46: 0 | BJ46: 0 | BK46: 0 | BL46: 0 | BN46: 0 | BO46: 0 | BP46: 0 | BQ46: 0 | BR46: 0 | BS46: 0 | BT46: 0 | BV46: 0 | BW46: 0 | BX46: 0 | BZ46: =IF($D46="Connection",VLOOKUP(C46,'Input - General'!$F$62:$N$79,4,FALSE),0) -> 0 | CB46: 0.1801212934 | CC46: 0 | CD46: 0 | CF46: 0.08652781304 | CG46: 0 | CH46: 0
B47: ='Input - Inventory'!B44 -> 36 | C47: ='Input - Inventory'!C44 -> T3 (P09) | D47: ='Input - Inventory'!D44 -> Bracket | E47: ='Input - Inventory'!E44 -> Traffic | F47: ='Input - Inventory'!F44 -> n/a | G47: ='Input - Inventory'!G44 -> 0 | I47: Bracket - T3 (P09) | K47: 0 | L47: 649.5 | M47: 0 | O47: 0 | P47: 0 | Q47: 0 | R47: 0 | S47: 0 | T47: 0 | U47: 0 | V47: 0 | W47: 0 | X47: 0 | Y47: 0 | Z47: 0 | AA47: 0 | AB47: 0 | AC47: 0 | AD47: 0 | AE47: 0 | AF47: 0 | AG47: 0 | AH47: 0 | AI47: 0 | AJ47: 0 | AK47: 0 | AL47: 0 | AM47: 0 | AN47: 0 | AO47: 0 | AP47: 0 | AQ47: 0 | AS47: 0 | AT47: 0 | AU47: 0 | AV47: 0 | AW47: 0 | AX47: 0 | AY47: 0 | AZ47: 0 | BA47: 0 | BC47: 0 | BD47: 0 | BE47: 0 | BF47: 0 | BG47: 0 | BH47: 0 | BI47: 0 | BJ47: 0 | BK47: 0 | BL47: 0 | BN47: 0 | BO47: 0 | BP47: 0 | BQ47: 0 | BR47: 0 | BS47: 0 | BT47: 0 | BV47: 0 | BW47: 0 | BX47: 0 | BZ47: =IF($D47="Connection",VLOOKUP(C47,'Input - General'!$F$62:$N$79,4,FALSE),0) -> 0 | CB47: 0.1801212934 | CC47: 0 | CD47: 0 | CF47: 0.08652781304 | CG47: 0 | CH47: 0
B48: ='Input - Inventory'!B45 -> 37 | C48: ='Input - Inventory'!C45 -> T3A | D48: ='Input - Inventory'!D45 -> Bracket | E48: ='Input - Inventory'!E45 -> Traffic | F48: ='Input - Inventory'!F45 -> n/a | G48: ='Input - Inventory'!G45 -> 0 | I48: Bracket - T3A | K48: 0 | L48: 1031 | M48: 0 | O48: 0 | P48: 0 | Q48: 0 | R48: 0 | S48: 0 | T48: 0 | U48: 0 | V48: 0 | W48: 0 | X48: 0 | Y48: 0 | Z48: 0 | AA48: 0 | AB48: 0 | AC48: 0 | AD48: 0 | AE48: 0 | AF48: 0 | AG48: 0 | AH48: 0 | AI48: 0 | AJ48: 0 | AK48: 0 | AL48: 0 | AM48: 0 | AN48: 0 | AO48: 0 | AP48: 0 | AQ48: 0 | AS48: 0 | AT48: 0 | AU48: 0 | AV48: 0 | AW48: 0 | AX48: 0 | AY48: 0 | AZ48: 0 | BA48: 0 | BC48: 0 | BD48: 0 | BE48: 0 | BF48: 0 | BG48: 0 | BH48: 0 | BI48: 0 | BJ48: 0 | BK48: 0 | BL48: 0 | BN48: 0 | BO48: 0 | BP48: 0 | BQ48: 0 | BR48: 0 | BS48: 0 | BT48: 0 | BV48: 0 | BW48: 0 | BX48: 0 | BZ48: =IF($D48="Connection",VLOOKUP(C48,'Input - General'!$F$62:$N$79,4,FALSE),0) -> 0 | CB48: 0.1801212934 | CC48: 0 | CD48: 0 | CF48: 0.08652781304 | CG48: 0 | CH48: 0
B49: ='Input - Inventory'!B46 -> 38 | C49: ='Input - Inventory'!C46 -> T4 | D49: ='Input - Inventory'!D46 -> Bracket | E49: ='Input - Inventory'!E46 -> Traffic | F49: ='Input - Inventory'!F46 -> n/a | G49: ='Input - Inventory'!G46 -> 0 | I49: Bracket - T4 | K49: 0 | L49: 11045 | M49: 0 | O49: 0 | P49: 0 | Q49: 0 | R49: 0 | S49: 0 | T49: 0 | U49: 0 | V49: 0 | W49: 0 | X49: 0 | Y49: 0 | Z49: 0 | AA49: 0 | AB49: 0 | AC49: 0 | AD49: 0 | AE49: 0 | AF49: 0 | AG49: 0 | AH49: 0 | AI49: 0 | AJ49: 0 | AK49: 0 | AL49: 0 | AM49: 0 | AN49: 0 | AO49: 0 | AP49: 0 | AQ49: 0 | AS49: 0 | AT49: 0 | AU49: 0 | AV49: 0 | AW49: 0 | AX49: 0 | AY49: 0 | AZ49: 0 | BA49: 0 | BC49: 0 | BD49: 0 | BE49: 0 | BF49: 0 | BG49: 0 | BH49: 0 | BI49: 0 | BJ49: 0 | BK49: 0 | BL49: 0 | BN49: 0 | BO49: 0 | BP49: 0 | BQ49: 0 | BR49: 0 | BS49: 0 | BT49: 0 | BV49: 0 | BW49: 0 | BX49: 0 | BZ49: =IF($D49="Connection",VLOOKUP(C49,'Input - General'!$F$62:$N$79,4,FALSE),0) -> 0 | CB49: 0.1801212934 | CC49: 0 | CD49: 0 | CF49: 0.08652781304 | CG49: 0 | CH49: 0
B50: ='Input - Inventory'!B47 -> 39 | C50: ='Input - Inventory'!C47 -> T4 (P09) | D50: ='Input - Inventory'!D47 -> Bracket | E50: ='Input - Inventory'!E47 -> Traffic | F50: ='Input - Inventory'!F47 -> n/a | G50: ='Input - Inventory'!G47 -> 0 | I50: Bracket - T4 (P09) | K50: 0 | L50: 500 | M50: 0 | O50: 0 | P50: 0 | Q50: 0 | R50: 0 | S50: 0 | T50: 0 | U50: 0 | V50: 0 | W50: 0 | X50: 0 | Y50: 0 | Z50: 0 | AA50: 0 | AB50: 0 | AC50: 0 | AD50: 0 | AE50: 0 | AF50: 0 | AG50: 0 | AH50: 0 | AI50: 0 | AJ50: 0 | AK50: 0 | AL50: 0 | AM50: 0 | AN50: 0 | AO50: 0 | AP50: 0 | AQ50: 0 | AS50: 0 | AT50: 0 | AU50: 0 | AV50: 0 | AW50: 0 | AX50: 0 | AY50: 0 | AZ50: 0 | BA50: 0 | BC50: 0 | BD50: 0 | BE50: 0 | BF50: 0 | BG50: 0 | BH50: 0 | BI50: 0 | BJ50: 0 | BK50: 0 | BL50: 0 | BN50: 0 | BO50: 0 | BP50: 0 | BQ50: 0 | BR50: 0 | BS50: 0 | BT50: 0 | BV50: 0 | BW50: 0 | BX50: 0 | BZ50: =IF($D50="Connection",VLOOKUP(C50,'Input - General'!$F$62:$N$79,4,FALSE),0) -> 0 | CB50: 0.1801212934 | CC50: 0 | CD50: 0 | CF50: 0.08652781304 | CG50: 0 | CH50: 0
B51: ='Input - Inventory'!B48 -> 40 | C51: ='Input - Inventory'!C48 -> T5 | D51: ='Input - Inventory'!D48 -> Bracket | E51: ='Input - Inventory'!E48 -> Traffic | F51: ='Input - Inventory'!F48 -> n/a | G51: ='Input - Inventory'!G48 -> 0 | I51: Bracket - T5 | K51: 0 | L51: 515 | M51: 0 | O51: 0 | P51: 0 | Q51: 0 | R51: 0 | S51: 0 | T51: 0 | U51: 0 | V51: 0 | W51: 0 | X51: 0 | Y51: 0 | Z51: 0 | AA51: 0 | AB51: 0 | AC51: 0 | AD51: 0 | AE51: 0 | AF51: 0 | AG51: 0 | AH51: 0 | AI51: 0 | AJ51: 0 | AK51: 0 | AL51: 0 | AM51: 0 | AN51: 0 | AO51: 0 | AP51: 0 | AQ51: 0 | AS51: 0 | AT51: 0 | AU51: 0 | AV51: 0 | AW51: 0 | AX51: 0 | AY51: 0 | AZ51: 0 | BA51: 0 | BC51: 0 | BD51: 0 | BE51: 0 | BF51: 0 | BG51: 0 | BH51: 0 | BI51: 0 | BJ51: 0 | BK51: 0 | BL51: 0 | BN51: 0 | BO51: 0 | BP51: 0 | BQ51: 0 | BR51: 0 | BS51: 0 | BT51: 0 | BV51: 0 | BW51: 0 | BX51: 0 | BZ51: =IF($D51="Connection",VLOOKUP(C51,'Input - General'!$F$62:$N$79,4,FALSE),0) -> 0 | CB51: 0.1801212934 | CC51: 0 | CD51: 0 | CF51: 0.08652781304 | CG51: 0 | CH51: 0
B52: ='Input - Inventory'!B49 -> 41 | C52: ='Input - Inventory'!C49 -> T5 (P09) | D52: ='Input - Inventory'!D49 -> Bracket | E52: ='Input - Inventory'!E49 -> Traffic | F52: ='Input - Inventory'!F49 -> n/a | G52: ='Input - Inventory'!G49 -> 0 | I52: Bracket - T5 (P09) | K52: 0 | L52: 80 | M52: 0 | O52: 0 | P52: 0 | Q52: 0 | R52: 0 | S52: 0 | T52: 0 | U52: 0 | V52: 0 | W52: 0 | X52: 0 | Y52: 0 | Z52: 0 | AA52: 0 | AB52: 0 | AC52: 0 | AD52: 0 | AE52: 0 | AF52: 0 | AG52: 0 | AH52: 0 | AI52: 0 | AJ52: 0 | AK52: 0 | AL52: 0 | AM52: 0 | AN52: 0 | AO52: 0 | AP52: 0 | AQ52: 0 | AS52: 0 | AT52: 0 | AU52: 0 | AV52: 0 | AW52: 0 | AX52: 0 | AY52: 0 | AZ52: 0 | BA52: 0 | BC52: 0 | BD52: 0 | BE52: 0 | BF52: 0 | BG52: 0 | BH52: 0 | BI52: 0 | BJ52: 0 | BK52: 0 | BL52: 0 | BN52: 0 | BO52: 0 | BP52: 0 | BQ52: 0 | BR52: 0 | BS52: 0 | BT52: 0 | BV52: 0 | BW52: 0 | BX52: 0 | BZ52: =IF($D52="Connection",VLOOKUP(C52,'Input - General'!$F$62:$N$79,4,FALSE),0) -> 0 | CB52: 0.1801212934 | CC52: 0 | CD52: 0 | CF52: 0.08652781304 | CG52: 0 | CH52: 0
B53: ='Input - Inventory'!B50 -> 42 | C53: ='Input - Inventory'!C50 -> T6 | D53: ='Input - Inventory'!D50 -> Bracket | E53: ='Input - Inventory'!E50 -> Traffic | F53: ='Input - Inventory'!F50 -> n/a | G53: ='Input - Inventory'!G50 -> 0 | I53: Bracket - T6 | K53: 0 | L53: 2029 | M53: 0 | O53: 0 | P53: 0 | Q53: 0 | R53: 0 | S53: 0 | T53: 0 | U53: 0 | V53: 0 | W53: 0 | X53: 0 | Y53: 0 | Z53: 0 | AA53: 0 | AB53: 0 | AC53: 0 | AD53: 0 | AE53: 0 | AF53: 0 | AG53: 0 | AH53: 0 | AI53: 0 | AJ53: 0 | AK53: 0 | AL53: 0 | AM53: 0 | AN53: 0 | AO53: 0 | AP53: 0 | AQ53: 0 | AS53: 0 | AT53: 0 | AU53: 0 | AV53: 0 | AW53: 0 | AX53: 0 | AY53: 0 | AZ53: 0 | BA53: 0 | BC53: 0 | BD53: 0 | BE53: 0 | BF53: 0 | BG53: 0 | BH53: 0 | BI53: 0 | BJ53: 0 | BK53: 0 | BL53: 0 | BN53: 0 | BO53: 0 | BP53: 0 | BQ53: 0 | BR53: 0 | BS53: 0 | BT53: 0 | BV53: 0 | BW53: 0 | BX53: 0 | BZ53: =IF($D53="Connection",VLOOKUP(C53,'Input - General'!$F$62:$N$79,4,FALSE),0) -> 0 | CB53: 0.1801212934 | CC53: 0 | CD53: 0 | CF53: 0.08652781304 | CG53: 0 | CH53: 0
B54: ='Input - Inventory'!B51 -> 43 | C54: ='Input - Inventory'!C51 -> T6 (P09) | D54: ='Input - Inventory'!D51 -> Bracket | E54: ='Input - Inventory'!E51 -> Traffic | F54: ='Input - Inventory'!F51 -> n/a | G54: ='Input - Inventory'!G51 -> 0 | I54: Bracket - T6 (P09) | K54: 0 | L54: 347 | M54: 0 | O54: 0 | P54: 0 | Q54: 0 | R54: 0 | S54: 0 | T54: 0 | U54: 0 | V54: 0 | W54: 0 | X54: 0 | Y54: 0 | Z54: 0 | AA54: 0 | AB54: 0 | AC54: 0 | AD54: 0 | AE54: 0 | AF54: 0 | AG54: 0 | AH54: 0 | AI54: 0 | AJ54: 0 | AK54: 0 | AL54: 0 | AM54: 0 | AN54: 0 | AO54: 0 | AP54: 0 | AQ54: 0 | AS54: 0 | AT54: 0 | AU54: 0 | AV54: 0 | AW54: 0 | AX54: 0 | AY54: 0 | AZ54: 0 | BA54: 0 | BC54: 0 | BD54: 0 | BE54: 0 | BF54: 0 | BG54: 0 | BH54: 0 | BI54: 0 | BJ54: 0 | BK54: 0 | BL54: 0 | BN54: 0 | BO54: 0 | BP54: 0 | BQ54: 0 | BR54: 0 | BS54: 0 | BT54: 0 | BV54: 0 | BW54: 0 | BX54: 0 | BZ54: =IF($D54="Connection",VLOOKUP(C54,'Input - General'!$F$62:$N$79,4,FALSE),0) -> 0 | CB54: 0.1801212934 | CC54: 0 | CD54: 0 | CF54: 0.08652781304 | CG54: 0 | CH54: 0
B55: ='Input - Inventory'!B52 -> 44 | C55: ='Input - Inventory'!C52 -> T7 | D55: ='Input - Inventory'!D52 -> Bracket | E55: ='Input - Inventory'!E52 -> Traffic | F55: ='Input - Inventory'!F52 -> n/a | G55: ='Input - Inventory'!G52 -> 0 | I55: Bracket - T7 | K55: 0 | L55: 722 | M55: 0 | O55: 0 | P55: 0 | Q55: 0 | R55: 0 | S55: 0 | T55: 0 | U55: 0 | V55: 0 | W55: 0 | X55: 0 | Y55: 0 | Z55: 0 | AA55: 0 | AB55: 0 | AC55: 0 | AD55: 0 | AE55: 0 | AF55: 0 | AG55: 0 | AH55: 0 | AI55: 0 | AJ55: 0 | AK55: 0 | AL55: 0 | AM55: 0 | AN55: 0 | AO55: 0 | AP55: 0 | AQ55: 0 | AS55: 0 | AT55: 0 | AU55: 0 | AV55: 0 | AW55: 0 | AX55: 0 | AY55: 0 | AZ55: 0 | BA55: 0 | BC55: 0 | BD55: 0 | BE55: 0 | BF55: 0 | BG55: 0 | BH55: 0 | BI55: 0 | BJ55: 0 | BK55: 0 | BL55: 0 | BN55: 0 | BO55: 0 | BP55: 0 | BQ55: 0 | BR55: 0 | BS55: 0 | BT55: 0 | BV55: 0 | BW55: 0 | BX55: 0 | BZ55: =IF($D55="Connection",VLOOKUP(C55,'Input - General'!$F$62:$N$79,4,FALSE),0) -> 0 | CB55: 0.1801212934 | CC55: 0 | CD55: 0 | CF55: 0.08652781304 | CG55: 0 | CH55: 0
B56: ='Input - Inventory'!B53 -> 45 | C56: ='Input - Inventory'!C53 -> T7 (P09) | D56: ='Input - Inventory'!D53 -> Bracket | E56: ='Input - Inventory'!E53 -> Traffic | F56: ='Input - Inventory'!F53 -> n/a | G56: ='Input - Inventory'!G53 -> 0 | I56: Bracket - T7 (P09) | K56: 0 | L56: 182.5 | M56: 0 | O56: 0 | P56: 0 | Q56: 0 | R56: 0 | S56: 0 | T56: 0 | U56: 0 | V56: 0 | W56: 0 | X56: 0 | Y56: 0 | Z56: 0 | AA56: 0 | AB56: 0 | AC56: 0 | AD56: 0 | AE56: 0 | AF56: 0 | AG56: 0 | AH56: 0 | AI56: 0 | AJ56: 0 | AK56: 0 | AL56: 0 | AM56: 0 | AN56: 0 | AO56: 0 | AP56: 0 | AQ56: 0 | AS56: 0 | AT56: 0 | AU56: 0 | AV56: 0 | AW56: 0 | AX56: 0 | AY56: 0 | AZ56: 0 | BA56: 0 | BC56: 0 | BD56: 0 | BE56: 0 | BF56: 0 | BG56: 0 | BH56: 0 | BI56: 0 | BJ56: 0 | BK56: 0 | BL56: 0 | BN56: 0 | BO56: 0 | BP56: 0 | BQ56: 0 | BR56: 0 | BS56: 0 | BT56: 0 | BV56: 0 | BW56: 0 | BX56: 0 | BZ56: =IF($D56="Connection",VLOOKUP(C56,'Input - General'!$F$62:$N$79,4,FALSE),0) -> 0 | CB56: 0.1801212934 | CC56: 0 | CD56: 0 | CF56: 0.08652781304 | CG56: 0 | CH56: 0
B57: ='Input - Inventory'!B54 -> 46 | C57: ='Input - Inventory'!C54 -> EMPTY | D57: ='Input - Inventory'!D54 -> Connection | E57: ='Input - Inventory'!E54 -> NonTraffic | F57: ='Input - Inventory'!F54 -> n/a | G57: ='Input - Inventory'!G54 -> 0 | I57: Connection - EMPTY | K57: 0 | L57: 0 | M57: 0 | O57: 0 | P57: 0 | Q57: 0 | R57: 0 | S57: 0 | T57: 0 | U57: 0 | V57: 0 | W57: 0 | X57: 0 | Y57: 0 | Z57: 0 | AA57: 0 | AB57: 0 | AC57: 0 | AD57: 0 | AE57: 0 | AF57: 0 | AG57: 0 | AH57: 0 | AI57: 0 | AJ57: 0 | AK57: 0 | AL57: 0 | AM57: 0 | AN57: 0 | AO57: 0 | AP57: 0 | AQ57: 0 | AS57: 0 | AT57: 0 | AU57: 0 | AV57: 0 | AW57: 0 | AX57: 0 | AY57: 0 | AZ57: 0 | BA57: 0 | BC57: 0 | BD57: 0 | BE57: 0 | BF57: 0 | BG57: 0 | BH57: 0 | BI57: 0 | BJ57: 0 | BK57: 0 | BL57: 0 | BN57: 0 | BO57: 0 | BP57: 0 | BQ57: 0 | BR57: 0 | BS57: 0 | BT57: 0 | BV57: 0 | BW57: 0 | BX57: 0 | BZ57: =IF($D57="Connection",VLOOKUP(C57,'Input - General'!$F$62:$N$79,4,FALSE),0) -> 0 | CB57: 0.1801212934 | CC57: 0 | CD57: 0 | CF57: 0.08652781304 | CG57: 0 | CH57: 0
B58: ='Input - Inventory'!B55 -> 47 | C58: ='Input - Inventory'!C55 -> O/U (P09) | D58: ='Input - Inventory'!D55 -> Connection | E58: ='Input - Inventory'!E55 -> NonTraffic | F58: ='Input - Inventory'!F55 -> n/a | G58: ='Input - Inventory'!G55 -> 0 | I58: Connection - O/U (P09) | K58: 88.33 | L58: 14 | M58: 1236.62 | O58: 0 | P58: 0 | Q58: 0 | R58: 0 | S58: 0 | T58: 0 | U58: 0 | V58: 0 | W58: 0 | X58: 0 | Y58: 0 | Z58: 0 | AA58: 0 | AB58: 0 | AC58: 0 | AD58: 0 | AE58: 0 | AF58: 0 | AG58: 0 | AH58: 0 | AI58: 0 | AJ58: 0 | AK58: 0 | AL58: 0 | AM58: 0 | AN58: 0 | AO58: 0 | AP58: 0 | AQ58: 0 | AS58: 0 | AT58: 0 | AU58: 0 | AV58: 0 | AW58: 0 | AX58: 0 | AY58: 0 | AZ58: 0 | BA58: 0 | BC58: 0 | BD58: 0 | BE58: 0 | BF58: 0 | BG58: 0 | BH58: 0 | BI58: 0 | BJ58: 0 | BK58: 0 | BL58: 0 | BN58: 0 | BO58: 0 | BP58: 0 | BQ58: 0 | BR58: 0 | BS58: 0 | BT58: 0 | BV58: 0 | BW58: 0 | BX58: 0 | BZ58: =IF($D58="Connection",VLOOKUP(C58,'Input - General'!$F$62:$N$79,4,FALSE),0) -> 68.88754948 | CB58: 0.1801212934 | CC58: 68.88754948 | CD58: 12.40811451 | CF58: 0.08652781304 | CG58: 81.29566399 | CH58: 7.034336014
B59: ='Input - Inventory'!B56 -> 48 | C59: ='Input - Inventory'!C56 -> OH | D59: ='Input - Inventory'!D56 -> Connection | E59: ='Input - Inventory'!E56 -> NonTraffic | F59: ='Input - Inventory'!F56 -> n/a | G59: ='Input - Inventory'!G56 -> 0 | I59: Connection - OH | K59: 0 | L59: 191303.5 | M59: 0 | O59: 0 | P59: 0 | Q59: 0 | R59: 0 | S59: 0 | T59: 0 | U59: 0 | V59: 0 | W59: 0 | X59: 0 | Y59: 0 | Z59: 0 | AA59: 0 | AB59: 0 | AC59: 0 | AD59: 0 | AE59: 0 | AF59: 0 | AG59: 0 | AH59: 0 | AI59: 0 | AJ59: 0 | AK59: 0 | AL59: 0 | AM59: 0 | AN59: 0 | AO59: 0 | AP59: 0 | AQ59: 0 | AS59: 0 | AT59: 0 | AU59: 0 | AV59: 0 | AW59: 0 | AX59: 0 | AY59: 0 | AZ59: 0 | BA59: 0 | BC59: 0 | BD59: 0 | BE59: 0 | BF59: 0 | BG59: 0 | BH59: 0 | BI59: 0 | BJ59: 0 | BK59: 0 | BL59: 0 | BN59: 0 | BO59: 0 | BP59: 0 | BQ59: 0 | BR59: 0 | BS59: 0 | BT59: 0 | BV59: 0 | BW59: 0 | BX59: 0 | BZ59: =IF($D59="Connection",VLOOKUP(C59,'Input - General'!$F$62:$N$79,4,FALSE),0) -> 0 | CB59: 0.1801212934 | CC59: 0 | CD59: 0 | CF59: 0.08652781304 | CG59: 0 | CH59: 0
B60: ='Input - Inventory'!B57 -> 49 | C60: ='Input - Inventory'!C57 -> OH(P09) | D60: ='Input - Inventory'!D57 -> Connection | E60: ='Input - Inventory'!E57 -> NonTraffic | F60: ='Input - Inventory'!F57 -> n/a | G60: ='Input - Inventory'!G57 -> 0 | I60: Connection - OH(P09) | K60: 0 | L60: 5736 | M60: 0 | O60: 0 | P60: 0 | Q60: 0 | R60: 0 | S60: 0 | T60: 0 | U60: 0 | V60: 0 | W60: 0 | X60: 0 | Y60: 0 | Z60: 0 | AA60: 0 | AB60: 0 | AC60: 0 | AD60: 0 | AE60: 0 | AF60: 0 | AG60: 0 | AH60: 0 | AI60: 0 | AJ60: 0 | AK60: 0 | AL60: 0 | AM60: 0 | AN60: 0 | AO60: 0 | AP60: 0 | AQ60: 0 | AS60: 0 | AT60: 0 | AU60: 0 | AV60: 0 | AW60: 0 | AX60: 0 | AY60: 0 | AZ60: 0 | BA60: 0 | BC60: 0 | BD60: 0 | BE60: 0 | BF60: 0 | BG60: 0 | BH60: 0 | BI60: 0 | BJ60: 0 | BK60: 0 | BL60: 0 | BN60: 0 | BO60: 0 | BP60: 0 | BQ60: 0 | BR60: 0 | BS60: 0 | BT60: 0 | BV60: 0 | BW60: 0 | BX60: 0 | BZ60: =IF($D60="Connection",VLOOKUP(C60,'Input - General'!$F$62:$N$79,4,FALSE),0) -> 0 | CB60: 0.1801212934 | CC60: 0 | CD60: 0 | CF60: 0.08652781304 | CG60: 0 | CH60: 0
B61: ='Input - Inventory'!B58 -> 50 | C61: ='Input - Inventory'!C58 -> OH2 | D61: ='Input - Inventory'!D58 -> Connection | E61: ='Input - Inventory'!E58 -> NonTraffic | F61: ='Input - Inventory'!F58 -> n/a | G61: ='Input - Inventory'!G58 -> 0 | I61: Connection - OH2 | K61: 0 | L61: 484 | M61: 0 | O61: 0 | P61: 0 | Q61: 0 | R61: 0 | S61: 0 | T61: 0 | U61: 0 | V61: 0 | W61: 0 | X61: 0 | Y61: 0 | Z61: 0 | AA61: 0 | AB61: 0 | AC61: 0 | AD61: 0 | AE61: 0 | AF61: 0 | AG61: 0 | AH61: 0 | AI61: 0 | AJ61: 0 | AK61: 0 | AL61: 0 | AM61: 0 | AN61: 0 | AO61: 0 | AP61: 0 | AQ61: 0 | AS61: 0 | AT61: 0 | AU61: 0 | AV61: 0 | AW61: 0 | AX61: 0 | AY61: 0 | AZ61: 0 | BA61: 0 | BC61: 0 | BD61: 0 | BE61: 0 | BF61: 0 | BG61: 0 | BH61: 0 | BI61: 0 | BJ61: 0 | BK61: 0 | BL61: 0 | BN61: 0 | BO61: 0 | BP61: 0 | BQ61: 0 | BR61: 0 | BS61: 0 | BT61: 0 | BV61: 0 | BW61: 0 | BX61: 0 | BZ61: =IF($D61="Connection",VLOOKUP(C61,'Input - General'!$F$62:$N$79,4,FALSE),0) -> 0 | CB61: 0.1801212934 | CC61: 0 | CD61: 0 | CF61: 0.08652781304 | CG61: 0 | CH61: 0
B62: ='Input - Inventory'!B59 -> 51 | C62: ='Input - Inventory'!C59 -> OH2 (P09) | D62: ='Input - Inventory'!D59 -> Connection | E62: ='Input - Inventory'!E59 -> NonTraffic | F62: ='Input - Inventory'!F59 -> n/a | G62: ='Input - Inventory'!G59 -> 0 | I62: Connection - OH2 (P09) | K62: 0 | L62: 119 | M62: 0 | O62: 0 | P62: 0 | Q62: 0 | R62: 0 | S62: 0 | T62: 0 | U62: 0 | V62: 0 | W62: 0 | X62: 0 | Y62: 0 | Z62: 0 | AA62: 0 | AB62: 0 | AC62: 0 | AD62: 0 | AE62: 0 | AF62: 0 | AG62: 0 | AH62: 0 | AI62: 0 | AJ62: 0 | AK62: 0 | AL62: 0 | AM62: 0 | AN62: 0 | AO62: 0 | AP62: 0 | AQ62: 0 | AS62: 0 | AT62: 0 | AU62: 0 | AV62: 0 | AW62: 0 | AX62: 0 | AY62: 0 | AZ62: 0 | BA62: 0 | BC62: 0 | BD62: 0 | BE62: 0 | BF62: 0 | BG62: 0 | BH62: 0 | BI62: 0 | BJ62: 0 | BK62: 0 | BL62: 0 | BN62: 0 | BO62: 0 | BP62: 0 | BQ62: 0 | BR62: 0 | BS62: 0 | BT62: 0 | BV62: 0 | BW62: 0 | BX62: 0 | BZ62: =IF($D62="Connection",VLOOKUP(C62,'Input - General'!$F$62:$N$79,4,FALSE),0) -> 0 | CB62: 0.1801212934 | CC62: 0 | CD62: 0 | CF62: 0.08652781304 | CG62: 0 | CH62: 0
B63: ='Input - Inventory'!B60 -> 52 | C63: ='Input - Inventory'!C60 -> OHS | D63: ='Input - Inventory'!D60 -> Connection | E63: ='Input - Inventory'!E60 -> NonTraffic | F63: ='Input - Inventory'!F60 -> n/a | G63: ='Input - Inventory'!G60 -> 0 | I63: Connection - OHS | K63: 0 | L63: 4 | M63: 0 | O63: 0 | P63: 0 | Q63: 0 | R63: 0 | S63: 0 | T63: 0 | U63: 0 | V63: 0 | W63: 0 | X63: 0 | Y63: 0 | Z63: 0 | AA63: 0 | AB63: 0 | AC63: 0 | AD63: 0 | AE63: 0 | AF63: 0 | AG63: 0 | AH63: 0 | AI63: 0 | AJ63: 0 | AK63: 0 | AL63: 0 | AM63: 0 | AN63: 0 | AO63: 0 | AP63: 0 | AQ63: 0 | AS63: 0 | AT63: 0 | AU63: 0 | AV63: 0 | AW63: 0 | AX63: 0 | AY63: 0 | AZ63: 0 | BA63: 0 | BC63: 0 | BD63: 0 | BE63: 0 | BF63: 0 | BG63: 0 | BH63: 0 | BI63: 0 | BJ63: 0 | BK63: 0 | BL63: 0 | BN63: 0 | BO63: 0 | BP63: 0 | BQ63: 0 | BR63: 0 | BS63: 0 | BT63: 0 | BV63: 0 | BW63: 0 | BX63: 0 | BZ63: =IF($D63="Connection",VLOOKUP(C63,'Input - General'!$F$62:$N$79,4,FALSE),0) -> 0 | CB63: 0.1801212934 | CC63: 0 | CD63: 0 | CF63: 0.08652781304 | CG63: 0 | CH63: 0
B64: ='Input - Inventory'!B61 -> 53 | C64: ='Input - Inventory'!C61 -> O/U | D64: ='Input - Inventory'!D61 -> Connection | E64: ='Input - Inventory'!E61 -> NonTraffic | F64: ='Input - Inventory'!F61 -> n/a | G64: ='Input - Inventory'!G61 -> 0 | I64: Connection - O/U | K64: 88.33314214 | L64: 587 | M64: 51851.55444 | O64: 0 | P64: 0 | Q64: 0 | R64: 0 | S64: 0 | T64: 0 | U64: 0 | V64: 0 | W64: 0 | X64: 0 | Y64: 0 | Z64: 0 | AA64: 0 | AB64: 0 | AC64: 0 | AD64: 0 | AE64: 0 | AF64: 0 | AG64: 0 | AH64: 0 | AI64: 0 | AJ64: 0 | AK64: 0 | AL64: 0 | AM64: 0 | AN64: 0 | AO64: 0 | AP64: 0 | AQ64: 0 | AS64: 0 | AT64: 0 | AU64: 0 | AV64: 0 | AW64: 0 | AX64: 0 | AY64: 0 | AZ64: 0 | BA64: 0 | BC64: 0 | BD64: 0 | BE64: 0 | BF64: 0 | BG64: 0 | BH64: 0 | BI64: 0 | BJ64: 0 | BK64: 0 | BL64: 0 | BN64: 0 | BO64: 0 | BP64: 0 | BQ64: 0 | BR64: 0 | BS64: 0 | BT64: 0 | BV64: 0 | BW64: 0 | BX64: 0 | BZ64: =IF($D64="Connection",VLOOKUP(C64,'Input - General'!$F$62:$N$79,4,FALSE),0) -> 68.89 | CB64: 0.1801212934 | CC64: 68.89 | CD64: 12.4085559 | CF64: 0.08652781304 | CG64: 81.2985559 | CH64: 7.034586245
B65: ='Input - Inventory'!B62 -> 54 | C65: ='Input - Inventory'!C62 -> UG2 | D65: ='Input - Inventory'!D62 -> Connection | E65: ='Input - Inventory'!E62 -> NonTraffic | F65: ='Input - Inventory'!F62 -> n/a | G65: ='Input - Inventory'!G62 -> 0 | I65: Connection - UG2 | K65: 0 | L65: 1897 | M65: 0 | O65: 0 | P65: 0 | Q65: 0 | R65: 0 | S65: 0 | T65: 0 | U65: 0 | V65: 0 | W65: 0 | X65: 0 | Y65: 0 | Z65: 0 | AA65: 0 | AB65: 0 | AC65: 0 | AD65: 0 | AE65: 0 | AF65: 0 | AG65: 0 | AH65: 0 | AI65: 0 | AJ65: 0 | AK65: 0 | AL65: 0 | AM65: 0 | AN65: 0 | AO65: 0 | AP65: 0 | AQ65: 0 | AS65: 0 | AT65: 0 | AU65: 0 | AV65: 0 | AW65: 0 | AX65: 0 | AY65: 0 | AZ65: 0 | BA65: 0 | BC65: 0 | BD65: 0 | BE65: 0 | BF65: 0 | BG65: 0 | BH65: 0 | BI65: 0 | BJ65: 0 | BK65: 0 | BL65: 0 | BN65: 0 | BO65: 0 | BP65: 0 | BQ65: 0 | BR65: 0 | BS65: 0 | BT65: 0 | BV65: 0 | BW65: 0 | BX65: 0 | BZ65: =IF($D65="Connection",VLOOKUP(C65,'Input - General'!$F$62:$N$79,4,FALSE),0) -> 0 | CB65: 0.1801212934 | CC65: 0 | CD65: 0 | CF65: 0.08652781304 | CG65: 0 | CH65: 0
B66: ='Input - Inventory'!B63 -> 55 | C66: ='Input - Inventory'!C63 -> UG2 (P09) | D66: ='Input - Inventory'!D63 -> Connection | E66: ='Input - Inventory'!E63 -> NonTraffic | F66: ='Input - Inventory'!F63 -> n/a | G66: ='Input - Inventory'!G63 -> 0 | I66: Connection - UG2 (P09) | K66: 0 | L66: 405 | M66: 0 | O66: 0 | P66: 0 | Q66: 0 | R66: 0 | S66: 0 | T66: 0 | U66: 0 | V66: 0 | W66: 0 | X66: 0 | Y66: 0 | Z66: 0 | AA66: 0 | AB66: 0 | AC66: 0 | AD66: 0 | AE66: 0 | AF66: 0 | AG66: 0 | AH66: 0 | AI66: 0 | AJ66: 0 | AK66: 0 | AL66: 0 | AM66: 0 | AN66: 0 | AO66: 0 | AP66: 0 | AQ66: 0 | AS66: 0 | AT66: 0 | AU66: 0 | AV66: 0 | AW66: 0 | AX66: 0 | AY66: 0 | AZ66: 0 | BA66: 0 | BC66: 0 | BD66: 0 | BE66: 0 | BF66: 0 | BG66: 0 | BH66: 0 | BI66: 0 | BJ66: 0 | BK66: 0 | BL66: 0 | BN66: 0 | BO66: 0 | BP66: 0 | BQ66: 0 | BR66: 0 | BS66: 0 | BT66: 0 | BV66: 0 | BW66: 0 | BX66: 0 | BZ66: =IF($D66="Connection",VLOOKUP(C66,'Input - General'!$F$62:$N$79,4,FALSE),0) -> 0 | CB66: 0.1801212934 | CC66: 0 | CD66: 0 | CF66: 0.08652781304 | CG66: 0 | CH66: 0
B67: ='Input - Inventory'!B64 -> 56 | C67: ='Input - Inventory'!C64 -> UGORDA | D67: ='Input - Inventory'!D64 -> Connection | E67: ='Input - Inventory'!E64 -> NonTraffic | F67: ='Input - Inventory'!F64 -> n/a | G67: ='Input - Inventory'!G64 -> 0 | I67: Connection - UGORDA | K67: 0 | L67: 1 | M67: 0 | O67: 0 | P67: 0 | Q67: 0 | R67: 0 | S67: 0 | T67: 0 | U67: 0 | V67: 0 | W67: 0 | X67: 0 | Y67: 0 | Z67: 0 | AA67: 0 | AB67: 0 | AC67: 0 | AD67: 0 | AE67: 0 | AF67: 0 | AG67: 0 | AH67: 0 | AI67: 0 | AJ67: 0 | AK67: 0 | AL67: 0 | AM67: 0 | AN67: 0 | AO67: 0 | AP67: 0 | AQ67: 0 | AS67: 0 | AT67: 0 | AU67: 0 | AV67: 0 | AW67: 0 | AX67: 0 | AY67: 0 | AZ67: 0 | BA67: 0 | BC67: 0 | BD67: 0 | BE67: 0 | BF67: 0 | BG67: 0 | BH67: 0 | BI67: 0 | BJ67: 0 | BK67: 0 | BL67: 0 | BN67: 0 | BO67: 0 | BP67: 0 | BQ67: 0 | BR67: 0 | BS67: 0 | BT67: 0 | BV67: 0 | BW67: 0 | BX67: 0 | BZ67: =IF($D67="Connection",VLOOKUP(C67,'Input - General'!$F$62:$N$79,4,FALSE),0) -> 0 | CB67: 0.1801212934 | CC67: 0 | CD67: 0 | CF67: 0.08652781304 | CG67: 0 | CH67: 0
B68: ='Input - Inventory'!B65 -> 57 | C68: ='Input - Inventory'!C65 -> UGR1 | D68: ='Input - Inventory'!D65 -> Connection | E68: ='Input - Inventory'!E65 -> NonTraffic | F68: ='Input - Inventory'!F65 -> n/a | G68: ='Input - Inventory'!G65 -> 0 | I68: Connection - UGR1 | K68: 80.97 | L68: 26497 | M68: 2145462.09 | O68: 0 | P68: 0 | Q68: 0 | R68: 0 | S68: 0 | T68: 0 | U68: 0 | V68: 0 | W68: 0 | X68: 0 | Y68: 0 | Z68: 0 | AA68: 0 | AB68: 0 | AC68: 0 | AD68: 0 | AE68: 0 | AF68: 0 | AG68: 0 | AH68: 0 | AI68: 0 | AJ68: 0 | AK68: 0 | AL68: 0 | AM68: 0 | AN68: 0 | AO68: 0 | AP68: 0 | AQ68: 0 | AS68: 0 | AT68: 0 | AU68: 0 | AV68: 0 | AW68: 0 | AX68: 0 | AY68: 0 | AZ68: 0 | BA68: 0 | BC68: 0 | BD68: 0 | BE68: 0 | BF68: 0 | BG68: 0 | BH68: 0 | BI68: 0 | BJ68: 0 | BK68: 0 | BL68: 0 | BN68: 0 | BO68: 0 | BP68: 0 | BQ68: 0 | BR68: 0 | BS68: 0 | BT68: 0 | BV68: 0 | BW68: 0 | BX68: 0 | BZ68: =IF($D68="Connection",VLOOKUP(C68,'Input - General'!$F$62:$N$79,4,FALSE),0) -> 63.14757026 | CB68: 0.1801212934 | CC68: 63.14757026 | CD68: 11.37422203 | CF68: 0.08652781304 | CG68: 74.52179229 | CH68: 6.448207711
B69: ='Input - Inventory'!B66 -> 58 | C69: ='Input - Inventory'!C66 -> UGR1 (P09) | D69: ='Input - Inventory'!D66 -> Connection | E69: ='Input - Inventory'!E66 -> NonTraffic | F69: ='Input - Inventory'!F66 -> n/a | G69: ='Input - Inventory'!G66 -> 0 | I69: Connection - UGR1 (P09) | K69: 80.97311549 | L69: 4244 | M69: 343649.9022 | O69: 0 | P69: 0 | Q69: 0 | R69: 0 | S69: 0 | T69: 0 | U69: 0 | V69: 0 | W69: 0 | X69: 0 | Y69: 0 | Z69: 0 | AA69: 0 | AB69: 0 | AC69: 0 | AD69: 0 | AE69: 0 | AF69: 0 | AG69: 0 | AH69: 0 | AI69: 0 | AJ69: 0 | AK69: 0 | AL69: 0 | AM69: 0 | AN69: 0 | AO69: 0 | AP69: 0 | AQ69: 0 | AS69: 0 | AT69: 0 | AU69: 0 | AV69: 0 | AW69: 0 | AX69: 0 | AY69: 0 | AZ69: 0 | BA69: 0 | BC69: 0 | BD69: 0 | BE69: 0 | BF69: 0 | BG69: 0 | BH69: 0 | BI69: 0 | BJ69: 0 | BK69: 0 | BL69: 0 | BN69: 0 | BO69: 0 | BP69: 0 | BQ69: 0 | BR69: 0 | BS69: 0 | BT69: 0 | BV69: 0 | BW69: 0 | BX69: 0 | BZ69: =IF($D69="Connection",VLOOKUP(C69,'Input - General'!$F$62:$N$79,4,FALSE),0) -> 63.15 | CB69: 0.1801212934 | CC69: 63.15 | CD69: 11.37465968 | CF69: 0.08652781304 | CG69: 74.52465968 | CH69: 6.448455819
B70: ='Input - Inventory'!B67 -> 59 | C70: ='Input - Inventory'!C67 -> UGR2 | D70: ='Input - Inventory'!D67 -> Connection | E70: ='Input - Inventory'!E67 -> NonTraffic | F70: ='Input - Inventory'!F67 -> n/a | G70: ='Input - Inventory'!G67 -> 0 | I70: Connection - UGR2 | K70: 29.44 | L70: 14175 | M70: 417312 | O70: 0 | P70: 0 | Q70: 0 | R70: 0 | S70: 0 | T70: 0 | U70: 0 | V70: 0 | W70: 0 | X70: 0 | Y70: 0 | Z70: 0 | AA70: 0 | AB70: 0 | AC70: 0 | AD70: 0 | AE70: 0 | AF70: 0 | AG70: 0 | AH70: 0 | AI70: 0 | AJ70: 0 | AK70: 0 | AL70: 0 | AM70: 0 | AN70: 0 | AO70: 0 | AP70: 0 | AQ70: 0 | AS70: 0 | AT70: 0 | AU70: 0 | AV70: 0 | AW70: 0 | AX70: 0 | AY70: 0 | AZ70: 0 | BA70: 0 | BC70: 0 | BD70: 0 | BE70: 0 | BF70: 0 | BG70: 0 | BH70: 0 | BI70: 0 | BJ70: 0 | BK70: 0 | BL70: 0 | BN70: 0 | BO70: 0 | BP70: 0 | BQ70: 0 | BR70: 0 | BS70: 0 | BT70: 0 | BV70: 0 | BW70: 0 | BX70: 0 | BZ70: =IF($D70="Connection",VLOOKUP(C70,'Input - General'!$F$62:$N$79,4,FALSE),0) -> 22.95991686 | CB70: 0.1801212934 | CC70: 22.95991686 | CD70: 4.135569921 | CF70: 0.08652781304 | CG70: 27.09548679 | CH70: 2.344513215
B71: ='Input - Inventory'!B68 -> 60 | C71: ='Input - Inventory'!C68 -> UGR2 (P09) | D71: ='Input - Inventory'!D68 -> Connection | E71: ='Input - Inventory'!E68 -> NonTraffic | F71: ='Input - Inventory'!F68 -> n/a | G71: ='Input - Inventory'!G68 -> 0 | I71: Connection - UGR2 (P09) | K71: 29.4401066 | L71: 3183 | M71: 93707.85931 | O71: 0 | P71: 0 | Q71: 0 | R71: 0 | S71: 0 | T71: 0 | U71: 0 | V71: 0 | W71: 0 | X71: 0 | Y71: 0 | Z71: 0 | AA71: 0 | AB71: 0 | AC71: 0 | AD71: 0 | AE71: 0 | AF71: 0 | AG71: 0 | AH71: 0 | AI71: 0 | AJ71: 0 | AK71: 0 | AL71: 0 | AM71: 0 | AN71: 0 | AO71: 0 | AP71: 0 | AQ71: 0 | AS71: 0 | AT71: 0 | AU71: 0 | AV71: 0 | AW71: 0 | AX71: 0 | AY71: 0 | AZ71: 0 | BA71: 0 | BC71: 0 | BD71: 0 | BE71: 0 | BF71: 0 | BG71: 0 | BH71: 0 | BI71: 0 | BJ71: 0 | BK71: 0 | BL71: 0 | BN71: 0 | BO71: 0 | BP71: 0 | BQ71: 0 | BR71: 0 | BS71: 0 | BT71: 0 | BV71: 0 | BW71: 0 | BX71: 0 | BZ71: =IF($D71="Connection",VLOOKUP(C71,'Input - General'!$F$62:$N$79,4,FALSE),0) -> 22.96 | CB71: 0.1801212934 | CC71: 22.96 | CD71: 4.135584896 | CF71: 0.08652781304 | CG71: 27.0955849 | CH71: 2.344521704
B72: ='Input - Inventory'!B69 -> 61 | C72: ='Input - Inventory'!C69 -> UGS | D72: ='Input - Inventory'!D69 -> Connection | E72: ='Input - Inventory'!E69 -> NonTraffic | F72: ='Input - Inventory'!F69 -> n/a | G72: ='Input - Inventory'!G69 -> 0 | I72: Connection - UGS | K72: 0 | L72: 43 | M72: 0 | O72: 0 | P72: 0 | Q72: 0 | R72: 0 | S72: 0 | T72: 0 | U72: 0 | V72: 0 | W72: 0 | X72: 0 | Y72: 0 | Z72: 0 | AA72: 0 | AB72: 0 | AC72: 0 | AD72: 0 | AE72: 0 | AF72: 0 | AG72: 0 | AH72: 0 | AI72: 0 | AJ72: 0 | AK72: 0 | AL72: 0 | AM72: 0 | AN72: 0 | AO72: 0 | AP72: 0 | AQ72: 0 | AS72: 0 | AT72: 0 | AU72: 0 | AV72: 0 | AW72: 0 | AX72: 0 | AY72: 0 | AZ72: 0 | BA72: 0 | BC72: 0 | BD72: 0 | BE72: 0 | BF72: 0 | BG72: 0 | BH72: 0 | BI72: 0 | BJ72: 0 | BK72: 0 | BL72: 0 | BN72: 0 | BO72: 0 | BP72: 0 | BQ72: 0 | BR72: 0 | BS72: 0 | BT72: 0 | BV72: 0 | BW72: 0 | BX72: 0 | BZ72: =IF($D72="Connection",VLOOKUP(C72,'Input - General'!$F$62:$N$79,4,FALSE),0) -> 0 | CB72: 0.1801212934 | CC72: 0 | CD72: 0 | CF72: 0.08652781304 | CG72: 0 | CH72: 0
B73: ='Input - Inventory'!B70 -> 62 | C73: ='Input - Inventory'!C70 -> UG-SP | D73: ='Input - Inventory'!D70 -> Connection | E73: ='Input - Inventory'!E70 -> NonTraffic | F73: ='Input - Inventory'!F70 -> n/a | G73: ='Input - Inventory'!G70 -> 0 | I73: Connection - UG-SP | K73: 0 | L73: 1 | M73: 0 | O73: 0 | P73: 0 | Q73: 0 | R73: 0 | S73: 0 | T73: 0 | U73: 0 | V73: 0 | W73: 0 | X73: 0 | Y73: 0 | Z73: 0 | AA73: 0 | AB73: 0 | AC73: 0 | AD73: 0 | AE73: 0 | AF73: 0 | AG73: 0 | AH73: 0 | AI73: 0 | AJ73: 0 | AK73: 0 | AL73: 0 | AM73: 0 | AN73: 0 | AO73: 0 | AP73: 0 | AQ73: 0 | AS73: 0 | AT73: 0 | AU73: 0 | AV73: 0 | AW73: 0 | AX73: 0 | AY73: 0 | AZ73: 0 | BA73: 0 | BC73: 0 | BD73: 0 | BE73: 0 | BF73: 0 | BG73: 0 | BH73: 0 | BI73: 0 | BJ73: 0 | BK73: 0 | BL73: 0 | BN73: 0 | BO73: 0 | BP73: 0 | BQ73: 0 | BR73: 0 | BS73: 0 | BT73: 0 | BV73: 0 | BW73: 0 | BX73: 0 | BZ73: =IF($D73="Connection",VLOOKUP(C73,'Input - General'!$F$62:$N$79,4,FALSE),0) -> 0 | CB73: 0.1801212934 | CC73: 0 | CD73: 0 | CF73: 0.08652781304 | CG73: 0 | CH73: 0
B74: ='Input - Inventory'!B71 -> 63 | C74: ='Input - Inventory'!C71 -> UG-SP (P09) | D74: ='Input - Inventory'!D71 -> Connection | E74: ='Input - Inventory'!E71 -> NonTraffic | F74: ='Input - Inventory'!F71 -> n/a | G74: ='Input - Inventory'!G71 -> 0 | I74: Connection - UG-SP (P09) | K74: 0 | L74: 15 | M74: 0 | O74: 0 | P74: 0 | Q74: 0 | R74: 0 | S74: 0 | T74: 0 | U74: 0 | V74: 0 | W74: 0 | X74: 0 | Y74: 0 | Z74: 0 | AA74: 0 | AB74: 0 | AC74: 0 | AD74: 0 | AE74: 0 | AF74: 0 | AG74: 0 | AH74: 0 | AI74: 0 | AJ74: 0 | AK74: 0 | AL74: 0 | AM74: 0 | AN74: 0 | AO74: 0 | AP74: 0 | AQ74: 0 | AS74: 0 | AT74: 0 | AU74: 0 | AV74: 0 | AW74: 0 | AX74: 0 | AY74: 0 | AZ74: 0 | BA74: 0 | BC74: 0 | BD74: 0 | BE74: 0 | BF74: 0 | BG74: 0 | BH74: 0 | BI74: 0 | BJ74: 0 | BK74: 0 | BL74: 0 | BN74: 0 | BO74: 0 | BP74: 0 | BQ74: 0 | BR74: 0 | BS74: 0 | BT74: 0 | BV74: 0 | BW74: 0 | BX74: 0 | BZ74: =IF($D74="Connection",VLOOKUP(C74,'Input - General'!$F$62:$N$79,4,FALSE),0) -> 0 | CB74: 0.1801212934 | CC74: 0 | CD74: 0 | CF74: 0.08652781304 | CG74: 0 | CH74: 0
B75: ='Input - Inventory'!B72 -> 64 | C75: ='Input - Inventory'!C72 -> EMPTY | D75: ='Input - Inventory'!D72 -> Lamp | E75: ='Input - Inventory'!E72 -> NonTraffic | F75: ='Input - Inventory'!F72 -> Minor < 130w | G75: ='Input - Inventory'!G72 -> 1 | I75: Lamp - EMPTY | K75: 23.6454747 | L75: 0 | M75: 0 | O75: 10.25099022 | P75: 0.3333333333 | Q75: 0 | R75: 0 | S75: 10.25099022 | T75: 0.01850481125 | U75: 0 | V75: 0 | W75: 10.25099022 | X75: 0.1666666667 | Y75: 10.25099022 | Z75: 0.004590314437 | AA75: 10.25099022 | AB75: 0.04003202562 | AC75: 153.7648533 | AD75: 0.02159827214 | AE75: 256.2747555 | AF75: 0.01222195062 | AG75: 0 | AH75: 0 | AI75: 12301.18826 | AJ75: 0.0001112347052 | AK75: 8713.341687 | AL75: 0.0002495358633 | AM75: 0 | AN75: 0 | AO75: 0 | AP75: 0 | AQ75: 15.76845377 | AS75: 0 | AT75: 0.3333333333 | AU75: 39.54 | AV75: 0.01850481125 | AW75: 10.73 | AX75: 0.1666666667 | AY75: 0 | AZ75: 0.01850481125 | BA75: 2.52001357 | BC75: 73.64909373 | BD75: 0 | BE75: 1.513333333 | BF75: 73.64909373 | BG75: 0.0142 | BH75: 0 | BI75: 73.64909373 | BJ75: 0.01 | BK75: 0 | BL75: 0 | BN75: 0 | BO75: 0 | BP75: 10.73 | BQ75: 0.0142 | BR75: 0 | BS75: 0.01 | BT75: 0.152366 | BV75: 29.73 | BW75: 0 | BX75: 0 | BZ75: =IF($D75="Connection",VLOOKUP(C75,'Input - General'!$F$62:$N$79,4,FALSE),0) -> 0 | CB75: 0.1801212934 | CC75: 18.44083334 | CD75: 3.321586751 | CF75: 0.08652781304 | CG75: 21.76242009 | CH75: 1.883054617
B76: ='Input - Inventory'!B73 -> 65 | C76: ='Input - Inventory'!C73 -> INC1x100 | D76: ='Input - Inventory'!D73 -> Lamp | E76: ='Input - Inventory'!E73 -> NonTraffic | F76: ='Input - Inventory'!F73 -> Minor < 130w | G76: ='Input - Inventory'!G73 -> 1 | I76: Lamp - INC1x100 | K76: 250.3226736 | L76: 1 | M76: =L76*K76 -> 250.3226736 | O76: 10.25099022 | P76: =IF(AND($D76="Lamp",CycleBulkTask1<>0, OR($F76=O$9,O$9="All")),1/CycleBulkTask1,0) -> 0.3333333333 | Q76: 0 | R76: =IF(AND($D76="Lamp",CycleBulkTask2<>0, OR($F76=Q$9,Q$9="All")),1/CycleBulkTask2,0) -> 0 | S76: 10.25099022 | T76: =IF(AND($D76="Lamp",CycleBulkTask3<>0, OR($F76=S$9,S$9="All")),1/CycleBulkTask3,0) -> 0.01850481125 | U76: 0 | V76: =IF(AND($D76="Lamp",CycleBulkTask4<>0, OR($F76=U$9,U$9="All")),1/CycleBulkTask4,0) -> 0 | W76: 10.25099022 | X76: =IF(AND($D76="Lamp",CycleBulkTask5<>0, OR($F76=W$9,W$9="All")),1/CycleBulkTask5,0) -> 0.1666666667 | Y76: 10.25099022 | Z76: =IF(AND($D76="Lamp",CycleBulkTask6<>0, OR($F76=Y$9,Y$9="All")),1/CycleBulkTask6,0) -> 0.004590314437 | AA76: 10.25099022 | AB76: =IF(AND($D76="Lamp",CycleBulkTask7<>0, OR($F76=AA$9,AA$9="All")),1/CycleBulkTask7,0) -> 0.04003202562 | AC76: 153.7648533 | AD76: =IF(AND($D76="Lamp",CycleBulkTask8<>0, OR($F76=AC$9,AC$9="All")),1/CycleBulkTask8,0) -> 0.02159827214 | AE76: 256.2747555 | AF76: =IF(AND($D76="Lamp",CycleBulkTask9<>0, OR($F76=AE$9,AE$9="All")),1/CycleBulkTask9,0) -> 0.01222195062 | AG76: 0 | AH76: =IF(AND($D76="Lamp",CycleBulkTask10<>0, OR($F76=AG$9,AG$9="All")),1/CycleBulkTask10,0) -> 0 | AI76: 12301.18826 | AJ76: =IF(AND($D76="Lamp",CycleBulkTask11<>0, OR($F76=AI$9,AI$9="All")),1/CycleBulkTask11,0) -> 0.0001112347052 | AK76: 8713.341687 | AL76: =IF(AND($D76="Lamp",CycleBulkTask12<>0, OR($F76=AK$9,AK$9="All")),1/CycleBulkTask12,0) -> 0.0002495358633 | AM76: 0 | AN76: =IF(AND($D76="Lamp",CycleBulkTask13<>0, OR($F76=AM$9,AM$9="All")),1/CycleBulkTask13,0) -> 0 | AO76: 0 | AP76: =IF(AND($D76="Lamp",CycleBulkTask14<>0, OR($F76=AO$9,AO$9="All")),1/CycleBulkTask14,0) -> 0 | AQ76: =O76*P76+Q76*R76+S76*T76+U76*V76+W76*X76+Y76*Z76+AA76*AB76+AC76*AD76+AE76*AF76+AG76*AH76+AI76*AJ76+AK76*AL76+AM76*AN76+AO76*AP76 -> 15.76845377 | AS76: 10.25099022 | AT76: =MAX(P76,R76) -> 0.3333333333 | AU76: 39.54 | AV76: =MAX(T76,V76) -> 0.01850481125 | AW76: 10.73 | AX76: =X76 -> 0.1666666667 | AY76: 0 | AZ76: =INDIRECT($E76)*$V76 +(1-INDIRECT($E76))*$T76 -> 0.01850481125 | BA76: =AS76*AT76+AU76*AV76+AW76*AX76+AY76*AZ76 -> 5.93701031 | BC76: =IF($D76=$AS$9,(INDIRECT("PriceLabour" & "FY14")*ProportionStandardHours + INDIRECT("PriceLabourOvertime" & "FY14")*ProportionOvertimeHours)*(1+RateOnCostAnnual),0) -> 73.64909373 | BD76: =BO76 -> 1.04 | BE76: =IF($D76="Lamp",(NumberOfCrew+INDIRECT($E76)*TrafficController)*(TimeToReplaceLamp),0) -> 1.513333333 | BF76: =IF($D76=$AS$9,(INDIRECT("PriceLabour" & "FY14")*ProportionStandardHours + INDIRECT("PriceLabourOvertime" & "FY14")*ProportionOvertimeHours)*(1+RateOnCostAnnual),0) -> 73.64909373 | BG76: =BQ76 -> 0.0142 | BH76: =IF($D76="Lamp",(NumberOfCrew+INDIRECT($E76)*TrafficController)*(TimeForPECellReplace),0) -> 0 | BI76: =IF($D76=$AS$9,(INDIRECT("PriceLabour" & "FY14")*ProportionStandardHours + INDIRECT("PriceLabourOvertime" & "FY14")*ProportionOvertimeHours)*(1+RateOnCostAnnual),0) -> 73.64909373 | BJ76: =BS76 -> 0.01 | BK76: =IF($D76="Lamp",(NumberOfCrew+INDIRECT($E76)*TrafficController)*(TimeForOtherSpot),0) -> 0 | BL76: =BC76*BD76*BE76+BF76*BG76*BH76+BI76*BJ76*BK76 -> 115.9138537 | BN76: 10.25099022 | BO76: =IF($D76="Lamp",INDIRECT(BO$10 & $B76),0) -> 1.04 | BP76: 10.73 | BQ76: =IF($D76="Lamp",INDIRECT("FailurePECell" & "Annual"),0) -> 0.0142 | BR76: 0 | BS76: =IF($D76="Lamp",INDIRECT("FailureMisc" & "Annual"),0) -> 0.01 | BT76: =BN76*BO76+BP76*BQ76+BR76*BS76 -> 10.81339583 | BV76: 29.73 | BW76: =BD76*BE76+BG76*BH76+BJ76*BK76 -> 1.573866667 | BX76: =BV76*BW76 -> 46.791056 | BZ76: =IF($D76="Connection",VLOOKUP(C76,'Input - General'!$F$62:$N$79,4,FALSE),0) -> 0 | CB76: =RateOverhead -> 0.1801212934 | CC76: =BX76+BL76+BT76+BA76+AQ76+BZ76 -> 195.2237696 | CD76: =CC76*CB76 -> 35.16395787 | CF76: =CorporateOverheads -> 0.08652781304 | CG76: 230.3877274 | CH76: =CG76*CF76 -> 19.93494621
B77: ='Input - Inventory'!B74 -> 66 | C77: ='Input - Inventory'!C74 -> INC1x1000 | D77: ='Input - Inventory'!D74 -> Lamp | E77: ='Input - Inventory'!E74 -> Traffic | F77: ='Input - Inventory'!F74 -> Major > 130w | G77: ='Input - Inventory'!G74 -> 1 | I77: =CONCATENATE(D77," - ",C77) -> Lamp - INC1x1000 | K77: =AQ77+BA77+BL77+BT77+BX77+BZ77+CD77+CH77 -> 516.2296221 | L77: =INDIRECT(L$10&$B77&"FY14") -> 0 | M77: 0 | O77: =IF(AND($D77="Lamp", OR($F77=O$9, O$9="All")),INDIRECT("PriceBulkTask1" & "FY14"),0) -> 0 | P77: 0 | Q77: =IF(AND($D77="Lamp", OR($F77=Q$9, Q$9="All")),INDIRECT("PriceBulkTask2" & "FY14"),0) -> 10.25099022 | R77: 0.3333333333 | S77: =IF(AND($D77="Lamp", OR($F77=S$9, S$9="All")),INDIRECT("PriceBulkTask3" & "FY14"),0) -> 0 | T77: 0 | U77: =IF(AND($D77="Lamp", OR($F77=U$9, U$9="All")),INDIRECT("PriceBulkTask4" & "FY14"),0) -> 10.25099022 | V77: 0.004909421179 | W77: =IF(AND($D77="Lamp", OR($F77=W$9, W$9="All")),INDIRECT("PriceBulkTask5" & "FY14"),0) -> 10.25099022 | X77: 0.1666666667 | Y77: =IF(AND($D77="Lamp", OR($F77=Y$9, Y$9="All")),INDIRECT("PriceBulkTask6" & "FY14"),0) -> 10.25099022 | Z77: 0.004590314437 | AA77: =IF(AND($D77="Lamp", OR($F77=AA$9, AA$9="All")),INDIRECT("PriceBulkTask7" & "FY14"),0) -> 10.25099022 | AB77: 0.04003202562 | AC77: =IF(AND($D77="Lamp", OR($F77=AC$9, AC$9="All")),INDIRECT("PriceBulkTask8" & "FY14"),0) -> 153.7648533 | AD77: 0.02159827214 | AE77: =IF(AND($D77="Lamp", OR($F77=AE$9, AE$9="All")),INDIRECT("PriceBulkTask9" & "FY14"),0) -> 256.2747555 | AF77: 0.01222195062 | AG77: =IF(AND($D77="Lamp", OR($F77=AG$9, AG$9="All")),INDIRECT("PriceBulkTask10" & "FY14"),0) -> 0 | AH77: 0 | AI77: =IF(AND($D77="Lamp", OR($F77=AI$9, AI$9="All")),INDIRECT("PriceBulkTask11" & "FY14"),0) -> 12301.18826 | AJ77: 0.0001112347052 | AK77: =IF(AND($D77="Lamp", OR($F77=AK$9, AK$9="All")),INDIRECT("PriceBulkTask12" & "FY14"),0) -> 8713.341687 | AL77: 0.0002495358633 | AM77: =IF(AND($D77="Lamp", OR($F77=AM$9, AM$9="All")),INDIRECT("PriceBulkTask13" & "FY14"),0) -> 0 | AN77: 0 | AO77: =IF(AND($D77="Lamp", OR($F77=AO$9, AO$9="All")),INDIRECT("PriceBulkTask14" & "FY14"),0) -> 0 | AP77: 0 | AQ77: 15.62908756 | AS77: =IF($D77="Lamp",$G77*INDIRECT("Price" & $B77 & "FY14"),0) -> 102.5099022 | AT77: 0.3333333333 | AU77: =IF($D77="Lamp",INDIRECT("PriceVisor" & "FY14"),0) -> 39.54 | AV77: 0.004909421179 | AW77: =IF($D77="Lamp",INDIRECT("PricePECell" & "FY14"),0) -> 10.73 | AX77: 0.1666666667 | AY77: =IF($D77="Lamp",INDIRECT("PriceMisc" & "FY14"),0) -> 0 | AZ77: 0.004909421179 | BA77: 36.15241925 | BC77: 73.64909373 | BD77: 1.04 | BE77: 2.27 | BF77: 73.64909373 | BG77: 0.0142 | BH77: 0 | BI77: 73.64909373 | BJ77: 0.01 | BK77: 0 | BL77: 173.8707805 | BN77: =IF($D77="Lamp",INDIRECT("Price" & $B77 & "FY14"),0) -> 102.5099022 | BO77: 1.04 | BP77: =IF($D77="Lamp",INDIRECT("pRICEpecELL" & "FY14"),0) -> 10.73 | BQ77: 0.0142 | BR77: =IF($D77="Lamp",INDIRECT("PriceMisc" & "FY14"),0) -> 0 | BS77: 0.01 | BT77: 106.7626643 | BV77: =IF(AND($D77="Lamp"),INDIRECT("PriceEWP"&"FY14"),0) -> 29.73 | BW77: 2.3608 | BX77: 70.186584 | BZ77: =IF($D77="Connection",VLOOKUP(C77,'Input - General'!$F$62:$N$79,4,FALSE),0) -> 0 | CB77: 0.1801212934 | CC77: 402.6015356 | CD77: 72.5171093 | CF77: 0.08652781304 | CG77: =AQ77+BA77+BL77+BT77+BX77+BZ77+CD77 -> 475.1186449 | CH77: 41.11097727
B78: ='Input - Inventory'!B75 -> 67 | C78: ='Input - Inventory'!C75 -> INC1x1440 | D78: ='Input - Inventory'!D75 -> Lamp | E78: ='Input - Inventory'!E75 -> NonTraffic | F78: ='Input - Inventory'!F75 -> Major > 130w | G78: ='Input - Inventory'!G75 -> 1 | I78: Lamp - INC1x1440 | K78: 231.4033603 | L78: 0 | M78: 0 | O78: 0 | P78: 0 | Q78: 10.25099022 | R78: 0.3333333333 | S78: 0 | T78: 0 | U78: 10.25099022 | V78: 0.004909421179 | W78: 10.25099022 | X78: 0.1666666667 | Y78: 10.25099022 | Z78: 0.004590314437 | AA78: 10.25099022 | AB78: 0.04003202562 | AC78: 153.7648533 | AD78: 0.02159827214 | AE78: 256.2747555 | AF78: 0.01222195062 | AG78: 0 | AH78: 0 | AI78: 12301.18826 | AJ78: 0.0001112347052 | AK78: 8713.341687 | AL78: 0.0002495358633 | AM78: 0 | AN78: 0 | AO78: 0 | AP78: 0 | AQ78: 15.62908756 | AS78: 0 | AT78: 0.3333333333 | AU78: 39.54 | AV78: 0.004909421179 | AW78: 10.73 | AX78: 0.1666666667 | AY78: 0 | AZ78: 0 | BA78: 1.982451847 | BC78: 73.64909373 | BD78: 1.04 | BE78: 1.513333333 | BF78: 73.64909373 | BG78: 0.0142 | BH78: 0 | BI78: 73.64909373 | BJ78: 0.01 | BK78: 0 | BL78: 115.9138537 | BN78: 0 | BO78: 1.04 | BP78: 10.73 | BQ78: 0.0142 | BR78: 0 | BS78: 0.01 | BT78: 0.152366 | BV78: 29.73 | BW78: 1.573866667 | BX78: 46.791056 | BZ78: =IF($D78="Connection",VLOOKUP(C78,'Input - General'!$F$62:$N$79,4,FALSE),0) -> 0 | CB78: 0.1801212934 | CC78: 180.4688151 | CD78: 32.50627638 | CF78: 0.08652781304 | CG78: 212.9750914 | CH78: 18.42826889
B79: ='Input - Inventory'!B76 -> 68 | C79: ='Input - Inventory'!C76 -> INC1x150 | D79: ='Input - Inventory'!D76 -> Lamp | E79: ='Input - Inventory'!E76 -> NonTraffic | F79: ='Input - Inventory'!F76 -> Major > 130w | G79: ='Input - Inventory'!G76 -> 1 | I79: Lamp - INC1x150 | K79: 249.4546932 | L79: 0 | M79: 0 | O79: 0 | P79: 0 | Q79: 10.25099022 | R79: 0.3333333333 | S79: 0 | T79: 0 | U79: 10.25099022 | V79: 0.004909421179 | W79: 10.25099022 | X79: 0.1666666667 | Y79: 10.25099022 | Z79: 0.004590314437 | AA79: 10.25099022 | AB79: 0.04003202562 | AC79: 153.7648533 | AD79: 0.02159827214 | AE79: 256.2747555 | AF79: 0.01222195062 | AG79: 0 | AH79: 0 | AI79: 12301.18826 | AJ79: 0.0001112347052 | AK79: 8713.341687 | AL79: 0.0002495358633 | AM79: 0 | AN79: 0 | AO79: 0 | AP79: 0 | AQ79: 15.62908756 | AS79: 10.25099022 | AT79: 0.3333333333 | AU79: 39.54 | AV79: 0.004909421179 | AW79: 10.73 | AX79: 0.1666666667 | AY79: 0 | AZ79: 0 | BA79: 5.399448587 | BC79: 73.64909373 | BD79: 1.04 | BE79: 1.513333333 | BF79: 73.64909373 | BG79: 0.0142 | BH79: 0 | BI79: 73.64909373 | BJ79: 0.01 | BK79: 0 | BL79: 115.9138537 | BN79: 10.25099022 | BO79: 1.04 | BP79: 10.73 | BQ79: 0.0142 | BR79: 0 | BS79: 0.01 | BT79: 10.81339583 | BV79: 29.73 | BW79: 1.573866667 | BX79: 46.791056 | BZ79: =IF($D79="Connection",VLOOKUP(C79,'Input - General'!$F$62:$N$79,4,FALSE),0) -> 0 | CB79: 0.1801212934 | CC79: 194.5468416 | CD79: 35.04202873 | CF79: 0.08652781304 | CG79: 229.5888704 | CH79: 19.86582285
B80: ='Input - Inventory'!B77 -> 69 | C80: ='Input - Inventory'!C77 -> INC1x150 (P09) | D80: ='Input - Inventory'!D77 -> Lamp | E80: ='Input - Inventory'!E77 -> NonTraffic | F80: ='Input - Inventory'!F77 -> Major > 130w | G80: ='Input - Inventory'!G77 -> 1 | I80: Lamp - INC1x150 (P09) | K80: 249.4546932 | L80: 13 | M80: 3242.911012 | O80: 0 | P80: 0 | Q80: 10.25099022 | R80: 0.3333333333 | S80: 0 | T80: 0 | U80: 10.25099022 | V80: 0.004909421179 | W80: 10.25099022 | X80: 0.1666666667 | Y80: 10.25099022 | Z80: 0.004590314437 | AA80: 10.25099022 | AB80: 0.04003202562 | AC80: 153.7648533 | AD80: 0.02159827214 | AE80: 256.2747555 | AF80: 0.01222195062 | AG80: 0 | AH80: 0 | AI80: 12301.18826 | AJ80: 0.0001112347052 | AK80: 8713.341687 | AL80: 0.0002495358633 | AM80: 0 | AN80: 0 | AO80: 0 | AP80: 0 | AQ80: 15.62908756 | AS80: 10.25099022 | AT80: 0.3333333333 | AU80: 39.54 | AV80: 0.004909421179 | AW80: 10.73 | AX80: 0.1666666667 | AY80: 0 | AZ80: 0 | BA80: 5.399448587 | BC80: 73.64909373 | BD80: 1.04 | BE80: 1.513333333 | BF80: 73.64909373 | BG80: 0.0142 | BH80: 0 | BI80: 73.64909373 | BJ80: 0.01 | BK80: 0 | BL80: 115.9138537 | BN80: 10.25099022 | BO80: 1.04 | BP80: 10.73 | BQ80: 0.0142 | BR80: 0 | BS80: 0.01 | BT80: 10.81339583 | BV80: 29.73 | BW80: 1.573866667 | BX80: 46.791056 | BZ80: =IF($D80="Connection",VLOOKUP(C80,'Input - General'!$F$62:$N$79,4,FALSE),0) -> 0 | CB80: 0.1801212934 | CC80: 194.5468416 | CD80: 35.04202873 | CF80: 0.08652781304 | CG80: 229.5888704 | CH80: 19.86582285
B81: ='Input - Inventory'!B78 -> 70 | C81: ='Input - Inventory'!C78 -> INC1x200 | D81: ='Input - Inventory'!D78 -> Lamp | E81: ='Input - Inventory'!E78 -> NonTraffic | F81: ='Input - Inventory'!F78 -> Major > 130w | G81: ='Input - Inventory'!G78 -> 1 | I81: Lamp - INC1x200 | K81: 249.4546932 | L81: 0 | M81: 0 | O81: 0 | P81: 0 | Q81: 10.25099022 | R81: 0.3333333333 | S81: 0 | T81: 0 | U81: 10.25099022 | V81: 0.004909421179 | W81: 10.25099022 | X81: 0.1666666667 | Y81: 10.25099022 | Z81: 0.004590314437 | AA81: 10.25099022 | AB81: 0.04003202562 | AC81: 153.7648533 | AD81: 0.02159827214 | AE81: 256.2747555 | AF81: 0.01222195062 | AG81: 0 | AH81: 0 | AI81: 12301.18826 | AJ81: 0.0001112347052 | AK81: 8713.341687 | AL81: 0.0002495358633 | AM81: 0 | AN81: 0 | AO81: 0 | AP81: 0 | AQ81: 15.62908756 | AS81: 10.25099022 | AT81: 0.3333333333 | AU81: 39.54 | AV81: 0.004909421179 | AW81: 10.73 | AX81: 0.1666666667 | AY81: 0 | AZ81: 0 | BA81: 5.399448587 | BC81: 73.64909373 | BD81: 1.04 | BE81: 1.513333333 | BF81: 73.64909373 | BG81: 0.0142 | BH81: 0 | BI81: 73.64909373 | BJ81: 0.01 | BK81: 0 | BL81: 115.9138537 | BN81: 10.25099022 | BO81: 1.04 | BP81: 10.73 | BQ81: 0.0142 | BR81: 0 | BS81: 0.01 | BT81: 10.81339583 | BV81: 29.73 | BW81: 1.573866667 | BX81: 46.791056 | BZ81: =IF($D81="Connection",VLOOKUP(C81,'Input - General'!$F$62:$N$79,4,FALSE),0) -> 0 | CB81: 0.1801212934 | CC81: 194.5468416 | CD81: 35.04202873 | CF81: 0.08652781304 | CG81: 229.5888704 | CH81: 19.86582285
B82: ='Input - Inventory'!B79 -> 71 | C82: ='Input - Inventory'!C79 -> INC1x300 | D82: ='Input - Inventory'!D79 -> Lamp | E82: ='Input - Inventory'!E79 -> NonTraffic | F82: ='Input - Inventory'!F79 -> Major > 130w | G82: ='Input - Inventory'!G79 -> 1 | I82: Lamp - INC1x300 | K82: 285.557359 | L82: 0 | M82: 0 | O82: 0 | P82: 0 | Q82: 10.25099022 | R82: 0.3333333333 | S82: 0 | T82: 0 | U82: 10.25099022 | V82: 0.004909421179 | W82: 10.25099022 | X82: 0.1666666667 | Y82: 10.25099022 | Z82: 0.004590314437 | AA82: 10.25099022 | AB82: 0.04003202562 | AC82: 153.7648533 | AD82: 0.02159827214 | AE82: 256.2747555 | AF82: 0.01222195062 | AG82: 0 | AH82: 0 | AI82: 12301.18826 | AJ82: 0.0001112347052 | AK82: 8713.341687 | AL82: 0.0002495358633 | AM82: 0 | AN82: 0 | AO82: 0 | AP82: 0 | AQ82: 15.62908756 | AS82: 30.75297066 | AT82: 0.3333333333 | AU82: 39.54 | AV82: 0.004909421179 | AW82: 10.73 | AX82: 0.1666666667 | AY82: 0 | AZ82: 0 | BA82: 12.23344207 | BC82: 73.64909373 | BD82: 1.04 | BE82: 1.513333333 | BF82: 73.64909373 | BG82: 0.0142 | BH82: 0 | BI82: 73.64909373 | BJ82: 0.01 | BK82: 0 | BL82: 115.9138537 | BN82: 30.75297066 | BO82: 1.04 | BP82: 10.73 | BQ82: 0.0142 | BR82: 0 | BS82: 0.01 | BT82: 32.13545549 | BV82: 29.73 | BW82: 1.573866667 | BX82: 46.791056 | BZ82: =IF($D82="Connection",VLOOKUP(C82,'Input - General'!$F$62:$N$79,4,FALSE),0) -> 0 | CB82: 0.1801212934 | CC82: 222.7028948 | CD82: 40.11353344 | CF82: 0.08652781304 | CG82: 262.8164282 | CH82: 22.74093076
B83: ='Input - Inventory'!B80 -> 72 | C83: ='Input - Inventory'!C80 -> INC1x40 | D83: ='Input - Inventory'!D80 -> Lamp | E83: ='Input - Inventory'!E80 -> NonTraffic | F83: ='Input - Inventory'!F80 -> Minor < 130w | G83: ='Input - Inventory'!G80 -> 1 | I83: Lamp - INC1x40 | K83: 250.3226736 | L83: 0 | M83: 0 | O83: 10.25099022 | P83: 0.3333333333 | Q83: 0 | R83: 0 | S83: 10.25099022 | T83: 0.01850481125 | U83: 0 | V83: 0 | W83: 10.25099022 | X83: 0.1666666667 | Y83: 10.25099022 | Z83: 0.004590314437 | AA83: 10.25099022 | AB83: 0.04003202562 | AC83: 153.7648533 | AD83: 0.02159827214 | AE83: 256.2747555 | AF83: 0.01222195062 | AG83: 0 | AH83: 0 | AI83: 12301.18826 | AJ83: 0.0001112347052 | AK83: 8713.341687 | AL83: 0.0002495358633 | AM83: 0 | AN83: 0 | AO83: 0 | AP83: 0 | AQ83: 15.76845377 | AS83: 10.25099022 | AT83: 0.3333333333 | AU83: 39.54 | AV83: 0.01850481125 | AW83: 10.73 | AX83: 0.1666666667 | AY83: 0 | AZ83: 0.01850481125 | BA83: 5.93701031 | BC83: 73.64909373 | BD83: 1.04 | BE83: 1.513333333 | BF83: 73.64909373 | BG83: 0.0142 | BH83: 0 | BI83: 73.64909373 | BJ83: 0.01 | BK83: 0 | BL83: 115.9138537 | BN83: 10.25099022 | BO83: 1.04 | BP83: 10.73 | BQ83: 0.0142 | BR83: 0 | BS83: 0.01 | BT83: 10.81339583 | BV83: 29.73 | BW83: 1.573866667 | BX83: 46.791056 | BZ83: =IF($D83="Connection",VLOOKUP(C83,'Input - General'!$F$62:$N$79,4,FALSE),0) -> 0 | CB83: 0.1801212934 | CC83: 195.2237696 | CD83: 35.16395787 | CF83: 0.08652781304 | CG83: 230.3877274 | CH83: 19.93494621
B84: ='Input - Inventory'!B81 -> 73 | C84: ='Input - Inventory'!C81 -> INC1x500 | D84: ='Input - Inventory'!D81 -> Lamp | E84: ='Input - Inventory'!E81 -> NonTraffic | F84: ='Input - Inventory'!F81 -> Major > 130w | G84: ='Input - Inventory'!G81 -> 1 | I84: Lamp - INC1x500 | K84: 285.557359 | L84: 0 | M84: 0 | O84: 0 | P84: 0 | Q84: 10.25099022 | R84: 0.3333333333 | S84: 0 | T84: 0 | U84: 10.25099022 | V84: 0.004909421179 | W84: 10.25099022 | X84: 0.1666666667 | Y84: 10.25099022 | Z84: 0.004590314437 | AA84: 10.25099022 | AB84: 0.04003202562 | AC84: 153.7648533 | AD84: 0.02159827214 | AE84: 256.2747555 | AF84: 0.01222195062 | AG84: 0 | AH84: 0 | AI84: 12301.18826 | AJ84: 0.0001112347052 | AK84: 8713.341687 | AL84: 0.0002495358633 | AM84: 0 | AN84: 0 | AO84: 0 | AP84: 0 | AQ84: 15.62908756 | AS84: 30.75297066 | AT84: 0.3333333333 | AU84: 39.54 | AV84: 0.004909421179 | AW84: 10.73 | AX84: 0.1666666667 | AY84: 0 | AZ84: 0 | BA84: 12.23344207 | BC84: 73.64909373 | BD84: 1.04 | BE84: 1.513333333 | BF84: 73.64909373 | BG84: 0.0142 | BH84: 0 | BI84: 73.64909373 | BJ84: 0.01 | BK84: 0 | BL84: 115.9138537 | BN84: 30.75297066 | BO84: 1.04 | BP84: 10.73 | BQ84: 0.0142 | BR84: 0 | BS84: 0.01 | BT84: 32.13545549 | BV84: 29.73 | BW84: 1.573866667 | BX84: 46.791056 | BZ84: =IF($D84="Connection",VLOOKUP(C84,'Input - General'!$F$62:$N$79,4,FALSE),0) -> 0 | CB84: 0.1801212934 | CC84: 222.7028948 | CD84: 40.11353344 | CF84: 0.08652781304 | CG84: 262.8164282 | CH84: 22.74093076
B85: ='Input - Inventory'!B82 -> 74 | C85: ='Input - Inventory'!C82 -> INC1x60 | D85: ='Input - Inventory'!D82 -> Lamp | E85: ='Input - Inventory'!E82 -> NonTraffic | F85: ='Input - Inventory'!F82 -> Minor < 130w | G85: ='Input - Inventory'!G82 -> 1 | I85: Lamp - INC1x60 | K85: 250.3226736 | L85: 0 | M85: 0 | O85: 10.25099022 | P85: 0.3333333333 | Q85: 0 | R85: 0 | S85: 10.25099022 | T85: 0.01850481125 | U85: 0 | V85: 0 | W85: 10.25099022 | X85: 0.1666666667 | Y85: 10.25099022 | Z85: 0.004590314437 | AA85: 10.25099022 | AB85: 0.04003202562 | AC85: 153.7648533 | AD85: 0.02159827214 | AE85: 256.2747555 | AF85: 0.01222195062 | AG85: 0 | AH85: 0 | AI85: 12301.18826 | AJ85: 0.0001112347052 | AK85: 8713.341687 | AL85: 0.0002495358633 | AM85: 0 | AN85: 0 | AO85: 0 | AP85: 0 | AQ85: 15.76845377 | AS85: 10.25099022 | AT85: 0.3333333333 | AU85: 39.54 | AV85: 0.01850481125 | AW85: 10.73 | AX85: 0.1666666667 | AY85: 0 | AZ85: 0.01850481125 | BA85: 5.93701031 | BC85: 73.64909373 | BD85: 1.04 | BE85: 1.513333333 | BF85: 73.64909373 | BG85: 0.0142 | BH85: 0 | BI85: 73.64909373 | BJ85: 0.01 | BK85: 0 | BL85: 115.9138537 | BN85: 10.25099022 | BO85: 1.04 | BP85: 10.73 | BQ85: 0.0142 | BR85: 0 | BS85: 0.01 | BT85: 10.81339583 | BV85: 29.73 | BW85: 1.573866667 | BX85: 46.791056 | BZ85: =IF($D85="Connection",VLOOKUP(C85,'Input - General'!$F$62:$N$79,4,FALSE),0) -> 0 | CB85: 0.1801212934 | CC85: 195.2237696 | CD85: 35.16395787 | CF85: 0.08652781304 | CG85: 230.3877274 | CH85: 19.93494621
B86: ='Input - Inventory'!B83 -> 75 | C86: ='Input - Inventory'!C83 -> INC1x75 | D86: ='Input - Inventory'!D83 -> Lamp | E86: ='Input - Inventory'!E83 -> NonTraffic | F86: ='Input - Inventory'!F83 -> Minor < 130w | G86: ='Input - Inventory'!G83 -> 1 | I86: Lamp - INC1x75 | K86: 250.3226736 | L86: 0 | M86: 0 | O86: 10.25099022 | P86: 0.3333333333 | Q86: 0 | R86: 0 | S86: 10.25099022 | T86: 0.01850481125 | U86: 0 | V86: 0 | W86: 10.25099022 | X86: 0.1666666667 | Y86: 10.25099022 | Z86: 0.004590314437 | AA86: 10.25099022 | AB86: 0.04003202562 | AC86: 153.7648533 | AD86: 0.02159827214 | AE86: 256.2747555 | AF86: 0.01222195062 | AG86: 0 | AH86: 0 | AI86: 12301.18826 | AJ86: 0.0001112347052 | AK86: 8713.341687 | AL86: 0.0002495358633 | AM86: 0 | AN86: 0 | AO86: 0 | AP86: 0 | AQ86: 15.76845377 | AS86: 10.25099022 | AT86: 0.3333333333 | AU86: 39.54 | AV86: 0.01850481125 | AW86: 10.73 | AX86: 0.1666666667 | AY86: 0 | AZ86: 0.01850481125 | BA86: 5.93701031 | BC86: 73.64909373 | BD86: 1.04 | BE86: 1.513333333 | BF86: 73.64909373 | BG86: 0.0142 | BH86: 0 | BI86: 73.64909373 | BJ86: 0.01 | BK86: 0 | BL86: 115.9138537 | BN86: 10.25099022 | BO86: 1.04 | BP86: 10.73 | BQ86: 0.0142 | BR86: 0 | BS86: 0.01 | BT86: 10.81339583 | BV86: 29.73 | BW86: 1.573866667 | BX86: 46.791056 | BZ86: =IF($D86="Connection",VLOOKUP(C86,'Input - General'!$F$62:$N$79,4,FALSE),0) -> 0 | CB86: 0.1801212934 | CC86: 195.2237696 | CD86: 35.16395787 | CF86: 0.08652781304 | CG86: 230.3877274 | CH86: 19.93494621
B87: ='Input - Inventory'!B84 -> 76 | C87: ='Input - Inventory'!C84 -> INC3x100 | D87: ='Input - Inventory'!D84 -> Lamp | E87: ='Input - Inventory'!E84 -> NonTraffic | F87: ='Input - Inventory'!F84 -> Minor < 130w | G87: ='Input - Inventory'!G84 -> 3 | I87: Lamp - INC3x100 | K87: 259.0854566 | L87: 0 | M87: 0 | O87: 10.25099022 | P87: 0.3333333333 | Q87: 0 | R87: 0 | S87: 10.25099022 | T87: 0.01850481125 | U87: 0 | V87: 0 | W87: 10.25099022 | X87: 0.1666666667 | Y87: 10.25099022 | Z87: 0.004590314437 | AA87: 10.25099022 | AB87: 0.04003202562 | AC87: 153.7648533 | AD87: 0.02159827214 | AE87: 256.2747555 | AF87: 0.01222195062 | AG87: 0 | AH87: 0 | AI87: 12301.18826 | AJ87: 0.0001112347052 | AK87: 8713.341687 | AL87: 0.0002495358633 | AM87: 0 | AN87: 0 | AO87: 0 | AP87: 0 | AQ87: 15.76845377 | AS87: 30.75297066 | AT87: 0.3333333333 | AU87: 39.54 | AV87: 0.01850481125 | AW87: 10.73 | AX87: 0.1666666667 | AY87: 0 | AZ87: 0.01850481125 | BA87: 12.77100379 | BC87: 73.64909373 | BD87: 1.04 | BE87: 1.513333333 | BF87: 73.64909373 | BG87: 0.0142 | BH87: 0 | BI87: 73.64909373 | BJ87: 0.01 | BK87: 0 | BL87: 115.9138537 | BN87: 10.25099022 | BO87: 1.04 | BP87: 10.73 | BQ87: 0.0142 | BR87: 0 | BS87: 0.01 | BT87: 10.81339583 | BV87: 29.73 | BW87: 1.573866667 | BX87: 46.791056 | BZ87: =IF($D87="Connection",VLOOKUP(C87,'Input - General'!$F$62:$N$79,4,FALSE),0) -> 0 | CB87: 0.1801212934 | CC87: 202.057763 | CD87: 36.39490561 | CF87: 0.08652781304 | CG87: 238.4526687 | CH87: 20.63278793
B88: ='Input - Inventory'!B85 -> 77 | C88: ='Input - Inventory'!C85 -> LED1x237 | D88: ='Input - Inventory'!D85 -> Lamp | E88: ='Input - Inventory'!E85 -> NonTraffic | F88: ='Input - Inventory'!F85 -> Major > 130w | G88: ='Input - Inventory'!G85 -> 1 | I88: Lamp - LED1x237 | K88: 24.78351222 | L88: 1 | M88: 24.78351222 | O88: 0 | P88: 0 | Q88: 10.25099022 | R88: 0.3333333333 | S88: 0 | T88: 0 | U88: 10.25099022 | V88: 0.004909421179 | W88: 10.25099022 | X88: 0.1666666667 | Y88: 10.25099022 | Z88: 0.004590314437 | AA88: 10.25099022 | AB88: 0.04003202562 | AC88: 153.7648533 | AD88: 0.02159827214 | AE88: 256.2747555 | AF88: 0.01222195062 | AG88: 0 | AH88: 0 | AI88: 12301.18826 | AJ88: 0.0001112347052 | AK88: 8713.341687 | AL88: 0.0002495358633 | AM88: 0 | AN88: 0 | AO88: 0 | AP88: 0 | AQ88: 15.62908756 | AS88: 0 | AT88: 0.3333333333 | AU88: 39.54 | AV88: 0.004909421179 | AW88: 10.73 | AX88: 0.1666666667 | AY88: 0 | AZ88: 0 | BA88: 1.982451847 | BC88: 73.64909373 | BD88: 0.01 | BE88: 1.513333333 | BF88: 73.64909373 | BG88: 0.0142 | BH88: 0 | BI88: 73.64909373 | BJ88: 0.01 | BK88: 0 | BL88: 1.114556285 | BN88: 0 | BO88: 0.01 | BP88: 10.73 | BQ88: 0.0142 | BR88: 0 | BS88: 0.01 | BT88: 0.152366 | BV88: 29.73 | BW88: 0.01513333333 | BX88: 0.449914 | BZ88: =IF($D88="Connection",VLOOKUP(C88,'Input - General'!$F$62:$N$79,4,FALSE),0) -> 0 | CB88: 0.1801212934 | CC88: 19.32837569 | CD88: 3.481452027 | CF88: 0.08652781304 | CG88: 22.80982771 | CH88: 1.973684508
B89: ='Input - Inventory'!B86 -> 78 | C89: ='Input - Inventory'!C86 -> LED1x29 | D89: ='Input - Inventory'!D86 -> Lamp | E89: ='Input - Inventory'!E86 -> NonTraffic | F89: ='Input - Inventory'!F86 -> Minor < 130w | G89: ='Input - Inventory'!G86 -> 1 | I89: Lamp - LED1x29 | K89: 23.46079691 | L89: 1391 | M89: 32633.9685 | O89: 10.25099022 | P89: =1/6 -> 0.1666666667 | Q89: 0 | R89: 0 | S89: 10.25099022 | T89: 0.01850481125 | U89: 0 | V89: 0 | W89: 10.25099022 | X89: 0.1666666667 | Y89: 10.25099022 | Z89: 0.004590314437 | AA89: 10.25099022 | AB89: 0.04003202562 | AC89: 153.7648533 | AD89: 0.02159827214 | AE89: 256.2747555 | AF89: 0.01222195062 | AG89: 0 | AH89: 0 | AI89: 12301.18826 | AJ89: 0.0001112347052 | AK89: 8713.341687 | AL89: 0.0002495358633 | AM89: 0 | AN89: 0 | AO89: 0 | AP89: 0 | AQ89: 14.0599554 | AS89: 0 | AT89: 0.1666666667 | AU89: 39.54 | AV89: 0.01850481125 | AW89: 10.73 | AX89: 0.1666666667 | AY89: 0 | AZ89: 0.01850481125 | BA89: 2.52001357 | BC89: 73.64909373 | BD89: 0.01 | BE89: 1.513333333 | BF89: 73.64909373 | BG89: 0.0142 | BH89: 0 | BI89: 73.64909373 | BJ89: 0.01 | BK89: 0 | BL89: 1.114556285 | BN89: 0 | BO89: 0.01 | BP89: 10.73 | BQ89: 0.0142 | BR89: 0 | BS89: 0.01 | BT89: 0.152366 | BV89: 29.73 | BW89: 0.01513333333 | BX89: 0.449914 | BZ89: =IF($D89="Connection",VLOOKUP(C89,'Input - General'!$F$62:$N$79,4,FALSE),0) -> 0 | CB89: 0.1801212934 | CC89: 18.29680525 | CD89: 3.295644226 | CF89: 0.08652781304 | CG89: 21.59244948 | CH89: 1.868347431
B90: ='Input - Inventory'!B87 -> 79 | C90: ='Input - Inventory'!C87 -> MBF1x1000 | D90: ='Input - Inventory'!D87 -> Lamp | E90: ='Input - Inventory'!E87 -> Traffic | F90: ='Input - Inventory'!F87 -> Major > 130w | G90: ='Input - Inventory'!G87 -> 1 | I90: Lamp - MBF1x1000 | K90: 101.1789639 | L90: 1 | M90: 101.1789639 | O90: 0 | P90: 0 | Q90: 10.25099022 | R90: 0.3333333333 | S90: 0 | T90: 0 | U90: 10.25099022 | V90: 0.004909421179 | W90: 10.25099022 | X90: 0.1666666667 | Y90: 10.25099022 | Z90: 0.004590314437 | AA90: 10.25099022 | AB90: 0.04003202562 | AC90: 153.7648533 | AD90: 0.02159827214 | AE90: 256.2747555 | AF90: 0.01222195062 | AG90: 0 | AH90: 0 | AI90: 12301.18826 | AJ90: 0.0001112347052 | AK90: 8713.341687 | AL90: 0.0002495358633 | AM90: 0 | AN90: 0 | AO90: 0 | AP90: 0 | AQ90: 15.62908756 | AS90: 102.5099022 | AT90: 0.3333333333 | AU90: 39.54 | AV90: 0.004909421179 | AW90: 10.73 | AX90: 0.1666666667 | AY90: 0 | AZ90: 0.004909421179 | BA90: 36.15241925 | BC90: 73.64909373 | BD90: 0.08 | BE90: 2.27 | BF90: 73.64909373 | BG90: 0.0142 | BH90: 0 | BI90: 73.64909373 | BJ90: 0.01 | BK90: 0 | BL90: 13.37467542 | BN90: 102.5099022 | BO90: 0.08 | BP90: 10.73 | BQ90: 0.0142 | BR90: 0 | BS90: 0.01 | BT90: 8.353158176 | BV90: 29.73 | BW90: 0.1816 | BX90: 5.398968 | BZ90: =IF($D90="Connection",VLOOKUP(C90,'Input - General'!$F$62:$N$79,4,FALSE),0) -> 0 | CB90: 0.1801212934 | CC90: 78.9083084 | CD90: 14.21306657 | CF90: 0.08652781304 | CG90: 93.12137497 | CH90: 8.057588923
B91: ='Input - Inventory'!B88 -> 80 | C91: ='Input - Inventory'!C88 -> MBF1x1000 (P09) | D91: ='Input - Inventory'!D88 -> Lamp | E91: ='Input - Inventory'!E88 -> Traffic | F91: ='Input - Inventory'!F88 -> Major > 130w | G91: ='Input - Inventory'!G88 -> 1 | I91: Lamp - MBF1x1000 (P09) | K91: 101.1789639 | L91: 13 | M91: 1315.326531 | O91: 0 | P91: 0 | Q91: 10.25099022 | R91: 0.3333333333 | S91: 0 | T91: 0 | U91: 10.25099022 | V91: 0.004909421179 | W91: 10.25099022 | X91: 0.1666666667 | Y91: 10.25099022 | Z91: 0.004590314437 | AA91: 10.25099022 | AB91: 0.04003202562 | AC91: 153.7648533 | AD91: 0.02159827214 | AE91: 256.2747555 | AF91: 0.01222195062 | AG91: 0 | AH91: 0 | AI91: 12301.18826 | AJ91: 0.0001112347052 | AK91: 8713.341687 | AL91: 0.0002495358633 | AM91: 0 | AN91: 0 | AO91: 0 | AP91: 0 | AQ91: 15.62908756 | AS91: 102.5099022 | AT91: 0.3333333333 | AU91: 39.54 | AV91: 0.004909421179 | AW91: 10.73 | AX91: 0.1666666667 | AY91: 0 | AZ91: 0.004909421179 | BA91: 36.15241925 | BC91: 73.64909373 | BD91: 0.08 | BE91: 2.27 | BF91: 73.64909373 | BG91: 0.0142 | BH91: 0 | BI91: 73.64909373 | BJ91: 0.01 | BK91: 0 | BL91: 13.37467542 | BN91: 102.5099022 | BO91: 0.08 | BP91: 10.73 | BQ91: 0.0142 | BR91: 0 | BS91: 0.01 | BT91: 8.353158176 | BV91: 29.73 | BW91: 0.1816 | BX91: 5.398968 | BZ91: =IF($D91="Connection",VLOOKUP(C91,'Input - General'!$F$62:$N$79,4,FALSE),0) -> 0 | CB91: 0.1801212934 | CC91: 78.9083084 | CD91: 14.21306657 | CF91: 0.08652781304 | CG91: 93.12137497 | CH91: 8.057588923
B92: ='Input - Inventory'!B89 -> 81 | C92: ='Input - Inventory'!C89 -> MBF1x125 | D92: ='Input - Inventory'!D89 -> Lamp | E92: ='Input - Inventory'!E89 -> NonTraffic | F92: ='Input - Inventory'!F89 -> Minor < 130w | G92: ='Input - Inventory'!G89 -> 1 | I92: Lamp - MBF1x125 | K92: 57.03219413 | L92: 338 | M92: 19276.88162 | O92: 10.25099022 | P92: 0.3333333333 | Q92: 0 | R92: 0 | S92: 10.25099022 | T92: 0.01850481125 | U92: 0 | V92: 0 | W92: 10.25099022 | X92: 0.1666666667 | Y92: 10.25099022 | Z92: 0.004590314437 | AA92: 10.25099022 | AB92: 0.04003202562 | AC92: 153.7648533 | AD92: 0.02159827214 | AE92: 256.2747555 | AF92: 0.01222195062 | AG92: 0 | AH92: 0 | AI92: 12301.18826 | AJ92: 0.0001112347052 | AK92: 8713.341687 | AL92: 0.0002495358633 | AM92: 0 | AN92: 0 | AO92: 0 | AP92: 0 | AQ92: 15.76845377 | AS92: 10.25099022 | AT92: 0.3333333333 | AU92: 39.54 | AV92: 0.01850481125 | AW92: 10.73 | AX92: 0.1666666667 | AY92: 0 | AZ92: 0.01850481125 | BA92: 5.93701031 | BC92: 73.64909373 | BD92: 0.1357 | BE92: 1.513333333 | BF92: 73.64909373 | BG92: 0.0142 | BH92: 0 | BI92: 73.64909373 | BJ92: 0.01 | BK92: 0 | BL92: 15.12452879 | BN92: 10.25099022 | BO92: 0.1357 | BP92: 10.73 | BQ92: 0.0142 | BR92: 0 | BS92: 0.01 | BT92: 1.543425373 | BV92: 29.73 | BW92: 0.2053593333 | BX92: 6.10533298 | BZ92: =IF($D92="Connection",VLOOKUP(C92,'Input - General'!$F$62:$N$79,4,FALSE),0) -> 0 | CB92: 0.1801212934 | CC92: 44.47875122 | CD92: 8.011570196 | CF92: 0.08652781304 | CG92: 52.49032141 | CH92: 4.541872718
B93: ='Input - Inventory'!B90 -> 82 | C93: ='Input - Inventory'!C90 -> MBF1x125 (P09) | D93: ='Input - Inventory'!D90 -> Lamp | E93: ='Input - Inventory'!E90 -> NonTraffic | F93: ='Input - Inventory'!F90 -> Minor < 130w | G93: ='Input - Inventory'!G90 -> 1 | I93: Lamp - MBF1x125 (P09) | K93: 57.03219413 | L93: 5341 | M93: 304608.9489 | O93: 10.25099022 | P93: 0.3333333333 | Q93: 0 | R93: 0 | S93: 10.25099022 | T93: 0.01850481125 | U93: 0 | V93: 0 | W93: 10.25099022 | X93: 0.1666666667 | Y93: 10.25099022 | Z93: 0.004590314437 | AA93: 10.25099022 | AB93: 0.04003202562 | AC93: 153.7648533 | AD93: 0.02159827214 | AE93: 256.2747555 | AF93: 0.01222195062 | AG93: 0 | AH93: 0 | AI93: 12301.18826 | AJ93: 0.0001112347052 | AK93: 8713.341687 | AL93: 0.0002495358633 | AM93: 0 | AN93: 0 | AO93: 0 | AP93: 0 | AQ93: 15.76845377 | AS93: 10.25099022 | AT93: 0.3333333333 | AU93: 39.54 | AV93: 0.01850481125 | AW93: 10.73 | AX93: 0.1666666667 | AY93: 0 | AZ93: 0.01850481125 | BA93: 5.93701031 | BC93: 73.64909373 | BD93: 0.1357 | BE93: 1.513333333 | BF93: 73.64909373 | BG93: 0.0142 | BH93: 0 | BI93: 73.64909373 | BJ93: 0.01 | BK93: 0 | BL93: 15.12452879 | BN93: 10.25099022 | BO93: 0.1357 | BP93: 10.73 | BQ93: 0.0142 | BR93: 0 | BS93: 0.01 | BT93: 1.543425373 | BV93: 29.73 | BW93: 0.2053593333 | BX93: 6.10533298 | BZ93: =IF($D93="Connection",VLOOKUP(C93,'Input - General'!$F$62:$N$79,4,FALSE),0) -> 0 | CB93: 0.1801212934 | CC93: 44.47875122 | CD93: 8.011570196 | CF93: 0.08652781304 | CG93: 52.49032141 | CH93: 4.541872718
B94: ='Input - Inventory'!B91 -> 83 | C94: ='Input - Inventory'!C91 -> MBF1x160 | D94: ='Input - Inventory'!D91 -> Lamp | E94: ='Input - Inventory'!E91 -> NonTraffic | F94: ='Input - Inventory'!F91 -> Major > 130w | G94: ='Input - Inventory'!G91 -> 1 | I94: Lamp - MBF1x160 | K94: 27.15888576 | L94: 1 | M94: 27.15888576 | O94: 0 | P94: 0 | Q94: 10.25099022 | R94: 0.3333333333 | S94: 0 | T94: 0 | U94: 10.25099022 | V94: 0.004909421179 | W94: 10.25099022 | X94: 0.1666666667 | Y94: 10.25099022 | Z94: 0.004590314437 | AA94: 10.25099022 | AB94: 0.04003202562 | AC94: 153.7648533 | AD94: 0.02159827214 | AE94: 256.2747555 | AF94: 0.01222195062 | AG94: 0 | AH94: 0 | AI94: 12301.18826 | AJ94: 0.0001112347052 | AK94: 8713.341687 | AL94: 0.0002495358633 | AM94: 0 | AN94: 0 | AO94: 0 | AP94: 0 | AQ94: 15.62908756 | AS94: 10.25099022 | AT94: 0.3333333333 | AU94: 39.54 | AV94: 0.004909421179 | AW94: 10.73 | AX94: 0.1666666667 | AY94: 0 | AZ94: 0 | BA94: 5.399448587 | BC94: 73.64909373 | BD94: 0 | BE94: 1.513333333 | BF94: 73.64909373 | BG94: 0.0142 | BH94: 0 | BI94: 73.64909373 | BJ94: 0.01 | BK94: 0 | BL94: 0 | BN94: 10.25099022 | BO94: 0 | BP94: 10.73 | BQ94: 0.0142 | BR94: 0 | BS94: 0.01 | BT94: 0.152366 | BV94: 29.73 | BW94: 0 | BX94: 0 | BZ94: =IF($D94="Connection",VLOOKUP(C94,'Input - General'!$F$62:$N$79,4,FALSE),0) -> 0 | CB94: 0.1801212934 | CC94: 21.18090214 | CD94: 3.815131488 | CF94: 0.08652781304 | CG94: 24.99603363 | CH94: 2.162852125
B95: ='Input - Inventory'!B92 -> 84 | C95: ='Input - Inventory'!C92 -> MBF1x250 | D95: ='Input - Inventory'!D92 -> Lamp | E95: ='Input - Inventory'!E92 -> Traffic | F95: ='Input - Inventory'!F92 -> Major > 130w | G95: ='Input - Inventory'!G92 -> 1 | I95: Lamp - MBF1x250 | K95: 64.30016176 | L95: 1153 | M95: 74138.0865 | O95: 0 | P95: 0 | Q95: 10.25099022 | R95: 0.3333333333 | S95: 0 | T95: 0 | U95: 10.25099022 | V95: 0.004909421179 | W95: 10.25099022 | X95: 0.1666666667 | Y95: 10.25099022 | Z95: 0.004590314437 | AA95: 10.25099022 | AB95: 0.04003202562 | AC95: 153.7648533 | AD95: 0.02159827214 | AE95: 256.2747555 | AF95: 0.01222195062 | AG95: 0 | AH95: 0 | AI95: 12301.18826 | AJ95: 0.0001112347052 | AK95: 8713.341687 | AL95: 0.0002495358633 | AM95: 0 | AN95: 0 | AO95: 0 | AP95: 0 | AQ95: 15.62908756 | AS95: 10.25099022 | AT95: 0.3333333333 | AU95: 39.54 | AV95: 0.004909421179 | AW95: 10.73 | AX95: 0.1666666667 | AY95: 0 | AZ95: 0.004909421179 | BA95: 5.399448587 | BC95: 73.64909373 | BD95: 0.1182666667 | BE95: 2.27 | BF95: 73.64909373 | BG95: 0.0142 | BH95: 0 | BI95: 73.64909373 | BJ95: 0.01 | BK95: 0 | BL95: 19.7722285 | BN95: 10.25099022 | BO95: 0.1182666667 | BP95: 10.73 | BQ95: 0.0142 | BR95: 0 | BS95: 0.01 | BT95: 1.364716443 | BV95: 29.73 | BW95: 0.2684653333 | BX95: 7.98147436 | BZ95: =IF($D95="Connection",VLOOKUP(C95,'Input - General'!$F$62:$N$79,4,FALSE),0) -> 0 | CB95: 0.1801212934 | CC95: 50.14695544 | CD95: 9.032534473 | CF95: 0.08652781304 | CG95: 59.17948992 | CH95: 5.120671839
B96: ='Input - Inventory'!B93 -> 85 | C96: ='Input - Inventory'!C93 -> MBF1x250 (P09) | D96: ='Input - Inventory'!D93 -> Lamp | E96: ='Input - Inventory'!E93 -> Traffic | F96: ='Input - Inventory'!F93 -> Major > 130w | G96: ='Input - Inventory'!G93 -> 1 | I96: Lamp - MBF1x250 (P09) | K96: 64.30016176 | L96: 16912 | M96: 1087444.336 | O96: 0 | P96: 0 | Q96: 10.25099022 | R96: 0.3333333333 | S96: 0 | T96: 0 | U96: 10.25099022 | V96: 0.004909421179 | W96: 10.25099022 | X96: 0.1666666667 | Y96: 10.25099022 | Z96: 0.004590314437 | AA96: 10.25099022 | AB96: 0.04003202562 | AC96: 153.7648533 | AD96: 0.02159827214 | AE96: 256.2747555 | AF96: 0.01222195062 | AG96: 0 | AH96: 0 | AI96: 12301.18826 | AJ96: 0.0001112347052 | AK96: 8713.341687 | AL96: 0.0002495358633 | AM96: 0 | AN96: 0 | AO96: 0 | AP96: 0 | AQ96: 15.62908756 | AS96: 10.25099022 | AT96: 0.3333333333 | AU96: 39.54 | AV96: 0.004909421179 | AW96: 10.73 | AX96: 0.1666666667 | AY96: 0 | AZ96: 0.004909421179 | BA96: 5.399448587 | BC96: 73.64909373 | BD96: 0.1182666667 | BE96: 2.27 | BF96: 73.64909373 | BG96: 0.0142 | BH96: 0 | BI96: 73.64909373 | BJ96: 0.01 | BK96: 0 | BL96: 19.7722285 | BN96: 10.25099022 | BO96: 0.1182666667 | BP96: 10.73 | BQ96: 0.0142 | BR96: 0 | BS96: 0.01 | BT96: 1.364716443 | BV96: 29.73 | BW96: 0.2684653333 | BX96: 7.98147436 | BZ96: =IF($D96="Connection",VLOOKUP(C96,'Input - General'!$F$62:$N$79,4,FALSE),0) -> 0 | CB96: 0.1801212934 | CC96: 50.14695544 | CD96: 9.032534473 | CF96: 0.08652781304 | CG96: 59.17948992 | CH96: 5.120671839
B97: ='Input - Inventory'!B94 -> 86 | C97: ='Input - Inventory'!C94 -> MBF1x400 | D97: ='Input - Inventory'!D94 -> Lamp | E97: ='Input - Inventory'!E94 -> Traffic | F97: ='Input - Inventory'!F94 -> Major > 130w | G97: ='Input - Inventory'!G94 -> 1 | I97: Lamp - MBF1x400 | K97: 66.51942627 | L97: 343 | M97: 22816.16321 | O97: 0 | P97: 0 | Q97: 10.25099022 | R97: 0.3333333333 | S97: 0 | T97: 0 | U97: 10.25099022 | V97: 0.004909421179 | W97: 10.25099022 | X97: 0.1666666667 | Y97: 10.25099022 | Z97: 0.004590314437 | AA97: 10.25099022 | AB97: 0.04003202562 | AC97: 153.7648533 | AD97: 0.02159827214 | AE97: 256.2747555 | AF97: 0.01222195062 | AG97: 0 | AH97: 0 | AI97: 12301.18826 | AJ97: 0.0001112347052 | AK97: 8713.341687 | AL97: 0.0002495358633 | AM97: 0 | AN97: 0 | AO97: 0 | AP97: 0 | AQ97: 15.62908756 | AS97: 10.25099022 | AT97: 0.3333333333 | AU97: 39.54 | AV97: 0.004909421179 | AW97: 10.73 | AX97: 0.1666666667 | AY97: 0 | AZ97: 0.004909421179 | BA97: 5.399448587 | BC97: 73.64909373 | BD97: 0.1253333333 | BE97: 2.27 | BF97: 73.64909373 | BG97: 0.0142 | BH97: 0 | BI97: 73.64909373 | BJ97: 0.01 | BK97: 0 | BL97: 20.95365816 | BN97: 10.25099022 | BO97: 0.1253333333 | BP97: 10.73 | BQ97: 0.0142 | BR97: 0 | BS97: 0.01 | BT97: 1.437156774 | BV97: 29.73 | BW97: 0.2845066667 | BX97: 8.4583832 | BZ97: =IF($D97="Connection",VLOOKUP(C97,'Input - General'!$F$62:$N$79,4,FALSE),0) -> 0 | CB97: 0.1801212934 | CC97: 51.87773428 | CD97: 9.344284595 | CF97: 0.08652781304 | CG97: 61.22201887 | CH97: 5.297407403
B98: ='Input - Inventory'!B95 -> 87 | C98: ='Input - Inventory'!C95 -> MBF1x400 (P09) | D98: ='Input - Inventory'!D95 -> Lamp | E98: ='Input - Inventory'!E95 -> Traffic | F98: ='Input - Inventory'!F95 -> Major > 130w | G98: ='Input - Inventory'!G95 -> 1 | I98: Lamp - MBF1x400 (P09) | K98: 66.51942627 | L98: 6550.5 | M98: 435735.5018 | O98: 0 | P98: 0 | Q98: 10.25099022 | R98: 0.3333333333 | S98: 0 | T98: 0 | U98: 10.25099022 | V98: 0.004909421179 | W98: 10.25099022 | X98: 0.1666666667 | Y98: 10.25099022 | Z98: 0.004590314437 | AA98: 10.25099022 | AB98: 0.04003202562 | AC98: 153.7648533 | AD98: 0.02159827214 | AE98: 256.2747555 | AF98: 0.01222195062 | AG98: 0 | AH98: 0 | AI98: 12301.18826 | AJ98: 0.0001112347052 | AK98: 8713.341687 | AL98: 0.0002495358633 | AM98: 0 | AN98: 0 | AO98: 0 | AP98: 0 | AQ98: 15.62908756 | AS98: 10.25099022 | AT98: 0.3333333333 | AU98: 39.54 | AV98: 0.004909421179 | AW98: 10.73 | AX98: 0.1666666667 | AY98: 0 | AZ98: 0.004909421179 | BA98: 5.399448587 | BC98: 73.64909373 | BD98: 0.1253333333 | BE98: 2.27 | BF98: 73.64909373 | BG98: 0.0142 | BH98: 0 | BI98: 73.64909373 | BJ98: 0.01 | BK98: 0 | BL98: 20.95365816 | BN98: 10.25099022 | BO98: 0.1253333333 | BP98: 10.73 | BQ98: 0.0142 | BR98: 0 | BS98: 0.01 | BT98: 1.437156774 | BV98: 29.73 | BW98: 0.2845066667 | BX98: 8.4583832 | BZ98: =IF($D98="Connection",VLOOKUP(C98,'Input - General'!$F$62:$N$79,4,FALSE),0) -> 0 | CB98: 0.1801212934 | CC98: 51.87773428 | CD98: 9.344284595 | CF98: 0.08652781304 | CG98: 61.22201887 | CH98: 5.297407403
B99: ='Input - Inventory'!B96 -> 88 | C99: ='Input - Inventory'!C96 -> MBF1x42 | D99: ='Input - Inventory'!D96 -> Lamp | E99: ='Input - Inventory'!E96 -> NonTraffic | F99: ='Input - Inventory'!F96 -> Minor < 130w | G99: ='Input - Inventory'!G96 -> 1 | I99: Lamp - MBF1x42 | K99: 60.96511996 | L99: 197 | M99: 12010.12863 | O99: 10.25099022 | P99: 0.3333333333 | Q99: 0 | R99: 0 | S99: 10.25099022 | T99: 0.01850481125 | U99: 0 | V99: 0 | W99: 10.25099022 | X99: 0.1666666667 | Y99: 10.25099022 | Z99: 0.004590314437 | AA99: 10.25099022 | AB99: 0.04003202562 | AC99: 153.7648533 | AD99: 0.02159827214 | AE99: 256.2747555 | AF99: 0.01222195062 | AG99: 0 | AH99: 0 | AI99: 12301.18826 | AJ99: 0.0001112347052 | AK99: 8713.341687 | AL99: 0.0002495358633 | AM99: 0 | AN99: 0 | AO99: 0 | AP99: 0 | AQ99: 15.76845377 | AS99: 10.25099022 | AT99: 0.3333333333 | AU99: 39.54 | AV99: 0.01850481125 | AW99: 10.73 | AX99: 0.1666666667 | AY99: 0 | AZ99: 0.01850481125 | BA99: 5.93701031 | BC99: 73.64909373 | BD99: 0.1541 | BE99: 1.513333333 | BF99: 73.64909373 | BG99: 0.0142 | BH99: 0 | BI99: 73.64909373 | BJ99: 0.01 | BK99: 0 | BL99: 17.17531235 | BN99: 10.25099022 | BO99: 0.1541 | BP99: 10.73 | BQ99: 0.0142 | BR99: 0 | BS99: 0.01 | BT99: 1.732043593 | BV99: 29.73 | BW99: 0.2332046667 | BX99: 6.93317474 | BZ99: =IF($D99="Connection",VLOOKUP(C99,'Input - General'!$F$62:$N$79,4,FALSE),0) -> 0 | CB99: 0.1801212934 | CC99: 47.54599476 | CD99: 8.564046071 | CF99: 0.08652781304 | CG99: 56.11004083 | CH99: 4.855079123
B100: ='Input - Inventory'!B97 -> 89 | C100: ='Input - Inventory'!C97 -> MBF1x42 (P09) | D100: ='Input - Inventory'!D97 -> Lamp | E100: ='Input - Inventory'!E97 -> NonTraffic | F100: ='Input - Inventory'!F97 -> Minor < 130w | G100: ='Input - Inventory'!G97 -> 1 | I100: Lamp - MBF1x42 (P09) | K100: 60.96511996 | L100: 52383.5 | M100: 3193566.361 | O100: 10.25099022 | P100: 0.3333333333 | Q100: 0 | R100: 0 | S100: 10.25099022 | T100: 0.01850481125 | U100: 0 | V100: 0 | W100: 10.25099022 | X100: 0.1666666667 | Y100: 10.25099022 | Z100: 0.004590314437 | AA100: 10.25099022 | AB100: 0.04003202562 | AC100: 153.7648533 | AD100: 0.02159827214 | AE100: 256.2747555 | AF100: 0.01222195062 | AG100: 0 | AH100: 0 | AI100: 12301.18826 | AJ100: 0.0001112347052 | AK100: 8713.341687 | AL100: 0.0002495358633 | AM100: 0 | AN100: 0 | AO100: 0 | AP100: 0 | AQ100: 15.76845377 | AS100: 10.25099022 | AT100: 0.3333333333 | AU100: 39.54 | AV100: 0.01850481125 | AW100: 10.73 | AX100: 0.1666666667 | AY100: 0 | AZ100: 0.01850481125 | BA100: 5.93701031 | BC100: 73.64909373 | BD100: 0.1541 | BE100: 1.513333333 | BF100: 73.64909373 | BG100: 0.0142 | BH100: 0 | BI100: 73.64909373 | BJ100: 0.01 | BK100: 0 | BL100: 17.17531235 | BN100: 10.25099022 | BO100: 0.1541 | BP100: 10.73 | BQ100: 0.0142 | BR100: 0 | BS100: 0.01 | BT100: 1.732043593 | BV100: 29.73 | BW100: 0.2332046667 | BX100: 6.93317474 | BZ100: =IF($D100="Connection",VLOOKUP(C100,'Input - General'!$F$62:$N$79,4,FALSE),0) -> 0 | CB100: 0.1801212934 | CC100: 47.54599476 | CD100: 8.564046071 | CF100: 0.08652781304 | CG100: 56.11004083 | CH100: 4.855079123
B101: ='Input - Inventory'!B98 -> 90 | C101: ='Input - Inventory'!C98 -> MBF1x50 | D101: ='Input - Inventory'!D98 -> Lamp | E101: ='Input - Inventory'!E98 -> NonTraffic | F101: ='Input - Inventory'!F98 -> Minor < 130w | G101: ='Input - Inventory'!G98 -> 1 | I101: Lamp - MBF1x50 | K101: 68.44622886 | L101: 271 | M101: 18548.92802 | O101: 10.25099022 | P101: 0.3333333333 | Q101: 0 | R101: 0 | S101: 10.25099022 | T101: 0.01850481125 | U101: 0 | V101: 0 | W101: 10.25099022 | X101: 0.1666666667 | Y101: 10.25099022 | Z101: 0.004590314437 | AA101: 10.25099022 | AB101: 0.04003202562 | AC101: 153.7648533 | AD101: 0.02159827214 | AE101: 256.2747555 | AF101: 0.01222195062 | AG101: 0 | AH101: 0 | AI101: 12301.18826 | AJ101: 0.0001112347052 | AK101: 8713.341687 | AL101: 0.0002495358633 | AM101: 0 | AN101: 0 | AO101: 0 | AP101: 0 | AQ101: 15.76845377 | AS101: 10.25099022 | AT101: 0.3333333333 | AU101: 39.54 | AV101: 0.01850481125 | AW101: 10.73 | AX101: 0.1666666667 | AY101: 0 | AZ101: 0.01850481125 | BA101: 5.93701031 | BC101: 73.64909373 | BD101: 0.1891 | BE101: 1.513333333 | BF101: 73.64909373 | BG101: 0.0142 | BH101: 0 | BI101: 73.64909373 | BJ101: 0.01 | BK101: 0 | BL101: 21.07625935 | BN101: 10.25099022 | BO101: 0.1891 | BP101: 10.73 | BQ101: 0.0142 | BR101: 0 | BS101: 0.01 | BT101: 2.090828251 | BV101: 29.73 | BW101: 0.2861713333 | BX101: 8.50787374 | BZ101: =IF($D101="Connection",VLOOKUP(C101,'Input - General'!$F$62:$N$79,4,FALSE),0) -> 0 | CB101: 0.1801212934 | CC101: 53.38042542 | CD101: 9.614951267 | CF101: 0.08652781304 | CG101: 62.99537668 | CH101: 5.450852176
B102: ='Input - Inventory'!B99 -> 91 | C102: ='Input - Inventory'!C99 -> MBF1x50 (P09) | D102: ='Input - Inventory'!D99 -> Lamp | E102: ='Input - Inventory'!E99 -> NonTraffic | F102: ='Input - Inventory'!F99 -> Minor < 130w | G102: ='Input - Inventory'!G99 -> 1 | I102: Lamp - MBF1x50 (P09) | K102: 68.44622886 | L102: 11869 | M102: 812388.2904 | O102: 10.25099022 | P102: 0.3333333333 | Q102: 0 | R102: 0 | S102: 10.25099022 | T102: 0.01850481125 | U102: 0 | V102: 0 | W102: 10.25099022 | X102: 0.1666666667 | Y102: 10.25099022 | Z102: 0.004590314437 | AA102: 10.25099022 | AB102: 0.04003202562 | AC102: 153.7648533 | AD102: 0.02159827214 | AE102: 256.2747555 | AF102: 0.01222195062 | AG102: 0 | AH102: 0 | AI102: 12301.18826 | AJ102: 0.0001112347052 | AK102: 8713.341687 | AL102: 0.0002495358633 | AM102: 0 | AN102: 0 | AO102: 0 | AP102: 0 | AQ102: 15.76845377 | AS102: 10.25099022 | AT102: 0.3333333333 | AU102: 39.54 | AV102: 0.01850481125 | AW102: 10.73 | AX102: 0.1666666667 | AY102: 0 | AZ102: 0.01850481125 | BA102: 5.93701031 | BC102: 73.64909373 | BD102: 0.1891 | BE102: 1.513333333 | BF102: 73.64909373 | BG102: 0.0142 | BH102: 0 | BI102: 73.64909373 | BJ102: 0.01 | BK102: 0 | BL102: 21.07625935 | BN102: 10.25099022 | BO102: 0.1891 | BP102: 10.73 | BQ102: 0.0142 | BR102: 0 | BS102: 0.01 | BT102: 2.090828251 | BV102: 29.73 | BW102: 0.2861713333 | BX102: 8.50787374 | BZ102: =IF($D102="Connection",VLOOKUP(C102,'Input - General'!$F$62:$N$79,4,FALSE),0) -> 0 | CB102: 0.1801212934 | CC102: 53.38042542 | CD102: 9.614951267 | CF102: 0.08652781304 | CG102: 62.99537668 | CH102: 5.450852176
B103: ='Input - Inventory'!B100 -> 92 | C103: ='Input - Inventory'!C100 -> MBF1x500 | D103: ='Input - Inventory'!D100 -> Lamp | E103: ='Input - Inventory'!E100 -> Traffic | F103: ='Input - Inventory'!F100 -> Major > 130w | G103: ='Input - Inventory'!G100 -> 1 | I103: Lamp - MBF1x500 | K103: 128.8490078 | L103: 0 | M103: 0 | O103: 0 | P103: 0 | Q103: 10.25099022 | R103: 0.3333333333 | S103: 0 | T103: 0 | U103: 10.25099022 | V103: 0.004909421179 | W103: 10.25099022 | X103: 0.1666666667 | Y103: 10.25099022 | Z103: 0.004590314437 | AA103: 10.25099022 | AB103: 0.04003202562 | AC103: 153.7648533 | AD103: 0.02159827214 | AE103: 256.2747555 | AF103: 0.01222195062 | AG103: 0 | AH103: 0 | AI103: 12301.18826 | AJ103: 0.0001112347052 | AK103: 8713.341687 | AL103: 0.0002495358633 | AM103: 0 | AN103: 0 | AO103: 0 | AP103: 0 | AQ103: 15.62908756 | AS103: 102.5099022 | AT103: 0.3333333333 | AU103: 39.54 | AV103: 0.004909421179 | AW103: 10.73 | AX103: 0.1666666667 | AY103: 0 | AZ103: 0.004909421179 | BA103: 36.15241925 | BC103: 73.64909373 | BD103: 0.144 | BE103: 2.27 | BF103: 73.64909373 | BG103: 0.0142 | BH103: 0 | BI103: 73.64909373 | BJ103: 0.01 | BK103: 0 | BL103: 24.07441576 | BN103: 102.5099022 | BO103: 0.144 | BP103: 10.73 | BQ103: 0.0142 | BR103: 0 | BS103: 0.01 | BT103: 14.91379192 | BV103: 29.73 | BW103: 0.32688 | BX103: 9.7181424 | BZ103: =IF($D103="Connection",VLOOKUP(C103,'Input - General'!$F$62:$N$79,4,FALSE),0) -> 0 | CB103: 0.1801212934 | CC103: 100.4878569 | CD103: 18.10000275 | CF103: 0.08652781304 | CG103: 118.5878596 | CH103: 10.26114815
B104: ='Input - Inventory'!B101 -> 93 | C104: ='Input - Inventory'!C101 -> MBF1x700 | D104: ='Input - Inventory'!D101 -> Lamp | E104: ='Input - Inventory'!E101 -> Traffic | F104: ='Input - Inventory'!F101 -> Major > 130w | G104: ='Input - Inventory'!G101 -> 1 | I104: Lamp - MBF1x700 | K104: 87.4634874 | L104: 2 | M104: 174.9269748 | O104: 0 | P104: 0 | Q104: 10.25099022 | R104: 0.3333333333 | S104: 0 | T104: 0 | U104: 10.25099022 | V104: 0.004909421179 | W104: 10.25099022 | X104: 0.1666666667 | Y104: 10.25099022 | Z104: 0.004590314437 | AA104: 10.25099022 | AB104: 0.04003202562 | AC104: 153.7648533 | AD104: 0.02159827214 | AE104: 256.2747555 | AF104: 0.01222195062 | AG104: 0 | AH104: 0 | AI104: 12301.18826 | AJ104: 0.0001112347052 | AK104: 8713.341687 | AL104: 0.0002495358633 | AM104: 0 | AN104: 0 | AO104: 0 | AP104: 0 | AQ104: 15.62908756 | AS104: 102.5099022 | AT104: 0.3333333333 | AU104: 39.54 | AV104: 0.004909421179 | AW104: 10.73 | AX104: 0.1666666667 | AY104: 0 | AZ104: 0.004909421179 | BA104: 36.15241925 | BC104: 73.64909373 | BD104: 0.04827650513 | BE104: 2.27 | BF104: 73.64909373 | BG104: 0.0142 | BH104: 0 | BI104: 73.64909373 | BJ104: 0.01 | BK104: 0 | BL104: 8.071032332 | BN104: 102.5099022 | BO104: 0.04827650513 | BP104: 10.73 | BQ104: 0.0142 | BR104: 0 | BS104: 0.01 | BT104: 5.101185819 | BV104: 29.73 | BW104: 0.1095876666 | BX104: 3.258041329 | BZ104: =IF($D104="Connection",VLOOKUP(C104,'Input - General'!$F$62:$N$79,4,FALSE),0) -> 0 | CB104: 0.1801212934 | CC104: 68.21176628 | CD104: 12.28639157 | CF104: 0.08652781304 | CG104: 80.49815785 | CH104: 6.965329552
B105: ='Input - Inventory'!B102 -> 94 | C105: ='Input - Inventory'!C102 -> MBF1x80 | D105: ='Input - Inventory'!D102 -> Lamp | E105: ='Input - Inventory'!E102 -> NonTraffic | F105: ='Input - Inventory'!F102 -> Minor < 130w | G105: ='Input - Inventory'!G102 -> 1 | I105: Lamp - MBF1x80 | K105: 45.68940806 | L105: 1665 | M105: 76072.86442 | O105: 10.25099022 | P105: 0.3333333333 | Q105: 0 | R105: 0 | S105: 10.25099022 | T105: 0.01850481125 | U105: 0 | V105: 0 | W105: 10.25099022 | X105: 0.1666666667 | Y105: 10.25099022 | Z105: 0.004590314437 | AA105: 10.25099022 | AB105: 0.04003202562 | AC105: 153.7648533 | AD105: 0.02159827214 | AE105: 256.2747555 | AF105: 0.01222195062 | AG105: 0 | AH105: 0 | AI105: 12301.18826 | AJ105: 0.0001112347052 | AK105: 8713.341687 | AL105: 0.0002495358633 | AM105: 0 | AN105: 0 | AO105: 0 | AP105: 0 | AQ105: 15.76845377 | AS105: 10.25099022 | AT105: 0.3333333333 | AU105: 39.54 | AV105: 0.01850481125 | AW105: 10.73 | AX105: 0.1666666667 | AY105: 0 | AZ105: 0.01850481125 | BA105: 5.93701031 | BC105: 73.64909373 | BD105: 0.08263333333 | BE105: 1.513333333 | BF105: 73.64909373 | BG105: 0.0142 | BH105: 0 | BI105: 73.64909373 | BJ105: 0.01 | BK105: 0 | BL105: 9.209950103 | BN105: 10.25099022 | BO105: 0.08263333333 | BP105: 10.73 | BQ105: 0.0142 | BR105: 0 | BS105: 0.01 | BT105: 0.9994394919 | BV105: 29.73 | BW105: 0.1250517778 | BX105: 3.717789353 | BZ105: =IF($D105="Connection",VLOOKUP(C105,'Input - General'!$F$62:$N$79,4,FALSE),0) -> 0 | CB105: 0.1801212934 | CC105: 35.63264302 | CD105: 6.418197747 | CF105: 0.08652781304 | CG105: 42.05084077 | CH105: 3.638567288
B106: ='Input - Inventory'!B103 -> 95 | C106: ='Input - Inventory'!C103 -> MBF1x80 (P09) | D106: ='Input - Inventory'!D103 -> Lamp | E106: ='Input - Inventory'!E103 -> NonTraffic | F106: ='Input - Inventory'!F103 -> Minor < 130w | G106: ='Input - Inventory'!G103 -> 1 | I106: Lamp - MBF1x80 (P09) | K106: 45.68940806 | L106: 77027.5 | M106: 3519340.879 | O106: 10.25099022 | P106: 0.3333333333 | Q106: 0 | R106: 0 | S106: 10.25099022 | T106: 0.01850481125 | U106: 0 | V106: 0 | W106: 10.25099022 | X106: 0.1666666667 | Y106: 10.25099022 | Z106: 0.004590314437 | AA106: 10.25099022 | AB106: 0.04003202562 | AC106: 153.7648533 | AD106: 0.02159827214 | AE106: 256.2747555 | AF106: 0.01222195062 | AG106: 0 | AH106: 0 | AI106: 12301.18826 | AJ106: 0.0001112347052 | AK106: 8713.341687 | AL106: 0.0002495358633 | AM106: 0 | AN106: 0 | AO106: 0 | AP106: 0 | AQ106: 15.76845377 | AS106: 10.25099022 | AT106: 0.3333333333 | AU106: 39.54 | AV106: 0.01850481125 | AW106: 10.73 | AX106: 0.1666666667 | AY106: 0 | AZ106: 0.01850481125 | BA106: 5.93701031 | BC106: 73.64909373 | BD106: 0.08263333333 | BE106: 1.513333333 | BF106: 73.64909373 | BG106: 0.0142 | BH106: 0 | BI106: 73.64909373 | BJ106: 0.01 | BK106: 0 | BL106: 9.209950103 | BN106: 10.25099022 | BO106: 0.08263333333 | BP106: 10.73 | BQ106: 0.0142 | BR106: 0 | BS106: 0.01 | BT106: 0.9994394919 | BV106: 29.73 | BW106: 0.1250517778 | BX106: 3.717789353 | BZ106: =IF($D106="Connection",VLOOKUP(C106,'Input - General'!$F$62:$N$79,4,FALSE),0) -> 0 | CB106: 0.1801212934 | CC106: 35.63264302 | CD106: 6.418197747 | CF106: 0.08652781304 | CG106: 42.05084077 | CH106: 3.638567288
B107: ='Input - Inventory'!B104 -> 96 | C107: ='Input - Inventory'!C104 -> MBF1x800 | D107: ='Input - Inventory'!D104 -> Lamp | E107: ='Input - Inventory'!E104 -> Traffic | F107: ='Input - Inventory'!F104 -> Major > 130w | G107: ='Input - Inventory'!G104 -> 1 | I107: Lamp - MBF1x800 | K107: 128.8490078 | L107: 0 | M107: 0 | O107: 0 | P107: 0 | Q107: 10.25099022 | R107: 0.3333333333 | S107: 0 | T107: 0 | U107: 10.25099022 | V107: 0.004909421179 | W107: 10.25099022 | X107: 0.1666666667 | Y107: 10.25099022 | Z107: 0.004590314437 | AA107: 10.25099022 | AB107: 0.04003202562 | AC107: 153.7648533 | AD107: 0.02159827214 | AE107: 256.2747555 | AF107: 0.01222195062 | AG107: 0 | AH107: 0 | AI107: 12301.18826 | AJ107: 0.0001112347052 | AK107: 8713.341687 | AL107: 0.0002495358633 | AM107: 0 | AN107: 0 | AO107: 0 | AP107: 0 | AQ107: 15.62908756 | AS107: 102.5099022 | AT107: 0.3333333333 | AU107: 39.54 | AV107: 0.004909421179 | AW107: 10.73 | AX107: 0.1666666667 | AY107: 0 | AZ107: 0.004909421179 | BA107: 36.15241925 | BC107: 73.64909373 | BD107: 0.144 | BE107: 2.27 | BF107: 73.64909373 | BG107: 0.0142 | BH107: 0 | BI107: 73.64909373 | BJ107: 0.01 | BK107: 0 | BL107: 24.07441576 | BN107: 102.5099022 | BO107: 0.144 | BP107: 10.73 | BQ107: 0.0142 | BR107: 0 | BS107: 0.01 | BT107: 14.91379192 | BV107: 29.73 | BW107: 0.32688 | BX107: 9.7181424 | BZ107: =IF($D107="Connection",VLOOKUP(C107,'Input - General'!$F$62:$N$79,4,FALSE),0) -> 0 | CB107: 0.1801212934 | CC107: 100.4878569 | CD107: 18.10000275 | CF107: 0.08652781304 | CG107: 118.5878596 | CH107: 10.26114815
B108: ='Input - Inventory'!B105 -> 97 | C108: ='Input - Inventory'!C105 -> MBF2x125 | D108: ='Input - Inventory'!D105 -> Lamp | E108: ='Input - Inventory'!E105 -> Traffic | F108: ='Input - Inventory'!F105 -> Major > 130w | G108: ='Input - Inventory'!G105 -> 2 | I108: Lamp - MBF2x125 | K108: 110.9895837 | L108: 0 | M108: 0 | O108: 0 | P108: 0 | Q108: 10.25099022 | R108: 0.3333333333 | S108: 0 | T108: 0 | U108: 10.25099022 | V108: 0.004909421179 | W108: 10.25099022 | X108: 0.1666666667 | Y108: 10.25099022 | Z108: 0.004590314437 | AA108: 10.25099022 | AB108: 0.04003202562 | AC108: 153.7648533 | AD108: 0.02159827214 | AE108: 256.2747555 | AF108: 0.01222195062 | AG108: 0 | AH108: 0 | AI108: 12301.18826 | AJ108: 0.0001112347052 | AK108: 8713.341687 | AL108: 0.0002495358633 | AM108: 0 | AN108: 0 | AO108: 0 | AP108: 0 | AQ108: 15.62908756 | AS108: 20.50198044 | AT108: 0.3333333333 | AU108: 39.54 | AV108: 0.004909421179 | AW108: 10.73 | AX108: 0.1666666667 | AY108: 0 | AZ108: 0.004909421179 | BA108: 8.816445327 | BC108: 73.64909373 | BD108: 0.25298551 | BE108: 2.27 | BF108: 73.64909373 | BG108: 0.0142 | BH108: 0 | BI108: 73.64909373 | BJ108: 0.01 | BK108: 0 | BL108: 42.29498853 | BN108: 10.25099022 | BO108: 0.25298551 | BP108: 10.73 | BQ108: 0.0142 | BR108: 0 | BS108: 0.01 | BT108: 2.745717989 | BV108: 29.73 | BW108: 0.5742771077 | BX108: 17.07325841 | BZ108: =IF($D108="Connection",VLOOKUP(C108,'Input - General'!$F$62:$N$79,4,FALSE),0) -> 0 | CB108: 0.1801212934 | CC108: 86.55949782 | CD108: 15.5912087 | CF108: 0.08652781304 | CG108: 102.1507065 | CH108: 8.838877235
B109: ='Input - Inventory'!B106 -> 98 | C109: ='Input - Inventory'!C106 -> MBF2x125 (P09) | D109: ='Input - Inventory'!D106 -> Lamp | E109: ='Input - Inventory'!E106 -> Traffic | F109: ='Input - Inventory'!F106 -> Major > 130w | G109: ='Input - Inventory'!G106 -> 2 | I109: Lamp - MBF2x125 (P09) | K109: 110.9895837 | L109: 1 | M109: 110.9895837 | O109: 0 | P109: 0 | Q109: 10.25099022 | R109: 0.3333333333 | S109: 0 | T109: 0 | U109: 10.25099022 | V109: 0.004909421179 | W109: 10.25099022 | X109: 0.1666666667 | Y109: 10.25099022 | Z109: 0.004590314437 | AA109: 10.25099022 | AB109: 0.04003202562 | AC109: 153.7648533 | AD109: 0.02159827214 | AE109: 256.2747555 | AF109: 0.01222195062 | AG109: 0 | AH109: 0 | AI109: 12301.18826 | AJ109: 0.0001112347052 | AK109: 8713.341687 | AL109: 0.0002495358633 | AM109: 0 | AN109: 0 | AO109: 0 | AP109: 0 | AQ109: 15.62908756 | AS109: 20.50198044 | AT109: 0.3333333333 | AU109: 39.54 | AV109: 0.004909421179 | AW109: 10.73 | AX109: 0.1666666667 | AY109: 0 | AZ109: 0.004909421179 | BA109: 8.816445327 | BC109: 73.64909373 | BD109: 0.25298551 | BE109: 2.27 | BF109: 73.64909373 | BG109: 0.0142 | BH109: 0 | BI109: 73.64909373 | BJ109: 0.01 | BK109: 0 | BL109: 42.29498853 | BN109: 10.25099022 | BO109: 0.25298551 | BP109: 10.73 | BQ109: 0.0142 | BR109: 0 | BS109: 0.01 | BT109: 2.745717989 | BV109: 29.73 | BW109: 0.5742771077 | BX109: 17.07325841 | BZ109: =IF($D109="Connection",VLOOKUP(C109,'Input - General'!$F$62:$N$79,4,FALSE),0) -> 0 | CB109: 0.1801212934 | CC109: 86.55949782 | CD109: 15.5912087 | CF109: 0.08652781304 | CG109: 102.1507065 | CH109: 8.838877235
B110: ='Input - Inventory'!B107 -> 99 | C110: ='Input - Inventory'!C107 -> MBF2x160 | D110: ='Input - Inventory'!D107 -> Lamp | E110: ='Input - Inventory'!E107 -> Traffic | F110: ='Input - Inventory'!F107 -> Major > 130w | G110: ='Input - Inventory'!G107 -> 2 | I110: Lamp - MBF2x160 | K110: 31.54027723 | L110: 0 | M110: 0 | O110: 0 | P110: 0 | Q110: 10.25099022 | R110: 0.3333333333 | S110: 0 | T110: 0 | U110: 10.25099022 | V110: 0.004909421179 | W110: 10.25099022 | X110: 0.1666666667 | Y110: 10.25099022 | Z110: 0.004590314437 | AA110: 10.25099022 | AB110: 0.04003202562 | AC110: 153.7648533 | AD110: 0.02159827214 | AE110: 256.2747555 | AF110: 0.01222195062 | AG110: 0 | AH110: 0 | AI110: 12301.18826 | AJ110: 0.0001112347052 | AK110: 8713.341687 | AL110: 0.0002495358633 | AM110: 0 | AN110: 0 | AO110: 0 | AP110: 0 | AQ110: 15.62908756 | AS110: 20.50198044 | AT110: 0.3333333333 | AU110: 39.54 | AV110: 0.004909421179 | AW110: 10.73 | AX110: 0.1666666667 | AY110: 0 | AZ110: 0.004909421179 | BA110: 8.816445327 | BC110: 73.64909373 | BD110: 0 | BE110: 2.27 | BF110: 73.64909373 | BG110: 0.0142 | BH110: 0 | BI110: 73.64909373 | BJ110: 0.01 | BK110: 0 | BL110: 0 | BN110: 10.25099022 | BO110: 0 | BP110: 10.73 | BQ110: 0.0142 | BR110: 0 | BS110: 0.01 | BT110: 0.152366 | BV110: 29.73 | BW110: 0 | BX110: 0 | BZ110: =IF($D110="Connection",VLOOKUP(C110,'Input - General'!$F$62:$N$79,4,FALSE),0) -> 0 | CB110: 0.1801212934 | CC110: 24.59789888 | CD110: 4.430605361 | CF110: 0.08652781304 | CG110: 29.02850424 | CH110: 2.511772988
B111: ='Input - Inventory'!B108 -> 100 | C111: ='Input - Inventory'!C108 -> MBF2x175 | D111: ='Input - Inventory'!D108 -> Lamp | E111: ='Input - Inventory'!E108 -> Traffic | F111: ='Input - Inventory'!F108 -> Major > 130w | G111: ='Input - Inventory'!G108 -> 2 | I111: Lamp - MBF2x175 | K111: 31.54027723 | L111: 0 | M111: 0 | O111: 0 | P111: 0 | Q111: 10.25099022 | R111: 0.3333333333 | S111: 0 | T111: 0 | U111: 10.25099022 | V111: 0.004909421179 | W111: 10.25099022 | X111: 0.1666666667 | Y111: 10.25099022 | Z111: 0.004590314437 | AA111: 10.25099022 | AB111: 0.04003202562 | AC111: 153.7648533 | AD111: 0.02159827214 | AE111: 256.2747555 | AF111: 0.01222195062 | AG111: 0 | AH111: 0 | AI111: 12301.18826 | AJ111: 0.0001112347052 | AK111: 8713.341687 | AL111: 0.0002495358633 | AM111: 0 | AN111: 0 | AO111: 0 | AP111: 0 | AQ111: 15.62908756 | AS111: 20.50198044 | AT111: 0.3333333333 | AU111: 39.54 | AV111: 0.004909421179 | AW111: 10.73 | AX111: 0.1666666667 | AY111: 0 | AZ111: 0.004909421179 | BA111: 8.816445327 | BC111: 73.64909373 | BD111: 0 | BE111: 2.27 | BF111: 73.64909373 | BG111: 0.0142 | BH111: 0 | BI111: 73.64909373 | BJ111: 0.01 | BK111: 0 | BL111: 0 | BN111: 10.25099022 | BO111: 0 | BP111: 10.73 | BQ111: 0.0142 | BR111: 0 | BS111: 0.01 | BT111: 0.152366 | BV111: 29.73 | BW111: 0 | BX111: 0 | BZ111: =IF($D111="Connection",VLOOKUP(C111,'Input - General'!$F$62:$N$79,4,FALSE),0) -> 0 | CB111: 0.1801212934 | CC111: 24.59789888 | CD111: 4.430605361 | CF111: 0.08652781304 | CG111: 29.02850424 | CH111: 2.511772988
B112: ='Input - Inventory'!B109 -> 101 | C112: ='Input - Inventory'!C109 -> MBF2x400 | D112: ='Input - Inventory'!D109 -> Lamp | E112: ='Input - Inventory'!E109 -> Traffic | F112: ='Input - Inventory'!F109 -> Major > 130w | G112: ='Input - Inventory'!G109 -> 2 | I112: Lamp - MBF2x400 | K112: 101.4302543 | L112: 0 | M112: 0 | O112: 0 | P112: 0 | Q112: 10.25099022 | R112: 0.3333333333 | S112: 0 | T112: 0 | U112: 10.25099022 | V112: 0.004909421179 | W112: 10.25099022 | X112: 0.1666666667 | Y112: 10.25099022 | Z112: 0.004590314437 | AA112: 10.25099022 | AB112: 0.04003202562 | AC112: 153.7648533 | AD112: 0.02159827214 | AE112: 256.2747555 | AF112: 0.01222195062 | AG112: 0 | AH112: 0 | AI112: 12301.18826 | AJ112: 0.0001112347052 | AK112: 8713.341687 | AL112: 0.0002495358633 | AM112: 0 | AN112: 0 | AO112: 0 | AP112: 0 | AQ112: 15.62908756 | AS112: 20.50198044 | AT112: 0.3333333333 | AU112: 39.54 | AV112: 0.004909421179 | AW112: 10.73 | AX112: 0.1666666667 | AY112: 0 | AZ112: 0.004909421179 | BA112: 8.816445327 | BC112: 73.64909373 | BD112: 0.2225463289 | BE112: 2.27 | BF112: 73.64909373 | BG112: 0.0142 | BH112: 0 | BI112: 73.64909373 | BJ112: 0.01 | BK112: 0 | BL112: 37.20606144 | BN112: 10.25099022 | BO112: 0.2225463289 | BP112: 10.73 | BQ112: 0.0142 | BR112: 0 | BS112: 0.01 | BT112: 2.433686241 | BV112: 29.73 | BW112: 0.5051801666 | BX112: 15.01900635 | BZ112: =IF($D112="Connection",VLOOKUP(C112,'Input - General'!$F$62:$N$79,4,FALSE),0) -> 0 | CB112: 0.1801212934 | CC112: 79.10428691 | CD112: 14.24836647 | CF112: 0.08652781304 | CG112: 93.35265338 | CH112: 8.077600939
B113: ='Input - Inventory'!B110 -> 102 | C113: ='Input - Inventory'!C110 -> MBF2x80 | D113: ='Input - Inventory'!D110 -> Lamp | E113: ='Input - Inventory'!E110 -> NonTraffic | F113: ='Input - Inventory'!F110 -> Minor < 130w | G113: ='Input - Inventory'!G110 -> 2 | I113: Lamp - MBF2x80 | K113: 66.27382671 | L113: 0 | M113: 0 | O113: 10.25099022 | P113: 0.3333333333 | Q113: 0 | R113: 0 | S113: 10.25099022 | T113: 0.01850481125 | U113: 0 | V113: 0 | W113: 10.25099022 | X113: 0.1666666667 | Y113: 10.25099022 | Z113: 0.004590314437 | AA113: 10.25099022 | AB113: 0.04003202562 | AC113: 153.7648533 | AD113: 0.02159827214 | AE113: 256.2747555 | AF113: 0.01222195062 | AG113: 0 | AH113: 0 | AI113: 12301.18826 | AJ113: 0.0001112347052 | AK113: 8713.341687 | AL113: 0.0002495358633 | AM113: 0 | AN113: 0 | AO113: 0 | AP113: 0 | AQ113: 15.76845377 | AS113: 20.50198044 | AT113: 0.3333333333 | AU113: 39.54 | AV113: 0.01850481125 | AW113: 10.73 | AX113: 0.1666666667 | AY113: 0 | AZ113: 0.01850481125 | BA113: 9.35400705 | BC113: 73.64909373 | BD113: 0.1584383989 | BE113: 1.513333333 | BF113: 73.64909373 | BG113: 0.0142 | BH113: 0 | BI113: 73.64909373 | BJ113: 0.01 | BK113: 0 | BL113: 17.65885133 | BN113: 10.25099022 | BO113: 0.1584383989 | BP113: 10.73 | BQ113: 0.0142 | BR113: 0 | BS113: 0.01 | BT113: 1.776516477 | BV113: 29.73 | BW113: 0.2397701103 | BX113: 7.12836538 | BZ113: =IF($D113="Connection",VLOOKUP(C113,'Input - General'!$F$62:$N$79,4,FALSE),0) -> 0 | CB113: 0.1801212934 | CC113: 51.686194 | CD113: 9.309784113 | CF113: 0.08652781304 | CG113: 60.99597811 | CH113: 5.27784859
B114: ='Input - Inventory'!B111 -> 103 | C114: ='Input - Inventory'!C111 -> MBF3x160 | D114: ='Input - Inventory'!D111 -> Lamp | E114: ='Input - Inventory'!E111 -> Traffic | F114: ='Input - Inventory'!F111 -> Major > 130w | G114: ='Input - Inventory'!G111 -> 3 | I114: Lamp - MBF3x160 | K114: 35.92166871 | L114: 0 | M114: 0 | O114: 0 | P114: 0 | Q114: 10.25099022 | R114: 0.3333333333 | S114: 0 | T114: 0 | U114: 10.25099022 | V114: 0.004909421179 | W114: 10.25099022 | X114: 0.1666666667 | Y114: 10.25099022 | Z114: 0.004590314437 | AA114: 10.25099022 | AB114: 0.04003202562 | AC114: 153.7648533 | AD114: 0.02159827214 | AE114: 256.2747555 | AF114: 0.01222195062 | AG114: 0 | AH114: 0 | AI114: 12301.18826 | AJ114: 0.0001112347052 | AK114: 8713.341687 | AL114: 0.0002495358633 | AM114: 0 | AN114: 0 | AO114: 0 | AP114: 0 | AQ114: 15.62908756 | AS114: 30.75297066 | AT114: 0.3333333333 | AU114: 39.54 | AV114: 0.004909421179 | AW114: 10.73 | AX114: 0.1666666667 | AY114: 0 | AZ114: 0.004909421179 | BA114: 12.23344207 | BC114: 73.64909373 | BD114: 0 | BE114: 2.27 | BF114: 73.64909373 | BG114: 0.0142 | BH114: 0 | BI114: 73.64909373 | BJ114: 0.01 | BK114: 0 | BL114: 0 | BN114: 10.25099022 | BO114: 0 | BP114: 10.73 | BQ114: 0.0142 | BR114: 0 | BS114: 0.01 | BT114: 0.152366 | BV114: 29.73 | BW114: 0 | BX114: 0 | BZ114: =IF($D114="Connection",VLOOKUP(C114,'Input - General'!$F$62:$N$79,4,FALSE),0) -> 0 | CB114: 0.1801212934 | CC114: 28.01489562 | CD114: 5.046079233 | CF114: 0.08652781304 | CG114: 33.06097485 | CH114: 2.860693851
B115: ='Input - Inventory'!B112 -> 104 | C115: ='Input - Inventory'!C112 -> MBF3x250 | D115: ='Input - Inventory'!D112 -> Lamp | E115: ='Input - Inventory'!E112 -> Traffic | F115: ='Input - Inventory'!F112 -> Major > 130w | G115: ='Input - Inventory'!G112 -> 3 | I115: Lamp - MBF3x250 | K115: 134.6872672 | L115: 0 | M115: 0 | O115: 0 | P115: 0 | Q115: 10.25099022 | R115: 0.3333333333 | S115: 0 | T115: 0 | U115: 10.25099022 | V115: 0.004909421179 | W115: 10.25099022 | X115: 0.1666666667 | Y115: 10.25099022 | Z115: 0.004590314437 | AA115: 10.25099022 | AB115: 0.04003202562 | AC115: 153.7648533 | AD115: 0.02159827214 | AE115: 256.2747555 | AF115: 0.01222195062 | AG115: 0 | AH115: 0 | AI115: 12301.18826 | AJ115: 0.0001112347052 | AK115: 8713.341687 | AL115: 0.0002495358633 | AM115: 0 | AN115: 0 | AO115: 0 | AP115: 0 | AQ115: 15.62908756 | AS115: 30.75297066 | AT115: 0.3333333333 | AU115: 39.54 | AV115: 0.004909421179 | AW115: 10.73 | AX115: 0.1666666667 | AY115: 0 | AZ115: 0.004909421179 | BA115: 12.23344207 | BC115: 73.64909373 | BD115: 0.3144931831 | BE115: 2.27 | BF115: 73.64909373 | BG115: 0.0142 | BH115: 0 | BI115: 73.64909373 | BJ115: 0.01 | BK115: 0 | BL115: 52.57805307 | BN115: 10.25099022 | BO115: 0.3144931831 | BP115: 10.73 | BQ115: 0.0142 | BR115: 0 | BS115: 0.01 | BT115: 3.376232544 | BV115: 29.73 | BW115: 0.7138995255 | BX115: 21.22423289 | BZ115: =IF($D115="Connection",VLOOKUP(C115,'Input - General'!$F$62:$N$79,4,FALSE),0) -> 0 | CB115: 0.1801212934 | CC115: 105.0410481 | CD115: 18.92012945 | CF115: 0.08652781304 | CG115: 123.9611776 | CH115: 10.7260896
B116: ='Input - Inventory'!B113 -> 105 | C116: ='Input - Inventory'!C113 -> MBF3x400 | D116: ='Input - Inventory'!D113 -> Lamp | E116: ='Input - Inventory'!E113 -> Traffic | F116: ='Input - Inventory'!F113 -> Major > 130w | G116: ='Input - Inventory'!G113 -> 3 | I116: Lamp - MBF3x400 | K116: 139.8220199 | L116: 0 | M116: 0 | O116: 0 | P116: 0 | Q116: 10.25099022 | R116: 0.3333333333 | S116: 0 | T116: 0 | U116: 10.25099022 | V116: 0.004909421179 | W116: 10.25099022 | X116: 0.1666666667 | Y116: 10.25099022 | Z116: 0.004590314437 | AA116: 10.25099022 | AB116: 0.04003202562 | AC116: 153.7648533 | AD116: 0.02159827214 | AE116: 256.2747555 | AF116: 0.01222195062 | AG116: 0 | AH116: 0 | AI116: 12301.18826 | AJ116: 0.0001112347052 | AK116: 8713.341687 | AL116: 0.0002495358633 | AM116: 0 | AN116: 0 | AO116: 0 | AP116: 0 | AQ116: 15.62908756 | AS116: 30.75297066 | AT116: 0.3333333333 | AU116: 39.54 | AV116: 0.004909421179 | AW116: 10.73 | AX116: 0.1666666667 | AY116: 0 | AZ116: 0.004909421179 | BA116: 12.23344207 | BC116: 73.64909373 | BD116: 0.3308434584 | BE116: 2.27 | BF116: 73.64909373 | BG116: 0.0142 | BH116: 0 | BI116: 73.64909373 | BJ116: 0.01 | BK116: 0 | BL116: 55.31154839 | BN116: 10.25099022 | BO116: 0.3308434584 | BP116: 10.73 | BQ116: 0.0142 | BR116: 0 | BS116: 0.01 | BT116: 3.543839056 | BV116: 29.73 | BW116: 0.7510146505 | BX116: 22.32766556 | BZ116: =IF($D116="Connection",VLOOKUP(C116,'Input - General'!$F$62:$N$79,4,FALSE),0) -> 0 | CB116: 0.1801212934 | CC116: 109.0455826 | CD116: 19.64143138 | CF116: 0.08652781304 | CG116: 128.687014 | CH116: 11.13500589
B117: ='Input - Inventory'!B114 -> 106 | C117: ='Input - Inventory'!C114 -> MBF3x80 | D117: ='Input - Inventory'!D114 -> Lamp | E117: ='Input - Inventory'!E114 -> NonTraffic | F117: ='Input - Inventory'!F114 -> Minor < 130w | G117: ='Input - Inventory'!G114 -> 3 | I117: Lamp - MBF3x80 | K117: 85.51933521 | L117: 0 | M117: 0 | O117: 10.25099022 | P117: 0.3333333333 | Q117: 0 | R117: 0 | S117: 10.25099022 | T117: 0.01850481125 | U117: 0 | V117: 0 | W117: 10.25099022 | X117: 0.1666666667 | Y117: 10.25099022 | Z117: 0.004590314437 | AA117: 10.25099022 | AB117: 0.04003202562 | AC117: 153.7648533 | AD117: 0.02159827214 | AE117: 256.2747555 | AF117: 0.01222195062 | AG117: 0 | AH117: 0 | AI117: 12301.18826 | AJ117: 0.0001112347052 | AK117: 8713.341687 | AL117: 0.0002495358633 | AM117: 0 | AN117: 0 | AO117: 0 | AP117: 0 | AQ117: 15.76845377 | AS117: 30.75297066 | AT117: 0.3333333333 | AU117: 39.54 | AV117: 0.01850481125 | AW117: 10.73 | AX117: 0.1666666667 | AY117: 0 | AZ117: 0.01850481125 | BA117: 12.77100379 | BC117: 73.64909373 | BD117: 0.2279794392 | BE117: 1.513333333 | BF117: 73.64909373 | BG117: 0.0142 | BH117: 0 | BI117: 73.64909373 | BJ117: 0.01 | BK117: 0 | BL117: 25.40959168 | BN117: 10.25099022 | BO117: 0.2279794392 | BP117: 10.73 | BQ117: 0.0142 | BR117: 0 | BS117: 0.01 | BT117: 2.489381002 | BV117: 29.73 | BW117: 0.3450088846 | BX117: 10.25711414 | BZ117: =IF($D117="Connection",VLOOKUP(C117,'Input - General'!$F$62:$N$79,4,FALSE),0) -> 0 | CB117: 0.1801212934 | CC117: 66.69554438 | CD117: 12.01328772 | CF117: 0.08652781304 | CG117: 78.7088321 | CH117: 6.810503108
B118: ='Input - Inventory'!B115 -> 107 | C118: ='Input - Inventory'!C115 -> MBF4x1000 | D118: ='Input - Inventory'!D115 -> Lamp | E118: ='Input - Inventory'!E115 -> Traffic | F118: ='Input - Inventory'!F115 -> Major > 130w | G118: ='Input - Inventory'!G115 -> 4 | I118: Lamp - MBF4x1000 | K118: 320.649079 | L118: 0 | M118: 0 | O118: 0 | P118: 0 | Q118: 10.25099022 | R118: 0.3333333333 | S118: 0 | T118: 0 | U118: 10.25099022 | V118: 0.004909421179 | W118: 10.25099022 | X118: 0.1666666667 | Y118: 10.25099022 | Z118: 0.004590314437 | AA118: 10.25099022 | AB118: 0.04003202562 | AC118: 153.7648533 | AD118: 0.02159827214 | AE118: 256.2747555 | AF118: 0.01222195062 | AG118: 0 | AH118: 0 | AI118: 12301.18826 | AJ118: 0.0001112347052 | AK118: 8713.341687 | AL118: 0.0002495358633 | AM118: 0 | AN118: 0 | AO118: 0 | AP118: 0 | AQ118: 15.62908756 | AS118: 410.0396088 | AT118: 0.3333333333 | AU118: 39.54 | AV118: 0.004909421179 | AW118: 10.73 | AX118: 0.1666666667 | AY118: 0 | AZ118: 0.004909421179 | BA118: 138.6623214 | BC118: 73.64909373 | BD118: 0.28360704 | BE118: 2.27 | BF118: 73.64909373 | BG118: 0.0142 | BH118: 0 | BI118: 73.64909373 | BJ118: 0.01 | BK118: 0 | BL118: 47.41440134 | BN118: 102.5099022 | BO118: 0.28360704 | BP118: 10.73 | BQ118: 0.0142 | BR118: 0 | BS118: 0.01 | BT118: 29.22489593 | BV118: 29.73 | BW118: 0.6437879808 | BX118: 19.13981667 | BZ118: =IF($D118="Connection",VLOOKUP(C118,'Input - General'!$F$62:$N$79,4,FALSE),0) -> 0 | CB118: 0.1801212934 | CC118: 250.0705229 | CD118: 45.04302602 | CF118: 0.08652781304 | CG118: 295.113549 | CH118: 25.53552999
B119: ='Input - Inventory'!B116 -> 108 | C119: ='Input - Inventory'!C116 -> MBF4x80 | D119: ='Input - Inventory'!D116 -> Lamp | E119: ='Input - Inventory'!E116 -> NonTraffic | F119: ='Input - Inventory'!F116 -> Minor < 130w | G119: ='Input - Inventory'!G116 -> 4 | I119: Lamp - MBF4x80 | K119: 103.5365722 | L119: 0 | M119: 0 | O119: 10.25099022 | P119: 0.3333333333 | Q119: 0 | R119: 0 | S119: 10.25099022 | T119: 0.01850481125 | U119: 0 | V119: 0 | W119: 10.25099022 | X119: 0.1666666667 | Y119: 10.25099022 | Z119: 0.004590314437 | AA119: 10.25099022 | AB119: 0.04003202562 | AC119: 153.7648533 | AD119: 0.02159827214 | AE119: 256.2747555 | AF119: 0.01222195062 | AG119: 0 | AH119: 0 | AI119: 12301.18826 | AJ119: 0.0001112347052 | AK119: 8713.341687 | AL119: 0.0002495358633 | AM119: 0 | AN119: 0 | AO119: 0 | AP119: 0 | AQ119: 15.76845377 | AS119: 41.00396088 | AT119: 0.3333333333 | AU119: 39.54 | AV119: 0.01850481125 | AW119: 10.73 | AX119: 0.1666666667 | AY119: 0 | AZ119: 0.01850481125 | BA119: 16.18800053 | BC119: 73.64909373 | BD119: 0.2917740715 | BE119: 1.513333333 | BF119: 73.64909373 | BG119: 0.0142 | BH119: 0 | BI119: 73.64909373 | BJ119: 0.01 | BK119: 0 | BL119: 32.51986253 | BN119: 10.25099022 | BO119: 0.2917740715 | BP119: 10.73 | BQ119: 0.0142 | BR119: 0 | BS119: 0.01 | BT119: 3.143339154 | BV119: 29.73 | BW119: 0.4415514283 | BX119: 13.12732396 | BZ119: =IF($D119="Connection",VLOOKUP(C119,'Input - General'!$F$62:$N$79,4,FALSE),0) -> 0 | CB119: 0.1801212934 | CC119: 80.74697994 | CD119: 14.54425046 | CF119: 0.08652781304 | CG119: 95.2912304 | CH119: 8.245341768
B120: ='Input - Inventory'!B117 -> 109 | C120: ='Input - Inventory'!C117 -> MBF6x125 | D120: ='Input - Inventory'!D117 -> Lamp | E120: ='Input - Inventory'!E117 -> Traffic | F120: ='Input - Inventory'!F117 -> Major > 130w | G120: ='Input - Inventory'!G117 -> 6 | I120: Lamp - MBF6x125 | K120: 232.2000809 | L120: 0 | M120: 0 | O120: 0 | P120: 0 | Q120: 10.25099022 | R120: 0.3333333333 | S120: 0 | T120: 0 | U120: 10.25099022 | V120: 0.004909421179 | W120: 10.25099022 | X120: 0.1666666667 | Y120: 10.25099022 | Z120: 0.004590314437 | AA120: 10.25099022 | AB120: 0.04003202562 | AC120: 153.7648533 | AD120: 0.02159827214 | AE120: 256.2747555 | AF120: 0.01222195062 | AG120: 0 | AH120: 0 | AI120: 12301.18826 | AJ120: 0.0001112347052 | AK120: 8713.341687 | AL120: 0.0002495358633 | AM120: 0 | AN120: 0 | AO120: 0 | AP120: 0 | AQ120: 15.62908756 | AS120: 61.50594132 | AT120: 0.3333333333 | AU120: 39.54 | AV120: 0.004909421179 | AW120: 10.73 | AX120: 0.1666666667 | AY120: 0 | AZ120: 0.004909421179 | BA120: 22.48443229 | BC120: 73.64909373 | BD120: 0.5831430199 | BE120: 2.27 | BF120: 73.64909373 | BG120: 0.0142 | BH120: 0 | BI120: 73.64909373 | BJ120: 0.01 | BK120: 0 | BL120: 97.49185769 | BN120: 10.25099022 | BO120: 0.5831430199 | BP120: 10.73 | BQ120: 0.0142 | BR120: 0 | BS120: 0.01 | BT120: 6.130159394 | BV120: 29.73 | BW120: 1.323734655 | BX120: 39.3546313 | BZ120: =IF($D120="Connection",VLOOKUP(C120,'Input - General'!$F$62:$N$79,4,FALSE),0) -> 0 | CB120: 0.1801212934 | CC120: 181.0901682 | CD120: 32.61819532 | CF120: 0.08652781304 | CG120: 213.7083635 | CH120: 18.49171733
B121: ='Input - Inventory'!B118 -> 110 | C121: ='Input - Inventory'!C118 -> MBF6x160 | D121: ='Input - Inventory'!D118 -> Lamp | E121: ='Input - Inventory'!E118 -> Traffic | F121: ='Input - Inventory'!F118 -> Major > 130w | G121: ='Input - Inventory'!G118 -> 6 | I121: Lamp - MBF6x160 | K121: 49.06584313 | L121: 0 | M121: 0 | O121: 0 | P121: 0 | Q121: 10.25099022 | R121: 0.3333333333 | S121: 0 | T121: 0 | U121: 10.25099022 | V121: 0.004909421179 | W121: 10.25099022 | X121: 0.1666666667 | Y121: 10.25099022 | Z121: 0.004590314437 | AA121: 10.25099022 | AB121: 0.04003202562 | AC121: 153.7648533 | AD121: 0.02159827214 | AE121: 256.2747555 | AF121: 0.01222195062 | AG121: 0 | AH121: 0 | AI121: 12301.18826 | AJ121: 0.0001112347052 | AK121: 8713.341687 | AL121: 0.0002495358633 | AM121: 0 | AN121: 0 | AO121: 0 | AP121: 0 | AQ121: 15.62908756 | AS121: 61.50594132 | AT121: 0.3333333333 | AU121: 39.54 | AV121: 0.004909421179 | AW121: 10.73 | AX121: 0.1666666667 | AY121: 0 | AZ121: 0.004909421179 | BA121: 22.48443229 | BC121: 73.64909373 | BD121: 0 | BE121: 2.27 | BF121: 73.64909373 | BG121: 0.0142 | BH121: 0 | BI121: 73.64909373 | BJ121: 0.01 | BK121: 0 | BL121: 0 | BN121: 10.25099022 | BO121: 0 | BP121: 10.73 | BQ121: 0.0142 | BR121: 0 | BS121: 0.01 | BT121: 0.152366 | BV121: 29.73 | BW121: 0 | BX121: 0 | BZ121: =IF($D121="Connection",VLOOKUP(C121,'Input - General'!$F$62:$N$79,4,FALSE),0) -> 0 | CB121: 0.1801212934 | CC121: 38.26588584 | CD121: 6.892500849 | CF121: 0.08652781304 | CG121: 45.15838669 | CH121: 3.907456441
B122: ='Input - Inventory'!B119 -> 111 | C122: ='Input - Inventory'!C119 -> MBF9x160 | D122: ='Input - Inventory'!D119 -> Lamp | E122: ='Input - Inventory'!E119 -> Traffic | F122: ='Input - Inventory'!F119 -> Major > 130w | G122: ='Input - Inventory'!G119 -> 9 | I122: Lamp - MBF9x160 | K122: 62.21001756 | L122: 0 | M122: 0 | O122: 0 | P122: 0 | Q122: 10.25099022 | R122: 0.3333333333 | S122: 0 | T122: 0 | U122: 10.25099022 | V122: 0.004909421179 | W122: 10.25099022 | X122: 0.1666666667 | Y122: 10.25099022 | Z122: 0.004590314437 | AA122: 10.25099022 | AB122: 0.04003202562 | AC122: 153.7648533 | AD122: 0.02159827214 | AE122: 256.2747555 | AF122: 0.01222195062 | AG122: 0 | AH122: 0 | AI122: 12301.18826 | AJ122: 0.0001112347052 | AK122: 8713.341687 | AL122: 0.0002495358633 | AM122: 0 | AN122: 0 | AO122: 0 | AP122: 0 | AQ122: 15.62908756 | AS122: 92.25891198 | AT122: 0.3333333333 | AU122: 39.54 | AV122: 0.004909421179 | AW122: 10.73 | AX122: 0.1666666667 | AY122: 0 | AZ122: 0.004909421179 | BA122: 32.73542251 | BC122: 73.64909373 | BD122: 0 | BE122: 2.27 | BF122: 73.64909373 | BG122: 0.0142 | BH122: 0 | BI122: 73.64909373 | BJ122: 0.01 | BK122: 0 | BL122: 0 | BN122: 10.25099022 | BO122: 0 | BP122: 10.73 | BQ122: 0.0142 | BR122: 0 | BS122: 0.01 | BT122: 0.152366 | BV122: 29.73 | BW122: 0 | BX122: 0 | BZ122: =IF($D122="Connection",VLOOKUP(C122,'Input - General'!$F$62:$N$79,4,FALSE),0) -> 0 | CB122: 0.1801212934 | CC122: 48.51687606 | CD122: 8.738922466 | CF122: 0.08652781304 | CG122: 57.25579853 | CH122: 4.95421903
B123: ='Input - Inventory'!B120 -> 112 | C123: ='Input - Inventory'!C120 -> MBI1x100 | D123: ='Input - Inventory'!D120 -> Lamp | E123: ='Input - Inventory'!E120 -> Traffic | F123: ='Input - Inventory'!F120 -> Minor < 130w | G123: ='Input - Inventory'!G120 -> 1 | I123: Lamp - MBI1x100 | K123: 91.24328348 | L123: 1 | M123: 91.24328348 | O123: 10.25099022 | P123: 0.3333333333 | Q123: 0 | R123: 0 | S123: 10.25099022 | T123: 0.01850481125 | U123: 0 | V123: 0 | W123: 10.25099022 | X123: 0.1666666667 | Y123: 10.25099022 | Z123: 0.004590314437 | AA123: 10.25099022 | AB123: 0.04003202562 | AC123: 153.7648533 | AD123: 0.02159827214 | AE123: 256.2747555 | AF123: 0.01222195062 | AG123: 0 | AH123: 0 | AI123: 12301.18826 | AJ123: 0.0001112347052 | AK123: 8713.341687 | AL123: 0.0002495358633 | AM123: 0 | AN123: 0 | AO123: 0 | AP123: 0 | AQ123: 15.76845377 | AS123: 30.75297066 | AT123: 0.3333333333 | AU123: 39.54 | AV123: 0.01850481125 | AW123: 10.73 | AX123: 0.1666666667 | AY123: 0 | AZ123: 0 | BA123: 12.77100379 | BC123: 73.64909373 | BD123: 0.16 | BE123: 2.27 | BF123: 73.64909373 | BG123: 0.0142 | BH123: 0 | BI123: 73.64909373 | BJ123: 0.01 | BK123: 0 | BL123: 26.74935084 | BN123: 30.75297066 | BO123: 0.16 | BP123: 10.73 | BQ123: 0.0142 | BR123: 0 | BS123: 0.01 | BT123: 5.072841306 | BV123: 29.73 | BW123: 0.3632 | BX123: 10.797936 | BZ123: =IF($D123="Connection",VLOOKUP(C123,'Input - General'!$F$62:$N$79,4,FALSE),0) -> 0 | CB123: 0.1801212934 | CC123: 71.1595857 | CD123: 12.81735661 | CF123: 0.08652781304 | CG123: 83.97694232 | CH123: 7.266341164
B124: ='Input - Inventory'!B121 -> 113 | C124: ='Input - Inventory'!C121 -> MBI1x100 (P09) | D124: ='Input - Inventory'!D121 -> Lamp | E124: ='Input - Inventory'!E121 -> Traffic | F124: ='Input - Inventory'!F121 -> Minor < 130w | G124: ='Input - Inventory'!G121 -> 1 | I124: Lamp - MBI1x100 (P09) | K124: 91.24328348 | L124: 34 | M124: 3102.271638 | O124: 10.25099022 | P124: 0.3333333333 | Q124: 0 | R124: 0 | S124: 10.25099022 | T124: 0.01850481125 | U124: 0 | V124: 0 | W124: 10.25099022 | X124: 0.1666666667 | Y124: 10.25099022 | Z124: 0.004590314437 | AA124: 10.25099022 | AB124: 0.04003202562 | AC124: 153.7648533 | AD124: 0.02159827214 | AE124: 256.2747555 | AF124: 0.01222195062 | AG124: 0 | AH124: 0 | AI124: 12301.18826 | AJ124: 0.0001112347052 | AK124: 8713.341687 | AL124: 0.0002495358633 | AM124: 0 | AN124: 0 | AO124: 0 | AP124: 0 | AQ124: 15.76845377 | AS124: 30.75297066 | AT124: 0.3333333333 | AU124: 39.54 | AV124: 0.01850481125 | AW124: 10.73 | AX124: 0.1666666667 | AY124: 0 | AZ124: 0 | BA124: 12.77100379 | BC124: 73.64909373 | BD124: 0.16 | BE124: 2.27 | BF124: 73.64909373 | BG124: 0.0142 | BH124: 0 | BI124: 73.64909373 | BJ124: 0.01 | BK124: 0 | BL124: 26.74935084 | BN124: 30.75297066 | BO124: 0.16 | BP124: 10.73 | BQ124: 0.0142 | BR124: 0 | BS124: 0.01 | BT124: 5.072841306 | BV124: 29.73 | BW124: 0.3632 | BX124: 10.797936 | BZ124: =IF($D124="Connection",VLOOKUP(C124,'Input - General'!$F$62:$N$79,4,FALSE),0) -> 0 | CB124: 0.1801212934 | CC124: 71.1595857 | CD124: 12.81735661 | CF124: 0.08652781304 | CG124: 83.97694232 | CH124: 7.266341164
B125: ='Input - Inventory'!B122 -> 114 | C125: ='Input - Inventory'!C122 -> MBI1x1000 | D125: ='Input - Inventory'!D122 -> Lamp | E125: ='Input - Inventory'!E122 -> Traffic | F125: ='Input - Inventory'!F122 -> Major > 130w | G125: ='Input - Inventory'!G122 -> 1 | I125: Lamp - MBI1x1000 | K125: 135.7665187 | L125: 1 | M125: 135.7665187 | O125: 0 | P125: 0 | Q125: 10.25099022 | R125: 0.3333333333 | S125: 0 | T125: 0 | U125: 10.25099022 | V125: 0.004909421179 | W125: 10.25099022 | X125: 0.1666666667 | Y125: 10.25099022 | Z125: 0.004590314437 | AA125: 10.25099022 | AB125: 0.04003202562 | AC125: 153.7648533 | AD125: 0.02159827214 | AE125: 256.2747555 | AF125: 0.01222195062 | AG125: 0 | AH125: 0 | AI125: 12301.18826 | AJ125: 0.0001112347052 | AK125: 8713.341687 | AL125: 0.0002495358633 | AM125: 0 | AN125: 0 | AO125: 0 | AP125: 0 | AQ125: 15.62908756 | AS125: 102.5099022 | AT125: 0.3333333333 | AU125: 39.54 | AV125: 0.004909421179 | AW125: 10.73 | AX125: 0.1666666667 | AY125: 0 | AZ125: 0.004909421179 | BA125: 36.15241925 | BC125: 73.64909373 | BD125: 0.16 | BE125: 2.27 | BF125: 73.64909373 | BG125: 0.0142 | BH125: 0 | BI125: 73.64909373 | BJ125: 0.01 | BK125: 0 | BL125: 26.74935084 | BN125: 102.5099022 | BO125: 0.16 | BP125: 10.73 | BQ125: 0.0142 | BR125: 0 | BS125: 0.01 | BT125: 16.55395035 | BV125: 29.73 | BW125: 0.3632 | BX125: 10.797936 | BZ125: =IF($D125="Connection",VLOOKUP(C125,'Input - General'!$F$62:$N$79,4,FALSE),0) -> 0 | CB125: 0.1801212934 | CC125: 105.882744 | CD125: 19.07173679 | CF125: 0.08652781304 | CG125: 124.9544808 | CH125: 10.81203795
B126: ='Input - Inventory'!B123 -> 115 | C126: ='Input - Inventory'!C123 -> MBI1x1000 (P09) | D126: ='Input - Inventory'!D123 -> Lamp | E126: ='Input - Inventory'!E123 -> Traffic | F126: ='Input - Inventory'!F123 -> Major > 130w | G126: ='Input - Inventory'!G123 -> 1 | I126: Lamp - MBI1x1000 (P09) | K126: 135.7665187 | L126: 10 | M126: 1357.665187 | O126: 0 | P126: 0 | Q126: 10.25099022 | R126: 0.3333333333 | S126: 0 | T126: 0 | U126: 10.25099022 | V126: 0.004909421179 | W126: 10.25099022 | X126: 0.1666666667 | Y126: 10.25099022 | Z126: 0.004590314437 | AA126: 10.25099022 | AB126: 0.04003202562 | AC126: 153.7648533 | AD126: 0.02159827214 | AE126: 256.2747555 | AF126: 0.01222195062 | AG126: 0 | AH126: 0 | AI126: 12301.18826 | AJ126: 0.0001112347052 | AK126: 8713.341687 | AL126: 0.0002495358633 | AM126: 0 | AN126: 0 | AO126: 0 | AP126: 0 | AQ126: 15.62908756 | AS126: 102.5099022 | AT126: 0.3333333333 | AU126: 39.54 | AV126: 0.004909421179 | AW126: 10.73 | AX126: 0.1666666667 | AY126: 0 | AZ126: 0.004909421179 | BA126: 36.15241925 | BC126: 73.64909373 | BD126: 0.16 | BE126: 2.27 | BF126: 73.64909373 | BG126: 0.0142 | BH126: 0 | BI126: 73.64909373 | BJ126: 0.01 | BK126: 0 | BL126: 26.74935084 | BN126: 102.5099022 | BO126: 0.16 | BP126: 10.73 | BQ126: 0.0142 | BR126: 0 | BS126: 0.01 | BT126: 16.55395035 | BV126: 29.73 | BW126: 0.3632 | BX126: 10.797936 | BZ126: =IF($D126="Connection",VLOOKUP(C126,'Input - General'!$F$62:$N$79,4,FALSE),0) -> 0 | CB126: 0.1801212934 | CC126: 105.882744 | CD126: 19.07173679 | CF126: 0.08652781304 | CG126: 124.9544808 | CH126: 10.81203795
B127: ='Input - Inventory'!B124 -> 116 | C127: ='Input - Inventory'!C124 -> MBI1x150 | D127: ='Input - Inventory'!D124 -> Lamp | E127: ='Input - Inventory'!E124 -> Traffic | F127: ='Input - Inventory'!F124 -> Major > 130w | G127: ='Input - Inventory'!G124 -> 1 | I127: Lamp - MBI1x150 | K127: 135.7665187 | L127: 5 | M127: 678.8325937 | O127: 0 | P127: 0 | Q127: 10.25099022 | R127: 0.3333333333 | S127: 0 | T127: 0 | U127: 10.25099022 | V127: 0.004909421179 | W127: 10.25099022 | X127: 0.1666666667 | Y127: 10.25099022 | Z127: 0.004590314437 | AA127: 10.25099022 | AB127: 0.04003202562 | AC127: 153.7648533 | AD127: 0.02159827214 | AE127: 256.2747555 | AF127: 0.01222195062 | AG127: 0 | AH127: 0 | AI127: 12301.18826 | AJ127: 0.0001112347052 | AK127: 8713.341687 | AL127: 0.0002495358633 | AM127: 0 | AN127: 0 | AO127: 0 | AP127: 0 | AQ127: 15.62908756 | AS127: 102.5099022 | AT127: 0.3333333333 | AU127: 39.54 | AV127: 0.004909421179 | AW127: 10.73 | AX127: 0.1666666667 | AY127: 0 | AZ127: 0.004909421179 | BA127: 36.15241925 | BC127: 73.64909373 | BD127: 0.16 | BE127: 2.27 | BF127: 73.64909373 | BG127: 0.0142 | BH127: 0 | BI127: 73.64909373 | BJ127: 0.01 | BK127: 0 | BL127: 26.74935084 | BN127: 102.5099022 | BO127: 0.16 | BP127: 10.73 | BQ127: 0.0142 | BR127: 0 | BS127: 0.01 | BT127: 16.55395035 | BV127: 29.73 | BW127: 0.3632 | BX127: 10.797936 | BZ127: =IF($D127="Connection",VLOOKUP(C127,'Input - General'!$F$62:$N$79,4,FALSE),0) -> 0 | CB127: 0.1801212934 | CC127: 105.882744 | CD127: 19.07173679 | CF127: 0.08652781304 | CG127: 124.9544808 | CH127: 10.81203795
B128: ='Input - Inventory'!B125 -> 117 | C128: ='Input - Inventory'!C125 -> MBI1x150 (P09) | D128: ='Input - Inventory'!D125 -> Lamp | E128: ='Input - Inventory'!E125 -> Traffic | F128: ='Input - Inventory'!F125 -> Major > 130w | G128: ='Input - Inventory'!G125 -> 1 | I128: Lamp - MBI1x150 (P09) | K128: 135.7665187 | L128: 69 | M128: 9367.889793 | O128: 0 | P128: 0 | Q128: 10.25099022 | R128: 0.3333333333 | S128: 0 | T128: 0 | U128: 10.25099022 | V128: 0.004909421179 | W128: 10.25099022 | X128: 0.1666666667 | Y128: 10.25099022 | Z128: 0.004590314437 | AA128: 10.25099022 | AB128: 0.04003202562 | AC128: 153.7648533 | AD128: 0.02159827214 | AE128: 256.2747555 | AF128: 0.01222195062 | AG128: 0 | AH128: 0 | AI128: 12301.18826 | AJ128: 0.0001112347052 | AK128: 8713.341687 | AL128: 0.0002495358633 | AM128: 0 | AN128: 0 | AO128: 0 | AP128: 0 | AQ128: 15.62908756 | AS128: 102.5099022 | AT128: 0.3333333333 | AU128: 39.54 | AV128: 0.004909421179 | AW128: 10.73 | AX128: 0.1666666667 | AY128: 0 | AZ128: 0.004909421179 | BA128: 36.15241925 | BC128: 73.64909373 | BD128: 0.16 | BE128: 2.27 | BF128: 73.64909373 | BG128: 0.0142 | BH128: 0 | BI128: 73.64909373 | BJ128: 0.01 | BK128: 0 | BL128: 26.74935084 | BN128: 102.5099022 | BO128: 0.16 | BP128: 10.73 | BQ128: 0.0142 | BR128: 0 | BS128: 0.01 | BT128: 16.55395035 | BV128: 29.73 | BW128: 0.3632 | BX128: 10.797936 | BZ128: =IF($D128="Connection",VLOOKUP(C128,'Input - General'!$F$62:$N$79,4,FALSE),0) -> 0 | CB128: 0.1801212934 | CC128: 105.882744 | CD128: 19.07173679 | CF128: 0.08652781304 | CG128: 124.9544808 | CH128: 10.81203795
B129: ='Input - Inventory'!B126 -> 118 | C129: ='Input - Inventory'!C126 -> MBI1x1500 | D129: ='Input - Inventory'!D126 -> Lamp | E129: ='Input - Inventory'!E126 -> Traffic | F129: ='Input - Inventory'!F126 -> Major > 130w | G129: ='Input - Inventory'!G126 -> 1 | I129: Lamp - MBI1x1500 | K129: 135.7665187 | L129: 0 | M129: 0 | O129: 0 | P129: 0 | Q129: 10.25099022 | R129: 0.3333333333 | S129: 0 | T129: 0 | U129: 10.25099022 | V129: 0.004909421179 | W129: 10.25099022 | X129: 0.1666666667 | Y129: 10.25099022 | Z129: 0.004590314437 | AA129: 10.25099022 | AB129: 0.04003202562 | AC129: 153.7648533 | AD129: 0.02159827214 | AE129: 256.2747555 | AF129: 0.01222195062 | AG129: 0 | AH129: 0 | AI129: 12301.18826 | AJ129: 0.0001112347052 | AK129: 8713.341687 | AL129: 0.0002495358633 | AM129: 0 | AN129: 0 | AO129: 0 | AP129: 0 | AQ129: 15.62908756 | AS129: 102.5099022 | AT129: 0.3333333333 | AU129: 39.54 | AV129: 0.004909421179 | AW129: 10.73 | AX129: 0.1666666667 | AY129: 0 | AZ129: 0.004909421179 | BA129: 36.15241925 | BC129: 73.64909373 | BD129: 0.16 | BE129: 2.27 | BF129: 73.64909373 | BG129: 0.0142 | BH129: 0 | BI129: 73.64909373 | BJ129: 0.01 | BK129: 0 | BL129: 26.74935084 | BN129: 102.5099022 | BO129: 0.16 | BP129: 10.73 | BQ129: 0.0142 | BR129: 0 | BS129: 0.01 | BT129: 16.55395035 | BV129: 29.73 | BW129: 0.3632 | BX129: 10.797936 | BZ129: =IF($D129="Connection",VLOOKUP(C129,'Input - General'!$F$62:$N$79,4,FALSE),0) -> 0 | CB129: 0.1801212934 | CC129: 105.882744 | CD129: 19.07173679 | CF129: 0.08652781304 | CG129: 124.9544808 | CH129: 10.81203795
B130: ='Input - Inventory'!B127 -> 119 | C130: ='Input - Inventory'!C127 -> MBI1x250 | D130: ='Input - Inventory'!D127 -> Lamp | E130: ='Input - Inventory'!E127 -> Traffic | F130: ='Input - Inventory'!F127 -> Major > 130w | G130: ='Input - Inventory'!G127 -> 1 | I130: Lamp - MBI1x250 | K130: 90.37530306 | L130: 2 | M130: 180.7506061 | O130: 0 | P130: 0 | Q130: 10.25099022 | R130: 0.3333333333 | S130: 0 | T130: 0 | U130: 10.25099022 | V130: 0.004909421179 | W130: 10.25099022 | X130: 0.1666666667 | Y130: 10.25099022 | Z130: 0.004590314437 | AA130: 10.25099022 | AB130: 0.04003202562 | AC130: 153.7648533 | AD130: 0.02159827214 | AE130: 256.2747555 | AF130: 0.01222195062 | AG130: 0 | AH130: 0 | AI130: 12301.18826 | AJ130: 0.0001112347052 | AK130: 8713.341687 | AL130: 0.0002495358633 | AM130: 0 | AN130: 0 | AO130: 0 | AP130: 0 | AQ130: 15.62908756 | AS130: 30.75297066 | AT130: 0.3333333333 | AU130: 39.54 | AV130: 0.004909421179 | AW130: 10.73 | AX130: 0.1666666667 | AY130: 0 | AZ130: 0.004909421179 | BA130: 12.23344207 | BC130: 73.64909373 | BD130: 0.16 | BE130: 2.27 | BF130: 73.64909373 | BG130: 0.0142 | BH130: 0 | BI130: 73.64909373 | BJ130: 0.01 | BK130: 0 | BL130: 26.74935084 | BN130: 30.75297066 | BO130: 0.16 | BP130: 10.73 | BQ130: 0.0142 | BR130: 0 | BS130: 0.01 | BT130: 5.072841306 | BV130: 29.73 | BW130: 0.3632 | BX130: 10.797936 | BZ130: =IF($D130="Connection",VLOOKUP(C130,'Input - General'!$F$62:$N$79,4,FALSE),0) -> 0 | CB130: 0.1801212934 | CC130: 70.48265777 | CD130: 12.69542748 | CF130: 0.08652781304 | CG130: 83.17808525 | CH130: 7.197217809
B131: ='Input - Inventory'!B128 -> 120 | C131: ='Input - Inventory'!C128 -> MBI1x250 (P09) | D131: ='Input - Inventory'!D128 -> Lamp | E131: ='Input - Inventory'!E128 -> Traffic | F131: ='Input - Inventory'!F128 -> Major > 130w | G131: ='Input - Inventory'!G128 -> 1 | I131: Lamp - MBI1x250 (P09) | K131: 90.37530306 | L131: 61 | M131: 5512.893486 | O131: 0 | P131: 0 | Q131: 10.25099022 | R131: 0.3333333333 | S131: 0 | T131: 0 | U131: 10.25099022 | V131: 0.004909421179 | W131: 10.25099022 | X131: 0.1666666667 | Y131: 10.25099022 | Z131: 0.004590314437 | AA131: 10.25099022 | AB131: 0.04003202562 | AC131: 153.7648533 | AD131: 0.02159827214 | AE131: 256.2747555 | AF131: 0.01222195062 | AG131: 0 | AH131: 0 | AI131: 12301.18826 | AJ131: 0.0001112347052 | AK131: 8713.341687 | AL131: 0.0002495358633 | AM131: 0 | AN131: 0 | AO131: 0 | AP131: 0 | AQ131: 15.62908756 | AS131: 30.75297066 | AT131: 0.3333333333 | AU131: 39.54 | AV131: 0.004909421179 | AW131: 10.73 | AX131: 0.1666666667 | AY131: 0 | AZ131: 0.004909421179 | BA131: 12.23344207 | BC131: 73.64909373 | BD131: 0.16 | BE131: 2.27 | BF131: 73.64909373 | BG131: 0.0142 | BH131: 0 | BI131: 73.64909373 | BJ131: 0.01 | BK131: 0 | BL131: 26.74935084 | BN131: 30.75297066 | BO131: 0.16 | BP131: 10.73 | BQ131: 0.0142 | BR131: 0 | BS131: 0.01 | BT131: 5.072841306 | BV131: 29.73 | BW131: 0.3632 | BX131: 10.797936 | BZ131: =IF($D131="Connection",VLOOKUP(C131,'Input - General'!$F$62:$N$79,4,FALSE),0) -> 0 | CB131: 0.1801212934 | CC131: 70.48265777 | CD131: 12.69542748 | CF131: 0.08652781304 | CG131: 83.17808525 | CH131: 7.197217809
B132: ='Input - Inventory'!B129 -> 121 | C132: ='Input - Inventory'!C129 -> MBI1x3745 | D132: ='Input - Inventory'!D129 -> Lamp | E132: ='Input - Inventory'!E129 -> Traffic | F132: ='Input - Inventory'!F129 -> Major > 130w | G132: ='Input - Inventory'!G129 -> 1 | I132: Lamp - MBI1x3745 | K132: 70.92192491 | L132: 0 | M132: 0 | O132: 0 | P132: 0 | Q132: 10.25099022 | R132: 0.3333333333 | S132: 0 | T132: 0 | U132: 10.25099022 | V132: 0.004909421179 | W132: 10.25099022 | X132: 0.1666666667 | Y132: 10.25099022 | Z132: 0.004590314437 | AA132: 10.25099022 | AB132: 0.04003202562 | AC132: 153.7648533 | AD132: 0.02159827214 | AE132: 256.2747555 | AF132: 0.01222195062 | AG132: 0 | AH132: 0 | AI132: 12301.18826 | AJ132: 0.0001112347052 | AK132: 8713.341687 | AL132: 0.0002495358633 | AM132: 0 | AN132: 0 | AO132: 0 | AP132: 0 | AQ132: 15.62908756 | AS132: 0 | AT132: 0.3333333333 | AU132: 39.54 | AV132: 0.004909421179 | AW132: 10.73 | AX132: 0.1666666667 | AY132: 0 | AZ132: 0.004909421179 | BA132: 1.982451847 | BC132: 73.64909373 | BD132: 0.16 | BE132: 2.27 | BF132: 73.64909373 | BG132: 0.0142 | BH132: 0 | BI132: 73.64909373 | BJ132: 0.01 | BK132: 0 | BL132: 26.74935084 | BN132: 0 | BO132: 0.16 | BP132: 10.73 | BQ132: 0.0142 | BR132: 0 | BS132: 0.01 | BT132: 0.152366 | BV132: 29.73 | BW132: 0.3632 | BX132: 10.797936 | BZ132: =IF($D132="Connection",VLOOKUP(C132,'Input - General'!$F$62:$N$79,4,FALSE),0) -> 0 | CB132: 0.1801212934 | CC132: 55.31119224 | CD132: 9.962723484 | CF132: 0.08652781304 | CG132: 65.27391573 | CH132: 5.648009177
B133: ='Input - Inventory'!B130 -> 122 | C133: ='Input - Inventory'!C130 -> MBI1x400 | D133: ='Input - Inventory'!D130 -> Lamp | E133: ='Input - Inventory'!E130 -> Traffic | F133: ='Input - Inventory'!F130 -> Major > 130w | G133: ='Input - Inventory'!G130 -> 1 | I133: Lamp - MBI1x400 | K133: 76.76189447 | L133: 13 | M133: 997.9046281 | O133: 0 | P133: 0 | Q133: 10.25099022 | R133: 0.3333333333 | S133: 0 | T133: 0 | U133: 10.25099022 | V133: 0.004909421179 | W133: 10.25099022 | X133: 0.1666666667 | Y133: 10.25099022 | Z133: 0.004590314437 | AA133: 10.25099022 | AB133: 0.04003202562 | AC133: 153.7648533 | AD133: 0.02159827214 | AE133: 256.2747555 | AF133: 0.01222195062 | AG133: 0 | AH133: 0 | AI133: 12301.18826 | AJ133: 0.0001112347052 | AK133: 8713.341687 | AL133: 0.0002495358633 | AM133: 0 | AN133: 0 | AO133: 0 | AP133: 0 | AQ133: 15.62908756 | AS133: 30.75297066 | AT133: 0.3333333333 | AU133: 39.54 | AV133: 0.004909421179 | AW133: 10.73 | AX133: 0.1666666667 | AY133: 0 | AZ133: 0.004909421179 | BA133: 12.23344207 | BC133: 73.64909373 | BD133: 0.12 | BE133: 2.27 | BF133: 73.64909373 | BG133: 0.0142 | BH133: 0 | BI133: 73.64909373 | BJ133: 0.01 | BK133: 0 | BL133: 20.06201313 | BN133: 30.75297066 | BO133: 0.12 | BP133: 10.73 | BQ133: 0.0142 | BR133: 0 | BS133: 0.01 | BT133: 3.842722479 | BV133: 29.73 | BW133: 0.2724 | BX133: 8.098452 | BZ133: =IF($D133="Connection",VLOOKUP(C133,'Input - General'!$F$62:$N$79,4,FALSE),0) -> 0 | CB133: 0.1801212934 | CC133: 59.86571723 | CD133: 10.78309042 | CF133: 0.08652781304 | CG133: 70.64880765 | CH133: 6.11308682
B134: ='Input - Inventory'!B131 -> 123 | C134: ='Input - Inventory'!C131 -> MBI1x400 (P09) | D134: ='Input - Inventory'!D131 -> Lamp | E134: ='Input - Inventory'!E131 -> Traffic | F134: ='Input - Inventory'!F131 -> Major > 130w | G134: ='Input - Inventory'!G131 -> 1 | I134: Lamp - MBI1x400 (P09) | K134: 76.76189447 | L134: 109 | M134: 8367.046497 | O134: 0 | P134: 0 | Q134: 10.25099022 | R134: 0.3333333333 | S134: 0 | T134: 0 | U134: 10.25099022 | V134: 0.004909421179 | W134: 10.25099022 | X134: 0.1666666667 | Y134: 10.25099022 | Z134: 0.004590314437 | AA134: 10.25099022 | AB134: 0.04003202562 | AC134: 153.7648533 | AD134: 0.02159827214 | AE134: 256.2747555 | AF134: 0.01222195062 | AG134: 0 | AH134: 0 | AI134: 12301.18826 | AJ134: 0.0001112347052 | AK134: 8713.341687 | AL134: 0.0002495358633 | AM134: 0 | AN134: 0 | AO134: 0 | AP134: 0 | AQ134: 15.62908756 | AS134: 30.75297066 | AT134: 0.3333333333 | AU134: 39.54 | AV134: 0.004909421179 | AW134: 10.73 | AX134: 0.1666666667 | AY134: 0 | AZ134: 0.004909421179 | BA134: 12.23344207 | BC134: 73.64909373 | BD134: 0.12 | BE134: 2.27 | BF134: 73.64909373 | BG134: 0.0142 | BH134: 0 | BI134: 73.64909373 | BJ134: 0.01 | BK134: 0 | BL134: 20.06201313 | BN134: 30.75297066 | BO134: 0.12 | BP134: 10.73 | BQ134: 0.0142 | BR134: 0 | BS134: 0.01 | BT134: 3.842722479 | BV134: 29.73 | BW134: 0.2724 | BX134: 8.098452 | BZ134: =IF($D134="Connection",VLOOKUP(C134,'Input - General'!$F$62:$N$79,4,FALSE),0) -> 0 | CB134: 0.1801212934 | CC134: 59.86571723 | CD134: 10.78309042 | CF134: 0.08652781304 | CG134: 70.64880765 | CH134: 6.11308682
B135: ='Input - Inventory'!B132 -> 124 | C135: ='Input - Inventory'!C132 -> MBI1x500 | D135: ='Input - Inventory'!D132 -> Lamp | E135: ='Input - Inventory'!E132 -> Traffic | F135: ='Input - Inventory'!F132 -> Major > 130w | G135: ='Input - Inventory'!G132 -> 1 | I135: Lamp - MBI1x500 | K135: 135.7665187 | L135: 0 | M135: 0 | O135: 0 | P135: 0 | Q135: 10.25099022 | R135: 0.3333333333 | S135: 0 | T135: 0 | U135: 10.25099022 | V135: 0.004909421179 | W135: 10.25099022 | X135: 0.1666666667 | Y135: 10.25099022 | Z135: 0.004590314437 | AA135: 10.25099022 | AB135: 0.04003202562 | AC135: 153.7648533 | AD135: 0.02159827214 | AE135: 256.2747555 | AF135: 0.01222195062 | AG135: 0 | AH135: 0 | AI135: 12301.18826 | AJ135: 0.0001112347052 | AK135: 8713.341687 | AL135: 0.0002495358633 | AM135: 0 | AN135: 0 | AO135: 0 | AP135: 0 | AQ135: 15.62908756 | AS135: 102.5099022 | AT135: 0.3333333333 | AU135: 39.54 | AV135: 0.004909421179 | AW135: 10.73 | AX135: 0.1666666667 | AY135: 0 | AZ135: 0.004909421179 | BA135: 36.15241925 | BC135: 73.64909373 | BD135: 0.16 | BE135: 2.27 | BF135: 73.64909373 | BG135: 0.0142 | BH135: 0 | BI135: 73.64909373 | BJ135: 0.01 | BK135: 0 | BL135: 26.74935084 | BN135: 102.5099022 | BO135: 0.16 | BP135: 10.73 | BQ135: 0.0142 | BR135: 0 | BS135: 0.01 | BT135: 16.55395035 | BV135: 29.73 | BW135: 0.3632 | BX135: 10.797936 | BZ135: =IF($D135="Connection",VLOOKUP(C135,'Input - General'!$F$62:$N$79,4,FALSE),0) -> 0 | CB135: 0.1801212934 | CC135: 105.882744 | CD135: 19.07173679 | CF135: 0.08652781304 | CG135: 124.9544808 | CH135: 10.81203795
B136: ='Input - Inventory'!B133 -> 125 | C136: ='Input - Inventory'!C133 -> MBI1x70 | D136: ='Input - Inventory'!D133 -> Lamp | E136: ='Input - Inventory'!E133 -> NonTraffic | F136: ='Input - Inventory'!F133 -> Minor < 130w | G136: ='Input - Inventory'!G133 -> 1 | I136: Lamp - MBI1x70 | K136: 65.59376724 | L136: 0 | M136: 0 | O136: 10.25099022 | P136: 0.3333333333 | Q136: 0 | R136: 0 | S136: 10.25099022 | T136: 0.01850481125 | U136: 0 | V136: 0 | W136: 10.25099022 | X136: 0.1666666667 | Y136: 10.25099022 | Z136: 0.004590314437 | AA136: 10.25099022 | AB136: 0.04003202562 | AC136: 153.7648533 | AD136: 0.02159827214 | AE136: 256.2747555 | AF136: 0.01222195062 | AG136: 0 | AH136: 0 | AI136: 12301.18826 | AJ136: 0.0001112347052 | AK136: 8713.341687 | AL136: 0.0002495358633 | AM136: 0 | AN136: 0 | AO136: 0 | AP136: 0 | AQ136: 15.76845377 | AS136: 30.75297066 | AT136: 0.3333333333 | AU136: 39.54 | AV136: 0.01850481125 | AW136: 10.73 | AX136: 0.1666666667 | AY136: 0 | AZ136: 0.01850481125 | BA136: 12.77100379 | BC136: 73.64909373 | BD136: 0.12 | BE136: 1.513333333 | BF136: 73.64909373 | BG136: 0.0142 | BH136: 0 | BI136: 73.64909373 | BJ136: 0.01 | BK136: 0 | BL136: 13.37467542 | BN136: 30.75297066 | BO136: 0.12 | BP136: 10.73 | BQ136: 0.0142 | BR136: 0 | BS136: 0.01 | BT136: 3.842722479 | BV136: 29.73 | BW136: 0.1816 | BX136: 5.398968 | BZ136: =IF($D136="Connection",VLOOKUP(C136,'Input - General'!$F$62:$N$79,4,FALSE),0) -> 0 | CB136: 0.1801212934 | CC136: 51.15582346 | CD136: 9.214253084 | CF136: 0.08652781304 | CG136: 60.37007654 | CH136: 5.223690696
B137: ='Input - Inventory'!B134 -> 126 | C137: ='Input - Inventory'!C134 -> MBI1x70 (P09) | D137: ='Input - Inventory'!D134 -> Lamp | E137: ='Input - Inventory'!E134 -> NonTraffic | F137: ='Input - Inventory'!F134 -> Minor < 130w | G137: ='Input - Inventory'!G134 -> 1 | I137: Lamp - MBI1x70 (P09) | K137: 65.59376724 | L137: 183 | M137: 12003.6594 | O137: 10.25099022 | P137: 0.3333333333 | Q137: 0 | R137: 0 | S137: 10.25099022 | T137: 0.01850481125 | U137: 0 | V137: 0 | W137: 10.25099022 | X137: 0.1666666667 | Y137: 10.25099022 | Z137: 0.004590314437 | AA137: 10.25099022 | AB137: 0.04003202562 | AC137: 153.7648533 | AD137: 0.02159827214 | AE137: 256.2747555 | AF137: 0.01222195062 | AG137: 0 | AH137: 0 | AI137: 12301.18826 | AJ137: 0.0001112347052 | AK137: 8713.341687 | AL137: 0.0002495358633 | AM137: 0 | AN137: 0 | AO137: 0 | AP137: 0 | AQ137: 15.76845377 | AS137: 30.75297066 | AT137: 0.3333333333 | AU137: 39.54 | AV137: 0.01850481125 | AW137: 10.73 | AX137: 0.1666666667 | AY137: 0 | AZ137: 0.01850481125 | BA137: 12.77100379 | BC137: 73.64909373 | BD137: 0.12 | BE137: 1.513333333 | BF137: 73.64909373 | BG137: 0.0142 | BH137: 0 | BI137: 73.64909373 | BJ137: 0.01 | BK137: 0 | BL137: 13.37467542 | BN137: 30.75297066 | BO137: 0.12 | BP137: 10.73 | BQ137: 0.0142 | BR137: 0 | BS137: 0.01 | BT137: 3.842722479 | BV137: 29.73 | BW137: 0.1816 | BX137: 5.398968 | BZ137: =IF($D137="Connection",VLOOKUP(C137,'Input - General'!$F$62:$N$79,4,FALSE),0) -> 0 | CB137: 0.1801212934 | CC137: 51.15582346 | CD137: 9.214253084 | CF137: 0.08652781304 | CG137: 60.37007654 | CH137: 5.223690696
B138: ='Input - Inventory'!B135 -> 127 | C138: ='Input - Inventory'!C135 -> MBI1x70 II | D138: ='Input - Inventory'!D135 -> Lamp | E138: ='Input - Inventory'!E135 -> Traffic | F138: ='Input - Inventory'!F135 -> Minor < 130w | G138: ='Input - Inventory'!G135 -> 1 | I138: Lamp - MBI1x70 II | K138: 48.02071122 | L138: 79 | M138: 3793.636186 | O138: 10.25099022 | P138: 0.3333333333 | Q138: 0 | R138: 0 | S138: 10.25099022 | T138: 0.01850481125 | U138: 0 | V138: 0 | W138: 10.25099022 | X138: 0.1666666667 | Y138: 10.25099022 | Z138: 0.004590314437 | AA138: 10.25099022 | AB138: 0.04003202562 | AC138: 153.7648533 | AD138: 0.02159827214 | AE138: 256.2747555 | AF138: 0.01222195062 | AG138: 0 | AH138: 0 | AI138: 12301.18826 | AJ138: 0.0001112347052 | AK138: 8713.341687 | AL138: 0.0002495358633 | AM138: 0 | AN138: 0 | AO138: 0 | AP138: 0 | AQ138: 15.76845377 | AS138: 30.75297066 | AT138: 0.3333333333 | AU138: 39.54 | AV138: 0.01850481125 | AW138: 10.73 | AX138: 0.1666666667 | AY138: 0 | AZ138: 0 | BA138: 12.77100379 | BC138: 73.64909373 | BD138: 0.033 | BE138: 2.27 | BF138: 73.64909373 | BG138: 0.0142 | BH138: 0 | BI138: 73.64909373 | BJ138: 0.01 | BK138: 0 | BL138: 5.517053611 | BN138: 30.75297066 | BO138: 0.033 | BP138: 10.73 | BQ138: 0.0142 | BR138: 0 | BS138: 0.01 | BT138: 1.167214032 | BV138: 29.73 | BW138: 0.07491 | BX138: 2.2270743 | BZ138: =IF($D138="Connection",VLOOKUP(C138,'Input - General'!$F$62:$N$79,4,FALSE),0) -> 0 | CB138: 0.1801212934 | CC138: 37.4507995 | CD138: 6.745686443 | CF138: 0.08652781304 | CG138: 44.19648594 | CH138: 3.824225273
B139: ='Input - Inventory'!B136 -> 128 | C139: ='Input - Inventory'!C136 -> MBI2x400 | D139: ='Input - Inventory'!D136 -> Lamp | E139: ='Input - Inventory'!E136 -> Traffic | F139: ='Input - Inventory'!F136 -> Major > 130w | G139: ='Input - Inventory'!G136 -> 2 | I139: Lamp - MBI2x400 | K139: 89.9060689 | L139: 0 | M139: 0 | O139: 0 | P139: 0 | Q139: 10.25099022 | R139: 0.3333333333 | S139: 0 | T139: 0 | U139: 10.25099022 | V139: 0.004909421179 | W139: 10.25099022 | X139: 0.1666666667 | Y139: 10.25099022 | Z139: 0.004590314437 | AA139: 10.25099022 | AB139: 0.04003202562 | AC139: 153.7648533 | AD139: 0.02159827214 | AE139: 256.2747555 | AF139: 0.01222195062 | AG139: 0 | AH139: 0 | AI139: 12301.18826 | AJ139: 0.0001112347052 | AK139: 8713.341687 | AL139: 0.0002495358633 | AM139: 0 | AN139: 0 | AO139: 0 | AP139: 0 | AQ139: 15.62908756 | AS139: 61.50594132 | AT139: 0.3333333333 | AU139: 39.54 | AV139: 0.004909421179 | AW139: 10.73 | AX139: 0.1666666667 | AY139: 0 | AZ139: 0.004909421179 | BA139: 22.48443229 | BC139: 73.64909373 | BD139: 0.12 | BE139: 2.27 | BF139: 73.64909373 | BG139: 0.0142 | BH139: 0 | BI139: 73.64909373 | BJ139: 0.01 | BK139: 0 | BL139: 20.06201313 | BN139: 30.75297066 | BO139: 0.12 | BP139: 10.73 | BQ139: 0.0142 | BR139: 0 | BS139: 0.01 | BT139: 3.842722479 | BV139: 29.73 | BW139: 0.2724 | BX139: 8.098452 | BZ139: =IF($D139="Connection",VLOOKUP(C139,'Input - General'!$F$62:$N$79,4,FALSE),0) -> 0 | CB139: 0.1801212934 | CC139: 70.11670745 | CD139: 12.62951203 | CF139: 0.08652781304 | CG139: 82.74621949 | CH139: 7.159849409
B140: ='Input - Inventory'!B137 -> 129 | C140: ='Input - Inventory'!C137 -> MBI4x150 | D140: ='Input - Inventory'!D137 -> Lamp | E140: ='Input - Inventory'!E137 -> Traffic | F140: ='Input - Inventory'!F137 -> Major > 130w | G140: ='Input - Inventory'!G137 -> 4 | I140: Lamp - MBI4x150 | K140: 249.9144856 | L140: 5 | M140: =L140*K140 -> 1249.572428 | O140: 0 | P140: =IF(AND($D140="Lamp",CycleBulkTask1<>0, OR($F140=O$9,O$9="All")),1/CycleBulkTask1,0) -> 0 | Q140: 10.25099022 | R140: =IF(AND($D140="Lamp",CycleBulkTask2<>0, OR($F140=Q$9,Q$9="All")),1/CycleBulkTask2,0) -> 0.3333333333 | S140: 0 | T140: =IF(AND($D140="Lamp",CycleBulkTask3<>0, OR($F140=S$9,S$9="All")),1/CycleBulkTask3,0) -> 0 | U140: 10.25099022 | V140: =IF(AND($D140="Lamp",CycleBulkTask4<>0, OR($F140=U$9,U$9="All")),1/CycleBulkTask4,0) -> 0.004909421179 | W140: 10.25099022 | X140: =IF(AND($D140="Lamp",CycleBulkTask5<>0, OR($F140=W$9,W$9="All")),1/CycleBulkTask5,0) -> 0.1666666667 | Y140: 10.25099022 | Z140: =IF(AND($D140="Lamp",CycleBulkTask6<>0, OR($F140=Y$9,Y$9="All")),1/CycleBulkTask6,0) -> 0.004590314437 | AA140: 10.25099022 | AB140: =IF(AND($D140="Lamp",CycleBulkTask7<>0, OR($F140=AA$9,AA$9="All")),1/CycleBulkTask7,0) -> 0.04003202562 | AC140: 153.7648533 | AD140: =IF(AND($D140="Lamp",CycleBulkTask8<>0, OR($F140=AC$9,AC$9="All")),1/CycleBulkTask8,0) -> 0.02159827214 | AE140: 256.2747555 | AF140: =IF(AND($D140="Lamp",CycleBulkTask9<>0, OR($F140=AE$9,AE$9="All")),1/CycleBulkTask9,0) -> 0.01222195062 | AG140: 0 | AH140: =IF(AND($D140="Lamp",CycleBulkTask10<>0, OR($F140=AG$9,AG$9="All")),1/CycleBulkTask10,0) -> 0 | AI140: 12301.18826 | AJ140: =IF(AND($D140="Lamp",CycleBulkTask11<>0, OR($F140=AI$9,AI$9="All")),1/CycleBulkTask11,0) -> 0.0001112347052 | AK140: 8713.341687 | AL140: =IF(AND($D140="Lamp",CycleBulkTask12<>0, OR($F140=AK$9,AK$9="All")),1/CycleBulkTask12,0) -> 0.0002495358633 | AM140: 0 | AN140: =IF(AND($D140="Lamp",CycleBulkTask13<>0, OR($F140=AM$9,AM$9="All")),1/CycleBulkTask13,0) -> 0 | AO140: 0 | AP140: =IF(AND($D140="Lamp",CycleBulkTask14<>0, OR($F140=AO$9,AO$9="All")),1/CycleBulkTask14,0) -> 0 | AQ140: =O140*P140+Q140*R140+S140*T140+U140*V140+W140*X140+Y140*Z140+AA140*AB140+AC140*AD140+AE140*AF140+AG140*AH140+AI140*AJ140+AK140*AL140+AM140*AN140+AO140*AP140 -> 15.62908756 | AS140: 410.0396088 | AT140: =MAX(P140,R140) -> 0.3333333333 | AU140: 39.54 | AV140: =MAX(T140,V140) -> 0.004909421179 | AW140: 10.73 | AX140: =X140 -> 0.1666666667 | AY140: 0 | AZ140: =INDIRECT($E140)*$V140 +(1-INDIRECT($E140))*$T140 -> 0.004909421179 | BA140: =AS140*AT140+AU140*AV140+AW140*AX140+AY140*AZ140 -> 138.6623214 | BC140: =IF($D140=$AS$9,(INDIRECT("PriceLabour" & "FY14")*ProportionStandardHours + INDIRECT("PriceLabourOvertime" & "FY14")*ProportionOvertimeHours)*(1+RateOnCostAnnual),0) -> 73.64909373 | BD140: =BO140 -> 0.12 | BE140: =IF($D140="Lamp",(NumberOfCrew+INDIRECT($E140)*TrafficController)*(TimeToReplaceLamp),0) -> 2.27 | BF140: =IF($D140=$AS$9,(INDIRECT("PriceLabour" & "FY14")*ProportionStandardHours + INDIRECT("PriceLabourOvertime" & "FY14")*ProportionOvertimeHours)*(1+RateOnCostAnnual),0) -> 73.64909373 | BG140: =BQ140 -> 0.0142 | BH140: =IF($D140="Lamp",(NumberOfCrew+INDIRECT($E140)*TrafficController)*(TimeForPECellReplace),0) -> 0 | BI140: =IF($D140=$AS$9,(INDIRECT("PriceLabour" & "FY14")*ProportionStandardHours + INDIRECT("PriceLabourOvertime" & "FY14")*ProportionOvertimeHours)*(1+RateOnCostAnnual),0) -> 73.64909373 | BJ140: =BS140 -> 0.01 | BK140: =IF($D140="Lamp",(NumberOfCrew+INDIRECT($E140)*TrafficController)*(TimeForOtherSpot),0) -> 0 | BL140: =BC140*BD140*BE140+BF140*BG140*BH140+BI140*BJ140*BK140 -> 20.06201313 | BN140: 102.5099022 | BO140: =IF($D140="Lamp",INDIRECT(BO$10 & $B140),0) -> 0.12 | BP140: 10.73 | BQ140: =IF($D140="Lamp",INDIRECT("FailurePECell" & "Annual"),0) -> 0.0142 | BR140: 0 | BS140: =IF($D140="Lamp",INDIRECT("FailureMisc" & "Annual"),0) -> 0.01 | BT140: =BN140*BO140+BP140*BQ140+BR140*BS140 -> 12.45355426 | BV140: 29.73 | BW140: =BD140*BE140+BG140*BH140+BJ140*BK140 -> 0.2724 | BX140: =BV140*BW140 -> 8.098452 | BZ140: =IF($D140="Connection",VLOOKUP(C140,'Input - General'!$F$62:$N$79,4,FALSE),0) -> 0 | CB140: =RateOverhead -> 0.1801212934 | CC140: =BX140+BL140+BT140+BA140+AQ140+BZ140 -> 194.9054284 | CD140: =CC140*CB140 -> 35.10661785 | CF140: =CorporateOverheads -> 0.08652781304 | CG140: 230.0120462 | CH140: =CG140*CF140 -> 19.90243933
B141: ='Input - Inventory'!B138 -> 130 | C141: ='Input - Inventory'!C138 -> SON1x100 | D141: ='Input - Inventory'!D138 -> Lamp | E141: ='Input - Inventory'!E138 -> Traffic | F141: ='Input - Inventory'!F138 -> Minor < 130w | G141: ='Input - Inventory'!G138 -> 1 | I141: =CONCATENATE(D141," - ",C141) -> Lamp - SON1x100 | K141: =AQ141+BA141+BL141+BT141+BX141+BZ141+CD141+CH141 -> 82.53070199 | L141: =INDIRECT(L$10&$B141&"FY14") -> 63 | M141: 5199.434225 | O141: =IF(AND($D141="Lamp", OR($F141=O$9, O$9="All")),INDIRECT("PriceBulkTask1" & "FY14"),0) -> 10.25099022 | P141: 0.3333333333 | Q141: =IF(AND($D141="Lamp", OR($F141=Q$9, Q$9="All")),INDIRECT("PriceBulkTask2" & "FY14"),0) -> 0 | R141: 0 | S141: =IF(AND($D141="Lamp", OR($F141=S$9, S$9="All")),INDIRECT("PriceBulkTask3" & "FY14"),0) -> 10.25099022 | T141: 0.01850481125 | U141: =IF(AND($D141="Lamp", OR($F141=U$9, U$9="All")),INDIRECT("PriceBulkTask4" & "FY14"),0) -> 0 | V141: 0 | W141: =IF(AND($D141="Lamp", OR($F141=W$9, W$9="All")),INDIRECT("PriceBulkTask5" & "FY14"),0) -> 10.25099022 | X141: 0.1666666667 | Y141: =IF(AND($D141="Lamp", OR($F141=Y$9, Y$9="All")),INDIRECT("PriceBulkTask6" & "FY14"),0) -> 10.25099022 | Z141: 0.004590314437 | AA141: =IF(AND($D141="Lamp", OR($F141=AA$9, AA$9="All")),INDIRECT("PriceBulkTask7" & "FY14"),0) -> 10.25099022 | AB141: 0.04003202562 | AC141: =IF(AND($D141="Lamp", OR($F141=AC$9, AC$9="All")),INDIRECT("PriceBulkTask8" & "FY14"),0) -> 153.7648533 | AD141: 0.02159827214 | AE141: =IF(AND($D141="Lamp", OR($F141=AE$9, AE$9="All")),INDIRECT("PriceBulkTask9" & "FY14"),0) -> 256.2747555 | AF141: 0.01222195062 | AG141: =IF(AND($D141="Lamp", OR($F141=AG$9, AG$9="All")),INDIRECT("PriceBulkTask10" & "FY14"),0) -> 0 | AH141: 0 | AI141: =IF(AND($D141="Lamp", OR($F141=AI$9, AI$9="All")),INDIRECT("PriceBulkTask11" & "FY14"),0) -> 12301.18826 | AJ141: 0.0001112347052 | AK141: =IF(AND($D141="Lamp", OR($F141=AK$9, AK$9="All")),INDIRECT("PriceBulkTask12" & "FY14"),0) -> 8713.341687 | AL141: 0.0002495358633 | AM141: =IF(AND($D141="Lamp", OR($F141=AM$9, AM$9="All")),INDIRECT("PriceBulkTask13" & "FY14"),0) -> 0 | AN141: 0 | AO141: =IF(AND($D141="Lamp", OR($F141=AO$9, AO$9="All")),INDIRECT("PriceBulkTask14" & "FY14"),0) -> 0 | AP141: 0 | AQ141: 15.76845377 | AS141: =IF($D141="Lamp",$G141*INDIRECT("Price" & $B141 & "FY14"),0) -> 30.75297066 | AT141: 0.3333333333 | AU141: =IF($D141="Lamp",INDIRECT("PriceVisor" & "FY14"),0) -> 39.54 | AV141: 0.01850481125 | AW141: =IF($D141="Lamp",INDIRECT("PricePECell" & "FY14"),0) -> 10.73 | AX141: 0.1666666667 | AY141: =IF($D141="Lamp",INDIRECT("PriceMisc" & "FY14"),0) -> 0 | AZ141: 0 | BA141: 12.77100379 | BC141: 73.64909373 | BD141: 0.1344 | BE141: 2.27 | BF141: 73.64909373 | BG141: 0.0142 | BH141: 0 | BI141: 73.64909373 | BJ141: 0.01 | BK141: 0 | BL141: 22.46945471 | BN141: =IF($D141="Lamp",INDIRECT("Price" & $B141 & "FY14"),0) -> 30.75297066 | BO141: 0.1344 | BP141: =IF($D141="Lamp",INDIRECT("pRICEpecELL" & "FY14"),0) -> 10.73 | BQ141: 0.0142 | BR141: =IF($D141="Lamp",INDIRECT("PriceMisc" & "FY14"),0) -> 0 | BS141: 0.01 | BT141: 4.285565257 | BV141: =IF(AND($D141="Lamp"),INDIRECT("PriceEWP"&"FY14"),0) -> 29.73 | BW141: 0.305088 | BX141: 9.07026624 | BZ141: =IF($D141="Connection",VLOOKUP(C141,'Input - General'!$F$62:$N$79,4,FALSE),0) -> 0 | CB141: 0.1801212934 | CC141: 64.36474376 | CD141: 11.59346089 | CF141: 0.08652781304 | CG141: =AQ141+BA141+BL141+BT141+BX141+BZ141+CD141 -> 75.95820465 | CH141: 6.572497331
B142: ='Input - Inventory'!B139 -> 131 | C142: ='Input - Inventory'!C139 -> SON1x100 (P09) | D142: ='Input - Inventory'!D139 -> Lamp | E142: ='Input - Inventory'!E139 -> Traffic | F142: ='Input - Inventory'!F139 -> Minor < 130w | G142: ='Input - Inventory'!G139 -> 1 | I142: Lamp - SON1x100 (P09) | K142: 82.53070199 | L142: 1383 | M142: 114139.9608 | O142: 10.25099022 | P142: 0.3333333333 | Q142: 0 | R142: 0 | S142: 10.25099022 | T142: 0.01850481125 | U142: 0 | V142: 0 | W142: 10.25099022 | X142: 0.1666666667 | Y142: 10.25099022 | Z142: 0.004590314437 | AA142: 10.25099022 | AB142: 0.04003202562 | AC142: 153.7648533 | AD142: 0.02159827214 | AE142: 256.2747555 | AF142: 0.01222195062 | AG142: 0 | AH142: 0 | AI142: 12301.18826 | AJ142: 0.0001112347052 | AK142: 8713.341687 | AL142: 0.0002495358633 | AM142: 0 | AN142: 0 | AO142: 0 | AP142: 0 | AQ142: 15.76845377 | AS142: 30.75297066 | AT142: 0.3333333333 | AU142: 39.54 | AV142: 0.01850481125 | AW142: 10.73 | AX142: 0.1666666667 | AY142: 0 | AZ142: 0 | BA142: 12.77100379 | BC142: 73.64909373 | BD142: 0.1344 | BE142: 2.27 | BF142: 73.64909373 | BG142: 0.0142 | BH142: 0 | BI142: 73.64909373 | BJ142: 0.01 | BK142: 0 | BL142: 22.46945471 | BN142: 30.75297066 | BO142: 0.1344 | BP142: 10.73 | BQ142: 0.0142 | BR142: 0 | BS142: 0.01 | BT142: 4.285565257 | BV142: 29.73 | BW142: 0.305088 | BX142: 9.07026624 | BZ142: =IF($D142="Connection",VLOOKUP(C142,'Input - General'!$F$62:$N$79,4,FALSE),0) -> 0 | CB142: 0.1801212934 | CC142: 64.36474376 | CD142: 11.59346089 | CF142: 0.08652781304 | CG142: 75.95820465 | CH142: 6.572497331
B143: ='Input - Inventory'!B140 -> 132 | C143: ='Input - Inventory'!C140 -> SON1x1000 | D143: ='Input - Inventory'!D140 -> Lamp | E143: ='Input - Inventory'!E140 -> Traffic | F143: ='Input - Inventory'!F140 -> Major > 130w | G143: ='Input - Inventory'!G140 -> 1 | I143: Lamp - SON1x1000 | K143: 101.1789639 | L143: 0 | M143: 0 | O143: 0 | P143: 0 | Q143: 10.25099022 | R143: 0.3333333333 | S143: 0 | T143: 0 | U143: 10.25099022 | V143: 0.004909421179 | W143: 10.25099022 | X143: 0.1666666667 | Y143: 10.25099022 | Z143: 0.004590314437 | AA143: 10.25099022 | AB143: 0.04003202562 | AC143: 153.7648533 | AD143: 0.02159827214 | AE143: 256.2747555 | AF143: 0.01222195062 | AG143: 0 | AH143: 0 | AI143: 12301.18826 | AJ143: 0.0001112347052 | AK143: 8713.341687 | AL143: 0.0002495358633 | AM143: 0 | AN143: 0 | AO143: 0 | AP143: 0 | AQ143: 15.62908756 | AS143: 102.5099022 | AT143: 0.3333333333 | AU143: 39.54 | AV143: 0.004909421179 | AW143: 10.73 | AX143: 0.1666666667 | AY143: 0 | AZ143: 0.004909421179 | BA143: 36.15241925 | BC143: 73.64909373 | BD143: 0.08 | BE143: 2.27 | BF143: 73.64909373 | BG143: 0.0142 | BH143: 0 | BI143: 73.64909373 | BJ143: 0.01 | BK143: 0 | BL143: 13.37467542 | BN143: 102.5099022 | BO143: 0.08 | BP143: 10.73 | BQ143: 0.0142 | BR143: 0 | BS143: 0.01 | BT143: 8.353158176 | BV143: 29.73 | BW143: 0.1816 | BX143: 5.398968 | BZ143: =IF($D143="Connection",VLOOKUP(C143,'Input - General'!$F$62:$N$79,4,FALSE),0) -> 0 | CB143: 0.1801212934 | CC143: 78.9083084 | CD143: 14.21306657 | CF143: 0.08652781304 | CG143: 93.12137497 | CH143: 8.057588923
B144: ='Input - Inventory'!B141 -> 133 | C144: ='Input - Inventory'!C141 -> SON1x1000 (P09) | D144: ='Input - Inventory'!D141 -> Lamp | E144: ='Input - Inventory'!E141 -> Traffic | F144: ='Input - Inventory'!F141 -> Major > 130w | G144: ='Input - Inventory'!G141 -> 1 | I144: Lamp - SON1x1000 (P09) | K144: 101.1789639 | L144: 49 | M144: 4957.769231 | O144: 0 | P144: 0 | Q144: 10.25099022 | R144: 0.3333333333 | S144: 0 | T144: 0 | U144: 10.25099022 | V144: 0.004909421179 | W144: 10.25099022 | X144: 0.1666666667 | Y144: 10.25099022 | Z144: 0.004590314437 | AA144: 10.25099022 | AB144: 0.04003202562 | AC144: 153.7648533 | AD144: 0.02159827214 | AE144: 256.2747555 | AF144: 0.01222195062 | AG144: 0 | AH144: 0 | AI144: 12301.18826 | AJ144: 0.0001112347052 | AK144: 8713.341687 | AL144: 0.0002495358633 | AM144: 0 | AN144: 0 | AO144: 0 | AP144: 0 | AQ144: 15.62908756 | AS144: 102.5099022 | AT144: 0.3333333333 | AU144: 39.54 | AV144: 0.004909421179 | AW144: 10.73 | AX144: 0.1666666667 | AY144: 0 | AZ144: 0.004909421179 | BA144: 36.15241925 | BC144: 73.64909373 | BD144: 0.08 | BE144: 2.27 | BF144: 73.64909373 | BG144: 0.0142 | BH144: 0 | BI144: 73.64909373 | BJ144: 0.01 | BK144: 0 | BL144: 13.37467542 | BN144: 102.5099022 | BO144: 0.08 | BP144: 10.73 | BQ144: 0.0142 | BR144: 0 | BS144: 0.01 | BT144: 8.353158176 | BV144: 29.73 | BW144: 0.1816 | BX144: 5.398968 | BZ144: =IF($D144="Connection",VLOOKUP(C144,'Input - General'!$F$62:$N$79,4,FALSE),0) -> 0 | CB144: 0.1801212934 | CC144: 78.9083084 | CD144: 14.21306657 | CF144: 0.08652781304 | CG144: 93.12137497 | CH144: 8.057588923
B145: ='Input - Inventory'!B142 -> 134 | C145: ='Input - Inventory'!C142 -> SON1x120 | D145: ='Input - Inventory'!D142 -> Lamp | E145: ='Input - Inventory'!E142 -> Traffic | F145: ='Input - Inventory'!F142 -> Minor < 130w | G145: ='Input - Inventory'!G142 -> 1 | I145: Lamp - SON1x120 | K145: 77.62987489 | L145: 0 | M145: 0 | O145: 10.25099022 | P145: 0.3333333333 | Q145: 0 | R145: 0 | S145: 10.25099022 | T145: 0.01850481125 | U145: 0 | V145: 0 | W145: 10.25099022 | X145: 0.1666666667 | Y145: 10.25099022 | Z145: 0.004590314437 | AA145: 10.25099022 | AB145: 0.04003202562 | AC145: 153.7648533 | AD145: 0.02159827214 | AE145: 256.2747555 | AF145: 0.01222195062 | AG145: 0 | AH145: 0 | AI145: 12301.18826 | AJ145: 0.0001112347052 | AK145: 8713.341687 | AL145: 0.0002495358633 | AM145: 0 | AN145: 0 | AO145: 0 | AP145: 0 | AQ145: 15.76845377 | AS145: 30.75297066 | AT145: 0.3333333333 | AU145: 39.54 | AV145: 0.01850481125 | AW145: 10.73 | AX145: 0.1666666667 | AY145: 0 | AZ145: 0 | BA145: 12.77100379 | BC145: 73.64909373 | BD145: 0.12 | BE145: 2.27 | BF145: 73.64909373 | BG145: 0.0142 | BH145: 0 | BI145: 73.64909373 | BJ145: 0.01 | BK145: 0 | BL145: 20.06201313 | BN145: 30.75297066 | BO145: 0.12 | BP145: 10.73 | BQ145: 0.0142 | BR145: 0 | BS145: 0.01 | BT145: 3.842722479 | BV145: 29.73 | BW145: 0.2724 | BX145: 8.098452 | BZ145: =IF($D145="Connection",VLOOKUP(C145,'Input - General'!$F$62:$N$79,4,FALSE),0) -> 0 | CB145: 0.1801212934 | CC145: 60.54264517 | CD145: 10.90501955 | CF145: 0.08652781304 | CG145: 71.44766472 | CH145: 6.182210175
B146: ='Input - Inventory'!B143 -> 135 | C146: ='Input - Inventory'!C143 -> SON1x150 | D146: ='Input - Inventory'!D143 -> Lamp | E146: ='Input - Inventory'!E143 -> Traffic | F146: ='Input - Inventory'!F143 -> Major > 130w | G146: ='Input - Inventory'!G143 -> 1 | I146: Lamp - SON1x150 | K146: 83.79548891 | L146: 714 | M146: 59829.97908 | O146: 0 | P146: 0 | Q146: 10.25099022 | R146: 0.3333333333 | S146: 0 | T146: 0 | U146: 10.25099022 | V146: 0.004909421179 | W146: 10.25099022 | X146: 0.1666666667 | Y146: 10.25099022 | Z146: 0.004590314437 | AA146: 10.25099022 | AB146: 0.04003202562 | AC146: 153.7648533 | AD146: 0.02159827214 | AE146: 256.2747555 | AF146: 0.01222195062 | AG146: 0 | AH146: 0 | AI146: 12301.18826 | AJ146: 0.0001112347052 | AK146: 8713.341687 | AL146: 0.0002495358633 | AM146: 0 | AN146: 0 | AO146: 0 | AP146: 0 | AQ146: 15.62908756 | AS146: 30.75297066 | AT146: 0.3333333333 | AU146: 39.54 | AV146: 0.004909421179 | AW146: 10.73 | AX146: 0.1666666667 | AY146: 0 | AZ146: 0.004909421179 | BA146: 12.23344207 | BC146: 73.64909373 | BD146: 0.1406666667 | BE146: 2.27 | BF146: 73.64909373 | BG146: 0.0142 | BH146: 0 | BI146: 73.64909373 | BJ146: 0.01 | BK146: 0 | BL146: 23.51713762 | BN146: 30.75297066 | BO146: 0.1406666667 | BP146: 10.73 | BQ146: 0.0142 | BR146: 0 | BS146: 0.01 | BT146: 4.478283873 | BV146: 29.73 | BW146: 0.3193133333 | BX146: 9.4931854 | BZ146: =IF($D146="Connection",VLOOKUP(C146,'Input - General'!$F$62:$N$79,4,FALSE),0) -> 0 | CB146: 0.1801212934 | CC146: 65.35113651 | CD146: 11.77113123 | CF146: 0.08652781304 | CG146: 77.12226774 | CH146: 6.673221164
B147: ='Input - Inventory'!B144 -> 136 | C147: ='Input - Inventory'!C144 -> SON1x150 (P09) | D147: ='Input - Inventory'!D144 -> Lamp | E147: ='Input - Inventory'!E144 -> Traffic | F147: ='Input - Inventory'!F144 -> Major > 130w | G147: ='Input - Inventory'!G144 -> 1 | I147: Lamp - SON1x150 (P09) | K147: 83.79548891 | L147: 19351.5 | M147: 1621568.404 | O147: 0 | P147: 0 | Q147: 10.25099022 | R147: 0.3333333333 | S147: 0 | T147: 0 | U147: 10.25099022 | V147: 0.004909421179 | W147: 10.25099022 | X147: 0.1666666667 | Y147: 10.25099022 | Z147: 0.004590314437 | AA147: 10.25099022 | AB147: 0.04003202562 | AC147: 153.7648533 | AD147: 0.02159827214 | AE147: 256.2747555 | AF147: 0.01222195062 | AG147: 0 | AH147: 0 | AI147: 12301.18826 | AJ147: 0.0001112347052 | AK147: 8713.341687 | AL147: 0.0002495358633 | AM147: 0 | AN147: 0 | AO147: 0 | AP147: 0 | AQ147: 15.62908756 | AS147: 30.75297066 | AT147: 0.3333333333 | AU147: 39.54 | AV147: 0.004909421179 | AW147: 10.73 | AX147: 0.1666666667 | AY147: 0 | AZ147: 0.004909421179 | BA147: 12.23344207 | BC147: 73.64909373 | BD147: 0.1406666667 | BE147: 2.27 | BF147: 73.64909373 | BG147: 0.0142 | BH147: 0 | BI147: 73.64909373 | BJ147: 0.01 | BK147: 0 | BL147: 23.51713762 | BN147: 30.75297066 | BO147: 0.1406666667 | BP147: 10.73 | BQ147: 0.0142 | BR147: 0 | BS147: 0.01 | BT147: 4.478283873 | BV147: 29.73 | BW147: 0.3193133333 | BX147: 9.4931854 | BZ147: =IF($D147="Connection",VLOOKUP(C147,'Input - General'!$F$62:$N$79,4,FALSE),0) -> 0 | CB147: 0.1801212934 | CC147: 65.35113651 | CD147: 11.77113123 | CF147: 0.08652781304 | CG147: 77.12226774 | CH147: 6.673221164
B148: ='Input - Inventory'!B145 -> 137 | C148: ='Input - Inventory'!C145 -> SON1x150 AR | D148: ='Input - Inventory'!D145 -> Lamp | E148: ='Input - Inventory'!E145 -> Traffic | F148: ='Input - Inventory'!F145 -> Major > 130w | G148: ='Input - Inventory'!G145 -> 1 | I148: Lamp - SON1x150 AR | K148: 61.65370726 | L148: 194 | M148: 11960.81921 | O148: 0 | P148: 0 | Q148: 10.25099022 | R148: 0.3333333333 | S148: 0 | T148: 0 | U148: 10.25099022 | V148: 0.004909421179 | W148: 10.25099022 | X148: 0.1666666667 | Y148: 10.25099022 | Z148: 0.004590314437 | AA148: 10.25099022 | AB148: 0.04003202562 | AC148: 153.7648533 | AD148: 0.02159827214 | AE148: 256.2747555 | AF148: 0.01222195062 | AG148: 0 | AH148: 0 | AI148: 12301.18826 | AJ148: 0.0001112347052 | AK148: 8713.341687 | AL148: 0.0002495358633 | AM148: 0 | AN148: 0 | AO148: 0 | AP148: 0 | AQ148: 15.62908756 | AS148: 30.75297066 | AT148: 0.3333333333 | AU148: 39.54 | AV148: 0.004909421179 | AW148: 10.73 | AX148: 0.1666666667 | AY148: 0 | AZ148: 0.004909421179 | BA148: 12.23344207 | BC148: 73.64909373 | BD148: 0.07033333333 | BE148: 2.27 | BF148: 73.64909373 | BG148: 0.0142 | BH148: 0 | BI148: 73.64909373 | BJ148: 0.01 | BK148: 0 | BL148: 11.75856881 | BN148: 30.75297066 | BO148: 0.07033333333 | BP148: 10.73 | BQ148: 0.0142 | BR148: 140 | BS148: 0.01 | BT148: 3.715324936 | BV148: 29.73 | BW148: 0.1596566667 | BX148: 4.7465927 | BZ148: =IF($D148="Connection",VLOOKUP(C148,'Input - General'!$F$62:$N$79,4,FALSE),0) -> 0 | CB148: 0.1801212934 | CC148: 48.08301607 | CD148: 8.660775043 | CF148: 0.08652781304 | CG148: 56.74379111 | CH148: 4.909916148
B149: ='Input - Inventory'!B146 -> 138 | C149: ='Input - Inventory'!C146 -> SON1x220 | D149: ='Input - Inventory'!D146 -> Lamp | E149: ='Input - Inventory'!E146 -> Traffic | F149: ='Input - Inventory'!F146 -> Major > 130w | G149: ='Input - Inventory'!G146 -> 1 | I149: Lamp - SON1x220 | K149: 76.76189447 | L149: 0 | M149: 0 | O149: 0 | P149: 0 | Q149: 10.25099022 | R149: 0.3333333333 | S149: 0 | T149: 0 | U149: 10.25099022 | V149: 0.004909421179 | W149: 10.25099022 | X149: 0.1666666667 | Y149: 10.25099022 | Z149: 0.004590314437 | AA149: 10.25099022 | AB149: 0.04003202562 | AC149: 153.7648533 | AD149: 0.02159827214 | AE149: 256.2747555 | AF149: 0.01222195062 | AG149: 0 | AH149: 0 | AI149: 12301.18826 | AJ149: 0.0001112347052 | AK149: 8713.341687 | AL149: 0.0002495358633 | AM149: 0 | AN149: 0 | AO149: 0 | AP149: 0 | AQ149: 15.62908756 | AS149: 30.75297066 | AT149: 0.3333333333 | AU149: 39.54 | AV149: 0.004909421179 | AW149: 10.73 | AX149: 0.1666666667 | AY149: 0 | AZ149: 0.004909421179 | BA149: 12.23344207 | BC149: 73.64909373 | BD149: 0.12 | BE149: 2.27 | BF149: 73.64909373 | BG149: 0.0142 | BH149: 0 | BI149: 73.64909373 | BJ149: 0.01 | BK149: 0 | BL149: 20.06201313 | BN149: 30.75297066 | BO149: 0.12 | BP149: 10.73 | BQ149: 0.0142 | BR149: 0 | BS149: 0.01 | BT149: 3.842722479 | BV149: 29.73 | BW149: 0.2724 | BX149: 8.098452 | BZ149: =IF($D149="Connection",VLOOKUP(C149,'Input - General'!$F$62:$N$79,4,FALSE),0) -> 0 | CB149: 0.1801212934 | CC149: 59.86571723 | CD149: 10.78309042 | CF149: 0.08652781304 | CG149: 70.64880765 | CH149: 6.11308682
B150: ='Input - Inventory'!B147 -> 139 | C150: ='Input - Inventory'!C147 -> SON1x250 | D150: ='Input - Inventory'!D147 -> Lamp | E150: ='Input - Inventory'!E147 -> Traffic | F150: ='Input - Inventory'!F147 -> Major > 130w | G150: ='Input - Inventory'!G147 -> 1 | I150: Lamp - SON1x250 | K150: 85.88287822 | L150: 761 | M150: 65356.87033 | O150: 0 | P150: 0 | Q150: 10.25099022 | R150: 0.3333333333 | S150: 0 | T150: 0 | U150: 10.25099022 | V150: 0.004909421179 | W150: 10.25099022 | X150: 0.1666666667 | Y150: 10.25099022 | Z150: 0.004590314437 | AA150: 10.25099022 | AB150: 0.04003202562 | AC150: 153.7648533 | AD150: 0.02159827214 | AE150: 256.2747555 | AF150: 0.01222195062 | AG150: 0 | AH150: 0 | AI150: 12301.18826 | AJ150: 0.0001112347052 | AK150: 8713.341687 | AL150: 0.0002495358633 | AM150: 0 | AN150: 0 | AO150: 0 | AP150: 0 | AQ150: 15.62908756 | AS150: 30.75297066 | AT150: 0.3333333333 | AU150: 39.54 | AV150: 0.004909421179 | AW150: 10.73 | AX150: 0.1666666667 | AY150: 0 | AZ150: 0.004909421179 | BA150: 12.23344207 | BC150: 73.64909373 | BD150: 0.1468 | BE150: 2.27 | BF150: 73.64909373 | BG150: 0.0142 | BH150: 0 | BI150: 73.64909373 | BJ150: 0.01 | BK150: 0 | BL150: 24.5425294 | BN150: 30.75297066 | BO150: 0.1468 | BP150: 10.73 | BQ150: 0.0142 | BR150: 0 | BS150: 0.01 | BT150: 4.666902093 | BV150: 29.73 | BW150: 0.333236 | BX150: 9.90710628 | BZ150: =IF($D150="Connection",VLOOKUP(C150,'Input - General'!$F$62:$N$79,4,FALSE),0) -> 0 | CB150: 0.1801212934 | CC150: 66.97906739 | CD150: 12.06435625 | CF150: 0.08652781304 | CG150: 79.04342364 | CH150: 6.839454583
